Workbook

Sheet The information of goat samples
A1: 3 Month
A2: Sample_ID | B2: Birth date | C2: birth weight（kg） | D2: Mother_ID | E2: Number of lambs | F2: Gender | G2: Weight of 3 Month (kg) | H2: Weight gain (kg) | I2: Daily weight gain (kg) | J2: Height (cm) | K2: Body length (cm) | L2: Chest size (cm) | M2: Collection date | N2: Carcass weight (Kg)
A3: M2112 | B3: 2022-03-27 | C3: 1.58 | D3: F7547 | E3: 2 | F3: Male | G3: 6.6 | H3: =G3-C3 -> 5.02 | I3: =H3/93 -> 0.05 | J3: 41.9 | K3: 41.5 | L3: 41.2 | M3: 2022-06-30 | N3: 2.6
A4: M2144 | B4: 2022-04-07 | C4: 3.83 | D4: F9083 | E4: 2 | F4: Male | G4: 7.6 | H4: 3.77 | I4: =H4/90 -> 0.04 | J4: 44.9 | K4: 43.1 | L4: 44.5 | M4: 2022-07-12 | N4: 2.9
A5: M2195 | B5: 2022-05-26 | C5: 2.87 | D5: F7636 | E5: 2 | F5: Male | G5: 6.8 | H5: 3.93 | I5: =H5/90 -> 0.04 | J5: 41.8 | K5: 44.9 | L5: 43.1 | M5: 2022-08-25 | N5: 3.3
A6: M2192 | B6: 2022-05-26 | C6: 1.78 | D6: F1038 | E6: 2 | F6: Male | G6: 6.8 | H6: 5.02 | I6: =H6/90 -> 0.06 | J6: 41.8 | K6: 44.9 | L6: 43.1 | M6: 2022-08-26 | N6: 3.2
A7: M2120 | B7: 2022-03-29 | C7: 2.8 | D7: F8059 | E7: 2 | F7: Male | G7: 15.5 | H7: 12.7 | I7: =H7/90 -> 0.14 | J7: 51 | K7: 52.3 | L7: 55.1 | M7: 2022-06-28 | N7: 7.1
A8: M2145 | B8: 2022-04-07 | C8: 4.74 | D8: F9083 | E8: 2 | F8: Male | G8: 18.7 | H8: 13.96 | I8: 0.16 | J8: 56.6 | K8: 54.5 | L8: 58.8 | M8: 2022-07-13 | N8: 8.3
A9: M2229 | B9: 2022-06-15 | C9: 2.5 | D9: FZ907 | E9: 2 | F9: Male | G9: 11 | H9: 8.5 | I9: 0.09 | J9: 48.3 | K9: 50.2 | L9: 47.5 | M9: 2022-09-15 | N9: 5.2
A10: M2266 | B10: 2022-08-01 | C10: 3.28 | D10: FZ905 | E10: 2 | F10: Male | G10: 14 | H10: 10.72 | I10: 0.12 | J10: 53.5 | K10: 57 | L10: 52 | M10: 2022-11-06 | N10: 5.7
A12: 6 Month
A13: Sample_ID | B13: Birth date | C13: birth weight（kg） | D13: Mother_ID | E13: Number of lambs | F13: Gender | G13: Weight of 3 Month (kg) | H13: Weight gain (kg) | I13: Daily weight gain (kg) | J13: Height (cm) | K13: Body length (cm) | L13: Chest size (cm) | M13: Collection date | N13: Carcass weight (Kg)
A14: M1247 | B14: 2021-12-17 | C14: 1.77 | D14: FH911 | E14: 2 | F14: Male | G14: 9.4 | H14: 7.63 | I14: 0.0424 | J14: 42.9 | K14: 46.4 | L14: 48.7 | M14: 2022-06-20 | N14: 3.2
A15: M2068 | B15: 2022-02-26 | C15: 1.85 | D15: FZ036 | E15: 2 | F15: Male | G15: 10 | H15: 8.15 | I15: 0.0453 | J15: 45.4 | K15: 47.3 | L15: 48.5 | M15: 2022-08-27 | N15: 3.5
A16: M2171 | B16: 2022-04-30 | C16: 2.76 | D16: F9066 | E16: 2 | F16: Male | G16: 9.5 | H16: 6.74 | I16: 0.0374 | J16: 45.7 | K16: 45.1 | L16: 46.5 | M16: 2022-08-28 | N16: 3
A17: M2176 | B17: 2022-05-13 | C17: 2.27 | D17: F0092 | E17: 2 | F17: Male | G17: 9.2 | H17: 6.93 | I17: 0.0385 | J17: 43 | K17: 42 | L17: 52 | M17: 2022-11-14 | N17: 2.3
A18: M1153 | B18: 2021-09-05 | C18: 3.48 | D18: F8288 | E18: 2 | F18: Male | G18: 19.1 | H18: 15.62 | I18: 0.0868 | J18: 56.5 | K18: 51.9 | L18: 58.5 | M18: 2022-03-05 | N18: 8
A19: M1261 | B19: 2021-12-22 | C19: 2.77 | D19: BF015 | E19: 2 | F19: Male | G19: 17.3 | H19: 14.53 | I19: 0.0807 | J19: 51.8 | K19: 57.1 | L19: 56.8 | M19: 2022-06-18 | N19: 6.6
A20: M2011 | B20: 2022-01-14 | C20: 3.09 | D20: F8061A | E20: 2 | F20: Male | G20: 17.1 | H20: 14.01 | I20: 0.0778 | J20: 61.2 | K20: 53.2 | L20: 56.8 | M20: 2022-07-14 | N20: 7
A21: M2071 | B21: 2022-02-27 | C21: 2.29 | D21: F8244 | E21: 2 | F21: Male | G21: 19.9 | H21: 17.61 | I21: 0.0978 | J21: 51.9 | K21: 63.4 | L21: 59.3 | M21: 2022-08-29 | N21: 7.5
A23: 12 Month
A24: Sample_ID | B24: Birth date | C24: birth weight（kg） | D24: Mother_ID | E24: Number of lambs | F24: Gender | G24: Weight of 3 Month (kg) | H24: Weight gain (kg) | I24: Daily weight gain (kg) | J24: Height (cm) | K24: Body length (cm) | L24: Chest size (cm) | M24: Collection date | N24: Carcass weight (Kg)
A25: M1127 | B25: 2021-07-01 | C25: 2.26 | D25: F8108 | E25: 2 | F25: Male | G25: 13.44 | H25: =G25-C25 -> 11.18 | I25: 0.04 | J25: 45.5 | K25: 55.4 | L25: 57.3 | M25: 2022-06-29 | N25: 6.1
A26: M1172 | B26: 2021-10-13 | C26: 2.16 | D26: FZ941 | E26: 2 | F26: Male | G26: 14.60 | H26: =G26-C26 -> 12.44 | I26: 0.04 | J26: 45 | K26: 51.5 | L26: 53.4 | M26: 2022-10-13 | N26: 4.4
A27: M1196 | B27: 2021-10-30 | C27: 1.98 | D27: F0001 | E27: 2 | F27: Male | G27: 12.12 | H27: 10.14 | I27: 0.03 | J27: 46.9 | K27: 50.9 | L27: 53.1 | M27: 2022-10-31 | N27: 4.9
A28: M1194 | B28: 2021-10-30 | C28: 3.12 | D28: F8029 | E28: 2 | F28: Male | G28: 14.88 | H28: 11.76 | I28: 0.04 | J28: 51.8 | K28: 56.5 | L28: 58.5 | M28: 2022-10-30 | N28: 5.7
A29: M1152 | B29: 2021-09-05 | C29: 1.87 | D29: FZ818 | E29: 2 | F29: Male | G29: 25.13 | H29: =G29-C29 -> 23.26 | I29: 0.07 | J29: 61.2 | K29: 57.5 | L29: 61.6 | M29: 2022-09-07 | N29: 9.3
A30: M1165 | B30: 2021-10-09 | C30: 2.23 | D30: F8264 | E30: 2 | F30: Male | G30: 29.7 | H30: =G30-C30 -> 27.47 | I30: 0.08 | J30: 62.5 | K30: 68.1 | L30: 74.7 | M30: 2022-10-09 | N30: 13.1
A31: M1177 | B31: 2021-10-14 | C31: 3 | D31: FZ821 | E31: 2 | F31: Male | G31: 33.8 | H31: =G31-C31 -> 30.8 | I31: 0.09 | J31: 60.9 | K31: 66.8 | L31: 71.8 | M31: 2022-10-15 | N31: 15.7
A32: M1228 | B32: 2021-11-28 | C32: 2.43 | D32: FZ086 | E32: 2 | F32: Male | G32: 28 | H32: =G32-C32 -> 25.57 | I32: 0.07 | J32: 70.5 | K32: 63.9 | L32: 64.4 | M32: 2022-11-29 | N32: 10.7
A34: slow-growing group
A35: fast-growing group

Sheet Total RNA-seq Expression Data
A1: Gene_id | B1: Gene_name | C1: Gene_description | D1: M2112_L | E1: M2144_L | F1: M2195_L | G1: M2192_L | H1: M2120_L | I1: M2145_L | J1: M2229_L | K1: M2266_L | L1: M1247_L | M1: M2068_L | N1: M2171_L | O1: M2176_L | P1: M1153_L | Q1: M1261_L | R1: M2011_L | S1: M2071_L | T1: M1127_L | U1: M1172_L | V1: M1196_L | W1: M1194_L | X1: M1152_L | Y1: M1165_L | Z1: M1177_L | AA1: M1228_L | AB1: M2112_T | AC1: M2144_T | AD1: M2195_T | AE1: M2192_T | AF1: M2120_T | AG1: M2145_T | AH1: M2229_T | AI1: M2266_T | AJ1: M1247_T | AK1: M2068_T | AL1: M2171_T | AM1: M2176_T | AN1: M1153_T | AO1: M1261_T | AP1: M2011_T | AQ1: M2071_T | AR1: M1127_T | AS1: M1172_T | AT1: M1196_T | AU1: M1194_T | AV1: M1152_T | AW1: M1165_T | AX1: M1177_T | AY1: M1228_T | AZ1: L_3M_slow | BA1: L_3M_fast | BB1: L_6M_slow | BC1: L_6M_fast | BD1: L_12M_slow | BE1: L_12M_fast | BF1: T_3M_slow | BG1: T_3M_fast | BH1: T_6M_slow | BI1: T_6M_fast | BJ1: T_12M_slow | BK1: T_12M_fast
A2: ENSCHIG00000000001 | C2: - | D2: 0 | E2: 0 | F2: 0 | G2: 0 | H2: 0 | I2: 0 | J2: 0 | K2: 0 | L2: 0 | M2: 0 | N2: 0 | O2: 0 | P2: 0 | Q2: 0 | R2: 0 | S2: 0 | T2: 0 | U2: 0 | V2: 0 | W2: 0 | X2: 0 | Y2: 0 | Z2: 0 | AA2: 0 | AB2: 0 | AC2: 0 | AD2: 0 | AE2: 0 | AF2: 0 | AG2: 0 | AH2: 0 | AI2: 0 | AJ2: 0 | AK2: 0 | AL2: 0 | AM2: 0 | AN2: 0 | AO2: 0 | AP2: 0 | AQ2: 0 | AR2: 0 | AS2: 0 | AT2: 0 | AU2: 0 | AV2: 0 | AW2: 0 | AX2: 0 | AY2: 0 | AZ2: 0 | BA2: 0 | BB2: 0 | BC2: 0 | BD2: 0 | BE2: 0 | BF2: 0 | BG2: 0 | BH2: 0 | BI2: 0 | BJ2: 0 | BK2: 0
A3: ENSCHIG00000000002 | C3: - | D3: 126.8 | E3: 27.48 | F3: 370.97 | G3: 141.77 | H3: 277.02 | I3: 81.46 | J3: 43.24 | K3: 80.85 | L3: 54.85 | M3: 18.41 | N3: 115.49 | O3: 26.66 | P3: 47.49 | Q3: 41.36 | R3: 64.46 | S3: 32.64 | T3: 22.87 | U3: 212.3 | V3: 113.34 | W3: 49.83 | X3: 18.35 | Y3: 491 | Z3: 34.4 | AA3: 12.42 | AB3: 83.28 | AC3: 40.09 | AD3: 208.87 | AE3: 101.17 | AF3: 166.12 | AG3: 136.81 | AH3: 29.62 | AI3: 65.26 | AJ3: 34.69 | AK3: 15.8 | AL3: 49.4 | AM3: 17.4 | AN3: 25.41 | AO3: 32.9 | AP3: 26.21 | AQ3: 25.6 | AR3: 18.63 | AS3: 34.35 | AT3: 29.46 | AU3: 28.33 | AV3: 36.06 | AW3: 181.75 | AX3: 14.13 | AY3: 4.24 | AZ3: 166.755 | BA3: 120.6425 | BB3: 53.8525 | BC3: 46.4875 | BD3: 99.585 | BE3: 139.0425 | BF3: 108.3525 | BG3: 99.4525 | BH3: 29.3225 | BI3: 27.53 | BJ3: 27.6925 | BK3: 59.045
A4: ENSCHIG00000000003 | C4: - | D4: 0 | E4: 0 | F4: 0 | G4: 0 | H4: 0 | I4: 0 | J4: 0 | K4: 0 | L4: 0 | M4: 0 | N4: 0 | O4: 0 | P4: 0 | Q4: 0 | R4: 0 | S4: 0 | T4: 0 | U4: 0 | V4: 0 | W4: 0 | X4: 0 | Y4: 0 | Z4: 0 | AA4: 0 | AB4: 0 | AC4: 0 | AD4: 0 | AE4: 0 | AF4: 0 | AG4: 0 | AH4: 0 | AI4: 0 | AJ4: 0 | AK4: 0 | AL4: 0 | AM4: 0 | AN4: 0 | AO4: 0 | AP4: 0 | AQ4: 0 | AR4: 0 | AS4: 0 | AT4: 0 | AU4: 0 | AV4: 0 | AW4: 0 | AX4: 0 | AY4: 0 | AZ4: 0 | BA4: 0 | BB4: 0 | BC4: 0 | BD4: 0 | BE4: 0 | BF4: 0 | BG4: 0 | BH4: 0 | BI4: 0 | BJ4: 0 | BK4: 0
A5: ENSCHIG00000000004 | C5: - | D5: 755.08 | E5: 103.28 | F5: 744.2 | G5: 178.77 | H5: 455.48 | I5: 342.32 | J5: 124.33 | K5: 145.27 | L5: 187.41 | M5: 206.95 | N5: 325.87 | O5: 187.17 | P5: 192.03 | Q5: 135.74 | R5: 203.26 | S5: 94.31 | T5: 292.87 | U5: 623.35 | V5: 400.69 | W5: 109.41 | X5: 92.15 | Y5: 476.78 | Z5: 246.8 | AA5: 144.34 | AB5: 349.06 | AC5: 101.21 | AD5: 297.81 | AE5: 131.23 | AF5: 476.36 | AG5: 400.83 | AH5: 95.3 | AI5: 78.86 | AJ5: 146.96 | AK5: 122.24 | AL5: 132.95 | AM5: 65.12 | AN5: 88.62 | AO5: 127.6 | AP5: 110.69 | AQ5: 76.75 | AR5: 201.81 | AS5: 167.12 | AT5: 202.88 | AU5: 60.88 | AV5: 73.35 | AW5: 154.07 | AX5: 71.26 | AY5: 85.07 | AZ5: 445.3325 | BA5: 266.85 | BB5: 226.85 | BC5: 156.335 | BD5: 356.58 | BE5: 240.0175 | BF5: 219.8275 | BG5: 262.8375 | BH5: 116.8175 | BI5: 100.915 | BJ5: 158.1725 | BK5: 95.9375
A6: ENSCHIG00000000005 | C6: - | D6: 0 | E6: 0 | F6: 0 | G6: 0 | H6: 0 | I6: 0 | J6: 0 | K6: 0 | L6: 0 | M6: 0 | N6: 0 | O6: 0 | P6: 0 | Q6: 0 | R6: 0 | S6: 0 | T6: 0 | U6: 0 | V6: 0 | W6: 0 | X6: 0 | Y6: 0 | Z6: 0 | AA6: 0 | AB6: 0 | AC6: 0 | AD6: 0 | AE6: 0 | AF6: 0 | AG6: 0 | AH6: 0 | AI6: 0 | AJ6: 0 | AK6: 0 | AL6: 0 | AM6: 0 | AN6: 0 | AO6: 0 | AP6: 0 | AQ6: 0 | AR6: 0 | AS6: 0 | AT6: 0 | AU6: 0 | AV6: 0 | AW6: 0 | AX6: 0 | AY6: 0 | AZ6: 0 | BA6: 0 | BB6: 0 | BC6: 0 | BD6: 0 | BE6: 0 | BF6: 0 | BG6: 0 | BH6: 0 | BI6: 0 | BJ6: 0 | BK6: 0
A7: ENSCHIG00000000006 | B7: ND1 | C7: NADH dehydrogenase subunit 1 [Source:NCBI gene (formerly Entrezgene);Acc:1485856] | D7: 18342.99 | E7: 1938.32 | F7: 2326.34 | G7: 2777.16 | H7: 2363.18 | I7: 2584.39 | J7: 2419.01 | K7: 3718.18 | L7: 3263.36 | M7: 8680.55 | N7: 1903.65 | O7: 2638.53 | P7: 2315.9 | Q7: 2517.56 | R7: 1932.49 | S7: 1992.04 | T7: 13999.89 | U7: 4016.98 | V7: 3187.61 | W7: 3075.28 | X7: 2006.59 | Y7: 3501.37 | Z7: 4486.38 | AA7: 8489.72 | AB7: 14739.97 | AC7: 2827.1 | AD7: 3751.02 | AE7: 2973.18 | AF7: 2409.06 | AG7: 2614.13 | AH7: 2216.27 | AI7: 2511.98 | AJ7: 3741.41 | AK7: 10671.91 | AL7: 2616.21 | AM7: 3291.12 | AN7: 3891.93 | AO7: 3046.16 | AP7: 2525.75 | AQ7: 2488.49 | AR7: 13460.35 | AS7: 3299.24 | AT7: 2883.33 | AU7: 3052.65 | AV7: 2411.56 | AW7: 3117.29 | AX7: 2877.12 | AY7: 9285.12 | AZ7: 6346.2025 | BA7: 2771.19 | BB7: 4121.5225 | BC7: 2189.4975 | BD7: 6069.94 | BE7: 4621.015 | BF7: 6072.8175 | BG7: 2437.86 | BH7: 5080.1625 | BI7: 2988.0825 | BJ7: 5673.8925 | BK7: 4422.7725
A8: ENSCHIG00000000007 | C8: - | D8: 0 | E8: 0 | F8: 0 | G8: 0 | H8: 0 | I8: 0 | J8: 0 | K8: 0 | L8: 0 | M8: 0 | N8: 0 | O8: 0 | P8: 0 | Q8: 0 | R8: 0 | S8: 0 | T8: 0 | U8: 0 | V8: 0 | W8: 0 | X8: 0 | Y8: 0 | Z8: 0 | AA8: 0 | AB8: 0 | AC8: 0 | AD8: 0 | AE8: 0 | AF8: 0 | AG8: 0 | AH8: 0 | AI8: 0 | AJ8: 0 | AK8: 0 | AL8: 0 | AM8: 0 | AN8: 0 | AO8: 0 | AP8: 0 | AQ8: 0 | AR8: 0 | AS8: 0 | AT8: 0 | AU8: 0 | AV8: 0 | AW8: 0 | AX8: 0 | AY8: 0 | AZ8: 0 | BA8: 0 | BB8: 0 | BC8: 0 | BD8: 0 | BE8: 0 | BF8: 0 | BG8: 0 | BH8: 0 | BI8: 0 | BJ8: 0 | BK8: 0
A9: ENSCHIG00000000008 | C9: - | D9: 0 | E9: 0 | F9: 0 | G9: 0 | H9: 0 | I9: 0 | J9: 0 | K9: 0 | L9: 0 | M9: 0 | N9: 0 | O9: 0 | P9: 0 | Q9: 0 | R9: 0 | S9: 0 | T9: 0 | U9: 0 | V9: 0 | W9: 0 | X9: 0 | Y9: 0 | Z9: 0 | AA9: 0 | AB9: 0 | AC9: 0 | AD9: 0 | AE9: 0 | AF9: 0 | AG9: 0 | AH9: 0 | AI9: 0 | AJ9: 0 | AK9: 0 | AL9: 0 | AM9: 0 | AN9: 0 | AO9: 0 | AP9: 0 | AQ9: 0 | AR9: 0 | AS9: 0 | AT9: 0 | AU9: 0 | AV9: 0 | AW9: 0 | AX9: 0 | AY9: 0 | AZ9: 0 | BA9: 0 | BB9: 0 | BC9: 0 | BD9: 0 | BE9: 0 | BF9: 0 | BG9: 0 | BH9: 0 | BI9: 0 | BJ9: 0 | BK9: 0
A10: ENSCHIG00000000009 | C10: - | D10: 0 | E10: 0 | F10: 0 | G10: 0 | H10: 0 | I10: 0 | J10: 0 | K10: 0 | L10: 0 | M10: 0 | N10: 0 | O10: 0 | P10: 0 | Q10: 0 | R10: 0 | S10: 0 | T10: 0 | U10: 0 | V10: 0 | W10: 0 | X10: 0 | Y10: 0 | Z10: 0 | AA10: 0 | AB10: 0 | AC10: 0 | AD10: 0 | AE10: 0 | AF10: 0 | AG10: 0 | AH10: 0 | AI10: 0 | AJ10: 0 | AK10: 0 | AL10: 0 | AM10: 0 | AN10: 0 | AO10: 0 | AP10: 0 | AQ10: 0 | AR10: 0 | AS10: 0 | AT10: 0 | AU10: 0 | AV10: 0 | AW10: 0 | AX10: 0 | AY10: 0 | AZ10: 0 | BA10: 0 | BB10: 0 | BC10: 0 | BD10: 0 | BE10: 0 | BF10: 0 | BG10: 0 | BH10: 0 | BI10: 0 | BJ10: 0 | BK10: 0
A11: ENSCHIG00000000010 | B11: ND2 | C11: NADH dehydrogenase subunit 2 [Source:NCBI gene (formerly Entrezgene);Acc:1485857] | D11: 3700.36 | E11: 1837.77 | F11: 3501.11 | G11: 1584.51 | H11: 2736.64 | I11: 4718.34 | J11: 1951.09 | K11: 1727.56 | L11: 3386.76 | M11: 3257.15 | N11: 2622.27 | O11: 3619.98 | P11: 1397.45 | Q11: 1336.04 | R11: 2355.14 | S11: 2756.62 | T11: 5602.01 | U11: 5732.84 | V11: 5168.42 | W11: 3227.95 | X11: 1348.64 | Y11: 6944.94 | Z11: 3853.13 | AA11: 4082.5 | AB11: 4633.21 | AC11: 2129.89 | AD11: 2191.35 | AE11: 1462.44 | AF11: 3118.39 | AG11: 3262.68 | AH11: 1333.72 | AI11: 1085.1 | AJ11: 3041.12 | AK11: 2538.17 | AL11: 3392.67 | AM11: 2634.8 | AN11: 2033.23 | AO11: 1577.28 | AP11: 930.81 | AQ11: 2155.03 | AR11: 2700.64 | AS11: 1212.81 | AT11: 3803.31 | AU11: 1296.44 | AV11: 507.66 | AW11: 2104.46 | AX11: 1688.95 | AY11: 2141.92 | AZ11: 2655.9375 | BA11: 2783.4075 | BB11: 3221.54 | BC11: 1961.3125 | BD11: 4932.805 | BE11: 4057.3025 | BF11: 2604.2225 | BG11: 2199.9725 | BH11: 2901.69 | BI11: 1674.0875 | BJ11: 2253.3 | BK11: 1610.7475
A12: ENSCHIG00000000011 | C12: - | D12: 0 | E12: 0 | F12: 0 | G12: 0 | H12: 0 | I12: 0 | J12: 0 | K12: 0 | L12: 0 | M12: 0 | N12: 0 | O12: 0 | P12: 0 | Q12: 0 | R12: 0 | S12: 0 | T12: 0 | U12: 0 | V12: 0 | W12: 0 | X12: 0 | Y12: 0 | Z12: 0 | AA12: 0 | AB12: 0 | AC12: 0 | AD12: 0 | AE12: 0 | AF12: 0 | AG12: 0 | AH12: 0 | AI12: 0 | AJ12: 0 | AK12: 0 | AL12: 0 | AM12: 0 | AN12: 0 | AO12: 0 | AP12: 0 | AQ12: 0 | AR12: 0 | AS12: 0 | AT12: 0 | AU12: 0 | AV12: 0 | AW12: 0 | AX12: 0 | AY12: 0 | AZ12: 0 | BA12: 0 | BB12: 0 | BC12: 0 | BD12: 0 | BE12: 0 | BF12: 0 | BG12: 0 | BH12: 0 | BI12: 0 | BJ12: 0 | BK12: 0
A13: ENSCHIG00000000012 | C13: - | D13: 0 | E13: 0 | F13: 0 | G13: 0 | H13: 0 | I13: 0 | J13: 0 | K13: 0 | L13: 0 | M13: 0 | N13: 0 | O13: 0 | P13: 0 | Q13: 0 | R13: 0 | S13: 0 | T13: 0 | U13: 0 | V13: 0 | W13: 0 | X13: 0 | Y13: 0 | Z13: 0 | AA13: 0 | AB13: 0 | AC13: 0 | AD13: 0 | AE13: 0 | AF13: 0 | AG13: 0 | AH13: 0 | AI13: 0 | AJ13: 0 | AK13: 0 | AL13: 0 | AM13: 0 | AN13: 0 | AO13: 0 | AP13: 0 | AQ13: 0 | AR13: 0 | AS13: 0 | AT13: 0 | AU13: 0 | AV13: 0 | AW13: 0 | AX13: 0 | AY13: 0 | AZ13: 0 | BA13: 0 | BB13: 0 | BC13: 0 | BD13: 0 | BE13: 0 | BF13: 0 | BG13: 0 | BH13: 0 | BI13: 0 | BJ13: 0 | BK13: 0
A14: ENSCHIG00000000013 | C14: - | D14: 0 | E14: 0 | F14: 0 | G14: 0 | H14: 0 | I14: 0 | J14: 0 | K14: 0 | L14: 0 | M14: 0 | N14: 0 | O14: 0 | P14: 0 | Q14: 0 | R14: 0 | S14: 0 | T14: 0 | U14: 0 | V14: 0 | W14: 0 | X14: 0 | Y14: 0 | Z14: 0 | AA14: 0 | AB14: 0 | AC14: 0 | AD14: 0 | AE14: 0 | AF14: 0 | AG14: 0 | AH14: 0 | AI14: 0 | AJ14: 0 | AK14: 0 | AL14: 0 | AM14: 0 | AN14: 0 | AO14: 0 | AP14: 0 | AQ14: 0 | AR14: 0 | AS14: 0 | AT14: 0 | AU14: 0 | AV14: 0 | AW14: 0 | AX14: 0 | AY14: 0 | AZ14: 0 | BA14: 0 | BB14: 0 | BC14: 0 | BD14: 0 | BE14: 0 | BF14: 0 | BG14: 0 | BH14: 0 | BI14: 0 | BJ14: 0 | BK14: 0
A15: ENSCHIG00000000014 | C15: - | D15: 0 | E15: 0 | F15: 0 | G15: 0 | H15: 0 | I15: 0 | J15: 0 | K15: 0 | L15: 0 | M15: 0 | N15: 0 | O15: 0 | P15: 0 | Q15: 0 | R15: 0 | S15: 0 | T15: 0 | U15: 0 | V15: 0 | W15: 0 | X15: 0 | Y15: 0 | Z15: 0 | AA15: 0 | AB15: 0 | AC15: 0 | AD15: 0 | AE15: 0 | AF15: 0 | AG15: 0 | AH15: 0 | AI15: 0 | AJ15: 0 | AK15: 0 | AL15: 0 | AM15: 0 | AN15: 0 | AO15: 0 | AP15: 0 | AQ15: 0 | AR15: 0 | AS15: 0 | AT15: 0 | AU15: 0 | AV15: 0 | AW15: 0 | AX15: 0 | AY15: 0 | AZ15: 0 | BA15: 0 | BB15: 0 | BC15: 0 | BD15: 0 | BE15: 0 | BF15: 0 | BG15: 0 | BH15: 0 | BI15: 0 | BJ15: 0 | BK15: 0
A16: ENSCHIG00000000015 | C16: - | D16: 0 | E16: 0 | F16: 0 | G16: 0 | H16: 0 | I16: 0 | J16: 0 | K16: 0 | L16: 0 | M16: 0 | N16: 0 | O16: 0 | P16: 0 | Q16: 0 | R16: 0 | S16: 0 | T16: 0 | U16: 0 | V16: 0 | W16: 0 | X16: 0 | Y16: 0 | Z16: 0 | AA16: 0 | AB16: 0 | AC16: 0 | AD16: 0 | AE16: 0 | AF16: 0 | AG16: 0 | AH16: 0 | AI16: 0 | AJ16: 0 | AK16: 0 | AL16: 0 | AM16: 0 | AN16: 0 | AO16: 0 | AP16: 0 | AQ16: 0 | AR16: 0 | AS16: 0 | AT16: 0 | AU16: 0 | AV16: 0 | AW16: 0 | AX16: 0 | AY16: 0 | AZ16: 0 | BA16: 0 | BB16: 0 | BC16: 0 | BD16: 0 | BE16: 0 | BF16: 0 | BG16: 0 | BH16: 0 | BI16: 0 | BJ16: 0 | BK16: 0
A17: ENSCHIG00000000016 | B17: COX1 | C17: cytochrome c oxidase subunit I [Source:NCBI gene (formerly Entrezgene);Acc:1485858] | D17: 37832.36 | E17: 20686.02 | F17: 14871.42 | G17: 15296.74 | H17: 18092.48 | I17: 9257.75 | J17: 19925.14 | K17: 20778.1 | L17: 18390.72 | M17: 25376.1 | N17: 13615.37 | O17: 13481.63 | P17: 18959.93 | Q17: 16076.8 | R17: 17752.17 | S17: 16429.12 | T17: 45183.77 | U17: 16899.63 | V17: 24016.09 | W17: 18892.3 | X17: 15446.53 | Y17: 19739.5 | Z17: 23547.66 | AA17: 32151.12 | AB17: 47721.7 | AC17: 20496.06 | AD17: 17899.59 | AE17: 19026.2 | AF17: 12718.43 | AG17: 13124.63 | AH17: 17293.31 | AI17: 17851.42 | AJ17: 22048.52 | AK17: 37375.25 | AL17: 14453.36 | AM17: 13815.1 | AN17: 21735.49 | AO17: 20522.8 | AP17: 18365.47 | AQ17: 15542.18 | AR17: 41238.03 | AS17: 19330.12 | AT17: 20982.68 | AU17: 16375.97 | AV17: 19365.33 | AW17: 17037.15 | AX17: 16721.25 | AY17: 33902.09 | AZ17: 22171.635 | BA17: 17013.3675 | BB17: 17715.955 | BC17: 17304.505 | BD17: 26247.9475 | BE17: 22721.2025 | BF17: 26285.8875 | BG17: 15246.9475 | BH17: 21923.0575 | BI17: 19041.485 | BJ17: 24481.7 | BK17: 21756.455
A18: ENSCHIG00000000017 | C18: - | D18: 0 | E18: 0 | F18: 0 | G18: 0 | H18: 0 | I18: 0 | J18: 0 | K18: 0 | L18: 0 | M18: 0 | N18: 0 | O18: 0 | P18: 0 | Q18: 0 | R18: 0 | S18: 0 | T18: 0 | U18: 0 | V18: 0 | W18: 0 | X18: 0 | Y18: 0 | Z18: 0 | AA18: 0 | AB18: 0 | AC18: 0 | AD18: 0 | AE18: 0 | AF18: 0 | AG18: 0 | AH18: 0 | AI18: 0 | AJ18: 0 | AK18: 0 | AL18: 0 | AM18: 0 | AN18: 0 | AO18: 0 | AP18: 0 | AQ18: 0 | AR18: 0 | AS18: 0 | AT18: 0 | AU18: 0 | AV18: 0 | AW18: 0 | AX18: 0 | AY18: 0 | AZ18: 0 | BA18: 0 | BB18: 0 | BC18: 0 | BD18: 0 | BE18: 0 | BF18: 0 | BG18: 0 | BH18: 0 | BI18: 0 | BJ18: 0 | BK18: 0
A19: ENSCHIG00000000018 | C19: - | D19: 0 | E19: 0 | F19: 0 | G19: 0 | H19: 0 | I19: 0 | J19: 0 | K19: 0 | L19: 0 | M19: 0 | N19: 0 | O19: 0 | P19: 0 | Q19: 0 | R19: 0 | S19: 0 | T19: 0 | U19: 0 | V19: 0 | W19: 0 | X19: 0 | Y19: 0 | Z19: 0 | AA19: 0 | AB19: 0 | AC19: 0 | AD19: 0 | AE19: 0 | AF19: 0 | AG19: 0 | AH19: 0 | AI19: 0 | AJ19: 0 | AK19: 0 | AL19: 0 | AM19: 0 | AN19: 0 | AO19: 0 | AP19: 0 | AQ19: 0 | AR19: 0 | AS19: 0 | AT19: 0 | AU19: 0 | AV19: 0 | AW19: 0 | AX19: 0 | AY19: 0 | AZ19: 0 | BA19: 0 | BB19: 0 | BC19: 0 | BD19: 0 | BE19: 0 | BF19: 0 | BG19: 0 | BH19: 0 | BI19: 0 | BJ19: 0 | BK19: 0
A20: ENSCHIG00000000019 | B20: COX2 | C20: cytochrome c oxidase subunit II [Source:NCBI gene (formerly Entrezgene);Acc:1485859] | D20: 10650.87 | E20: 9775.49 | F20: 13619.94 | G20: 6092.49 | H20: 13537.08 | I20: 7710.57 | J20: 10554.74 | K20: 6551.83 | L20: 10024.93 | M20: 7455.87 | N20: 12428.85 | O20: 10883.35 | P20: 7075.17 | Q20: 7488.86 | R20: 10680.28 | S20: 9815.44 | T20: 11537.96 | U20: 13755.75 | V20: 20855.91 | W20: 9234.48 | X20: 5854.7 | Y20: 12526.85 | Z20: 7828.13 | AA20: 6615.6 | AB20: 7554.32 | AC20: 7227.5 | AD20: 7165.34 | AE20: 6676.74 | AF20: 12124.14 | AG20: 9660.69 | AH20: 8551.29 | AI20: 3938.85 | AJ20: 8478.57 | AK20: 5017.54 | AL20: 6182.39 | AM20: 4609.99 | AN20: 6376.9 | AO20: 7999.63 | AP20: 7996.4 | AQ20: 6462.53 | AR20: 8317.84 | AS20: 5856.86 | AT20: 11869.46 | AU20: 5364.9 | AV20: 5808.59 | AW20: 7038.5 | AX20: 4614.72 | AY20: 4492.87 | AZ20: 10034.6975 | BA20: 9588.555 | BB20: 10198.25 | BC20: 8764.9375 | BD20: 13846.025 | BE20: 8206.32 | BF20: 7155.975 | BG20: 8568.7425 | BH20: 6072.1225 | BI20: 7208.865 | BJ20: 7852.265 | BK20: 5488.67
A21: ENSCHIG00000000020 | C21: - | D21: 0 | E21: 0 | F21: 0 | G21: 0 | H21: 0 | I21: 0 | J21: 0 | K21: 0 | L21: 0 | M21: 0 | N21: 0 | O21: 0 | P21: 0 | Q21: 0 | R21: 0 | S21: 0 | T21: 0 | U21: 0 | V21: 0 | W21: 0 | X21: 0 | Y21: 0 | Z21: 0 | AA21: 0 | AB21: 0 | AC21: 0 | AD21: 0 | AE21: 0 | AF21: 0 | AG21: 0 | AH21: 0 | AI21: 0 | AJ21: 0 | AK21: 0 | AL21: 0 | AM21: 0 | AN21: 0 | AO21: 0 | AP21: 0 | AQ21: 0 | AR21: 0 | AS21: 0 | AT21: 0 | AU21: 0 | AV21: 0 | AW21: 0 | AX21: 0 | AY21: 0 | AZ21: 0 | BA21: 0 | BB21: 0 | BC21: 0 | BD21: 0 | BE21: 0 | BF21: 0 | BG21: 0 | BH21: 0 | BI21: 0 | BJ21: 0 | BK21: 0
A22: ENSCHIG00000000021 | B22: ATP8 | C22: ATP synthase F0 subunit 8 [Source:NCBI gene (formerly Entrezgene);Acc:1485860] | D22: 72531.96 | E22: 0 | F22: 13.17 | G22: 0 | H22: 0 | I22: 0 | J22: 0 | K22: 0 | L22: 0 | M22: 47784.89 | N22: 0 | O22: 0 | P22: 0 | Q22: 0 | R22: 0 | S22: 8.34 | T22: 72720.99 | U22: 0 | V22: 0 | W22: 0 | X22: 0 | Y22: 0 | Z22: 0 | AA22: 41283.79 | AB22: 70680.87 | AC22: 2.77 | AD22: 4.69 | AE22: 0 | AF22: 0 | AG22: 0 | AH22: 5.8 | AI22: 0 | AJ22: 0 | AK22: 56936.52 | AL22: 0 | AM22: 4.64 | AN22: 0 | AO22: 0 | AP22: 0 | AQ22: 0 | AR22: 55459.18 | AS22: 0 | AT22: 0 | AU22: 0 | AV22: 0 | AW22: 0 | AX22: 0 | AY22: 42453.66 | AZ22: 18136.2825 | BA22: 0 | BB22: 11946.2225 | BC22: 2.085 | BD22: 18180.2475 | BE22: 10320.9475 | BF22: 17672.0825 | BG22: 1.45 | BH22: 14235.29 | BI22: 0 | BJ22: 13864.795 | BK22: 10613.415
A23: ENSCHIG00000000022 | B23: ATP6 | C23: ATP synthase F0 subunit 6 [Source:NCBI gene (formerly Entrezgene);Acc:1485861] | D23: 10717.61 | E23: 0.97 | F23: 0.4 | G23: 0 | H23: 0 | I23: 1.25 | J23: 0.51 | K23: 0.61 | L23: 0.77 | M23: 7595.1 | N23: 0.39 | O23: 0.75 | P23: 1.74 | Q23: 0.24 | R23: 0.64 | S23: 0.55 | T23: 11291.25 | U23: 0.31 | V23: 0.6 | W23: 0.58 | X23: 0 | Y23: 2.35 | Z23: 0.88 | AA23: 10712.5 | AB23: 15378.91 | AC23: 0 | AD23: 0.25 | AE23: 0.6 | AF23: 0.29 | AG23: 0 | AH23: 0 | AI23: 0 | AJ23: 0 | AK23: 10563.53 | AL23: 0.99 | AM23: 0 | AN23: 0.51 | AO23: 0.52 | AP23: 0 | AQ23: 1.76 | AR23: 8730.78 | AS23: 0 | AT23: 0.55 | AU23: 0.52 | AV23: 0 | AW23: 0 | AX23: 0 | AY23: 9819.98 | AZ23: 2679.745 | BA23: 0.5925 | BB23: 1899.2525 | BC23: 0.7925 | BD23: 2823.185 | BE23: 2678.9325 | BF23: 3844.94 | BG23: 0.0725 | BH23: 2641.13 | BI23: 0.6975 | BJ23: 2182.9625 | BK23: 2454.995
A24: ENSCHIG00000000023 | B24: COX3 | C24: cytochrome c oxidase subunit III [Source:NCBI gene (formerly Entrezgene);Acc:1485862] | D24: 21486.77 | E24: 6559 | F24: 5078.83 | G24: 5941.34 | H24: 6673.74 | I24: 3813.52 | J24: 7204.94 | K24: 8145.32 | L24: 7669.78 | M24: 12795.83 | N24: 4925.19 | O24: 6013.91 | P24: 7162.1 | Q24: 6568.86 | R24: 6483.87 | S24: 7686.7 | T24: 19036.98 | U24: 7362.55 | V24: 9732.74 | W24: 6963.12 | X24: 5475.42 | Y24: 6780.16 | Z24: 7440.06 | AA24: 11385.97 | AB24: 21772.87 | AC24: 6029.16 | AD24: 5961.77 | AE24: 7202.97 | AF24: 6195.5 | AG24: 5821.42 | AH24: 6581.38 | AI24: 8019.54 | AJ24: 7160.41 | AK24: 17633.9 | AL24: 5504.15 | AM24: 6323.34 | AN24: 6578.65 | AO24: 7117.22 | AP24: 7571.78 | AQ24: 9709.93 | AR24: 19371.92 | AS24: 7401.76 | AT24: 10788.72 | AU24: 6963.03 | AV24: 8452.28 | AW24: 7518.3 | AX24: 6982.06 | AY24: 12775.46 | AZ24: 9766.485 | BA24: 6459.38 | BB24: 7851.1775 | BC24: 6975.3825 | BD24: 10773.8475 | BE24: 7770.4025 | BF24: 10241.6925 | BG24: 6654.46 | BH24: 9155.45 | BI24: 7744.395 | BJ24: 11131.3575 | BK24: 8932.025
A25: ENSCHIG00000000024 | C25: - | D25: 0 | E25: 0 | F25: 0 | G25: 0 | H25: 0 | I25: 0 | J25: 0 | K25: 0 | L25: 0 | M25: 0 | N25: 0 | O25: 0 | P25: 0 | Q25: 0 | R25: 0 | S25: 0 | T25: 0 | U25: 0 | V25: 0 | W25: 0 | X25: 0 | Y25: 0 | Z25: 0 | AA25: 0 | AB25: 0 | AC25: 0 | AD25: 0 | AE25: 0 | AF25: 0 | AG25: 0 | AH25: 0 | AI25: 0 | AJ25: 0 | AK25: 0 | AL25: 0 | AM25: 0 | AN25: 0 | AO25: 0 | AP25: 0 | AQ25: 0 | AR25: 0 | AS25: 0 | AT25: 0 | AU25: 0 | AV25: 0 | AW25: 0 | AX25: 0 | AY25: 0 | AZ25: 0 | BA25: 0 | BB25: 0 | BC25: 0 | BD25: 0 | BE25: 0 | BF25: 0 | BG25: 0 | BH25: 0 | BI25: 0 | BJ25: 0 | BK25: 0
A26: ENSCHIG00000000025 | B26: ND3 | C26: NADH dehydrogenase subunit 3 [Source:NCBI gene (formerly Entrezgene);Acc:1485863] | D26: 9410 | E26: 8578.01 | F26: 9751.22 | G26: 11270.45 | H26: 6973.77 | I26: 12114.3 | J26: 6846.51 | K26: 8702.88 | L26: 10954.72 | M26: 10386.35 | N26: 9649.2 | O26: 8844.51 | P26: 8907.08 | Q26: 8459.5 | R26: 9084.65 | S26: 10529.77 | T26: 21198.05 | U26: 10445.92 | V26: 9223.71 | W26: 13439.89 | X26: 7706.19 | Y26: 17086.8 | Z26: 18670.15 | AA26: 13664.75 | AB26: 16756.29 | AC26: 7284.04 | AD26: 12423.77 | AE26: 14832.2 | AF26: 8118.72 | AG26: 12760.18 | AH26: 6501.85 | AI26: 11099.27 | AJ26: 11585.21 | AK26: 11452.97 | AL26: 17030.43 | AM26: 15340.35 | AN26: 7600.43 | AO26: 7151.21 | AP26: 6404.62 | AQ26: 13564.95 | AR26: 12755.88 | AS26: 12879.95 | AT26: 18422.92 | AU26: 12870.18 | AV26: 8664.77 | AW26: 14485.15 | AX26: 15324.48 | AY26: 10541 | AZ26: 9752.42 | BA26: 8659.365 | BB26: 9958.695 | BC26: 9245.25 | BD26: 13576.8925 | BE26: 14281.9725 | BF26: 12824.075 | BG26: 9620.005 | BH26: 13852.24 | BI26: 8680.3025 | BJ26: 14232.2325 | BK26: 12253.85
A27: ENSCHIG00000000026 | C27: - | D27: 0 | E27: 0 | F27: 0 | G27: 0 | H27: 0 | I27: 0 | J27: 0 | K27: 0 | L27: 0 | M27: 0 | N27: 0 | O27: 0 | P27: 0 | Q27: 0 | R27: 0 | S27: 0 | T27: 0 | U27: 0 | V27: 0 | W27: 0 | X27: 0 | Y27: 0 | Z27: 0 | AA27: 0 | AB27: 0 | AC27: 0 | AD27: 0 | AE27: 0 | AF27: 0 | AG27: 0 | AH27: 0 | AI27: 0 | AJ27: 0 | AK27: 0 | AL27: 0 | AM27: 0 | AN27: 0 | AO27: 0 | AP27: 0 | AQ27: 0 | AR27: 0 | AS27: 0 | AT27: 0 | AU27: 0 | AV27: 0 | AW27: 0 | AX27: 0 | AY27: 0 | AZ27: 0 | BA27: 0 | BB27: 0 | BC27: 0 | BD27: 0 | BE27: 0 | BF27: 0 | BG27: 0 | BH27: 0 | BI27: 0 | BJ27: 0 | BK27: 0
A28: ENSCHIG00000000027 | B28: ND4L | C28: NADH dehydrogenase subunit 4L [Source:NCBI gene (formerly Entrezgene);Acc:1485864] | D28: 13567.03 | E28: 7942.07 | F28: 8962.15 | G28: 4488.12 | H28: 8360.36 | I28: 8336.81 | J28: 8710.91 | K28: 9062.55 | L28: 8552.55 | M28: 11111.99 | N28: 6617.64 | O28: 8421.69 | P28: 7382.78 | Q28: 6561.39 | R28: 9775.35 | S28: 8486.03 | T28: 13450.8 | U28: 8081.75 | V28: 9469.44 | W28: 7585.44 | X28: 5620.06 | Y28: 7788 | Z28: 5987.44 | AA28: 6910.63 | AB28: 7638.87 | AC28: 5315.14 | AD28: 4685.68 | AE28: 4517.43 | AF28: 5831.52 | AG28: 7253.41 | AH28: 5989.61 | AI28: 4001.08 | AJ28: 5864.75 | AK28: 8160.68 | AL28: 6542.69 | AM28: 6437.57 | AN28: 5063.88 | AO28: 5372.42 | AP28: 5453.33 | AQ28: 6743.19 | AR28: 9772.19 | AS28: 6036.1 | AT28: 8462.96 | AU28: 6426.55 | AV28: 5135.58 | AW28: 6960.29 | AX28: 4626.89 | AY28: 5702.86 | AZ28: 8739.8425 | BA28: 8617.6575 | BB28: 8675.9675 | BC28: 8051.3875 | BD28: 9646.8575 | BE28: 6576.5325 | BF28: 5539.28 | BG28: 5768.905 | BH28: 6751.4225 | BI28: 5658.205 | BJ28: 7674.45 | BK28: 5606.405
A29: ENSCHIG00000000028 | B29: ND4 | C29: NADH dehydrogenase subunit 4 [Source:NCBI gene (formerly Entrezgene);Acc:1485865] | D29: 5731.61 | E29: 2667.72 | F29: 2664.44 | G29: 2307.06 | H29: 3213.64 | I29: 2662.83 | J29: 3307.5 | K29: 3670.04 | L29: 3570.84 | M29: 4142.12 | N29: 2114.78 | O29: 2970.78 | P29: 2703.63 | Q29: 2729.88 | R29: 3012.38 | S29: 3448.54 | T29: 5712.47 | U29: 3553.7 | V29: 4769.91 | W29: 3457.51 | X29: 2949.4 | Y29: 5272.6 | Z29: 4440.7 | AA29: 4557.22 | AB29: 5908.17 | AC29: 3521.27 | AD29: 3135.68 | AE29: 2216.04 | AF29: 2456.05 | AG29: 2526.65 | AH29: 2598.52 | AI29: 2678.47 | AJ29: 3686.96 | AK29: 4676.64 | AL29: 3452.72 | AM29: 3238.57 | AN29: 3748.86 | AO29: 3106.38 | AP29: 2759.57 | AQ29: 3321.8 | AR29: 4182.34 | AS29: 2692.19 | AT29: 3788.1 | AU29: 2680.69 | AV29: 3080.07 | AW29: 3871.97 | AX29: 2744.07 | AY29: 3959.61 | AZ29: 3342.7075 | BA29: 3213.5025 | BB29: 3199.63 | BC29: 2973.6075 | BD29: 4373.3975 | BE29: 4304.98 | BF29: 3695.29 | BG29: 2564.9225 | BH29: 3763.7225 | BI29: 3234.1525 | BJ29: 3335.83 | BK29: 3413.93
A30: ENSCHIG00000000029 | C30: - | D30: 0 | E30: 0 | F30: 0 | G30: 0 | H30: 0 | I30: 0 | J30: 0 | K30: 0 | L30: 0 | M30: 0 | N30: 0 | O30: 0 | P30: 0 | Q30: 0 | R30: 0 | S30: 0 | T30: 0 | U30: 0 | V30: 0 | W30: 0 | X30: 0 | Y30: 0 | Z30: 0 | AA30: 0 | AB30: 0 | AC30: 0 | AD30: 0 | AE30: 0 | AF30: 0 | AG30: 0 | AH30: 0 | AI30: 0 | AJ30: 0 | AK30: 0 | AL30: 0 | AM30: 0 | AN30: 0 | AO30: 0 | AP30: 0 | AQ30: 0 | AR30: 0 | AS30: 0 | AT30: 0 | AU30: 0 | AV30: 0 | AW30: 0 | AX30: 0 | AY30: 0 | AZ30: 0 | BA30: 0 | BB30: 0 | BC30: 0 | BD30: 0 | BE30: 0 | BF30: 0 | BG30: 0 | BH30: 0 | BI30: 0 | BJ30: 0 | BK30: 0
A31: ENSCHIG00000000030 | C31: - | D31: 0 | E31: 0 | F31: 0 | G31: 0 | H31: 0 | I31: 0 | J31: 0 | K31: 0 | L31: 0 | M31: 0 | N31: 0 | O31: 0 | P31: 0 | Q31: 0 | R31: 0 | S31: 0 | T31: 0 | U31: 0 | V31: 0 | W31: 0 | X31: 0 | Y31: 0 | Z31: 0 | AA31: 0 | AB31: 0 | AC31: 0 | AD31: 0 | AE31: 0 | AF31: 0 | AG31: 0 | AH31: 0 | AI31: 0 | AJ31: 0 | AK31: 0 | AL31: 0 | AM31: 0 | AN31: 0 | AO31: 0 | AP31: 0 | AQ31: 0 | AR31: 0 | AS31: 0 | AT31: 0 | AU31: 0 | AV31: 0 | AW31: 0 | AX31: 0 | AY31: 0 | AZ31: 0 | BA31: 0 | BB31: 0 | BC31: 0 | BD31: 0 | BE31: 0 | BF31: 0 | BG31: 0 | BH31: 0 | BI31: 0 | BJ31: 0 | BK31: 0
A32: ENSCHIG00000000031 | C32: - | D32: 0 | E32: 0 | F32: 0 | G32: 0 | H32: 0 | I32: 0 | J32: 0 | K32: 0 | L32: 0 | M32: 0 | N32: 0 | O32: 0 | P32: 0 | Q32: 0 | R32: 0 | S32: 0 | T32: 0 | U32: 0 | V32: 0 | W32: 0 | X32: 0 | Y32: 0 | Z32: 0 | AA32: 0 | AB32: 0 | AC32: 0 | AD32: 0 | AE32: 0 | AF32: 0 | AG32: 0 | AH32: 0 | AI32: 0 | AJ32: 0 | AK32: 0 | AL32: 0 | AM32: 0 | AN32: 0 | AO32: 0 | AP32: 0 | AQ32: 0 | AR32: 0 | AS32: 0 | AT32: 0 | AU32: 0 | AV32: 0 | AW32: 0 | AX32: 0 | AY32: 0 | AZ32: 0 | BA32: 0 | BB32: 0 | BC32: 0 | BD32: 0 | BE32: 0 | BF32: 0 | BG32: 0 | BH32: 0 | BI32: 0 | BJ32: 0 | BK32: 0
A33: ENSCHIG00000000032 | B33: ND5 | C33: NADH dehydrogenase subunit 5 [Source:NCBI gene (formerly Entrezgene);Acc:1485866] | D33: 1985.02 | E33: 495.12 | F33: 681.3 | G33: 443.79 | H33: 556.48 | I33: 256.5 | J33: 633.16 | K33: 470.55 | L33: 563.99 | M33: 1440.73 | N33: 505.85 | O33: 411.15 | P33: 529.71 | Q33: 569.62 | R33: 798.23 | S33: 417.77 | T33: 2524.34 | U33: 668.3 | V33: 598.82 | W33: 401.39 | X33: 704.33 | Y33: 613.7 | Z33: 688.36 | AA33: 2026.74 | AB33: 3652.42 | AC33: 684.82 | AD33: 1111.28 | AE33: 627.16 | AF33: 345.4 | AG33: 316.3 | AH33: 642.96 | AI33: 422.08 | AJ33: 984.85 | AK33: 2536.32 | AL33: 882.54 | AM33: 638.6 | AN33: 1000.52 | AO33: 914.7 | AP33: 1197.37 | AQ33: 513.21 | AR33: 2598.79 | AS33: 953.88 | AT33: 712.52 | AU33: 529.66 | AV33: 1093.79 | AW33: 948.1 | AX33: 611.58 | AY33: 2125.9 | AZ33: 901.3075 | BA33: 479.1725 | BB33: 730.43 | BC33: 578.8325 | BD33: 1048.2125 | BE33: 1008.2825 | BF33: 1518.92 | BG33: 431.685 | BH33: 1260.5775 | BI33: 906.45 | BJ33: 1198.7125 | BK33: 1194.8425
A34: ENSCHIG00000000033 | B34: ND6 | C34: NADH dehydrogenase subunit 6 [Source:NCBI gene (formerly Entrezgene);Acc:1485867] | D34: 1344.66 | E34: 0 | F34: 0 | G34: 0 | H34: 0 | I34: 0 | J34: 0 | K34: 0 | L34: 0 | M34: 1086.32 | N34: 0 | O34: 0 | P34: 0 | Q34: 0 | R34: 0 | S34: 0 | T34: 1732.46 | U34: 0 | V34: 0 | W34: 0 | X34: 0 | Y34: 0 | Z34: 0 | AA34: 1151.57 | AB34: 2307.28 | AC34: 0 | AD34: 0 | AE34: 0 | AF34: 0 | AG34: 0 | AH34: 0 | AI34: 0 | AJ34: 0 | AK34: 1758.3 | AL34: 0 | AM34: 0 | AN34: 0 | AO34: 0 | AP34: 0 | AQ34: 0 | AR34: 2460.42 | AS34: 0 | AT34: 0 | AU34: 0 | AV34: 0 | AW34: 0 | AX34: 0 | AY34: 1363.45 | AZ34: 336.165 | BA34: 0 | BB34: 271.58 | BC34: 0 | BD34: 433.115 | BE34: 287.8925 | BF34: 576.82 | BG34: 0 | BH34: 439.575 | BI34: 0 | BJ34: 615.105 | BK34: 340.8625
A35: ENSCHIG00000000034 | C35: - | D35: 0 | E35: 0 | F35: 0 | G35: 0 | H35: 0 | I35: 0 | J35: 0 | K35: 0 | L35: 0 | M35: 0 | N35: 0 | O35: 0 | P35: 0 | Q35: 0 | R35: 0 | S35: 0 | T35: 0 | U35: 0 | V35: 0 | W35: 0 | X35: 0 | Y35: 0 | Z35: 0 | AA35: 0 | AB35: 0 | AC35: 0 | AD35: 0 | AE35: 0 | AF35: 0 | AG35: 0 | AH35: 0 | AI35: 0 | AJ35: 0 | AK35: 0 | AL35: 0 | AM35: 0 | AN35: 0 | AO35: 0 | AP35: 0 | AQ35: 0 | AR35: 0 | AS35: 0 | AT35: 0 | AU35: 0 | AV35: 0 | AW35: 0 | AX35: 0 | AY35: 0 | AZ35: 0 | BA35: 0 | BB35: 0 | BC35: 0 | BD35: 0 | BE35: 0 | BF35: 0 | BG35: 0 | BH35: 0 | BI35: 0 | BJ35: 0 | BK35: 0
A36: ENSCHIG00000000035 | B36: CYTB | C36: cytochrome b [Source:NCBI gene (formerly Entrezgene);Acc:1485868] | D36: 11996.76 | E36: 1767.73 | F36: 3173.32 | G36: 1998.08 | H36: 3189.09 | I36: 2104.43 | J36: 2260.03 | K36: 3410.36 | L36: 2609.49 | M36: 7174.66 | N36: 2080.27 | O36: 3419.74 | P36: 2783.16 | Q36: 1804.88 | R36: 3393.55 | S36: 2966.95 | T36: 12361.81 | U36: 4224.69 | V36: 5077.85 | W36: 2710.31 | X36: 1363.75 | Y36: 3815.39 | Z36: 3708.66 | AA36: 9801.77 | AB36: 14697.99 | AC36: 2431.9 | AD36: 2957.93 | AE36: 1973.31 | AF36: 2421.84 | AG36: 2749.94 | AH36: 1563.54 | AI36: 2642.3 | AJ36: 3048.12 | AK36: 8486.25 | AL36: 1747.58 | AM36: 2207.71 | AN36: 2408.34 | AO36: 2182.57 | AP36: 1892.88 | AQ36: 2664.8 | AR36: 7559.14 | AS36: 2122.71 | AT36: 2872.78 | AU36: 1446.44 | AV36: 2148.4 | AW36: 3157.31 | AX36: 2360.47 | AY36: 6940.79 | AZ36: 4733.9725 | BA36: 2740.9775 | BB36: 3821.04 | BC36: 2737.135 | BD36: 6093.665 | BE36: 4672.3925 | BF36: 5515.2825 | BG36: 2344.405 | BH36: 3872.415 | BI36: 2287.1475 | BJ36: 3500.2675 | BK36: 3651.7425
A37: ENSCHIG00000000036 | C37: - | D37: 0 | E37: 0 | F37: 0 | G37: 0 | H37: 0 | I37: 0 | J37: 0 | K37: 0 | L37: 0 | M37: 0 | N37: 0 | O37: 0 | P37: 0 | Q37: 0 | R37: 0 | S37: 0 | T37: 0 | U37: 0 | V37: 0 | W37: 0 | X37: 0 | Y37: 0 | Z37: 0 | AA37: 0 | AB37: 0 | AC37: 0 | AD37: 0 | AE37: 0 | AF37: 0 | AG37: 0 | AH37: 0 | AI37: 0 | AJ37: 0 | AK37: 0 | AL37: 0 | AM37: 0 | AN37: 0 | AO37: 0 | AP37: 0 | AQ37: 0 | AR37: 0 | AS37: 0 | AT37: 0 | AU37: 0 | AV37: 0 | AW37: 0 | AX37: 0 | AY37: 0 | AZ37: 0 | BA37: 0 | BB37: 0 | BC37: 0 | BD37: 0 | BE37: 0 | BF37: 0 | BG37: 0 | BH37: 0 | BI37: 0 | BJ37: 0 | BK37: 0
A38: ENSCHIG00000000037 | C38: - | D38: 0 | E38: 0 | F38: 0 | G38: 0 | H38: 0 | I38: 0 | J38: 0 | K38: 0 | L38: 0 | M38: 0 | N38: 0 | O38: 0 | P38: 0 | Q38: 0 | R38: 0 | S38: 0 | T38: 0 | U38: 0 | V38: 0 | W38: 0 | X38: 0 | Y38: 0 | Z38: 0 | AA38: 0 | AB38: 0 | AC38: 0 | AD38: 0 | AE38: 0 | AF38: 0 | AG38: 0 | AH38: 0 | AI38: 0 | AJ38: 0 | AK38: 0 | AL38: 0 | AM38: 0 | AN38: 0 | AO38: 0 | AP38: 0 | AQ38: 0 | AR38: 0 | AS38: 0 | AT38: 0 | AU38: 0 | AV38: 0 | AW38: 0 | AX38: 0 | AY38: 0 | AZ38: 0 | BA38: 0 | BB38: 0 | BC38: 0 | BD38: 0 | BE38: 0 | BF38: 0 | BG38: 0 | BH38: 0 | BI38: 0 | BJ38: 0 | BK38: 0
A39: ENSCHIG00000000038 | C39: - | D39: 0 | E39: 0.75 | F39: 0.7 | G39: 0.9 | H39: 0.29 | I39: 0 | J39: 0.55 | K39: 0.15 | L39: 0.28 | M39: 0.53 | N39: 0.43 | O39: 0.35 | P39: 0.41 | Q39: 0.24 | R39: 0 | S39: 0 | T39: 0 | U39: 0.17 | V39: 0.17 | W39: 0 | X39: 0.14 | Y39: 0.14 | Z39: 0 | AA39: 0.47 | AB39: 0 | AC39: 0.85 | AD39: 0 | AE39: 1.14 | AF39: 0.96 | AG39: 0 | AH39: 0 | AI39: 0.73 | AJ39: 0.8 | AK39: 1.06 | AL39: 0.62 | AM39: 0 | AN39: 0.14 | AO39: 1.71 | AP39: 0.65 | AQ39: 0.6 | AR39: 0.8 | AS39: 0.31 | AT39: 0 | AU39: 0.13 | AV39: 0.47 | AW39: 0.31 | AX39: 0.3 | AY39: 0.72 | AZ39: 0.5875 | BA39: 0.2475 | BB39: 0.3975 | BC39: 0.1625 | BD39: 0.085 | BE39: 0.1875 | BF39: 0.4975 | BG39: 0.4225 | BH39: 0.62 | BI39: 0.775 | BJ39: 0.31 | BK39: 0.45
A40: ENSCHIG00000000039 | C40: - | D40: 0.12 | E40: 0 | F40: 0.1 | G40: 0 | H40: 0.09 | I40: 0 | J40: 0 | K40: 0 | L40: 0 | M40: 0.07 | N40: 0 | O40: 0 | P40: 0.15 | Q40: 0 | R40: 0.47 | S40: 0 | T40: 0 | U40: 0 | V40: 0 | W40: 0.08 | X40: 0 | Y40: 0 | Z40: 0 | AA40: 0 | AB40: 0.07 | AC40: 0 | AD40: 0 | AE40: 0 | AF40: 0 | AG40: 0 | AH40: 0 | AI40: 0 | AJ40: 0 | AK40: 0 | AL40: 0 | AM40: 0 | AN40: 0 | AO40: 0 | AP40: 0 | AQ40: 0 | AR40: 0 | AS40: 0 | AT40: 0.08 | AU40: 0 | AV40: 0 | AW40: 0 | AX40: 0 | AY40: 0 | AZ40: 0.055 | BA40: 0.0225 | BB40: 0.0175 | BC40: 0.155 | BD40: 0.02 | BE40: 0 | BF40: 0.0175 | BG40: 0 | BH40: 0 | BI40: 0 | BJ40: 0.02 | BK40: 0
A41: ENSCHIG00000000040 | C41: - | D41: 0 | E41: 0 | F41: 0 | G41: 0 | H41: 0 | I41: 0 | J41: 0 | K41: 0 | L41: 0 | M41: 0 | N41: 0 | O41: 0 | P41: 0 | Q41: 0 | R41: 0 | S41: 0 | T41: 0 | U41: 0 | V41: 0 | W41: 0 | X41: 0 | Y41: 0 | Z41: 0 | AA41: 0 | AB41: 0 | AC41: 0 | AD41: 0 | AE41: 0 | AF41: 0 | AG41: 0 | AH41: 0 | AI41: 0 | AJ41: 0 | AK41: 0 | AL41: 0 | AM41: 0 | AN41: 0 | AO41: 0 | AP41: 0 | AQ41: 0 | AR41: 0 | AS41: 0 | AT41: 0 | AU41: 0 | AV41: 0 | AW41: 0 | AX41: 0 | AY41: 0 | AZ41: 0 | BA41: 0 | BB41: 0 | BC41: 0 | BD41: 0 | BE41: 0 | BF41: 0 | BG41: 0 | BH41: 0 | BI41: 0 | BJ41: 0 | BK41: 0
A42: ENSCHIG00000000041 | C42: - | D42: 0 | E42: 0 | F42: 0 | G42: 0 | H42: 0 | I42: 0 | J42: 0 | K42: 0 | L42: 0 | M42: 0 | N42: 0 | O42: 0 | P42: 0 | Q42: 0 | R42: 0 | S42: 0 | T42: 0 | U42: 0 | V42: 0 | W42: 0 | X42: 0 | Y42: 0 | Z42: 0 | AA42: 0 | AB42: 0 | AC42: 0 | AD42: 0 | AE42: 0 | AF42: 0 | AG42: 0 | AH42: 0 | AI42: 0 | AJ42: 0 | AK42: 0 | AL42: 0 | AM42: 0 | AN42: 0 | AO42: 0 | AP42: 0 | AQ42: 0 | AR42: 0 | AS42: 0 | AT42: 0 | AU42: 0 | AV42: 0 | AW42: 0 | AX42: 0 | AY42: 0 | AZ42: 0 | BA42: 0 | BB42: 0 | BC42: 0 | BD42: 0 | BE42: 0 | BF42: 0 | BG42: 0 | BH42: 0 | BI42: 0 | BJ42: 0 | BK42: 0
A43: ENSCHIG00000000042 | C43: - | D43: 0 | E43: 0 | F43: 0 | G43: 0 | H43: 0 | I43: 0 | J43: 0 | K43: 0 | L43: 0 | M43: 0 | N43: 0 | O43: 0 | P43: 0 | Q43: 0 | R43: 0 | S43: 0 | T43: 0 | U43: 0 | V43: 0 | W43: 0 | X43: 0 | Y43: 0 | Z43: 0 | AA43: 0 | AB43: 0 | AC43: 0 | AD43: 0 | AE43: 0 | AF43: 0 | AG43: 0 | AH43: 0 | AI43: 0 | AJ43: 0 | AK43: 0 | AL43: 0.2 | AM43: 0 | AN43: 0 | AO43: 0 | AP43: 0 | AQ43: 0 | AR43: 0 | AS43: 0 | AT43: 0 | AU43: 0 | AV43: 0 | AW43: 0 | AX43: 0 | AY43: 0 | AZ43: 0 | BA43: 0 | BB43: 0 | BC43: 0 | BD43: 0 | BE43: 0 | BF43: 0 | BG43: 0 | BH43: 0.05 | BI43: 0 | BJ43: 0 | BK43: 0
A44: ENSCHIG00000000043 | C44: - | D44: 0.14 | E44: 0.2 | F44: 0.45 | G44: 0.44 | H44: 0.25 | I44: 0.55 | J44: 0.18 | K44: 0 | L44: 0.28 | M44: 0.08 | N44: 0.51 | O44: 0.15 | P44: 0.27 | Q44: 0.07 | R44: 0.6 | S44: 0.25 | T44: 0.08 | U44: 0.26 | V44: 0.35 | W44: 0.08 | X44: 0.48 | Y44: 0.18 | Z44: 0.27 | AA44: 0.31 | AB44: 0.21 | AC44: 0.02 | AD44: 0.09 | AE44: 0.09 | AF44: 0.54 | AG44: 0.07 | AH44: 0.36 | AI44: 0.03 | AJ44: 0.09 | AK44: 0.07 | AL44: 0.22 | AM44: 0.17 | AN44: 0.11 | AO44: 0.31 | AP44: 0.11 | AQ44: 0.08 | AR44: 0.2 | AS44: 0.11 | AT44: 0.07 | AU44: 0.15 | AV44: 0.35 | AW44: 0.17 | AX44: 0.05 | AY44: 0.07 | AZ44: 0.3075 | BA44: 0.245 | BB44: 0.255 | BC44: 0.2975 | BD44: 0.1925 | BE44: 0.31 | BF44: 0.1025 | BG44: 0.25 | BH44: 0.1375 | BI44: 0.1525 | BJ44: 0.1325 | BK44: 0.16
A45: ENSCHIG00000000044 | C45: - | D45: 0 | E45: 0 | F45: 0 | G45: 0 | H45: 0 | I45: 0 | J45: 0 | K45: 0 | L45: 0 | M45: 0 | N45: 0 | O45: 0 | P45: 0 | Q45: 0 | R45: 0 | S45: 0 | T45: 0 | U45: 0 | V45: 0 | W45: 0 | X45: 0 | Y45: 0 | Z45: 0 | AA45: 0 | AB45: 0 | AC45: 0 | AD45: 0 | AE45: 0 | AF45: 0 | AG45: 0 | AH45: 0 | AI45: 0 | AJ45: 0 | AK45: 0 | AL45: 0 | AM45: 0 | AN45: 0 | AO45: 0 | AP45: 0 | AQ45: 0 | AR45: 0 | AS45: 0 | AT45: 0 | AU45: 0 | AV45: 0 | AW45: 0 | AX45: 0 | AY45: 0 | AZ45: 0 | BA45: 0 | BB45: 0 | BC45: 0 | BD45: 0 | BE45: 0 | BF45: 0 | BG45: 0 | BH45: 0 | BI45: 0 | BJ45: 0 | BK45: 0
A46: ENSCHIG00000000045 | B46: VPREB1 | C46: V-set pre-B cell surrogate light chain 1 [Source:HGNC Symbol;Acc:HGNC:12709] | D46: 0 | E46: 0 | F46: 0 | G46: 0 | H46: 0 | I46: 0 | J46: 0 | K46: 0 | L46: 0 | M46: 0 | N46: 0 | O46: 0 | P46: 0 | Q46: 0 | R46: 0 | S46: 0 | T46: 0 | U46: 0 | V46: 0 | W46: 0 | X46: 0.08 | Y46: 0 | Z46: 0 | AA46: 0 | AB46: 0 | AC46: 0 | AD46: 0 | AE46: 0 | AF46: 0 | AG46: 0 | AH46: 0 | AI46: 0 | AJ46: 0.04 | AK46: 0 | AL46: 0 | AM46: 0 | AN46: 0 | AO46: 0.08 | AP46: 0 | AQ46: 0 | AR46: 0.04 | AS46: 0 | AT46: 0 | AU46: 0 | AV46: 0 | AW46: 0 | AX46: 0 | AY46: 0 | AZ46: 0 | BA46: 0 | BB46: 0 | BC46: 0 | BD46: 0 | BE46: 0.02 | BF46: 0 | BG46: 0 | BH46: 0.01 | BI46: 0.02 | BJ46: 0.01 | BK46: 0
A47: ENSCHIG00000000046 | B47: ODF3 | C47: outer dense fiber of sperm tails 3 [Source:HGNC Symbol;Acc:HGNC:19905] | D47: 0 | E47: 0 | F47: 0 | G47: 0 | H47: 0 | I47: 0 | J47: 0 | K47: 0 | L47: 0.27 | M47: 0 | N47: 0 | O47: 0 | P47: 0 | Q47: 0 | R47: 0 | S47: 0 | T47: 0 | U47: 0 | V47: 0 | W47: 0 | X47: 0 | Y47: 0.16 | Z47: 0 | AA47: 0.14 | AB47: 0 | AC47: 0 | AD47: 0 | AE47: 0 | AF47: 0 | AG47: 0 | AH47: 0 | AI47: 0 | AJ47: 0 | AK47: 0 | AL47: 0 | AM47: 0 | AN47: 0 | AO47: 0.36 | AP47: 0.16 | AQ47: 0 | AR47: 0 | AS47: 0 | AT47: 0 | AU47: 0 | AV47: 0 | AW47: 0.37 | AX47: 2.02 | AY47: 0 | AZ47: 0 | BA47: 0 | BB47: 0.0675 | BC47: 0 | BD47: 0 | BE47: 0.075 | BF47: 0 | BG47: 0 | BH47: 0 | BI47: 0.13 | BJ47: 0 | BK47: 0.5975
A48: ENSCHIG00000000047 | C48: - | D48: 0 | E48: 1.26 | F48: 0 | G48: 0 | H48: 0 | I48: 0 | J48: 0 | K48: 0 | L48: 0 | M48: 0 | N48: 0 | O48: 0 | P48: 0 | Q48: 0 | R48: 0 | S48: 0 | T48: 0 | U48: 0.24 | V48: 0 | W48: 0 | X48: 0 | Y48: 0 | Z48: 0 | AA48: 0 | AB48: 0 | AC48: 0 | AD48: 0 | AE48: 0 | AF48: 0 | AG48: 0 | AH48: 0 | AI48: 0 | AJ48: 0 | AK48: 0 | AL48: 0 | AM48: 0 | AN48: 0 | AO48: 0 | AP48: 0 | AQ48: 0 | AR48: 0 | AS48: 0 | AT48: 0 | AU48: 0 | AV48: 0 | AW48: 0 | AX48: 0 | AY48: 0 | AZ48: 0.315 | BA48: 0 | BB48: 0 | BC48: 0 | BD48: 0.06 | BE48: 0 | BF48: 0 | BG48: 0 | BH48: 0 | BI48: 0 | BJ48: 0 | BK48: 0
A49: ENSCHIG00000000048 | C49: - | D49: 0 | E49: 0 | F49: 0 | G49: 0 | H49: 0 | I49: 0 | J49: 0 | K49: 0 | L49: 0 | M49: 0 | N49: 0 | O49: 0 | P49: 0 | Q49: 0 | R49: 0 | S49: 0 | T49: 0 | U49: 0 | V49: 0 | W49: 0 | X49: 0 | Y49: 0 | Z49: 0 | AA49: 0 | AB49: 0 | AC49: 0 | AD49: 0 | AE49: 0 | AF49: 0 | AG49: 0 | AH49: 0 | AI49: 0 | AJ49: 0 | AK49: 0 | AL49: 0 | AM49: 0 | AN49: 0 | AO49: 0 | AP49: 0.34 | AQ49: 0 | AR49: 0 | AS49: 0 | AT49: 0 | AU49: 0 | AV49: 0 | AW49: 0.15 | AX49: 0.33 | AY49: 0 | AZ49: 0 | BA49: 0 | BB49: 0 | BC49: 0 | BD49: 0 | BE49: 0 | BF49: 0 | BG49: 0 | BH49: 0 | BI49: 0.085 | BJ49: 0 | BK49: 0.12
A50: ENSCHIG00000000049 | C50: - | D50: 0 | E50: 0 | F50: 0 | G50: 0 | H50: 0 | I50: 0 | J50: 0 | K50: 0 | L50: 0 | M50: 0 | N50: 0 | O50: 0 | P50: 0 | Q50: 0 | R50: 0 | S50: 0 | T50: 0 | U50: 0 | V50: 0 | W50: 0 | X50: 0 | Y50: 0 | Z50: 2.67 | AA50: 0 | AB50: 0 | AC50: 0 | AD50: 0 | AE50: 0 | AF50: 0 | AG50: 0 | AH50: 0 | AI50: 0 | AJ50: 0 | AK50: 0 | AL50: 0 | AM50: 0 | AN50: 0 | AO50: 0 | AP50: 0 | AQ50: 0 | AR50: 0 | AS50: 0 | AT50: 0 | AU50: 0 | AV50: 0 | AW50: 0 | AX50: 0 | AY50: 0 | AZ50: 0 | BA50: 0 | BB50: 0 | BC50: 0 | BD50: 0 | BE50: 0.6675 | BF50: 0 | BG50: 0 | BH50: 0 | BI50: 0 | BJ50: 0 | BK50: 0
A51: ENSCHIG00000000050 | C51: - | D51: 66.48 | E51: 158.34 | F51: 121.07 | G51: 96.46 | H51: 128.68 | I51: 96.89 | J51: 192.12 | K51: 123.98 | L51: 106.86 | M51: 114.44 | N51: 160.15 | O51: 102.9 | P51: 121.3 | Q51: 133.34 | R51: 132.54 | S51: 147.07 | T51: 125.24 | U51: 94.51 | V51: 136.05 | W51: 169.99 | X51: 102.71 | Y51: 146.81 | Z51: 99.95 | AA51: 116.65 | AB51: 81.19 | AC51: 142.08 | AD51: 104.14 | AE51: 117.21 | AF51: 157.55 | AG51: 99.45 | AH51: 145.65 | AI51: 103.87 | AJ51: 117.1 | AK51: 102.29 | AL51: 101.52 | AM51: 91.67 | AN51: 112.05 | AO51: 123.21 | AP51: 137.14 | AQ51: 130.71 | AR51: 90.5 | AS51: 120.86 | AT51: 166.15 | AU51: 135.12 | AV51: 97.94 | AW51: 118.12 | AX51: 90.47 | AY51: 127.3 | AZ51: 110.5875 | BA51: 135.4175 | BB51: 121.0875 | BC51: 133.5625 | BD51: 131.4475 | BE51: 116.53 | BF51: 111.155 | BG51: 126.63 | BH51: 103.145 | BI51: 125.7775 | BJ51: 128.1575 | BK51: 108.4575
A52: ENSCHIG00000000051 | C52: - | D52: 0 | E52: 0 | F52: 0 | G52: 0 | H52: 0 | I52: 0 | J52: 0 | K52: 0 | L52: 0 | M52: 0 | N52: 0 | O52: 0 | P52: 0 | Q52: 0 | R52: 0 | S52: 0 | T52: 0 | U52: 0 | V52: 0 | W52: 0 | X52: 0 | Y52: 0 | Z52: 0 | AA52: 0 | AB52: 0 | AC52: 0 | AD52: 0 | AE52: 0 | AF52: 0 | AG52: 0 | AH52: 0 | AI52: 0 | AJ52: 0 | AK52: 0 | AL52: 0 | AM52: 0 | AN52: 0 | AO52: 0 | AP52: 0 | AQ52: 0 | AR52: 0 | AS52: 0 | AT52: 0 | AU52: 0 | AV52: 0 | AW52: 0 | AX52: 0 | AY52: 0 | AZ52: 0 | BA52: 0 | BB52: 0 | BC52: 0 | BD52: 0 | BE52: 0 | BF52: 0 | BG52: 0 | BH52: 0 | BI52: 0 | BJ52: 0 | BK52: 0
A53: ENSCHIG00000000052 | C53: - | D53: 0 | E53: 0 | F53: 0 | G53: 0 | H53: 0 | I53: 0 | J53: 0 | K53: 0 | L53: 0 | M53: 0 | N53: 0 | O53: 0 | P53: 0 | Q53: 0 | R53: 0 | S53: 0 | T53: 0 | U53: 0 | V53: 0 | W53: 0 | X53: 0 | Y53: 0 | Z53: 0 | AA53: 0 | AB53: 0 | AC53: 0 | AD53: 0 | AE53: 0 | AF53: 0 | AG53: 0 | AH53: 0 | AI53: 0 | AJ53: 0 | AK53: 0 | AL53: 0 | AM53: 0 | AN53: 0 | AO53: 0 | AP53: 0 | AQ53: 0 | AR53: 0 | AS53: 0 | AT53: 0 | AU53: 0 | AV53: 0 | AW53: 0 | AX53: 0 | AY53: 0 | AZ53: 0 | BA53: 0 | BB53: 0 | BC53: 0 | BD53: 0 | BE53: 0 | BF53: 0 | BG53: 0 | BH53: 0 | BI53: 0 | BJ53: 0 | BK53: 0
A54: ENSCHIG00000000053 | C54: - | D54: 4.42 | E54: 3.33 | F54: 2.66 | G54: 0.04 | H54: 5.4 | I54: 1.83 | J54: 5.05 | K54: 6.38 | L54: 2.6 | M54: 0.22 | N54: 1.78 | O54: 0.83 | P54: 0.63 | Q54: 13.62 | R54: 3.24 | S54: 2.85 | T54: 11.09 | U54: 6.26 | V54: 0.95 | W54: 9.15 | X54: 0.26 | Y54: 7.91 | Z54: 1.3 | AA54: 6.22 | AB54: 4.75 | AC54: 4.65 | AD54: 2.62 | AE54: 0.35 | AF54: 3.45 | AG54: 2.64 | AH54: 4.07 | AI54: 5.48 | AJ54: 8 | AK54: 0.05 | AL54: 1.45 | AM54: 0.02 | AN54: 0.28 | AO54: 12.33 | AP54: 3.99 | AQ54: 2.36 | AR54: 7.94 | AS54: 4.82 | AT54: 0.7 | AU54: 9.21 | AV54: 0.84 | AW54: 8.66 | AX54: 0.1 | AY54: 6.12 | AZ54: 2.6125 | BA54: 4.665 | BB54: 1.3575 | BC54: 5.085 | BD54: 6.8625 | BE54: 3.9225 | BF54: 3.0925 | BG54: 3.91 | BH54: 2.38 | BI54: 4.74 | BJ54: 5.6675 | BK54: 3.93
A55: ENSCHIG00000000054 | C55: - | D55: 0 | E55: 0 | F55: 0 | G55: 0 | H55: 0 | I55: 0 | J55: 0 | K55: 0 | L55: 0 | M55: 0 | N55: 0 | O55: 0 | P55: 0 | Q55: 0 | R55: 0 | S55: 0 | T55: 0 | U55: 0 | V55: 0 | W55: 0 | X55: 0 | Y55: 0 | Z55: 0 | AA55: 0 | AB55: 0 | AC55: 0 | AD55: 0 | AE55: 0 | AF55: 0 | AG55: 0 | AH55: 0 | AI55: 0 | AJ55: 0 | AK55: 0 | AL55: 0 | AM55: 0 | AN55: 0 | AO55: 0 | AP55: 0 | AQ55: 0 | AR55: 0 | AS55: 0 | AT55: 0 | AU55: 0 | AV55: 0 | AW55: 0 | AX55: 0 | AY55: 0 | AZ55: 0 | BA55: 0 | BB55: 0 | BC55: 0 | BD55: 0 | BE55: 0 | BF55: 0 | BG55: 0 | BH55: 0 | BI55: 0 | BJ55: 0 | BK55: 0
A56: ENSCHIG00000000055 | B56: TMLHE | C56: trimethyllysine hydroxylase, epsilon [Source:HGNC Symbol;Acc:HGNC:18308] | D56: 1.58 | E56: 1.27 | F56: 2.08 | G56: 1.74 | H56: 1.61 | I56: 2.04 | J56: 2.46 | K56: 0.76 | L56: 2.71 | M56: 1.27 | N56: 3.79 | O56: 4.97 | P56: 1.3 | Q56: 1.66 | R56: 1.15 | S56: 1.73 | T56: 1.15 | U56: 1.47 | V56: 1.61 | W56: 1.3 | X56: 1.44 | Y56: 1.49 | Z56: 0.91 | AA56: 1.58 | AB56: 0.77 | AC56: 1.65 | AD56: 2.24 | AE56: 1.74 | AF56: 2.15 | AG56: 1.6 | AH56: 1.16 | AI56: 1.45 | AJ56: 1.39 | AK56: 1.99 | AL56: 1.95 | AM56: 1.71 | AN56: 1.06 | AO56: 1.26 | AP56: 1.51 | AQ56: 0.93 | AR56: 0.97 | AS56: 1.84 | AT56: 1.75 | AU56: 0.65 | AV56: 2.06 | AW56: 1.02 | AX56: 2.33 | AY56: 1.29 | AZ56: 1.6675 | BA56: 1.7175 | BB56: 3.185 | BC56: 1.46 | BD56: 1.3825 | BE56: 1.355 | BF56: 1.6 | BG56: 1.59 | BH56: 1.76 | BI56: 1.19 | BJ56: 1.3025 | BK56: 1.675
A57: ENSCHIG00000000056 | C57: - | D57: 0 | E57: 0 | F57: 0 | G57: 0 | H57: 0 | I57: 0 | J57: 0 | K57: 0 | L57: 0 | M57: 0 | N57: 0 | O57: 0 | P57: 0 | Q57: 0 | R57: 0 | S57: 0 | T57: 0 | U57: 0 | V57: 0 | W57: 0 | X57: 0 | Y57: 0 | Z57: 0 | AA57: 0 | AB57: 0 | AC57: 0 | AD57: 0 | AE57: 0 | AF57: 0 | AG57: 0 | AH57: 0 | AI57: 0 | AJ57: 0 | AK57: 0 | AL57: 0 | AM57: 0 | AN57: 0 | AO57: 0 | AP57: 0 | AQ57: 0 | AR57: 0 | AS57: 0 | AT57: 0 | AU57: 0 | AV57: 0 | AW57: 0 | AX57: 0 | AY57: 0 | AZ57: 0 | BA57: 0 | BB57: 0 | BC57: 0 | BD57: 0 | BE57: 0 | BF57: 0 | BG57: 0 | BH57: 0 | BI57: 0 | BJ57: 0 | BK57: 0
A58: ENSCHIG00000000057 | B58: SNRPD3 | C58: small nuclear ribonucleoprotein D3 polypeptide [Source:HGNC Symbol;Acc:HGNC:11160] | D58: 204.6 | E58: 200.8 | F58: 235.4 | G58: 200.66 | H58: 155.86 | I58: 317.82 | J58: 159.73 | K58: 147.92 | L58: 157.37 | M58: 209.82 | N58: 197.51 | O58: 246.49 | P58: 164.26 | Q58: 162.87 | R58: 192.98 | S58: 181.72 | T58: 117.74 | U58: 210.49 | V58: 146.92 | W58: 143.71 | X58: 128.15 | Y58: 104.76 | Z58: 90.31 | AA58: 110.7 | AB58: 128.58 | AC58: 132.39 | AD58: 187.96 | AE58: 170.51 | AF58: 182.97 | AG58: 262.59 | AH58: 149.04 | AI58: 136.68 | AJ58: 128.01 | AK58: 149.66 | AL58: 171.17 | AM58: 188.1 | AN58: 102.03 | AO58: 140.48 | AP58: 154.33 | AQ58: 158.08 | AR58: 140.1 | AS58: 177.73 | AT58: 201.45 | AU58: 139.8 | AV58: 132.76 | AW58: 137.83 | AX58: 121.49 | AY58: 104.44 | AZ58: 210.365 | BA58: 195.3325 | BB58: 202.7975 | BC58: 175.4575 | BD58: 154.715 | BE58: 108.48 | BF58: 154.86 | BG58: 182.82 | BH58: 159.235 | BI58: 138.73 | BJ58: 164.77 | BK58: 124.13
A59: ENSCHIG00000000058 | C59: - | D59: 15.35 | E59: 7.48 | F59: 10.53 | G59: 15.22 | H59: 9.24 | I59: 13.31 | J59: 8.44 | K59: 11.45 | L59: 10.2 | M59: 9.79 | N59: 12.71 | O59: 16.32 | P59: 10.02 | Q59: 12.88 | R59: 5.73 | S59: 16.59 | T59: 7.76 | U59: 10.27 | V59: 10.48 | W59: 9.65 | X59: 9.79 | Y59: 12.15 | Z59: 11.21 | AA59: 14.86 | AB59: 11.58 | AC59: 8.87 | AD59: 13.89 | AE59: 10.35 | AF59: 10.05 | AG59: 14.12 | AH59: 8.11 | AI59: 11.18 | AJ59: 8.21 | AK59: 11.78 | AL59: 10.4 | AM59: 17.49 | AN59: 14.03 | AO59: 13.57 | AP59: 11.6 | AQ59: 15.54 | AR59: 10.78 | AS59: 10.96 | AT59: 10.12 | AU59: 11.53 | AV59: 13.04 | AW59: 16.28 | AX59: 13.58 | AY59: 11.11 | AZ59: 12.145 | BA59: 10.61 | BB59: 12.255 | BC59: 11.305 | BD59: 9.54 | BE59: 12.0025 | BF59: 11.1725 | BG59: 10.865 | BH59: 11.97 | BI59: 13.685 | BJ59: 10.8475 | BK59: 13.5025
A60: ENSCHIG00000000059 | C60: - | D60: 0.87 | E60: 0.88 | F60: 1 | G60: 3.12 | H60: 0.46 | I60: 0.94 | J60: 0 | K60: 0.41 | L60: 0.45 | M60: 1.12 | N60: 1.79 | O60: 1.48 | P60: 1.18 | Q60: 2.28 | R60: 2.87 | S60: 0.51 | T60: 0.4 | U60: 1.93 | V60: 0 | W60: 0.88 | X60: 0.8 | Y60: 2.96 | Z60: 1.24 | AA60: 1.58 | AB60: 0 | AC60: 0.89 | AD60: 0.77 | AE60: 1.79 | AF60: 0.45 | AG60: 1.45 | AH60: 0.42 | AI60: 1.31 | AJ60: 1.25 | AK60: 0.7 | AL60: 0.86 | AM60: 1.61 | AN60: 0 | AO60: 1.4 | AP60: 2.14 | AQ60: 1.76 | AR60: 0.75 | AS60: 0.88 | AT60: 0 | AU60: 1.11 | AV60: 0.43 | AW60: 1.61 | AX60: 0 | AY60: 0 | AZ60: 1.4675 | BA60: 0.4525 | BB60: 1.21 | BC60: 1.71 | BD60: 0.8025 | BE60: 1.645 | BF60: 0.8625 | BG60: 0.9075 | BH60: 1.105 | BI60: 1.325 | BJ60: 0.685 | BK60: 0.51
A61: ENSCHIG00000000060 | C61: - | D61: 0 | E61: 0 | F61: 0 | G61: 0 | H61: 0 | I61: 0 | J61: 0 | K61: 0 | L61: 0 | M61: 0 | N61: 0 | O61: 0 | P61: 0 | Q61: 0 | R61: 0 | S61: 0 | T61: 0 | U61: 0 | V61: 0 | W61: 0 | X61: 0 | Y61: 0 | Z61: 0 | AA61: 0 | AB61: 0 | AC61: 0 | AD61: 0 | AE61: 0 | AF61: 0 | AG61: 0 | AH61: 0 | AI61: 0 | AJ61: 0 | AK61: 0 | AL61: 0 | AM61: 0 | AN61: 0 | AO61: 0 | AP61: 0 | AQ61: 0 | AR61: 0 | AS61: 0 | AT61: 0 | AU61: 0 | AV61: 0 | AW61: 0 | AX61: 0 | AY61: 0 | AZ61: 0 | BA61: 0 | BB61: 0 | BC61: 0 | BD61: 0 | BE61: 0 | BF61: 0 | BG61: 0 | BH61: 0 | BI61: 0 | BJ61: 0 | BK61: 0
A62: ENSCHIG00000000061 | B62: RTL9 | C62: retrotransposon Gag like 9 [Source:HGNC Symbol;Acc:HGNC:29245] | D62: 0 | E62: 0 | F62: 0.02 | G62: 0.03 | H62: 0.01 | I62: 0 | J62: 0 | K62: 0.03 | L62: 4.15 | M62: 0.01 | N62: 0 | O62: 0.12 | P62: 0 | Q62: 0.01 | R62: 0.05 | S62: 0 | T62: 0.04 | U62: 0.02 | V62: 0 | W62: 0 | X62: 0 | Y62: 0 | Z62: 0 | AA62: 0.03 | AB62: 0 | AC62: 0.01 | AD62: 0 | AE62: 0 | AF62: 0.04 | AG62: 0 | AH62: 0.01 | AI62: 0 | AJ62: 0.02 | AK62: 0 | AL62: 0.04 | AM62: 0.04 | AN62: 0 | AO62: 0.01 | AP62: 0.08 | AQ62: 0 | AR62: 0.02 | AS62: 0 | AT62: 0 | AU62: 0 | AV62: 0 | AW62: 0.09 | AX62: 0.11 | AY62: 0.04 | AZ62: 0.0125 | BA62: 0.01 | BB62: 1.07 | BC62: 0.015 | BD62: 0.015 | BE62: 0.0075 | BF62: 0.0025 | BG62: 0.0125 | BH62: 0.025 | BI62: 0.0225 | BJ62: 0.005 | BK62: 0.06
A63: ENSCHIG00000000062 | C63: - | D63: 0 | E63: 0 | F63: 0 | G63: 0 | H63: 0 | I63: 0 | J63: 0 | K63: 0 | L63: 0 | M63: 0 | N63: 0 | O63: 0 | P63: 0 | Q63: 0 | R63: 0 | S63: 0 | T63: 0 | U63: 0 | V63: 0 | W63: 0 | X63: 0 | Y63: 0 | Z63: 0 | AA63: 0 | AB63: 0 | AC63: 0 | AD63: 0 | AE63: 0 | AF63: 0 | AG63: 0 | AH63: 0 | AI63: 0 | AJ63: 0 | AK63: 0 | AL63: 0 | AM63: 0 | AN63: 0 | AO63: 0 | AP63: 0 | AQ63: 0 | AR63: 0 | AS63: 0 | AT63: 0 | AU63: 0 | AV63: 0 | AW63: 0 | AX63: 0 | AY63: 0 | AZ63: 0 | BA63: 0 | BB63: 0 | BC63: 0 | BD63: 0 | BE63: 0 | BF63: 0 | BG63: 0 | BH63: 0 | BI63: 0 | BJ63: 0 | BK63: 0
A64: ENSCHIG00000000063 | C64: - | D64: 0 | E64: 0 | F64: 0 | G64: 0 | H64: 0 | I64: 0 | J64: 0 | K64: 0 | L64: 0 | M64: 0 | N64: 0 | O64: 0 | P64: 0 | Q64: 0 | R64: 0 | S64: 0 | T64: 0 | U64: 0 | V64: 0 | W64: 0 | X64: 0 | Y64: 0 | Z64: 0 | AA64: 0 | AB64: 0 | AC64: 0 | AD64: 0 | AE64: 0 | AF64: 0 | AG64: 0 | AH64: 0 | AI64: 0 | AJ64: 0 | AK64: 0 | AL64: 0 | AM64: 0 | AN64: 0 | AO64: 0 | AP64: 0 | AQ64: 0 | AR64: 0 | AS64: 0 | AT64: 0 | AU64: 0 | AV64: 0 | AW64: 0 | AX64: 0 | AY64: 0 | AZ64: 0 | BA64: 0 | BB64: 0 | BC64: 0 | BD64: 0 | BE64: 0 | BF64: 0 | BG64: 0 | BH64: 0 | BI64: 0 | BJ64: 0 | BK64: 0
A65: ENSCHIG00000000064 | B65: TYSND1 | C65: trypsin like peroxisomal matrix peptidase 1 [Source:HGNC Symbol;Acc:HGNC:28531] | D65: 3.89 | E65: 3.27 | F65: 3.05 | G65: 5.24 | H65: 5.43 | I65: 3.73 | J65: 3.77 | K65: 5.19 | L65: 4.68 | M65: 2.41 | N65: 2.78 | O65: 4.37 | P65: 3.17 | Q65: 2.68 | R65: 1.84 | S65: 4.8 | T65: 3.52 | U65: 4.25 | V65: 4.02 | W65: 5.5 | X65: 4.57 | Y65: 4.21 | Z65: 2.69 | AA65: 3.7 | AB65: 4.44 | AC65: 4.28 | AD65: 3.6 | AE65: 5.56 | AF65: 5.81 | AG65: 4.13 | AH65: 3.13 | AI65: 4.62 | AJ65: 3.28 | AK65: 5.76 | AL65: 4.56 | AM65: 8.15 | AN65: 5.15 | AO65: 3.26 | AP65: 3.18 | AQ65: 6.35 | AR65: 4.7 | AS65: 6.53 | AT65: 4.11 | AU65: 5.25 | AV65: 5.29 | AW65: 7.92 | AX65: 5.49 | AY65: 3.89 | AZ65: 3.8625 | BA65: 4.53 | BB65: 3.56 | BC65: 3.1225 | BD65: 4.3225 | BE65: 3.7925 | BF65: 4.47 | BG65: 4.4225 | BH65: 5.4375 | BI65: 4.485 | BJ65: 5.1475 | BK65: 5.6475
A66: ENSCHIG00000000065 | B66: AIFM1 | C66: apoptosis inducing factor mitochondria associated 1 [Source:HGNC Symbol;Acc:HGNC:8768] | D66: 49.2 | E66: 32.52 | F66: 52.56 | G66: 43.59 | H66: 47.51 | I66: 43.52 | J66: 53.07 | K66: 47.58 | L66: 52.83 | M66: 50.01 | N66: 42.43 | O66: 58.73 | P66: 48.78 | Q66: 24.76 | R66: 46.29 | S66: 45.77 | T66: 48.68 | U66: 63.36 | V66: 63.58 | W66: 52.7 | X66: 32.73 | Y66: 43.31 | Z66: 30.3 | AA66: 39.84 | AB66: 35.67 | AC66: 29.17 | AD66: 49.16 | AE66: 42.08 | AF66: 28.84 | AG66: 47.13 | AH66: 46.56 | AI66: 36.58 | AJ66: 52.76 | AK66: 37.88 | AL66: 32.38 | AM66: 50.71 | AN66: 46.76 | AO66: 37.64 | AP66: 36.95 | AQ66: 41.76 | AR66: 42.55 | AS66: 42.34 | AT66: 38.07 | AU66: 48.82 | AV66: 33.85 | AW66: 48.81 | AX66: 28.83 | AY66: 45.86 | AZ66: 44.4675 | BA66: 47.92 | BB66: 51 | BC66: 41.4 | BD66: 57.08 | BE66: 36.545 | BF66: 39.02 | BG66: 39.7775 | BH66: 43.4325 | BI66: 40.7775 | BJ66: 42.945 | BK66: 39.3375
A67: ENSCHIG00000000066 | B67: MCF2L | C67: MCF.2 cell line derived transforming sequence like [Source:HGNC Symbol;Acc:HGNC:14576] | D67: 3.47 | E67: 2.11 | F67: 2.34 | G67: 1.47 | H67: 3.32 | I67: 4.16 | J67: 1.73 | K67: 2.26 | L67: 3.14 | M67: 2.5 | N67: 3.62 | O67: 3.08 | P67: 2.5 | Q67: 2.61 | R67: 3.28 | S67: 2.42 | T67: 1.88 | U67: 1.25 | V67: 2.26 | W67: 1.86 | X67: 1.71 | Y67: 2.87 | Z67: 1.88 | AA67: 1.94 | AB67: 1.91 | AC67: 1.58 | AD67: 2.24 | AE67: 2.86 | AF67: 2.98 | AG67: 2.82 | AH67: 1.46 | AI67: 1.28 | AJ67: 2.31 | AK67: 2.05 | AL67: 2.32 | AM67: 1.97 | AN67: 2.36 | AO67: 2.74 | AP67: 2.11 | AQ67: 1.53 | AR67: 1.86 | AS67: 1.06 | AT67: 1.75 | AU67: 1.96 | AV67: 1.97 | AW67: 2.84 | AX67: 2.88 | AY67: 1.67 | AZ67: 2.3475 | BA67: 2.8675 | BB67: 3.085 | BC67: 2.7025 | BD67: 1.8125 | BE67: 2.1 | BF67: 2.1475 | BG67: 2.135 | BH67: 2.1625 | BI67: 2.185 | BJ67: 1.6575 | BK67: 2.34
A68: ENSCHIG00000000067 | B68: SS18 | C68: SS18 subunit of BAF chromatin remodeling complex [Source:HGNC Symbol;Acc:HGNC:11340] | D68: 4.86 | E68: 3.64 | F68: 9.67 | G68: 6.95 | H68: 5.72 | I68: 12.17 | J68: 3.28 | K68: 3.82 | L68: 6.72 | M68: 7.59 | N68: 9.16 | O68: 9.12 | P68: 2.93 | Q68: 2.52 | R68: 8.81 | S68: 5.27 | T68: 4.44 | U68: 11.19 | V68: 4.13 | W68: 2.34 | X68: 2.57 | Y68: 3.51 | Z68: 2.16 | AA68: 3.72 | AB68: 2.54 | AC68: 3.33 | AD68: 4.21 | AE68: 3.92 | AF68: 5.06 | AG68: 6.13 | AH68: 2.39 | AI68: 1.85 | AJ68: 3.43 | AK68: 2.71 | AL68: 6.33 | AM68: 3.3 | AN68: 1.84 | AO68: 2.77 | AP68: 3.4 | AQ68: 1.76 | AR68: 2.05 | AS68: 4.89 | AT68: 3.37 | AU68: 1.61 | AV68: 3.07 | AW68: 2.89 | AX68: 1.91 | AY68: 1.36 | AZ68: 6.28 | BA68: 6.2475 | BB68: 8.1475 | BC68: 4.8825 | BD68: 5.525 | BE68: 2.99 | BF68: 3.5 | BG68: 3.8575 | BH68: 3.9425 | BI68: 2.4425 | BJ68: 2.98 | BK68: 2.3075
A69: ENSCHIG00000000068 | B69: ZSWIM8 | C69: zinc finger SWIM-type containing 8 [Source:HGNC Symbol;Acc:HGNC:23528] | D69: 20.19 | E69: 10.82 | F69: 23.57 | G69: 20.2 | H69: 14.42 | I69: 25.51 | J69: 9.22 | K69: 12.82 | L69: 16.28 | M69: 20.1 | N69: 15.39 | O69: 19.46 | P69: 15.46 | Q69: 12.32 | R69: 15.21 | S69: 15.28 | T69: 8.84 | U69: 32.81 | V69: 12.44 | W69: 9.94 | X69: 10.98 | Y69: 13.5 | Z69: 10.66 | AA69: 11.56 | AB69: 9.53 | AC69: 9.81 | AD69: 16.97 | AE69: 18.02 | AF69: 11.84 | AG69: 17.27 | AH69: 8.63 | AI69: 9.67 | AJ69: 10.31 | AK69: 11.6 | AL69: 10.64 | AM69: 16.18 | AN69: 13.82 | AO69: 9.57 | AP69: 10.24 | AQ69: 12.95 | AR69: 9.5 | AS69: 19.58 | AT69: 7.97 | AU69: 11.53 | AV69: 13.45 | AW69: 15.3 | AX69: 11.86 | AY69: 9.31 | AZ69: 18.695 | BA69: 15.4925 | BB69: 17.8075 | BC69: 14.5675 | BD69: 16.0075 | BE69: 11.675 | BF69: 13.5825 | BG69: 11.8525 | BH69: 12.1825 | BI69: 11.645 | BJ69: 12.145 | BK69: 12.48
A70: ENSCHIG00000000069 | C70: - | D70: 2.14 | E70: 3.24 | F70: 3.4 | G70: 2.16 | H70: 3.34 | I70: 1.8 | J70: 1.44 | K70: 2.34 | L70: 3.78 | M70: 3.79 | N70: 4.09 | O70: 7.32 | P70: 0.83 | Q70: 1.08 | R70: 0.98 | S70: 4.41 | T70: 1.48 | U70: 5.22 | V70: 2.81 | W70: 0.69 | X70: 1.33 | Y70: 2.36 | Z70: 1.67 | AA70: 0.7 | AB70: 3.75 | AC70: 1.03 | AD70: 1.87 | AE70: 2.49 | AF70: 2.98 | AG70: 5.92 | AH70: 1.74 | AI70: 1.02 | AJ70: 2.13 | AK70: 3.05 | AL70: 3.83 | AM70: 5.98 | AN70: 2.47 | AO70: 2.81 | AP70: 2.94 | AQ70: 0.24 | AR70: 1.59 | AS70: 4.28 | AT70: 3.37 | AU70: 2.4 | AV70: 2.32 | AW70: 2.97 | AX70: 2.22 | AY70: 0.38 | AZ70: 2.735 | BA70: 2.23 | BB70: 4.745 | BC70: 1.825 | BD70: 2.55 | BE70: 1.515 | BF70: 2.285 | BG70: 2.915 | BH70: 3.7475 | BI70: 2.115 | BJ70: 2.91 | BK70: 1.9725
A71: ENSCHIG00000000070 | B71: INO80C | C71: INO80 complex subunit C [Source:HGNC Symbol;Acc:HGNC:26994] | D71: 76.79 | E71: 80.01 | F71: 78.27 | G71: 55.62 | H71: 51.21 | I71: 92.18 | J71: 58.62 | K71: 61.94 | L71: 84.12 | M71: 61.33 | N71: 80.54 | O71: 99 | P71: 41.09 | Q71: 52.58 | R71: 48.27 | S71: 69.05 | T71: 60.65 | U71: 80.73 | V71: 65.01 | W71: 68.33 | X71: 34.76 | Y71: 51.15 | Z71: 45.67 | AA71: 63.86 | AB71: 72.3 | AC71: 64.81 | AD71: 82.48 | AE71: 54.76 | AF71: 47.44 | AG71: 85.9 | AH71: 60.38 | AI71: 89.84 | AJ71: 58.77 | AK71: 64.58 | AL71: 83.01 | AM71: 100.75 | AN71: 40.93 | AO71: 69.42 | AP71: 81.61 | AQ71: 97.15 | AR71: 76.31 | AS71: 97.88 | AT71: 79.42 | AU71: 70.11 | AV71: 60.89 | AW71: 77 | AX71: 59.19 | AY71: 67.86 | AZ71: 72.6725 | BA71: 65.9875 | BB71: 81.2475 | BC71: 52.7475 | BD71: 68.68 | BE71: 48.86 | BF71: 68.5875 | BG71: 70.89 | BH71: 76.7775 | BI71: 72.2775 | BJ71: 80.93 | BK71: 66.235
A72: ENSCHIG00000000071 | B72: BCORL1 | C72: BCL6 corepressor like 1 [Source:HGNC Symbol;Acc:HGNC:25657] | D72: 2.4 | E72: 1.33 | F72: 2.79 | G72: 2.31 | H72: 2.27 | I72: 3.54 | J72: 1.15 | K72: 2.35 | L72: 1.98 | M72: 2.01 | N72: 2.53 | O72: 3.5 | P72: 1.35 | Q72: 1.53 | R72: 1.86 | S72: 1.69 | T72: 1.24 | U72: 2.54 | V72: 1.44 | W72: 0.81 | X72: 1.44 | Y72: 1.91 | Z72: 1.29 | AA72: 1.31 | AB72: 1.95 | AC72: 1.36 | AD72: 1.93 | AE72: 1.32 | AF72: 1.84 | AG72: 2.98 | AH72: 1.09 | AI72: 1.69 | AJ72: 1.11 | AK72: 1.46 | AL72: 1.92 | AM72: 1.73 | AN72: 1.99 | AO72: 1.4 | AP72: 1.75 | AQ72: 1.5 | AR72: 1 | AS72: 2.46 | AT72: 1.04 | AU72: 1.06 | AV72: 1.69 | AW72: 1.9 | AX72: 0.94 | AY72: 1.27 | AZ72: 2.2075 | BA72: 2.3275 | BB72: 2.505 | BC72: 1.6075 | BD72: 1.5075 | BE72: 1.4875 | BF72: 1.64 | BG72: 1.9 | BH72: 1.555 | BI72: 1.66 | BJ72: 1.39 | BK72: 1.45
A73: ENSCHIG00000000072 | B73: LRIT2 | C73: leucine rich repeat, Ig-like and transmembrane domains 2 [Source:HGNC Symbol;Acc:HGNC:23443] | D73: 0 | E73: 0 | F73: 0 | G73: 0 | H73: 0 | I73: 0 | J73: 0 | K73: 0 | L73: 0 | M73: 0 | N73: 0 | O73: 0 | P73: 0 | Q73: 0 | R73: 0 | S73: 0 | T73: 0 | U73: 0 | V73: 0 | W73: 0 | X73: 0 | Y73: 0 | Z73: 0 | AA73: 0 | AB73: 0 | AC73: 0 | AD73: 0 | AE73: 0 | AF73: 0 | AG73: 0 | AH73: 0 | AI73: 0 | AJ73: 0 | AK73: 0 | AL73: 0 | AM73: 0 | AN73: 0 | AO73: 0 | AP73: 0 | AQ73: 0 | AR73: 0 | AS73: 0 | AT73: 0 | AU73: 0 | AV73: 0 | AW73: 0 | AX73: 0 | AY73: 0 | AZ73: 0 | BA73: 0 | BB73: 0 | BC73: 0 | BD73: 0 | BE73: 0 | BF73: 0 | BG73: 0 | BH73: 0 | BI73: 0 | BJ73: 0 | BK73: 0
A74: ENSCHIG00000000073 | B74: KAT6B | C74: lysine acetyltransferase 6B [Source:HGNC Symbol;Acc:HGNC:17582] | D74: 2.32 | E74: 3.83 | F74: 8.67 | G74: 3.7 | H74: 5.25 | I74: 8.13 | J74: 3.25 | K74: 1.56 | L74: 4.15 | M74: 5.06 | N74: 6.14 | O74: 4.5 | P74: 1.85 | Q74: 2.23 | R74: 5.27 | S74: 3.77 | T74: 2.77 | U74: 6.48 | V74: 2.69 | W74: 1.9 | X74: 2.15 | Y74: 3.77 | Z74: 2.99 | AA74: 2.82 | AB74: 1.67 | AC74: 3.76 | AD74: 2.86 | AE74: 2.94 | AF74: 5.56 | AG74: 5.37 | AH74: 3.11 | AI74: 1.33 | AJ74: 3.25 | AK74: 3.05 | AL74: 3.46 | AM74: 2.25 | AN74: 2.3 | AO74: 3.14 | AP74: 2.98 | AQ74: 2.25 | AR74: 1.82 | AS74: 3.52 | AT74: 2.26 | AU74: 1.7 | AV74: 2.28 | AW74: 3.81 | AX74: 1.7 | AY74: 1.2 | AZ74: 4.63 | BA74: 4.5475 | BB74: 4.9625 | BC74: 3.28 | BD74: 3.46 | BE74: 2.9325 | BF74: 2.8075 | BG74: 3.8425 | BH74: 3.0025 | BI74: 2.6675 | BJ74: 2.325 | BK74: 2.2475
A75: ENSCHIG00000000074 | B75: SUPV3L1 | C75: Suv3 like RNA helicase [Source:HGNC Symbol;Acc:HGNC:11471] | D75: 6.81 | E75: 5.76 | F75: 13.16 | G75: 10.86 | H75: 5.97 | I75: 7.25 | J75: 5.94 | K75: 5.99 | L75: 7.89 | M75: 10.98 | N75: 9.66 | O75: 9.54 | P75: 7.62 | Q75: 6.07 | R75: 7.34 | S75: 8.21 | T75: 6.75 | U75: 11.85 | V75: 6.81 | W75: 5.83 | X75: 6.01 | Y75: 6.19 | Z75: 7.58 | AA75: 7 | AB75: 5.21 | AC75: 6.09 | AD75: 9.14 | AE75: 9.59 | AF75: 4.84 | AG75: 8.79 | AH75: 7.05 | AI75: 3.47 | AJ75: 7.43 | AK75: 6.13 | AL75: 8.48 | AM75: 10.5 | AN75: 6.12 | AO75: 5.16 | AP75: 4.24 | AQ75: 5.94 | AR75: 5.95 | AS75: 11.25 | AT75: 7.59 | AU75: 6.03 | AV75: 6.34 | AW75: 8.14 | AX75: 8.86 | AY75: 5.21 | AZ75: 9.1475 | BA75: 6.2875 | BB75: 9.5175 | BC75: 7.31 | BD75: 7.81 | BE75: 6.695 | BF75: 7.5075 | BG75: 6.0375 | BH75: 8.135 | BI75: 5.365 | BJ75: 7.705 | BK75: 7.1375
A76: ENSCHIG00000000075 | B76: TYMS | C76: thymidylate synthetase [Source:HGNC Symbol;Acc:HGNC:12441] | D76: 1.78 | E76: 0.83 | F76: 1.34 | G76: 2.7 | H76: 2.08 | I76: 1.91 | J76: 1.94 | K76: 1.65 | L76: 2.03 | M76: 1.56 | N76: 0.65 | O76: 0.99 | P76: 1.22 | Q76: 1.11 | R76: 1.1 | S76: 1.7 | T76: 0.89 | U76: 0.91 | V76: 0.12 | W76: 0.34 | X76: 1.37 | Y76: 0.31 | Z76: 0.47 | AA76: 0.53 | AB76: 0.25 | AC76: 0.63 | AD76: 0.22 | AE76: 0.8 | AF76: 0.97 | AG76: 0.68 | AH76: 2.06 | AI76: 1.9 | AJ76: 0.57 | AK76: 0.62 | AL76: 1.4 | AM76: 0.91 | AN76: 1.48 | AO76: 0.51 | AP76: 1.15 | AQ76: 1.01 | AR76: 0.51 | AS76: 0.79 | AT76: 0.29 | AU76: 0.58 | AV76: 0.19 | AW76: 1.28 | AX76: 2.59 | AY76: 1.2 | AZ76: 1.6625 | BA76: 1.895 | BB76: 1.3075 | BC76: 1.2825 | BD76: 0.565 | BE76: 0.67 | BF76: 0.475 | BG76: 1.4025 | BH76: 0.875 | BI76: 1.0375 | BJ76: 0.5425 | BK76: 1.315
A77: ENSCHIG00000000076 | B77: INTS10 | C77: integrator complex subunit 10 [Source:HGNC Symbol;Acc:HGNC:25548] | D77: 8.19 | E77: 5.78 | F77: 11.39 | G77: 10.68 | H77: 7.56 | I77: 15.17 | J77: 4.73 | K77: 5.05 | L77: 7.94 | M77: 12.23 | N77: 10.98 | O77: 13.91 | P77: 6.53 | Q77: 6.03 | R77: 6.63 | S77: 8.06 | T77: 5.16 | U77: 12.64 | V77: 5.75 | W77: 4.42 | X77: 6.29 | Y77: 5.31 | Z77: 8.16 | AA77: 6.98 | AB77: 5.82 | AC77: 6.16 | AD77: 9.97 | AE77: 7.95 | AF77: 6.68 | AG77: 12.75 | AH77: 4.15 | AI77: 3.51 | AJ77: 5.22 | AK77: 5.01 | AL77: 9.86 | AM77: 9.35 | AN77: 4.93 | AO77: 5.63 | AP77: 6.01 | AQ77: 6.07 | AR77: 4.11 | AS77: 10.7 | AT77: 7.85 | AU77: 4.15 | AV77: 6.11 | AW77: 5.57 | AX77: 6.09 | AY77: 5.74 | AZ77: 9.01 | BA77: 8.1275 | BB77: 11.265 | BC77: 6.8125 | BD77: 6.9925 | BE77: 6.685 | BF77: 7.475 | BG77: 6.7725 | BH77: 7.36 | BI77: 5.66 | BJ77: 6.7025 | BK77: 5.8775
A78: ENSCHIG00000000077 | B78: PPP3CB | C78: protein phosphatase 3 catalytic subunit beta [Source:HGNC Symbol;Acc:HGNC:9315] | D78: 35.87 | E78: 79.22 | F78: 51.64 | G78: 40.99 | H78: 47.43 | I78: 75.65 | J78: 53.93 | K78: 32.62 | L78: 40.36 | M78: 41.47 | N78: 85.21 | O78: 49.85 | P78: 36.91 | Q78: 40.16 | R78: 55.27 | S78: 55.38 | T78: 46.52 | U78: 42.84 | V78: 63.71 | W78: 62.73 | X78: 28.1 | Y78: 46.03 | Z78: 40.43 | AA78: 50.87 | AB78: 33.75 | AC78: 87.86 | AD78: 40.08 | AE78: 49.34 | AF78: 79.65 | AG78: 76.84 | AH78: 58.38 | AI78: 24.88 | AJ78: 65.53 | AK78: 41.27 | AL78: 65 | AM78: 23.58 | AN78: 21.88 | AO78: 50.31 | AP78: 35.49 | AQ78: 32 | AR78: 37.49 | AS78: 67.7 | AT78: 89 | AU78: 43.62 | AV78: 30.47 | AW78: 36.61 | AX78: 31.17 | AY78: 39.54 | AZ78: 51.93 | BA78: 52.4075 | BB78: 54.2225 | BC78: 46.93 | BD78: 53.95 | BE78: 41.3575 | BF78: 52.7575 | BG78: 59.9375 | BH78: 48.845 | BI78: 34.92 | BJ78: 59.4525 | BK78: 34.4475
A79: ENSCHIG00000000078 | C79: - | D79: 0 | E79: 0 | F79: 0 | G79: 0 | H79: 0 | I79: 0 | J79: 0 | K79: 0 | L79: 0 | M79: 0 | N79: 0 | O79: 0 | P79: 0 | Q79: 0 | R79: 0 | S79: 0 | T79: 0 | U79: 0 | V79: 0 | W79: 0 | X79: 0 | Y79: 0 | Z79: 0 | AA79: 0 | AB79: 0 | AC79: 0 | AD79: 0 | AE79: 0 | AF79: 0 | AG79: 0 | AH79: 0 | AI79: 0 | AJ79: 0 | AK79: 0 | AL79: 0 | AM79: 0 | AN79: 0 | AO79: 0 | AP79: 0 | AQ79: 0 | AR79: 0 | AS79: 0 | AT79: 0 | AU79: 0 | AV79: 0 | AW79: 0 | AX79: 0 | AY79: 0 | AZ79: 0 | BA79: 0 | BB79: 0 | BC79: 0 | BD79: 0 | BE79: 0 | BF79: 0 | BG79: 0 | BH79: 0 | BI79: 0 | BJ79: 0 | BK79: 0
A80: ENSCHIG00000000079 | C80: - | D80: 0 | E80: 0 | F80: 0 | G80: 0 | H80: 0 | I80: 0 | J80: 0 | K80: 0 | L80: 0 | M80: 0 | N80: 0 | O80: 0 | P80: 0 | Q80: 0 | R80: 0 | S80: 0 | T80: 0 | U80: 0 | V80: 0 | W80: 0 | X80: 0 | Y80: 0 | Z80: 0 | AA80: 0 | AB80: 0 | AC80: 0 | AD80: 0 | AE80: 0 | AF80: 0 | AG80: 0 | AH80: 0 | AI80: 0 | AJ80: 0 | AK80: 0 | AL80: 0 | AM80: 0 | AN80: 0 | AO80: 0 | AP80: 0 | AQ80: 0 | AR80: 0 | AS80: 0 | AT80: 0 | AU80: 0 | AV80: 0 | AW80: 0 | AX80: 0 | AY80: 0 | AZ80: 0 | BA80: 0 | BB80: 0 | BC80: 0 | BD80: 0 | BE80: 0 | BF80: 0 | BG80: 0 | BH80: 0 | BI80: 0 | BJ80: 0 | BK80: 0
A81: ENSCHIG00000000080 | C81: - | D81: 0.02 | E81: 0.14 | F81: 0.39 | G81: 0 | H81: 0 | I81: 0 | J81: 0.08 | K81: 0.13 | L81: 0.14 | M81: 0 | N81: 0.73 | O81: 0.35 | P81: 0 | Q81: 0 | R81: 0 | S81: 0 | T81: 0 | U81: 0.26 | V81: 0.04 | W81: 0.04 | X81: 0.02 | Y81: 0 | Z81: 0 | AA81: 0 | AB81: 0.12 | AC81: 0 | AD81: 0 | AE81: 0.09 | AF81: 0.15 | AG81: 0 | AH81: 0 | AI81: 0 | AJ81: 0 | AK81: 0.84 | AL81: 0.51 | AM81: 0.32 | AN81: 0.78 | AO81: 0 | AP81: 0 | AQ81: 0 | AR81: 0.29 | AS81: 0.35 | AT81: 0.13 | AU81: 0 | AV81: 0 | AW81: 0.65 | AX81: 0 | AY81: 0 | AZ81: 0.1375 | BA81: 0.0525 | BB81: 0.305 | BC81: 0 | BD81: 0.085 | BE81: 0.005 | BF81: 0.0525 | BG81: 0.0375 | BH81: 0.4175 | BI81: 0.195 | BJ81: 0.1925 | BK81: 0.1625
A82: ENSCHIG00000000081 | C82: - | D82: 0 | E82: 0 | F82: 0.08 | G82: 0 | H82: 0.21 | I82: 0 | J82: 0.05 | K82: 0 | L82: 0 | M82: 0 | N82: 0 | O82: 0 | P82: 0 | Q82: 0 | R82: 0 | S82: 0 | T82: 0 | U82: 0 | V82: 0 | W82: 0 | X82: 0 | Y82: 0 | Z82: 0 | AA82: 0 | AB82: 0 | AC82: 0.05 | AD82: 0 | AE82: 0 | AF82: 0 | AG82: 0.07 | AH82: 0.13 | AI82: 0 | AJ82: 0 | AK82: 0 | AL82: 0 | AM82: 0 | AN82: 0 | AO82: 0 | AP82: 0 | AQ82: 0 | AR82: 0 | AS82: 0 | AT82: 0 | AU82: 0 | AV82: 0 | AW82: 0 | AX82: 0 | AY82: 0 | AZ82: 0.02 | BA82: 0.065 | BB82: 0 | BC82: 0 | BD82: 0 | BE82: 0 | BF82: 0.0125 | BG82: 0.05 | BH82: 0 | BI82: 0 | BJ82: 0 | BK82: 0
A83: ENSCHIG00000000082 | B83: TOP3B | C83: DNA topoisomerase III beta [Source:HGNC Symbol;Acc:HGNC:11993] | D83: 7.9 | E83: 4.15 | F83: 7.63 | G83: 6.56 | H83: 5.15 | I83: 7.09 | J83: 3.33 | K83: 3.91 | L83: 4.71 | M83: 5.87 | N83: 5.88 | O83: 7.97 | P83: 3.22 | Q83: 4.19 | R83: 3.64 | S83: 4.94 | T83: 3.71 | U83: 6.2 | V83: 5.17 | W83: 3.89 | X83: 4.32 | Y83: 4.01 | Z83: 3.81 | AA83: 4.95 | AB83: 5.06 | AC83: 4.88 | AD83: 7.35 | AE83: 5.32 | AF83: 4.01 | AG83: 4.94 | AH83: 3.54 | AI83: 3.82 | AJ83: 4.14 | AK83: 4.77 | AL83: 4.52 | AM83: 5.98 | AN83: 3.46 | AO83: 4.83 | AP83: 4.35 | AQ83: 5.02 | AR83: 4.71 | AS83: 5.2 | AT83: 3.53 | AU83: 4.61 | AV83: 4.79 | AW83: 5.24 | AX83: 4.01 | AY83: 3.83 | AZ83: 6.56 | BA83: 4.87 | BB83: 6.1075 | BC83: 3.9975 | BD83: 4.7425 | BE83: 4.2725 | BF83: 5.6525 | BG83: 4.0775 | BH83: 4.8525 | BI83: 4.415 | BJ83: 4.5125 | BK83: 4.4675
A84: ENSCHIG00000000083 | C84: - | D84: 0 | E84: 0 | F84: 0 | G84: 0 | H84: 0 | I84: 0 | J84: 0 | K84: 0 | L84: 0 | M84: 0 | N84: 0 | O84: 0 | P84: 0 | Q84: 0 | R84: 0 | S84: 0 | T84: 0 | U84: 0 | V84: 0 | W84: 0 | X84: 0 | Y84: 0 | Z84: 0 | AA84: 0 | AB84: 0 | AC84: 0 | AD84: 0 | AE84: 0 | AF84: 0 | AG84: 0 | AH84: 0 | AI84: 0 | AJ84: 0 | AK84: 0 | AL84: 0 | AM84: 0 | AN84: 0 | AO84: 0 | AP84: 0 | AQ84: 0 | AR84: 0 | AS84: 0 | AT84: 0 | AU84: 0 | AV84: 0 | AW84: 0 | AX84: 0 | AY84: 0 | AZ84: 0 | BA84: 0 | BB84: 0 | BC84: 0 | BD84: 0 | BE84: 0 | BF84: 0 | BG84: 0 | BH84: 0 | BI84: 0 | BJ84: 0 | BK84: 0
A85: ENSCHIG00000000084 | C85: - | D85: 0 | E85: 0 | F85: 0 | G85: 0.01 | H85: 0.01 | I85: 0.03 | J85: 0 | K85: 0 | L85: 0.01 | M85: 0 | N85: 0.01 | O85: 0 | P85: 0 | Q85: 0.01 | R85: 0 | S85: 0 | T85: 0 | U85: 0 | V85: 0.01 | W85: 0 | X85: 0 | Y85: 0.02 | Z85: 0 | AA85: 0 | AB85: 0.01 | AC85: 0 | AD85: 0 | AE85: 0 | AF85: 0 | AG85: 0 | AH85: 0 | AI85: 0 | AJ85: 0 | AK85: 0 | AL85: 0 | AM85: 0 | AN85: 0 | AO85: 0 | AP85: 0.02 | AQ85: 0 | AR85: 0 | AS85: 0.02 | AT85: 0 | AU85: 0 | AV85: 0 | AW85: 0.05 | AX85: 0 | AY85: 0.02 | AZ85: 0.0025 | BA85: 0.01 | BB85: 0.005 | BC85: 0.0025 | BD85: 0.0025 | BE85: 0.005 | BF85: 0.0025 | BG85: 0 | BH85: 0 | BI85: 0.005 | BJ85: 0.005 | BK85: 0.0175
A86: ENSCHIG00000000085 | C86: - | D86: 0 | E86: 0 | F86: 0 | G86: 0 | H86: 0 | I86: 0 | J86: 0 | K86: 0 | L86: 0 | M86: 0 | N86: 0 | O86: 0 | P86: 0 | Q86: 0 | R86: 0 | S86: 0 | T86: 0 | U86: 0 | V86: 0 | W86: 0 | X86: 0 | Y86: 0 | Z86: 0 | AA86: 0 | AB86: 0 | AC86: 0 | AD86: 0 | AE86: 0 | AF86: 0 | AG86: 0 | AH86: 0 | AI86: 0 | AJ86: 0 | AK86: 0 | AL86: 0 | AM86: 0 | AN86: 0 | AO86: 0 | AP86: 0 | AQ86: 0 | AR86: 0 | AS86: 0 | AT86: 0 | AU86: 0 | AV86: 0 | AW86: 0 | AX86: 0 | AY86: 0 | AZ86: 0 | BA86: 0 | BB86: 0 | BC86: 0 | BD86: 0 | BE86: 0 | BF86: 0 | BG86: 0 | BH86: 0 | BI86: 0 | BJ86: 0 | BK86: 0
A87: ENSCHIG00000000086 | C87: - | D87: 0 | E87: 0 | F87: 0 | G87: 0 | H87: 0 | I87: 0 | J87: 0 | K87: 0 | L87: 0 | M87: 0 | N87: 0 | O87: 0 | P87: 0 | Q87: 0 | R87: 0 | S87: 0 | T87: 0 | U87: 0 | V87: 0 | W87: 0 | X87: 0 | Y87: 0 | Z87: 0 | AA87: 0 | AB87: 0 | AC87: 0 | AD87: 0 | AE87: 0 | AF87: 0 | AG87: 0 | AH87: 0 | AI87: 0 | AJ87: 0 | AK87: 0 | AL87: 0 | AM87: 0 | AN87: 0 | AO87: 0 | AP87: 0 | AQ87: 0 | AR87: 0 | AS87: 0 | AT87: 0 | AU87: 0 | AV87: 0 | AW87: 0 | AX87: 0 | AY87: 0 | AZ87: 0 | BA87: 0 | BB87: 0 | BC87: 0 | BD87: 0 | BE87: 0 | BF87: 0 | BG87: 0 | BH87: 0 | BI87: 0 | BJ87: 0 | BK87: 0
A88: ENSCHIG00000000087 | B88: CLPTM1L | C88: CLPTM1 like [Source:HGNC Symbol;Acc:HGNC:24308] | D88: 21.43 | E88: 15.47 | F88: 34.23 | G88: 28.48 | H88: 16.77 | I88: 38.86 | J88: 12.67 | K88: 14.52 | L88: 19.49 | M88: 22.11 | N88: 17.16 | O88: 25.91 | P88: 13.98 | Q88: 17.27 | R88: 16.6 | S88: 17.65 | T88: 11.13 | U88: 30.3 | V88: 12.63 | W88: 9.94 | X88: 17.92 | Y88: 13.2 | Z88: 14.49 | AA88: 11.59 | AB88: 16.08 | AC88: 14.41 | AD88: 30.95 | AE88: 18.79 | AF88: 13.58 | AG88: 27.81 | AH88: 11.78 | AI88: 12.71 | AJ88: 11.28 | AK88: 14.51 | AL88: 16.98 | AM88: 28.99 | AN88: 16.42 | AO88: 15.34 | AP88: 17.48 | AQ88: 16.36 | AR88: 13.62 | AS88: 22.39 | AT88: 12.86 | AU88: 11.66 | AV88: 16.11 | AW88: 19.31 | AX88: 20.43 | AY88: 11.74 | AZ88: 24.9025 | BA88: 20.705 | BB88: 21.1675 | BC88: 16.375 | BD88: 16 | BE88: 14.3 | BF88: 20.0575 | BG88: 16.47 | BH88: 17.94 | BI88: 16.4 | BJ88: 15.1325 | BK88: 16.8975
A89: ENSCHIG00000000088 | C89: - | D89: 0 | E89: 0 | F89: 0 | G89: 0 | H89: 0 | I89: 0 | J89: 0 | K89: 0 | L89: 0 | M89: 0 | N89: 0 | O89: 0 | P89: 0 | Q89: 0 | R89: 0 | S89: 0 | T89: 0 | U89: 0 | V89: 0 | W89: 0 | X89: 0 | Y89: 0 | Z89: 0 | AA89: 0 | AB89: 0 | AC89: 0 | AD89: 0 | AE89: 0 | AF89: 0 | AG89: 0 | AH89: 0 | AI89: 0 | AJ89: 0 | AK89: 0 | AL89: 0 | AM89: 0 | AN89: 0 | AO89: 0 | AP89: 0 | AQ89: 0 | AR89: 0 | AS89: 0 | AT89: 0 | AU89: 0 | AV89: 0 | AW89: 0 | AX89: 0 | AY89: 0 | AZ89: 0 | BA89: 0 | BB89: 0 | BC89: 0 | BD89: 0 | BE89: 0 | BF89: 0 | BG89: 0 | BH89: 0 | BI89: 0 | BJ89: 0 | BK89: 0
A90: ENSCHIG00000000089 | C90: - | D90: 5.71 | E90: 2.52 | F90: 4.81 | G90: 5.47 | H90: 4.37 | I90: 8.17 | J90: 2.14 | K90: 3.18 | L90: 4.45 | M90: 5.2 | N90: 5.8 | O90: 6.64 | P90: 1.78 | Q90: 2.61 | R90: 3.5 | S90: 2.73 | T90: 2.72 | U90: 6.8 | V90: 2.44 | W90: 2.76 | X90: 2.99 | Y90: 3.17 | Z90: 3.01 | AA90: 3.3 | AB90: 4.07 | AC90: 4.45 | AD90: 4.38 | AE90: 5.78 | AF90: 4.08 | AG90: 2.73 | AH90: 2.09 | AI90: 3.26 | AJ90: 4.28 | AK90: 2.85 | AL90: 3.84 | AM90: 4.75 | AN90: 4.75 | AO90: 2.92 | AP90: 5.52 | AQ90: 3.68 | AR90: 4.67 | AS90: 1.94 | AT90: 1.88 | AU90: 2.01 | AV90: 1.95 | AW90: 2.84 | AX90: 3.31 | AY90: 3.37 | AZ90: 4.6275 | BA90: 4.465 | BB90: 5.5225 | BC90: 2.655 | BD90: 3.68 | BE90: 3.1175 | BF90: 4.67 | BG90: 3.04 | BH90: 3.93 | BI90: 4.2175 | BJ90: 2.625 | BK90: 2.8675
A91: ENSCHIG00000000090 | C91: - | D91: 0.02 | E91: 0 | F91: 0.06 | G91: 0.02 | H91: 0.14 | I91: 0.04 | J91: 0.16 | K91: 0 | L91: 0.3 | M91: 0 | N91: 0.37 | O91: 0.09 | P91: 0.05 | Q91: 0.05 | R91: 0.21 | S91: 0.03 | T91: 0.37 | U91: 0.02 | V91: 0.06 | W91: 0.1 | X91: 0.14 | Y91: 0.07 | Z91: 0.11 | AA91: 0.12 | AB91: 0.03 | AC91: 0.07 | AD91: 0 | AE91: 0.07 | AF91: 0 | AG91: 0.06 | AH91: 0.23 | AI91: 0.12 | AJ91: 0.75 | AK91: 0.11 | AL91: 0.25 | AM91: 0 | AN91: 0.05 | AO91: 0.17 | AP91: 0.23 | AQ91: 0.04 | AR91: 0.25 | AS91: 0.1 | AT91: 0.14 | AU91: 0.1 | AV91: 0.21 | AW91: 0.73 | AX91: 1.23 | AY91: 0.06 | AZ91: 0.025 | BA91: 0.085 | BB91: 0.19 | BC91: 0.085 | BD91: 0.1375 | BE91: 0.11 | BF91: 0.0425 | BG91: 0.1025 | BH91: 0.2775 | BI91: 0.1225 | BJ91: 0.1475 | BK91: 0.5575
A92: ENSCHIG00000000091 | C92: - | D92: 0 | E92: 0 | F92: 0 | G92: 0 | H92: 0 | I92: 0 | J92: 0 | K92: 0 | L92: 0 | M92: 0 | N92: 0 | O92: 0 | P92: 0 | Q92: 0 | R92: 0 | S92: 0 | T92: 0 | U92: 0 | V92: 0 | W92: 0 | X92: 0 | Y92: 0 | Z92: 0 | AA92: 0 | AB92: 0 | AC92: 0 | AD92: 0 | AE92: 0 | AF92: 0 | AG92: 0 | AH92: 0 | AI92: 0 | AJ92: 0 | AK92: 0 | AL92: 0 | AM92: 0 | AN92: 0 | AO92: 0 | AP92: 0 | AQ92: 0 | AR92: 0 | AS92: 0 | AT92: 0 | AU92: 0 | AV92: 0 | AW92: 0 | AX92: 0 | AY92: 0 | AZ92: 0 | BA92: 0 | BB92: 0 | BC92: 0 | BD92: 0 | BE92: 0 | BF92: 0 | BG92: 0 | BH92: 0 | BI92: 0 | BJ92: 0 | BK92: 0
A93: ENSCHIG00000000092 | C93: - | D93: 0 | E93: 0 | F93: 0 | G93: 0 | H93: 0 | I93: 0 | J93: 0 | K93: 0 | L93: 0 | M93: 0 | N93: 0.13 | O93: 0 | P93: 0 | Q93: 0 | R93: 0 | S93: 0 | T93: 0 | U93: 0 | V93: 0 | W93: 0 | X93: 0 | Y93: 0 | Z93: 0 | AA93: 0 | AB93: 0 | AC93: 0 | AD93: 0 | AE93: 0 | AF93: 0 | AG93: 0 | AH93: 0 | AI93: 0 | AJ93: 0 | AK93: 0 | AL93: 0 | AM93: 0 | AN93: 0 | AO93: 0 | AP93: 0 | AQ93: 0 | AR93: 0 | AS93: 0 | AT93: 0 | AU93: 0 | AV93: 0 | AW93: 0.11 | AX93: 0 | AY93: 0 | AZ93: 0 | BA93: 0 | BB93: 0.0325 | BC93: 0 | BD93: 0 | BE93: 0 | BF93: 0 | BG93: 0 | BH93: 0 | BI93: 0 | BJ93: 0 | BK93: 0.0275
A94: ENSCHIG00000000093 | B94: GUCD1 | C94: guanylyl cyclase domain containing 1 [Source:HGNC Symbol;Acc:HGNC:14237] | D94: 47.46 | E94: 57.96 | F94: 27.7 | G94: 34.6 | H94: 34.57 | I94: 38.53 | J94: 53.08 | K94: 64.26 | L94: 30.21 | M94: 18.63 | N94: 27.89 | O94: 46.66 | P94: 56.9 | Q94: 41.85 | R94: 36.05 | S94: 41.44 | T94: 32.86 | U94: 36 | V94: 40.44 | W94: 56.81 | X94: 47 | Y94: 44.81 | Z94: 33.92 | AA94: 64.37 | AB94: 45.91 | AC94: 54.87 | AD94: 32.17 | AE94: 35.2 | AF94: 41.14 | AG94: 37.61 | AH94: 68.71 | AI94: 80.99 | AJ94: 41.28 | AK94: 34.38 | AL94: 56.44 | AM94: 72.33 | AN94: 52.45 | AO94: 44.24 | AP94: 55.35 | AQ94: 41.45 | AR94: 48.62 | AS94: 50.12 | AT94: 70.28 | AU94: 63.04 | AV94: 47.74 | AW94: 45.24 | AX94: 45.95 | AY94: 57.6 | AZ94: 41.93 | BA94: 47.61 | BB94: 30.8475 | BC94: 44.06 | BD94: 41.5275 | BE94: 47.525 | BF94: 42.0375 | BG94: 57.1125 | BH94: 51.1075 | BI94: 48.3725 | BJ94: 58.015 | BK94: 49.1325
A95: ENSCHIG00000000094 | C95: - | D95: 0.26 | E95: 0 | F95: 0 | G95: 0 | H95: 0 | I95: 0 | J95: 0 | K95: 0 | L95: 0 | M95: 0 | N95: 0 | O95: 0 | P95: 0 | Q95: 0 | R95: 0 | S95: 0 | T95: 0 | U95: 0 | V95: 0 | W95: 0 | X95: 0 | Y95: 0 | Z95: 0 | AA95: 0 | AB95: 0 | AC95: 0 | AD95: 0 | AE95: 0 | AF95: 0 | AG95: 0 | AH95: 0 | AI95: 0 | AJ95: 0 | AK95: 0 | AL95: 0 | AM95: 0 | AN95: 0 | AO95: 0 | AP95: 0 | AQ95: 0 | AR95: 0 | AS95: 0 | AT95: 0 | AU95: 0 | AV95: 0 | AW95: 0 | AX95: 1.34 | AY95: 0 | AZ95: 0.065 | BA95: 0 | BB95: 0 | BC95: 0 | BD95: 0 | BE95: 0 | BF95: 0 | BG95: 0 | BH95: 0 | BI95: 0 | BJ95: 0 | BK95: 0.335
A96: ENSCHIG00000000095 | C96: - | D96: 0 | E96: 0 | F96: 0 | G96: 0 | H96: 0 | I96: 0 | J96: 0 | K96: 0 | L96: 0 | M96: 0 | N96: 0 | O96: 0 | P96: 0 | Q96: 0 | R96: 0 | S96: 0 | T96: 0 | U96: 0 | V96: 0 | W96: 0 | X96: 0 | Y96: 0 | Z96: 0 | AA96: 0 | AB96: 0 | AC96: 0 | AD96: 0 | AE96: 0 | AF96: 0 | AG96: 0 | AH96: 0 | AI96: 0 | AJ96: 0 | AK96: 0 | AL96: 0 | AM96: 0 | AN96: 0 | AO96: 0 | AP96: 0.04 | AQ96: 0 | AR96: 0 | AS96: 0 | AT96: 0 | AU96: 0 | AV96: 0 | AW96: 0 | AX96: 0 | AY96: 0 | AZ96: 0 | BA96: 0 | BB96: 0 | BC96: 0 | BD96: 0 | BE96: 0 | BF96: 0 | BG96: 0 | BH96: 0 | BI96: 0.01 | BJ96: 0 | BK96: 0
A97: ENSCHIG00000000096 | B97: STEEP1 | C97: STING1 ER exit protein 1 [Source:HGNC Symbol;Acc:HGNC:26239] | D97: 22.49 | E97: 18.94 | F97: 21.61 | G97: 22.36 | H97: 14.12 | I97: 18.68 | J97: 19.92 | K97: 14.89 | L97: 20.16 | M97: 19.26 | N97: 19.69 | O97: 29.96 | P97: 14.3 | Q97: 20.52 | R97: 12.52 | S97: 16.47 | T97: 14.41 | U97: 20.72 | V97: 12.53 | W97: 14.25 | X97: 12.05 | Y97: 17.43 | Z97: 15.99 | AA97: 17.97 | AB97: 16.37 | AC97: 16.6 | AD97: 21.23 | AE97: 23.31 | AF97: 16.23 | AG97: 16.03 | AH97: 16.28 | AI97: 16.05 | AJ97: 12.66 | AK97: 12.37 | AL97: 19.74 | AM97: 18.15 | AN97: 12.37 | AO97: 16.82 | AP97: 14.55 | AQ97: 12.78 | AR97: 12.66 | AS97: 19.54 | AT97: 20.47 | AU97: 15.55 | AV97: 13.27 | AW97: 17.94 | AX97: 16.8 | AY97: 15.27 | AZ97: 21.35 | BA97: 16.9025 | BB97: 22.2675 | BC97: 15.9525 | BD97: 15.4775 | BE97: 15.86 | BF97: 19.3775 | BG97: 16.1475 | BH97: 15.73 | BI97: 14.13 | BJ97: 17.055 | BK97: 15.82
A98: ENSCHIG00000000097 | C98: - | D98: 40.94 | E98: 5.19 | F98: 13.58 | G98: 32 | H98: 44.83 | I98: 12.62 | J98: 15.19 | K98: 32.06 | L98: 81.6 | M98: 23.52 | N98: 8.03 | O98: 32.59 | P98: 5.88 | Q98: 29.78 | R98: 32.77 | S98: 6.06 | T98: 15.8 | U98: 17.59 | V98: 7.55 | W98: 9.74 | X98: 11.61 | Y98: 10.31 | Z98: 6.47 | AA98: 7.7 | AB98: 1.91 | AC98: 1.84 | AD98: 2.92 | AE98: 5.92 | AF98: 3.96 | AG98: 4.39 | AH98: 2.48 | AI98: 5.72 | AJ98: 7.58 | AK98: 3.82 | AL98: 4.08 | AM98: 4.54 | AN98: 5.29 | AO98: 4.57 | AP98: 3.92 | AQ98: 2.8 | AR98: 3.24 | AS98: 5.87 | AT98: 5.15 | AU98: 3.44 | AV98: 8.62 | AW98: 4.9 | AX98: 3.18 | AY98: 3.94 | AZ98: 22.9275 | BA98: 26.175 | BB98: 36.435 | BC98: 18.6225 | BD98: 12.67 | BE98: 9.0225 | BF98: 3.1475 | BG98: 4.1375 | BH98: 5.005 | BI98: 4.145 | BJ98: 4.425 | BK98: 5.16
A99: ENSCHIG00000000098 | B99: SRPX2 | C99: sushi repeat containing protein X-linked 2 [Source:HGNC Symbol;Acc:HGNC:30668] | D99: 3.81 | E99: 2.38 | F99: 1.82 | G99: 5.1 | H99: 7.02 | I99: 3.95 | J99: 4.11 | K99: 2.78 | L99: 3.32 | M99: 4.35 | N99: 2.79 | O99: 3.36 | P99: 2.37 | Q99: 4.59 | R99: 4.1 | S99: 2.72 | T99: 1.09 | U99: 3.31 | V99: 1.01 | W99: 2.07 | X99: 2.56 | Y99: 1.85 | Z99: 3.18 | AA99: 2.56 | AB99: 2.83 | AC99: 2.17 | AD99: 1.27 | AE99: 2.49 | AF99: 2.72 | AG99: 1.25 | AH99: 3.66 | AI99: 3.45 | AJ99: 2.63 | AK99: 2.47 | AL99: 2.88 | AM99: 2 | AN99: 4.19 | AO99: 2.51 | AP99: 3.34 | AQ99: 2.36 | AR99: 1.7 | AS99: 1.12 | AT99: 2.22 | AU99: 1.94 | AV99: 3.09 | AW99: 1.3 | AX99: 1.19 | AY99: 2.37 | AZ99: 3.2775 | BA99: 4.465 | BB99: 3.455 | BC99: 3.445 | BD99: 1.87 | BE99: 2.5375 | BF99: 2.19 | BG99: 2.77 | BH99: 2.495 | BI99: 3.1 | BJ99: 1.745 | BK99: 1.9875
A100: ENSCHIG00000000099 | B100: AIFM2 | C100: apoptosis inducing factor mitochondria associated 2 [Source:HGNC Symbol;Acc:HGNC:21411] | D100: 20.91 | E100: 24.5 | F100: 38.68 | G100: 48.1 | H100: 23.24 | I100: 26.28 | J100: 22.38 | K100: 33.94 | L100: 28.15 | M100: 22.21 | N100: 21.4 | O100: 41.53 | P100: 12.24 | Q100: 30.3 | R100: 17.87 | S100: 39.32 | T100: 18.7 | U100: 24.91 | V100: 27.29 | W100: 27.58 | X100: 24.78 | Y100: 34.57 | Z100: 12.33 | AA100: 26.24 | AB100: 17.67 | AC100: 27.09 | AD100: 42 | AE100: 33.95 | AF100: 22.06 | AG100: 32.68 | AH100: 26.61 | AI100: 34.99 | AJ100: 29.55 | AK100: 26.46 | AL100: 21.39 | AM100: 50.81 | AN100: 14.47 | AO100: 35.39 | AP100: 25 | AQ100: 31.83 | AR100: 27.43 | AS100: 30.64 | AT100: 33.69 | AU100: 35.45 | AV100: 26.34 | AW100: 45.3 | AX100: 15 | AY100: 33.6 | AZ100: 33.0475 | BA100: 26.46 | BB100: 28.3225 | BC100: 24.9325 | BD100: 24.62 | BE100: 24.48 | BF100: 30.1775 | BG100: 29.085 | BH100: 32.0525 | BI100: 26.6725 | BJ100: 31.8025 | BK100: 30.06
A101: ENSCHIG00000000100 | B101: ACSL4 | C101: acyl-CoA synthetase long chain family member 4 [Source:HGNC Symbol;Acc:HGNC:3571] | D101: 22.63 | E101: 7.56 | F101: 106.18 | G101: 35.65 | H101: 15.71 | I101: 125.2 | J101: 9.06 | K101: 12.45 | L101: 15.01 | M101: 42.08 | N101: 41.28 | O101: 64.76 | P101: 8.39 | Q101: 8.37 | R101: 15.21 | S101: 45.71 | T101: 12.6 | U101: 244.57 | V101: 27.34 | W101: 15.55 | X101: 7.01 | Y101: 24.21 | Z101: 10.31 | AA101: 21.28 | AB101: 8.82 | AC101: 8.06 | AD101: 44.72 | AE101: 24.16 | AF101: 16.82 | AG101: 70.4 | AH101: 6.48 | AI101: 3.74 | AJ101: 10.79 | AK101: 7.16 | AL101: 23.68 | AM101: 36.65 | AN101: 5.62 | AO101: 8.22 | AP101: 5.15 | AQ101: 18.35 | AR101: 7.49 | AS101: 40.79 | AT101: 15.19 | AU101: 9.92 | AV101: 5.98 | AW101: 21.07 | AX101: 5.29 | AY101: 12.66 | AZ101: 43.005 | BA101: 40.605 | BB101: 40.7825 | BC101: 19.42 | BD101: 75.015 | BE101: 15.7025 | BF101: 21.44 | BG101: 24.36 | BH101: 19.57 | BI101: 9.335 | BJ101: 18.3475 | BK101: 11.25
A102: ENSCHIG00000000101 | B102: L1CAM | C102: L1 cell adhesion molecule [Source:HGNC Symbol;Acc:HGNC:6470] | D102: 1.07 | E102: 0.74 | F102: 2.43 | G102: 0.31 | H102: 1.26 | I102: 1.45 | J102: 0.56 | K102: 1.17 | L102: 0.84 | M102: 1.36 | N102: 0.65 | O102: 1.91 | P102: 2.05 | Q102: 1.79 | R102: 2.37 | S102: 1.32 | T102: 0.58 | U102: 3.04 | V102: 0.84 | W102: 1.47 | X102: 0.57 | Y102: 1.53 | Z102: 0.81 | AA102: 0.56 | AB102: 1.38 | AC102: 1.02 | AD102: 1.95 | AE102: 0.32 | AF102: 1.11 | AG102: 0.85 | AH102: 0.77 | AI102: 1.61 | AJ102: 0.84 | AK102: 0.81 | AL102: 0.63 | AM102: 1.8 | AN102: 2.41 | AO102: 1.3 | AP102: 2.43 | AQ102: 1.7 | AR102: 0.79 | AS102: 2.62 | AT102: 1.09 | AU102: 1.39 | AV102: 0.58 | AW102: 1.74 | AX102: 0.85 | AY102: 0.65 | AZ102: 1.1375 | BA102: 1.11 | BB102: 1.19 | BC102: 1.8825 | BD102: 1.4825 | BE102: 0.8675 | BF102: 1.1675 | BG102: 1.085 | BH102: 1.02 | BI102: 1.96 | BJ102: 1.4725 | BK102: 0.955
A103: ENSCHIG00000000102 | B103: PLAC9 | C103: placenta associated 9 [Source:HGNC Symbol;Acc:HGNC:19255] | D103: 2.17 | E103: 8.24 | F103: 2.78 | G103: 16.04 | H103: 7.2 | I103: 11.99 | J103: 4.93 | K103: 4.36 | L103: 7.65 | M103: 2 | N103: 7.1 | O103: 14.15 | P103: 9.61 | Q103: 3.54 | R103: 1.13 | S103: 0.86 | T103: 8.69 | U103: 13.43 | V103: 4.36 | W103: 7.29 | X103: 8.23 | Y103: 8.72 | Z103: 9.75 | AA103: 19.08 | AB103: 13.73 | AC103: 8.72 | AD103: 9.74 | AE103: 2.25 | AF103: 4.13 | AG103: 8.74 | AH103: 0.81 | AI103: 10.74 | AJ103: 6.18 | AK103: 7.74 | AL103: 5.95 | AM103: 7.66 | AN103: 12.79 | AO103: 12.99 | AP103: 8.31 | AQ103: 9.3 | AR103: 1.16 | AS103: 9.02 | AT103: 11.4 | AU103: 4.53 | AV103: 7.63 | AW103: 4.7 | AX103: 13.31 | AY103: 10.42 | AZ103: 7.3075 | BA103: 7.12 | BB103: 7.725 | BC103: 3.785 | BD103: 8.4425 | BE103: 11.445 | BF103: 8.61 | BG103: 6.105 | BH103: 6.8825 | BI103: 10.8475 | BJ103: 6.5275 | BK103: 9.015
A104: ENSCHIG00000000103 | B104: F7 | C104: coagulation factor VII [Source:HGNC Symbol;Acc:HGNC:3544] | D104: 0 | E104: 0 | F104: 0 | G104: 0.14 | H104: 0 | I104: 0 | J104: 0 | K104: 0 | L104: 0.13 | M104: 0 | N104: 0 | O104: 0 | P104: 0 | Q104: 0 | R104: 0 | S104: 0 | T104: 0 | U104: 0 | V104: 0.3 | W104: 0 | X104: 0 | Y104: 0 | Z104: 0 | AA104: 0 | AB104: 0 | AC104: 0 | AD104: 0 | AE104: 0 | AF104: 0 | AG104: 0.08 | AH104: 0 | AI104: 0 | AJ104: 0 | AK104: 0 | AL104: 0 | AM104: 0 | AN104: 0 | AO104: 0 | AP104: 0 | AQ104: 0 | AR104: 0 | AS104: 0 | AT104: 0 | AU104: 0 | AV104: 0 | AW104: 0 | AX104: 0.14 | AY104: 0 | AZ104: 0.035 | BA104: 0 | BB104: 0.0325 | BC104: 0 | BD104: 0.075 | BE104: 0 | BF104: 0 | BG104: 0.02 | BH104: 0 | BI104: 0 | BJ104: 0 | BK104: 0.035
A105: ENSCHIG00000000104 | B105: CABCOCO1 | C105: ciliary associated calcium binding coiled-coil 1 [Source:HGNC Symbol;Acc:HGNC:28678] | D105: 0.07 | E105: 0.48 | F105: 0.45 | G105: 0.3 | H105: 0.59 | I105: 0.85 | J105: 0.29 | K105: 0.16 | L105: 0.64 | M105: 0.34 | N105: 0.87 | O105: 1.47 | P105: 0.13 | Q105: 0.29 | R105: 0.52 | S105: 0.3 | T105: 0.33 | U105: 0.42 | V105: 0.42 | W105: 0.12 | X105: 0.15 | Y105: 0.59 | Z105: 0.42 | AA105: 0.25 | AB105: 0.07 | AC105: 0.04 | AD105: 0.36 | AE105: 0.37 | AF105: 1.18 | AG105: 0.36 | AH105: 0.33 | AI105: 0.19 | AJ105: 0.16 | AK105: 0.19 | AL105: 0.27 | AM105: 0.11 | AN105: 0.13 | AO105: 0.71 | AP105: 0.38 | AQ105: 0.46 | AR105: 0.3 | AS105: 0.34 | AT105: 1.1 | AU105: 0.37 | AV105: 0.15 | AW105: 0.64 | AX105: 0.61 | AY105: 0.13 | AZ105: 0.325 | BA105: 0.4725 | BB105: 0.83 | BC105: 0.31 | BD105: 0.3225 | BE105: 0.3525 | BF105: 0.21 | BG105: 0.515 | BH105: 0.1825 | BI105: 0.42 | BJ105: 0.5275 | BK105: 0.3825
A106: ENSCHIG00000000105 | B106: ZNF24 | C106: zinc finger protein 24 [Source:HGNC Symbol;Acc:HGNC:13032] | D106: 7.27 | E106: 9.86 | F106: 22.43 | G106: 6.57 | H106: 8.67 | I106: 26.89 | J106: 5.19 | K106: 3.48 | L106: 7.77 | M106: 10.4 | N106: 13.46 | O106: 14.89 | P106: 4.45 | Q106: 4.77 | R106: 7.85 | S106: 9.58 | T106: 7.46 | U106: 20.12 | V106: 9.01 | W106: 5.63 | X106: 3.48 | Y106: 8.85 | Z106: 4.68 | AA106: 7.75 | AB106: 4.55 | AC106: 7.2 | AD106: 9.39 | AE106: 4.3 | AF106: 11.01 | AG106: 15.65 | AH106: 4.18 | AI106: 2.15 | AJ106: 4.8 | AK106: 4.26 | AL106: 6.75 | AM106: 6.23 | AN106: 5.9 | AO106: 8.29 | AP106: 6.93 | AQ106: 4.78 | AR106: 5.75 | AS106: 4.92 | AT106: 7.71 | AU106: 3.19 | AV106: 5.63 | AW106: 6.87 | AX106: 6.15 | AY106: 4.95 | AZ106: 11.5325 | BA106: 11.0575 | BB106: 11.63 | BC106: 6.6625 | BD106: 10.555 | BE106: 6.19 | BF106: 6.36 | BG106: 8.2475 | BH106: 5.51 | BI106: 6.475 | BJ106: 5.3925 | BK106: 5.9
A107: ENSCHIG00000000106 | B107: MED15 | C107: mediator complex subunit 15 [Source:HGNC Symbol;Acc:HGNC:14248] | D107: 21.49 | E107: 9.6 | F107: 28.07 | G107: 20.45 | H107: 11.21 | I107: 19.78 | J107: 5.92 | K107: 11.57 | L107: 12.37 | M107: 12.94 | N107: 12.91 | O107: 17.61 | P107: 10.75 | Q107: 11.64 | R107: 10.36 | S107: 20.05 | T107: 6.35 | U107: 24.14 | V107: 11.52 | W107: 9.79 | X107: 11.87 | Y107: 12.96 | Z107: 12.6 | AA107: 11.97 | AB107: 14.57 | AC107: 10.46 | AD107: 25.62 | AE107: 15.48 | AF107: 11.19 | AG107: 22.98 | AH107: 6.56 | AI107: 9.77 | AJ107: 10.75 | AK107: 12.29 | AL107: 11.22 | AM107: 17.5 | AN107: 10.84 | AO107: 9.67 | AP107: 11.59 | AQ107: 17.33 | AR107: 11.38 | AS107: 22.48 | AT107: 8.27 | AU107: 9.76 | AV107: 10.25 | AW107: 14.34 | AX107: 11.8 | AY107: 11.93 | AZ107: 19.9025 | BA107: 12.12 | BB107: 13.9575 | BC107: 13.2 | BD107: 12.95 | BE107: 12.35 | BF107: 16.5325 | BG107: 12.625 | BH107: 12.94 | BI107: 12.3575 | BJ107: 12.9725 | BK107: 12.08
A108: ENSCHIG00000000107 | B108: CDHR1 | C108: cadherin related family member 1 [Source:HGNC Symbol;Acc:HGNC:14550] | D108: 0 | E108: 0 | F108: 0 | G108: 0 | H108: 0 | I108: 0 | J108: 0 | K108: 0 | L108: 0.02 | M108: 0 | N108: 0 | O108: 0 | P108: 0 | Q108: 0 | R108: 0 | S108: 0 | T108: 0 | U108: 0 | V108: 0 | W108: 0 | X108: 0 | Y108: 0 | Z108: 0 | AA108: 0 | AB108: 0 | AC108: 0 | AD108: 0 | AE108: 0 | AF108: 0 | AG108: 0 | AH108: 0 | AI108: 0.04 | AJ108: 0 | AK108: 0 | AL108: 0 | AM108: 0.03 | AN108: 0 | AO108: 0 | AP108: 0 | AQ108: 0 | AR108: 0.02 | AS108: 0 | AT108: 0 | AU108: 0 | AV108: 0 | AW108: 0 | AX108: 0 | AY108: 0 | AZ108: 0 | BA108: 0 | BB108: 0.005 | BC108: 0 | BD108: 0 | BE108: 0 | BF108: 0 | BG108: 0.01 | BH108: 0.0075 | BI108: 0 | BJ108: 0.005 | BK108: 0
A109: ENSCHIG00000000108 | B109: VPS26A | C109: VPS26, retromer complex component A [Source:HGNC Symbol;Acc:HGNC:12711] | D109: 6.11 | E109: 6.17 | F109: 29.71 | G109: 8.07 | H109: 7.08 | I109: 30.11 | J109: 4.41 | K109: 2.65 | L109: 5.93 | M109: 12.56 | N109: 20.54 | O109: 18.42 | P109: 6.42 | Q109: 5.14 | R109: 9.59 | S109: 8.05 | T109: 5.42 | U109: 24.37 | V109: 6.73 | W109: 4.52 | X109: 1.88 | Y109: 5.84 | Z109: 3.41 | AA109: 5.13 | AB109: 2.79 | AC109: 4.18 | AD109: 9.5 | AE109: 4.99 | AF109: 8.23 | AG109: 15.24 | AH109: 2.15 | AI109: 2.13 | AJ109: 3.46 | AK109: 3.02 | AL109: 9.9 | AM109: 4.26 | AN109: 3.79 | AO109: 3.24 | AP109: 4.22 | AQ109: 2.63 | AR109: 2.66 | AS109: 6.45 | AT109: 7.72 | AU109: 1.48 | AV109: 2.22 | AW109: 4.44 | AX109: 3.45 | AY109: 1.42 | AZ109: 12.515 | BA109: 11.0625 | BB109: 14.3625 | BC109: 7.3 | BD109: 10.26 | BE109: 4.065 | BF109: 5.365 | BG109: 6.9375 | BH109: 5.16 | BI109: 3.47 | BJ109: 4.5775 | BK109: 2.8825
A110: ENSCHIG00000000109 | B110: ENOSF1 | C110: enolase superfamily member 1 [Source:HGNC Symbol;Acc:HGNC:30365] | D110: 2.58 | E110: 0.98 | F110: 1.56 | G110: 1.27 | H110: 1.25 | I110: 1.84 | J110: 0.62 | K110: 0.43 | L110: 1.17 | M110: 0.7 | N110: 2.39 | O110: 2.19 | P110: 0.58 | Q110: 1.29 | R110: 1.39 | S110: 1.16 | T110: 1.18 | U110: 1.83 | V110: 0.94 | W110: 0.36 | X110: 0.54 | Y110: 0.7 | Z110: 0.08 | AA110: 0.91 | AB110: 1.15 | AC110: 0.81 | AD110: 0.99 | AE110: 0.45 | AF110: 1.27 | AG110: 0.99 | AH110: 0.81 | AI110: 0.42 | AJ110: 0.37 | AK110: 0.87 | AL110: 1.2 | AM110: 0.38 | AN110: 0.22 | AO110: 1.01 | AP110: 0.93 | AQ110: 0.67 | AR110: 0.39 | AS110: 0.73 | AT110: 1.64 | AU110: 0.59 | AV110: 0.85 | AW110: 0.29 | AX110: 0.38 | AY110: 1.06 | AZ110: 1.5975 | BA110: 1.035 | BB110: 1.6125 | BC110: 1.105 | BD110: 1.0775 | BE110: 0.5575 | BF110: 0.85 | BG110: 0.8725 | BH110: 0.705 | BI110: 0.7075 | BJ110: 0.8375 | BK110: 0.645
A111: ENSCHIG00000000110 | B111: MSS51 | C111: MSS51 mitochondrial translational activator [Source:HGNC Symbol;Acc:HGNC:21000] | D111: 36.65 | E111: 59.32 | F111: 8.06 | G111: 22.18 | H111: 83.18 | I111: 47.7 | J111: 41.95 | K111: 30.23 | L111: 45.23 | M111: 16.87 | N111: 25.2 | O111: 40.36 | P111: 47.49 | Q111: 51.81 | R111: 15.61 | S111: 61.27 | T111: 45.48 | U111: 12.85 | V111: 41.53 | W111: 36.76 | X111: 115.23 | Y111: 44.2 | Z111: 60.11 | AA111: 91.14 | AB111: 22.06 | AC111: 63.35 | AD111: 2 | AE111: 5.24 | AF111: 100.59 | AG111: 11.47 | AH111: 23.99 | AI111: 30.56 | AJ111: 20.81 | AK111: 3.71 | AL111: 0 | AM111: 3.6 | AN111: 26.29 | AO111: 25.46 | AP111: 22.69 | AQ111: 48.54 | AR111: 29.36 | AS111: 6.04 | AT111: 0 | AU111: 26.99 | AV111: 55.77 | AW111: 30.12 | AX111: 34.15 | AY111: 38.15 | AZ111: 31.5525 | BA111: 50.765 | BB111: 31.915 | BC111: 44.045 | BD111: 34.155 | BE111: 77.67 | BF111: 23.1625 | BG111: 41.6525 | BH111: 7.03 | BI111: 30.745 | BJ111: 15.5975 | BK111: 39.5475
A112: ENSCHIG00000000111 | B112: NKAP | C112: NFKB activating protein [Source:HGNC Symbol;Acc:HGNC:29873] | D112: 1.81 | E112: 1.61 | F112: 6.57 | G112: 1.24 | H112: 2.09 | I112: 6.54 | J112: 1.8 | K112: 1.29 | L112: 1.99 | M112: 3.38 | N112: 5.27 | O112: 5.75 | P112: 1.36 | Q112: 1.88 | R112: 2.19 | S112: 2.63 | T112: 2.32 | U112: 5.49 | V112: 3.94 | W112: 2.01 | X112: 1.09 | Y112: 2.35 | Z112: 1.52 | AA112: 2.03 | AB112: 1.82 | AC112: 1.9 | AD112: 3.65 | AE112: 0.91 | AF112: 2.87 | AG112: 5.55 | AH112: 1.57 | AI112: 0.41 | AJ112: 1.87 | AK112: 1.89 | AL112: 2.5 | AM112: 2.18 | AN112: 1.15 | AO112: 2.17 | AP112: 1.46 | AQ112: 1.78 | AR112: 1.7 | AS112: 1.49 | AT112: 2.25 | AU112: 0.86 | AV112: 1.3 | AW112: 1.91 | AX112: 1.73 | AY112: 0.98 | AZ112: 2.8075 | BA112: 2.93 | BB112: 4.0975 | BC112: 2.015 | BD112: 3.44 | BE112: 1.7475 | BF112: 2.07 | BG112: 2.6 | BH112: 2.11 | BI112: 1.64 | BJ112: 1.575 | BK112: 1.48
A113: ENSCHIG00000000112 | B113: CNDP2 | C113: carnosine dipeptidase 2 [Source:HGNC Symbol;Acc:HGNC:24437] | D113: 10.75 | E113: 4.2 | F113: 8.78 | G113: 9.4 | H113: 7.7 | I113: 7.56 | J113: 3.92 | K113: 5.27 | L113: 11.32 | M113: 8 | N113: 4.34 | O113: 13.13 | P113: 5.82 | Q113: 6.44 | R113: 3.69 | S113: 7.89 | T113: 5.21 | U113: 11.05 | V113: 4.57 | W113: 2.41 | X113: 3.78 | Y113: 4.66 | Z113: 5.7 | AA113: 7.15 | AB113: 6.64 | AC113: 3.82 | AD113: 7.71 | AE113: 9.75 | AF113: 5.72 | AG113: 5.66 | AH113: 5.1 | AI113: 7.06 | AJ113: 4.65 | AK113: 6.7 | AL113: 5.15 | AM113: 10.02 | AN113: 5.99 | AO113: 5.56 | AP113: 5.88 | AQ113: 7.52 | AR113: 6.41 | AS113: 10.45 | AT113: 6.44 | AU113: 5.38 | AV113: 4.95 | AW113: 10.47 | AX113: 11.73 | AY113: 5.45 | AZ113: 8.2825 | BA113: 6.1125 | BB113: 9.1975 | BC113: 5.96 | BD113: 5.81 | BE113: 5.3225 | BF113: 6.98 | BG113: 5.885 | BH113: 6.63 | BI113: 6.2375 | BJ113: 7.17 | BK113: 8.15
A114: ENSCHIG00000000113 | B114: ADK | C114: adenosine kinase [Source:HGNC Symbol;Acc:HGNC:257] | D114: 8.06 | E114: 8.36 | F114: 22.22 | G114: 11.73 | H114: 16.48 | I114: 26.93 | J114: 13.37 | K114: 7.12 | L114: 10.66 | M114: 14.36 | N114: 23.94 | O114: 22.53 | P114: 6.42 | Q114: 9.93 | R114: 13.8 | S114: 12.46 | T114: 10.31 | U114: 19.27 | V114: 17.03 | W114: 12.56 | X114: 3.85 | Y114: 8.94 | Z114: 3.7 | AA114: 9.09 | AB114: 4.86 | AC114: 5.67 | AD114: 12.5 | AE114: 12.74 | AF114: 19.31 | AG114: 16.55 | AH114: 11.2 | AI114: 5.35 | AJ114: 7.19 | AK114: 6.75 | AL114: 17.79 | AM114: 9.1 | AN114: 5.77 | AO114: 8.17 | AP114: 5.71 | AQ114: 9.97 | AR114: 7.14 | AS114: 13.98 | AT114: 13.96 | AU114: 6.33 | AV114: 6.17 | AW114: 7 | AX114: 4.74 | AY114: 4.02 | AZ114: 12.5925 | BA114: 15.975 | BB114: 17.8725 | BC114: 10.6525 | BD114: 14.7925 | BE114: 6.395 | BF114: 8.9425 | BG114: 13.1025 | BH114: 10.2075 | BI114: 7.405 | BJ114: 10.3525 | BK114: 5.4825
A115: ENSCHIG00000000114 | B115: LYST | C115: lysosomal trafficking regulator [Source:HGNC Symbol;Acc:HGNC:1968] | D115: 0.41 | E115: 0.6 | F115: 1.32 | G115: 0.78 | H115: 0.97 | I115: 2.13 | J115: 0.55 | K115: 0.21 | L115: 0.84 | M115: 1.22 | N115: 1.79 | O115: 1.67 | P115: 0.29 | Q115: 0.37 | R115: 0.72 | S115: 1.07 | T115: 0.52 | U115: 1.27 | V115: 0.77 | W115: 0.44 | X115: 0.44 | Y115: 0.63 | Z115: 0.27 | AA115: 0.61 | AB115: 0.41 | AC115: 0.36 | AD115: 0.52 | AE115: 0.51 | AF115: 0.97 | AG115: 0.92 | AH115: 0.24 | AI115: 0.19 | AJ115: 0.48 | AK115: 0.44 | AL115: 0.82 | AM115: 0.53 | AN115: 0.26 | AO115: 0.49 | AP115: 0.5 | AQ115: 0.29 | AR115: 0.22 | AS115: 0.65 | AT115: 0.62 | AU115: 0.22 | AV115: 0.36 | AW115: 0.56 | AX115: 0.66 | AY115: 0.21 | AZ115: 0.7775 | BA115: 0.965 | BB115: 1.38 | BC115: 0.6125 | BD115: 0.75 | BE115: 0.4875 | BF115: 0.45 | BG115: 0.58 | BH115: 0.5675 | BI115: 0.385 | BJ115: 0.4275 | BK115: 0.4475
A116: ENSCHIG00000000115 | C116: - | D116: 0 | E116: 0 | F116: 0 | G116: 0 | H116: 0 | I116: 0 | J116: 0 | K116: 0 | L116: 0 | M116: 0 | N116: 0 | O116: 0 | P116: 0 | Q116: 0 | R116: 0 | S116: 0 | T116: 0 | U116: 0 | V116: 0 | W116: 0 | X116: 0 | Y116: 0 | Z116: 0 | AA116: 0 | AB116: 0 | AC116: 0 | AD116: 0 | AE116: 0 | AF116: 0 | AG116: 0 | AH116: 0 | AI116: 0 | AJ116: 0 | AK116: 0 | AL116: 0 | AM116: 0 | AN116: 0 | AO116: 0 | AP116: 0 | AQ116: 0 | AR116: 0 | AS116: 0 | AT116: 0 | AU116: 0 | AV116: 0 | AW116: 0 | AX116: 0 | AY116: 0 | AZ116: 0 | BA116: 0 | BB116: 0 | BC116: 0 | BD116: 0 | BE116: 0 | BF116: 0 | BG116: 0 | BH116: 0 | BI116: 0 | BJ116: 0 | BK116: 0
A117: ENSCHIG00000000116 | C117: - | D117: 0 | E117: 0 | F117: 0 | G117: 0 | H117: 0 | I117: 0 | J117: 0 | K117: 0 | L117: 0 | M117: 0 | N117: 0 | O117: 0 | P117: 0 | Q117: 0 | R117: 0 | S117: 0 | T117: 0 | U117: 0 | V117: 0 | W117: 0 | X117: 0 | Y117: 0 | Z117: 0 | AA117: 0 | AB117: 0 | AC117: 0 | AD117: 0 | AE117: 0 | AF117: 0 | AG117: 0 | AH117: 0 | AI117: 0 | AJ117: 0 | AK117: 0 | AL117: 0 | AM117: 0 | AN117: 0 | AO117: 0 | AP117: 0 | AQ117: 0 | AR117: 0 | AS117: 0 | AT117: 0 | AU117: 0 | AV117: 0 | AW117: 0 | AX117: 0 | AY117: 0 | AZ117: 0 | BA117: 0 | BB117: 0 | BC117: 0 | BD117: 0 | BE117: 0 | BF117: 0 | BG117: 0 | BH117: 0 | BI117: 0 | BJ117: 0 | BK117: 0
A118: ENSCHIG00000000117 | C118: - | D118: 0 | E118: 0 | F118: 0 | G118: 0 | H118: 0 | I118: 0 | J118: 0 | K118: 0 | L118: 0 | M118: 0 | N118: 0 | O118: 0 | P118: 0 | Q118: 0 | R118: 0 | S118: 0 | T118: 0 | U118: 0 | V118: 0 | W118: 0 | X118: 0 | Y118: 0 | Z118: 0 | AA118: 0 | AB118: 0 | AC118: 0 | AD118: 0 | AE118: 0 | AF118: 0 | AG118: 0 | AH118: 0 | AI118: 0 | AJ118: 0 | AK118: 0 | AL118: 0 | AM118: 0 | AN118: 0 | AO118: 0 | AP118: 0 | AQ118: 0 | AR118: 0 | AS118: 0 | AT118: 0 | AU118: 0 | AV118: 0 | AW118: 0 | AX118: 0 | AY118: 0 | AZ118: 0 | BA118: 0 | BB118: 0 | BC118: 0 | BD118: 0 | BE118: 0 | BF118: 0 | BG118: 0 | BH118: 0 | BI118: 0 | BJ118: 0 | BK118: 0
A119: ENSCHIG00000000118 | C119: - | D119: 1.61 | E119: 1.04 | F119: 3.4 | G119: 3.22 | H119: 3.04 | I119: 2.86 | J119: 1.05 | K119: 1.62 | L119: 2.75 | M119: 3.55 | N119: 3.32 | O119: 2.01 | P119: 2.34 | Q119: 2.39 | R119: 2.36 | S119: 0.85 | T119: 0.96 | U119: 3.82 | V119: 1.15 | W119: 1.07 | X119: 1.44 | Y119: 0.64 | Z119: 0.64 | AA119: 1.25 | AB119: 1.65 | AC119: 0.86 | AD119: 1.85 | AE119: 2.44 | AF119: 1.06 | AG119: 1.04 | AH119: 1.24 | AI119: 1.13 | AJ119: 1.85 | AK119: 1.27 | AL119: 2.71 | AM119: 1.63 | AN119: 2.68 | AO119: 1.37 | AP119: 2.61 | AQ119: 0.59 | AR119: 1.25 | AS119: 1.18 | AT119: 0.73 | AU119: 0.8 | AV119: 1.77 | AW119: 2.13 | AX119: 4.44 | AY119: 1.69 | AZ119: 2.3175 | BA119: 2.1425 | BB119: 2.9075 | BC119: 1.985 | BD119: 1.75 | BE119: 0.9925 | BF119: 1.7 | BG119: 1.1175 | BH119: 1.865 | BI119: 1.8125 | BJ119: 0.99 | BK119: 2.5075
A120: ENSCHIG00000000119 | B120: SHOX | C120: short stature homeobox [Source:HGNC Symbol;Acc:HGNC:10853] | D120: 0 | E120: 0 | F120: 0 | G120: 0 | H120: 0 | I120: 0 | J120: 0 | K120: 0 | L120: 0 | M120: 0 | N120: 0 | O120: 0 | P120: 0 | Q120: 0 | R120: 0 | S120: 0 | T120: 0 | U120: 0 | V120: 0 | W120: 0 | X120: 0 | Y120: 0 | Z120: 0 | AA120: 0 | AB120: 0 | AC120: 0 | AD120: 0 | AE120: 0.09 | AF120: 0.09 | AG120: 0 | AH120: 0 | AI120: 0 | AJ120: 0 | AK120: 0 | AL120: 0 | AM120: 0 | AN120: 0 | AO120: 0 | AP120: 0 | AQ120: 0 | AR120: 0 | AS120: 0 | AT120: 0 | AU120: 0 | AV120: 0.04 | AW120: 0 | AX120: 0 | AY120: 0 | AZ120: 0 | BA120: 0 | BB120: 0 | BC120: 0 | BD120: 0 | BE120: 0 | BF120: 0.0225 | BG120: 0.0225 | BH120: 0 | BI120: 0 | BJ120: 0 | BK120: 0.01
A121: ENSCHIG00000000120 | C121: - | D121: 0 | E121: 0.1 | F121: 0 | G121: 0 | H121: 0 | I121: 0 | J121: 0 | K121: 0 | L121: 0 | M121: 0 | N121: 0 | O121: 0 | P121: 0 | Q121: 0 | R121: 0 | S121: 0 | T121: 0 | U121: 0 | V121: 0 | W121: 0 | X121: 0 | Y121: 0 | Z121: 0 | AA121: 0 | AB121: 0 | AC121: 0 | AD121: 0 | AE121: 0 | AF121: 0 | AG121: 0 | AH121: 0 | AI121: 0 | AJ121: 0 | AK121: 0 | AL121: 0 | AM121: 0 | AN121: 0 | AO121: 0 | AP121: 0 | AQ121: 0 | AR121: 0 | AS121: 0 | AT121: 0 | AU121: 0 | AV121: 0 | AW121: 0 | AX121: 0.09 | AY121: 0 | AZ121: 0.025 | BA121: 0 | BB121: 0 | BC121: 0 | BD121: 0 | BE121: 0 | BF121: 0 | BG121: 0 | BH121: 0 | BI121: 0 | BJ121: 0 | BK121: 0.0225
A122: ENSCHIG00000000121 | B122: GTPBP6 | C122: GTP binding protein 6 (putative) [Source:HGNC Symbol;Acc:HGNC:30189] | D122: 7.99 | E122: 9.22 | F122: 9.04 | G122: 10.14 | H122: 7.46 | I122: 5.76 | J122: 11.28 | K122: 12.1 | L122: 9.56 | M122: 8.12 | N122: 9.69 | O122: 9.32 | P122: 11.44 | Q122: 8.36 | R122: 8.65 | S122: 8.61 | T122: 8.12 | U122: 7.73 | V122: 12.41 | W122: 9.49 | X122: 8.56 | Y122: 11.29 | Z122: 11.34 | AA122: 10.46 | AB122: 7.97 | AC122: 8.33 | AD122: 11.76 | AE122: 12.61 | AF122: 6.85 | AG122: 9.3 | AH122: 12.86 | AI122: 17.51 | AJ122: 12.78 | AK122: 11.66 | AL122: 15.22 | AM122: 19.17 | AN122: 10.61 | AO122: 11.88 | AP122: 11.57 | AQ122: 13.4 | AR122: 12.51 | AS122: 14.3 | AT122: 11.66 | AU122: 13.24 | AV122: 10.85 | AW122: 15.63 | AX122: 15.85 | AY122: 14.15 | AZ122: 9.0975 | BA122: 9.15 | BB122: 9.1725 | BC122: 9.265 | BD122: 9.4375 | BE122: 10.4125 | BF122: 10.1675 | BG122: 11.63 | BH122: 14.7075 | BI122: 11.865 | BJ122: 12.9275 | BK122: 14.12
A123: ENSCHIG00000000122 | B123: PPM1F | C123: protein phosphatase, Mg2+/Mn2+ dependent 1F [Source:HGNC Symbol;Acc:HGNC:19388] | D123: 7.14 | E123: 3.63 | F123: 5.84 | G123: 7.84 | H123: 5.75 | I123: 6.27 | J123: 4.29 | K123: 5.79 | L123: 7.13 | M123: 4.9 | N123: 4.74 | O123: 7.56 | P123: 6.95 | Q123: 6.12 | R123: 4.4 | S123: 6.57 | T123: 4.8 | U123: 5.28 | V123: 5.78 | W123: 5.4 | X123: 6.08 | Y123: 4.6 | Z123: 5.11 | AA123: 6.75 | AB123: 5.76 | AC123: 4.52 | AD123: 6.35 | AE123: 6.52 | AF123: 5.66 | AG123: 5.79 | AH123: 4.57 | AI123: 6.82 | AJ123: 6.86 | AK123: 8.03 | AL123: 6.82 | AM123: 8.1 | AN123: 7.87 | AO123: 5.08 | AP123: 6.38 | AQ123: 7.43 | AR123: 6.42 | AS123: 6.96 | AT123: 5.26 | AU123: 7.06 | AV123: 4.83 | AW123: 7.51 | AX123: 5.62 | AY123: 5.54 | AZ123: 6.1125 | BA123: 5.525 | BB123: 6.0825 | BC123: 6.01 | BD123: 5.315 | BE123: 5.635 | BF123: 5.7875 | BG123: 5.71 | BH123: 7.4525 | BI123: 6.69 | BJ123: 6.425 | BK123: 5.875
A124: ENSCHIG00000000123 | B124: IQANK1 | C124: IQ motif and ankyrin repeat containing 1 [Source:HGNC Symbol;Acc:HGNC:49576] | D124: 0.65 | E124: 1.26 | F124: 3.19 | G124: 0 | H124: 0.15 | I124: 10.9 | J124: 0.45 | K124: 0.68 | L124: 2.3 | M124: 3.57 | N124: 3.22 | O124: 2.46 | P124: 0.82 | Q124: 0.61 | R124: 14.24 | S124: 1.62 | T124: 0.82 | U124: 1.37 | V124: 1.27 | W124: 0.87 | X124: 1.17 | Y124: 0.99 | Z124: 0.79 | AA124: 1.1 | AB124: 0.37 | AC124: 0.15 | AD124: 0.35 | AE124: 0.14 | AF124: 1 | AG124: 2.07 | AH124: 0.35 | AI124: 0.54 | AJ124: 0.86 | AK124: 0.86 | AL124: 2.27 | AM124: 0.1 | AN124: 0.36 | AO124: 1.69 | AP124: 2.48 | AQ124: 0 | AR124: 0.26 | AS124: 0 | AT124: 0.64 | AU124: 0.36 | AV124: 2.13 | AW124: 0.76 | AX124: 1.75 | AY124: 0.27 | AZ124: 1.275 | BA124: 3.045 | BB124: 2.8875 | BC124: 4.3225 | BD124: 1.0825 | BE124: 1.0125 | BF124: 0.2525 | BG124: 0.99 | BH124: 1.0225 | BI124: 1.1325 | BJ124: 0.315 | BK124: 1.2275
A125: ENSCHIG00000000124 | B125: EDF1 | C125: endothelial differentiation related factor 1 [Source:HGNC Symbol;Acc:HGNC:3164] | D125: 493.39 | E125: 307.36 | F125: 271.36 | G125: 310.19 | H125: 304.91 | I125: 313.7 | J125: 376.09 | K125: 561.31 | L125: 603.15 | M125: 292.61 | N125: 306.4 | O125: 553.32 | P125: 354.09 | Q125: 363.87 | R125: 281.95 | S125: 349.76 | T125: 385.46 | U125: 359.3 | V125: 343.28 | W125: 416.49 | X125: 292.82 | Y125: 377.1 | Z125: 295.58 | AA125: 245.63 | AB125: 266.87 | AC125: 281.31 | AD125: 326.94 | AE125: 254.76 | AF125: 249.87 | AG125: 310.68 | AH125: 350.49 | AI125: 399.94 | AJ125: 295.3 | AK125: 298.44 | AL125: 292.66 | AM125: 421.93 | AN125: 324.17 | AO125: 328.91 | AP125: 327.96 | AQ125: 434.66 | AR125: 441.19 | AS125: 347.34 | AT125: 305.65 | AU125: 427.22 | AV125: 254.13 | AW125: 415.03 | AX125: 352.62 | AY125: 267.34 | AZ125: 345.575 | BA125: 389.0025 | BB125: 438.87 | BC125: 337.4175 | BD125: 376.1325 | BE125: 302.7825 | BF125: 282.47 | BG125: 327.745 | BH125: 327.0825 | BI125: 353.925 | BJ125: 380.35 | BK125: 322.28
A126: ENSCHIG00000000125 | C126: - | D126: 0.11 | E126: 0 | F126: 0 | G126: 0 | H126: 0.08 | I126: 0 | J126: 0 | K126: 0 | L126: 0.22 | M126: 0 | N126: 0 | O126: 0 | P126: 0 | Q126: 0 | R126: 0 | S126: 0 | T126: 0 | U126: 0 | V126: 0 | W126: 0 | X126: 0 | Y126: 0 | Z126: 0 | AA126: 0 | AB126: 0 | AC126: 0 | AD126: 0 | AE126: 0 | AF126: 0 | AG126: 0 | AH126: 0 | AI126: 0 | AJ126: 0 | AK126: 0 | AL126: 0 | AM126: 0 | AN126: 0 | AO126: 0 | AP126: 0.43 | AQ126: 0 | AR126: 0 | AS126: 0 | AT126: 0 | AU126: 0 | AV126: 0 | AW126: 0.49 | AX126: 0.71 | AY126: 0 | AZ126: 0.0275 | BA126: 0.02 | BB126: 0.055 | BC126: 0 | BD126: 0 | BE126: 0 | BF126: 0 | BG126: 0 | BH126: 0 | BI126: 0.1075 | BJ126: 0 | BK126: 0.3
A127: ENSCHIG00000000126 | C127: - | D127: 0 | E127: 0 | F127: 0 | G127: 0.04 | H127: 0 | I127: 0 | J127: 0 | K127: 0 | L127: 0.04 | M127: 0.03 | N127: 0.09 | O127: 0.23 | P127: 0 | Q127: 0.09 | R127: 0 | S127: 0 | T127: 0 | U127: 0.26 | V127: 0.17 | W127: 0 | X127: 0 | Y127: 0 | Z127: 0.03 | AA127: 0 | AB127: 0 | AC127: 0 | AD127: 0.08 | AE127: 0.04 | AF127: 0.04 | AG127: 0 | AH127: 0 | AI127: 0 | AJ127: 0 | AK127: 0.04 | AL127: 0.08 | AM127: 0 | AN127: 0 | AO127: 0 | AP127: 0.04 | AQ127: 0 | AR127: 0 | AS127: 0 | AT127: 0 | AU127: 0.03 | AV127: 0.08 | AW127: 0.04 | AX127: 0.12 | AY127: 0 | AZ127: 0.01 | BA127: 0 | BB127: 0.0975 | BC127: 0.0225 | BD127: 0.1075 | BE127: 0.0075 | BF127: 0.03 | BG127: 0.01 | BH127: 0.03 | BI127: 0.01 | BJ127: 0.0075 | BK127: 0.06
A128: ENSCHIG00000000127 | B128: CD99L2 | C128: CD99 molecule like 2 [Source:HGNC Symbol;Acc:HGNC:18237] | D128: 9.37 | E128: 8.62 | F128: 4.94 | G128: 7.09 | H128: 10.43 | I128: 5.37 | J128: 10.52 | K128: 11.14 | L128: 10.36 | M128: 9.09 | N128: 11.9 | O128: 11.02 | P128: 12.74 | Q128: 9.3 | R128: 7.8 | S128: 12.04 | T128: 10.82 | U128: 3.86 | V128: 13.13 | W128: 11.4 | X128: 9.95 | Y128: 11.35 | Z128: 9.99 | AA128: 12.72 | AB128: 9.12 | AC128: 8.11 | AD128: 7.47 | AE128: 10.97 | AF128: 8.32 | AG128: 5.64 | AH128: 12.25 | AI128: 11.74 | AJ128: 9.44 | AK128: 9.61 | AL128: 13.43 | AM128: 9.53 | AN128: 11.87 | AO128: 11.15 | AP128: 7.58 | AQ128: 15.69 | AR128: 14.28 | AS128: 8.06 | AT128: 9.43 | AU128: 12.42 | AV128: 11.86 | AW128: 13.5 | AX128: 17.21 | AY128: 14.02 | AZ128: 7.505 | BA128: 9.365 | BB128: 10.5925 | BC128: 10.47 | BD128: 9.8025 | BE128: 11.0025 | BF128: 8.9175 | BG128: 9.4875 | BH128: 10.5025 | BI128: 11.5725 | BJ128: 11.0475 | BK128: 14.1475
A129: ENSCHIG00000000128 | B129: VAMP7 | C129: vesicle associated membrane protein 7 [Source:HGNC Symbol;Acc:HGNC:11486] | D129: 5.51 | E129: 7.18 | F129: 9.16 | G129: 7.56 | H129: 7.07 | I129: 11.95 | J129: 3.71 | K129: 2.84 | L129: 5.38 | M129: 6.84 | N129: 8.82 | O129: 11.93 | P129: 4.39 | Q129: 4.69 | R129: 5.34 | S129: 8.69 | T129: 6.41 | U129: 9.89 | V129: 6 | W129: 3.33 | X129: 3.55 | Y129: 5.48 | Z129: 2.26 | AA129: 5.5 | AB129: 2.81 | AC129: 4.65 | AD129: 5.95 | AE129: 7.23 | AF129: 6.81 | AG129: 7.13 | AH129: 4.56 | AI129: 2.08 | AJ129: 4.6 | AK129: 2.3 | AL129: 6.36 | AM129: 4.57 | AN129: 3.24 | AO129: 3.38 | AP129: 3.02 | AQ129: 2.27 | AR129: 2.08 | AS129: 9.07 | AT129: 7.51 | AU129: 3.81 | AV129: 2.33 | AW129: 2.61 | AX129: 2.72 | AY129: 3.19 | AZ129: 7.3525 | BA129: 6.3925 | BB129: 8.2425 | BC129: 5.7775 | BD129: 6.4075 | BE129: 4.1975 | BF129: 5.16 | BG129: 5.145 | BH129: 4.4575 | BI129: 2.9775 | BJ129: 5.6175 | BK129: 2.7125
A130: ENSCHIG00000000129 | C130: - | D130: 1.11 | E130: 0.88 | F130: 0.3 | G130: 1.32 | H130: 1.13 | I130: 1.08 | J130: 0.8 | K130: 0.99 | L130: 2.11 | M130: 0.87 | N130: 0.7 | O130: 1.16 | P130: 0.75 | Q130: 1.19 | R130: 0.57 | S130: 0.51 | T130: 0.83 | U130: 0.47 | V130: 0.87 | W130: 0.76 | X130: 0.77 | Y130: 0.35 | Z130: 0.69 | AA130: 0.58 | AB130: 0.8 | AC130: 0.52 | AD130: 0.31 | AE130: 2.2 | AF130: 0.78 | AG130: 0.67 | AH130: 0.68 | AI130: 2.03 | AJ130: 0.63 | AK130: 1.16 | AL130: 1.73 | AM130: 0.78 | AN130: 1.06 | AO130: 1.97 | AP130: 0.95 | AQ130: 1.21 | AR130: 1.12 | AS130: 0.76 | AT130: 0.84 | AU130: 0.95 | AV130: 1.28 | AW130: 0.91 | AX130: 1.26 | AY130: 1.64 | AZ130: 0.9025 | BA130: 1 | BB130: 1.21 | BC130: 0.755 | BD130: 0.7325 | BE130: 0.5975 | BF130: 0.9575 | BG130: 1.04 | BH130: 1.075 | BI130: 1.2975 | BJ130: 0.9175 | BK130: 1.2725
A131: ENSCHIG00000000130 | C131: - | D131: 6.54 | E131: 2.72 | F131: 0.06 | G131: 2.59 | H131: 15.86 | I131: 1.36 | J131: 5.02 | K131: 3.32 | L131: 5.54 | M131: 4.71 | N131: 6.27 | O131: 4.16 | P131: 10.26 | Q131: 14.46 | R131: 1.53 | S131: 7.16 | T131: 1.08 | U131: 1.25 | V131: 6.67 | W131: 13.43 | X131: 7.94 | Y131: 7.02 | Z131: 9.23 | AA131: 13.33 | AB131: 7.95 | AC131: 2.39 | AD131: 1.79 | AE131: 5.63 | AF131: 8.99 | AG131: 4.42 | AH131: 3.72 | AI131: 4.17 | AJ131: 10.36 | AK131: 7.65 | AL131: 4.3 | AM131: 7.94 | AN131: 13.53 | AO131: 13.18 | AP131: 5.52 | AQ131: 9.42 | AR131: 3.67 | AS131: 3.54 | AT131: 10.89 | AU131: 14.11 | AV131: 6.05 | AW131: 9.49 | AX131: 7.21 | AY131: 13.74 | AZ131: 2.9775 | BA131: 6.39 | BB131: 5.17 | BC131: 8.3525 | BD131: 5.6075 | BE131: 9.38 | BF131: 4.44 | BG131: 5.325 | BH131: 7.5625 | BI131: 10.4125 | BJ131: 8.0525 | BK131: 9.1225
A132: ENSCHIG00000000131 | C132: - | D132: 108.95 | E132: 104.57 | F132: 98.13 | G132: 90.67 | H132: 71.93 | I132: 109.47 | J132: 87.24 | K132: 120.32 | L132: 98.43 | M132: 75.75 | N132: 93.94 | O132: 117.93 | P132: 89.73 | Q132: 111.43 | R132: 77.29 | S132: 108.76 | T132: 100.41 | U132: 137.66 | V132: 133.95 | W132: 112.61 | X132: 123 | Y132: 166.88 | Z132: 135.27 | AA132: 117.27 | AB132: 123.06 | AC132: 143.8 | AD132: 136.83 | AE132: 103.55 | AF132: 104.45 | AG132: 126.84 | AH132: 104.58 | AI132: 113.54 | AJ132: 132.64 | AK132: 110.17 | AL132: 140.8 | AM132: 146.02 | AN132: 148.09 | AO132: 118.49 | AP132: 116.15 | AQ132: 135.06 | AR132: 123.76 | AS132: 132.63 | AT132: 115.88 | AU132: 121.51 | AV132: 105.7 | AW132: 122.61 | AX132: 138.48 | AY132: 112.26 | AZ132: 100.58 | BA132: 97.24 | BB132: 96.5125 | BC132: 96.8025 | BD132: 121.1575 | BE132: 135.605 | BF132: 126.81 | BG132: 112.3525 | BH132: 132.4075 | BI132: 129.4475 | BJ132: 123.445 | BK132: 119.7625
A133: ENSCHIG00000000132 | B133: ARHGEF6 | C133: Rac/Cdc42 guanine nucleotide exchange factor 6 [Source:HGNC Symbol;Acc:HGNC:685] | D133: 19.21 | E133: 26.91 | F133: 22.12 | G133: 17.51 | H133: 22.52 | I133: 23.9 | J133: 19.42 | K133: 16.61 | L133: 21.58 | M133: 18.42 | N133: 33.12 | O133: 28.63 | P133: 20.26 | Q133: 17.45 | R133: 24.26 | S133: 21.02 | T133: 17.52 | U133: 24.64 | V133: 17.89 | W133: 15.46 | X133: 17.59 | Y133: 13.41 | Z133: 10.2 | AA133: 19.5 | AB133: 15.45 | AC133: 22.15 | AD133: 17.55 | AE133: 17.61 | AF133: 21.63 | AG133: 20.25 | AH133: 21.17 | AI133: 14.69 | AJ133: 16.22 | AK133: 13.19 | AL133: 24.91 | AM133: 18.1 | AN133: 15.13 | AO133: 19.95 | AP133: 18.2 | AQ133: 12.43 | AR133: 14.93 | AS133: 18.15 | AT133: 23.03 | AU133: 15.72 | AV133: 19.61 | AW133: 10.43 | AX133: 12.82 | AY133: 15.71 | AZ133: 21.4375 | BA133: 20.6125 | BB133: 25.4375 | BC133: 20.7475 | BD133: 18.8775 | BE133: 15.175 | BF133: 18.19 | BG133: 19.435 | BH133: 18.105 | BI133: 16.4275 | BJ133: 17.9575 | BK133: 14.6425
A134: ENSCHIG00000000133 | B134: F10 | C134: coagulation factor X [Source:HGNC Symbol;Acc:HGNC:3528] | D134: 3.53 | E134: 5.41 | F134: 1.09 | G134: 0.48 | H134: 6.34 | I134: 0.68 | J134: 7.84 | K134: 11.77 | L134: 4.45 | M134: 4.63 | N134: 3.2 | O134: 4.29 | P134: 6.3 | Q134: 5.96 | R134: 4.26 | S134: 8.16 | T134: 4.21 | U134: 2.61 | V134: 8.78 | W134: 6.75 | X134: 3.36 | Y134: 3.98 | Z134: 2.47 | AA134: 3.35 | AB134: 10.25 | AC134: 4.9 | AD134: 7.04 | AE134: 3.48 | AF134: 5.74 | AG134: 1.84 | AH134: 15.46 | AI134: 20.59 | AJ134: 12.78 | AK134: 9.73 | AL134: 2.99 | AM134: 6.56 | AN134: 12.2 | AO134: 7.65 | AP134: 7.95 | AQ134: 12.38 | AR134: 12.34 | AS134: 5.91 | AT134: 8.85 | AU134: 11.21 | AV134: 6.04 | AW134: 14.48 | AX134: 3.58 | AY134: 8.93 | AZ134: 2.6275 | BA134: 6.6575 | BB134: 4.1425 | BC134: 6.17 | BD134: 5.5875 | BE134: 3.29 | BF134: 6.4175 | BG134: 10.9075 | BH134: 8.015 | BI134: 10.045 | BJ134: 9.5775 | BK134: 8.2575
A135: ENSCHIG00000000134 | B135: ANXA11 | C135: annexin A11 [Source:HGNC Symbol;Acc:HGNC:535] | D135: 139.55 | E135: 116.66 | F135: 104.96 | G135: 145.98 | H135: 100.37 | I135: 170.19 | J135: 108.96 | K135: 124.66 | L135: 100.53 | M135: 123.71 | N135: 150.07 | O135: 150.27 | P135: 98.12 | Q135: 140.16 | R135: 97.07 | S135: 147.71 | T135: 83.59 | U135: 121.04 | V135: 111.3 | W135: 104.83 | X135: 114.76 | Y135: 107.3 | Z135: 97.92 | AA135: 115.13 | AB135: 116.77 | AC135: 117.6 | AD135: 117.67 | AE135: 132.76 | AF135: 111.25 | AG135: 166.58 | AH135: 92.23 | AI135: 100.24 | AJ135: 99.59 | AK135: 130.27 | AL135: 128.94 | AM135: 157.5 | AN135: 85.24 | AO135: 137.19 | AP135: 96.42 | AQ135: 109.69 | AR135: 113.04 | AS135: 137.11 | AT135: 124.57 | AU135: 141.76 | AV135: 105.89 | AW135: 134.23 | AX135: 110.16 | AY135: 110.7 | AZ135: 126.7875 | BA135: 126.045 | BB135: 131.145 | BC135: 120.765 | BD135: 105.19 | BE135: 108.7775 | BF135: 121.2 | BG135: 117.575 | BH135: 129.075 | BI135: 107.135 | BJ135: 129.12 | BK135: 115.245
A136: ENSCHIG00000000135 | B136: PRF1 | C136: perforin 1 [Source:HGNC Symbol;Acc:HGNC:9360] | D136: 0.11 | E136: 0.05 | F136: 0.05 | G136: 0.5 | H136: 0.42 | I136: 0.09 | J136: 0.04 | K136: 0.14 | L136: 0.15 | M136: 0.21 | N136: 0.25 | O136: 0.33 | P136: 0.15 | Q136: 0 | R136: 0.03 | S136: 0.15 | T136: 0.06 | U136: 0.1 | V136: 0.03 | W136: 0 | X136: 0.13 | Y136: 0.06 | Z136: 0.07 | AA136: 0 | AB136: 0.28 | AC136: 0.08 | AD136: 0.16 | AE136: 0.44 | AF136: 0.15 | AG136: 0.1 | AH136: 0.09 | AI136: 0.22 | AJ136: 0.14 | AK136: 0.28 | AL136: 0.19 | AM136: 0.29 | AN136: 0.02 | AO136: 0.17 | AP136: 0.11 | AQ136: 0.21 | AR136: 0.17 | AS136: 0.12 | AT136: 0.05 | AU136: 0.2 | AV136: 0.07 | AW136: 0.17 | AX136: 0.07 | AY136: 0.11 | AZ136: 0.1775 | BA136: 0.1725 | BB136: 0.235 | BC136: 0.0825 | BD136: 0.0475 | BE136: 0.065 | BF136: 0.24 | BG136: 0.14 | BH136: 0.225 | BI136: 0.1275 | BJ136: 0.135 | BK136: 0.105
A137: ENSCHIG00000000136 | B137: NOL4 | C137: nucleolar protein 4 [Source:HGNC Symbol;Acc:HGNC:7870] | D137: 0.02 | E137: 0 | F137: 0 | G137: 0 | H137: 0.04 | I137: 0 | J137: 0 | K137: 0 | L137: 0.02 | M137: 0 | N137: 0 | O137: 0 | P137: 0 | Q137: 0 | R137: 0.04 | S137: 0 | T137: 0 | U137: 0.02 | V137: 0 | W137: 0 | X137: 0 | Y137: 0 | Z137: 0 | AA137: 0 | AB137: 0 | AC137: 0 | AD137: 0 | AE137: 0 | AF137: 0 | AG137: 0.03 | AH137: 0 | AI137: 0 | AJ137: 0 | AK137: 0 | AL137: 0 | AM137: 0 | AN137: 0 | AO137: 0.05 | AP137: 0.06 | AQ137: 0 | AR137: 0 | AS137: 0 | AT137: 0 | AU137: 0 | AV137: 0.04 | AW137: 0.35 | AX137: 0.31 | AY137: 0 | AZ137: 0.005 | BA137: 0.01 | BB137: 0.005 | BC137: 0.01 | BD137: 0.005 | BE137: 0 | BF137: 0 | BG137: 0.0075 | BH137: 0 | BI137: 0.0275 | BJ137: 0 | BK137: 0.175
A138: ENSCHIG00000000137 | B138: ARHGAP4 | C138: Rho GTPase activating protein 4 [Source:HGNC Symbol;Acc:HGNC:674] | D138: 1.01 | E138: 0.4 | F138: 0.71 | G138: 1.13 | H138: 2.13 | I138: 0.57 | J138: 0.56 | K138: 1.08 | L138: 1.9 | M138: 1.17 | N138: 0.86 | O138: 2 | P138: 0.58 | Q138: 0.73 | R138: 0.68 | S138: 0.84 | T138: 0.41 | U138: 0.96 | V138: 0.42 | W138: 0.26 | X138: 0.83 | Y138: 0.28 | Z138: 0.28 | AA138: 0.51 | AB138: 0.55 | AC138: 0.32 | AD138: 0.8 | AE138: 0.77 | AF138: 0.63 | AG138: 0.41 | AH138: 0.23 | AI138: 0.54 | AJ138: 0.38 | AK138: 0.92 | AL138: 0.94 | AM138: 1.02 | AN138: 0.79 | AO138: 0.48 | AP138: 0.49 | AQ138: 0.61 | AR138: 0.44 | AS138: 1.32 | AT138: 0.69 | AU138: 0.55 | AV138: 0.74 | AW138: 0.34 | AX138: 0.39 | AY138: 0.25 | AZ138: 0.8125 | BA138: 1.085 | BB138: 1.4825 | BC138: 0.7075 | BD138: 0.5125 | BE138: 0.475 | BF138: 0.61 | BG138: 0.4525 | BH138: 0.815 | BI138: 0.5925 | BJ138: 0.75 | BK138: 0.43
A139: ENSCHIG00000000138 | B139: ZNF521 | C139: zinc finger protein 521 [Source:HGNC Symbol;Acc:HGNC:24605] | D139: 2.43 | E139: 1.7 | F139: 2.04 | G139: 3.58 | H139: 3.42 | I139: 2.5 | J139: 1.67 | K139: 1.77 | L139: 3.16 | M139: 3.5 | N139: 2.33 | O139: 2.43 | P139: 1.54 | Q139: 2.21 | R139: 1.22 | S139: 2.48 | T139: 1.52 | U139: 1.71 | V139: 2.14 | W139: 1.43 | X139: 1.51 | Y139: 1.54 | Z139: 1.9 | AA139: 3.02 | AB139: 2.33 | AC139: 1.57 | AD139: 1.83 | AE139: 2.98 | AF139: 1.94 | AG139: 2.81 | AH139: 1.8 | AI139: 1.89 | AJ139: 3.13 | AK139: 2.67 | AL139: 3.34 | AM139: 3.09 | AN139: 2.38 | AO139: 2.75 | AP139: 1.8 | AQ139: 2.9 | AR139: 2.66 | AS139: 2.81 | AT139: 2.9 | AU139: 2.07 | AV139: 2.16 | AW139: 2.98 | AX139: 1.89 | AY139: 3.16 | AZ139: 2.4375 | BA139: 2.34 | BB139: 2.855 | BC139: 1.8625 | BD139: 1.7 | BE139: 1.9925 | BF139: 2.1775 | BG139: 2.11 | BH139: 3.0575 | BI139: 2.4575 | BJ139: 2.61 | BK139: 2.5475
A140: ENSCHIG00000000139 | B140: SRGN | C140: serglycin [Source:HGNC Symbol;Acc:HGNC:9361] | D140: 8.55 | E140: 5.37 | F140: 11.59 | G140: 16.8 | H140: 24.64 | I140: 18.55 | J140: 6.18 | K140: 12.04 | L140: 23.13 | M140: 72.5 | N140: 21.01 | O140: 21.5 | P140: 9.63 | Q140: 10.15 | R140: 16 | S140: 11.56 | T140: 6.4 | U140: 19.29 | V140: 8.54 | W140: 10.29 | X140: 4.54 | Y140: 9.45 | Z140: 6.94 | AA140: 8.89 | AB140: 7.34 | AC140: 4.28 | AD140: 10.34 | AE140: 7.36 | AF140: 9.23 | AG140: 7.06 | AH140: 4.75 | AI140: 6 | AJ140: 10.33 | AK140: 7.35 | AL140: 13.53 | AM140: 4.05 | AN140: 4.89 | AO140: 5.49 | AP140: 3.21 | AQ140: 4.65 | AR140: 4.37 | AS140: 12.89 | AT140: 10.05 | AU140: 4.63 | AV140: 4.23 | AW140: 4.74 | AX140: 4.16 | AY140: 3.57 | AZ140: 10.5775 | BA140: 15.3525 | BB140: 34.535 | BC140: 11.835 | BD140: 11.13 | BE140: 7.455 | BF140: 7.33 | BG140: 6.76 | BH140: 8.815 | BI140: 4.56 | BJ140: 7.985 | BK140: 4.175
A141: ENSCHIG00000000140 | B141: NDUFA1 | C141: NADH:ubiquinone oxidoreductase subunit A1 [Source:HGNC Symbol;Acc:HGNC:7683] | D141: 258.87 | E141: 499.7 | F141: 391.65 | G141: 329.47 | H141: 448.07 | I141: 342.44 | J141: 633.51 | K141: 368.19 | L141: 360.7 | M141: 458.03 | N141: 400.31 | O141: 344.51 | P141: 386.19 | Q141: 319.22 | R141: 534.59 | S141: 476.51 | T141: 318.75 | U141: 313.19 | V141: 407.9 | W141: 366.1 | X141: 208.94 | Y141: 344.41 | Z141: 181.75 | AA141: 185.3 | AB141: 162.34 | AC141: 238.95 | AD141: 228.35 | AE141: 298.46 | AF141: 445.48 | AG141: 267.49 | AH141: 372.05 | AI141: 315.74 | AJ141: 222.26 | AK141: 228.47 | AL141: 267.38 | AM141: 225.42 | AN141: 142.62 | AO141: 272.4 | AP141: 399.23 | AQ141: 392.74 | AR141: 265.01 | AS141: 387.05 | AT141: 422.4 | AU141: 303.54 | AV141: 280.28 | AW141: 231.22 | AX141: 147.99 | AY141: 207.08 | AZ141: 369.9225 | BA141: 448.0525 | BB141: 390.8875 | BC141: 429.1275 | BD141: 351.485 | BE141: 230.1 | BF141: 232.025 | BG141: 350.19 | BH141: 235.8825 | BI141: 301.7475 | BJ141: 344.5 | BK141: 216.6425
A142: ENSCHIG00000000141 | B142: GHITM | C142: growth hormone inducible transmembrane protein [Source:NCBI gene (formerly Entrezgene);Acc:100860799] | D142: 108.8 | E142: 124.49 | F142: 142.93 | G142: 122.65 | H142: 119.98 | I142: 150.19 | J142: 117.14 | K142: 107.36 | L142: 125.6 | M142: 139.37 | N142: 122.61 | O142: 137.58 | P142: 92.23 | Q142: 95.8 | R142: 117.19 | S142: 158.32 | T142: 118.49 | U142: 156.1 | V142: 123.38 | W142: 113.75 | X142: 94.29 | Y142: 117.47 | Z142: 90.08 | AA142: 92.85 | AB142: 77.18 | AC142: 106.47 | AD142: 123.97 | AE142: 116.72 | AF142: 129.95 | AG142: 155.11 | AH142: 108.84 | AI142: 97.89 | AJ142: 106.5 | AK142: 94.03 | AL142: 101.57 | AM142: 114.87 | AN142: 65.97 | AO142: 109.85 | AP142: 107.35 | AQ142: 119.65 | AR142: 112.09 | AS142: 127.72 | AT142: 131.94 | AU142: 107.41 | AV142: 93.29 | AW142: 122.16 | AX142: 91.86 | AY142: 82.48 | AZ142: 124.7175 | BA142: 123.6675 | BB142: 131.29 | BC142: 115.885 | BD142: 127.93 | BE142: 98.6725 | BF142: 106.085 | BG142: 122.9475 | BH142: 104.2425 | BI142: 100.705 | BJ142: 119.79 | BK142: 97.4475
A143: ENSCHIG00000000142 | C143: - | D143: 14.7 | E143: 8.19 | F143: 12.39 | G143: 9.01 | H143: 8.48 | I143: 24.6 | J143: 8.53 | K143: 9.29 | L143: 13.89 | M143: 10.9 | N143: 21.57 | O143: 39.67 | P143: 12.45 | Q143: 8.95 | R143: 10.28 | S143: 10.22 | T143: 9.64 | U143: 15.42 | V143: 9.37 | W143: 5.67 | X143: 12.64 | Y143: 5.74 | Z143: 14.01 | AA143: 11.98 | AB143: 11.72 | AC143: 9.02 | AD143: 10.66 | AE143: 8.47 | AF143: 4.12 | AG143: 12.36 | AH143: 5.46 | AI143: 8.44 | AJ143: 8.94 | AK143: 7.54 | AL143: 15.37 | AM143: 16.53 | AN143: 9.87 | AO143: 9.59 | AP143: 8.88 | AQ143: 6.42 | AR143: 8.82 | AS143: 8.25 | AT143: 11.43 | AU143: 5.5 | AV143: 14.42 | AW143: 5.77 | AX143: 16.93 | AY143: 7.69 | AZ143: 11.0725 | BA143: 12.725 | BB143: 21.5075 | BC143: 10.475 | BD143: 10.025 | BE143: 11.0925 | BF143: 9.9675 | BG143: 7.595 | BH143: 12.095 | BI143: 8.69 | BJ143: 8.5 | BK143: 11.2025
A144: ENSCHIG00000000143 | B144: YES1 | C144: YES proto-oncogene 1, Src family tyrosine kinase [Source:HGNC Symbol;Acc:HGNC:12841] | D144: 1.15 | E144: 0.68 | F144: 2.32 | G144: 1.13 | H144: 2.28 | I144: 4.46 | J144: 1.75 | K144: 1.05 | L144: 2.41 | M144: 3.01 | N144: 4.41 | O144: 3.34 | P144: 1.29 | Q144: 0.81 | R144: 1.79 | S144: 0.92 | T144: 0.89 | U144: 2.54 | V144: 1.37 | W144: 0.5 | X144: 0.37 | Y144: 1.01 | Z144: 0.35 | AA144: 0.74 | AB144: 0.69 | AC144: 0.62 | AD144: 1.07 | AE144: 0.55 | AF144: 1.41 | AG144: 2.83 | AH144: 1.14 | AI144: 0.54 | AJ144: 0.95 | AK144: 0.47 | AL144: 2.42 | AM144: 1.18 | AN144: 0.81 | AO144: 0.87 | AP144: 0.69 | AQ144: 0.66 | AR144: 0.36 | AS144: 0.51 | AT144: 0.96 | AU144: 0.36 | AV144: 0.82 | AW144: 0.57 | AX144: 0.27 | AY144: 0.31 | AZ144: 1.32 | BA144: 2.385 | BB144: 3.2925 | BC144: 1.2025 | BD144: 1.325 | BE144: 0.6175 | BF144: 0.7325 | BG144: 1.48 | BH144: 1.255 | BI144: 0.7575 | BJ144: 0.5475 | BK144: 0.4925
A145: ENSCHIG00000000144 | B145: DIPK1C | C145: divergent protein kinase domain 1C [Source:HGNC Symbol;Acc:HGNC:31729] | D145: 0.22 | E145: 0.54 | F145: 0.65 | G145: 0.47 | H145: 0.44 | I145: 0.76 | J145: 0.74 | K145: 0.23 | L145: 0.85 | M145: 0.31 | N145: 0.6 | O145: 0.52 | P145: 0.08 | Q145: 0.23 | R145: 0.27 | S145: 0.48 | T145: 0.38 | U145: 0.36 | V145: 0.29 | W145: 0.7 | X145: 0.33 | Y145: 0.15 | Z145: 0.44 | AA145: 0.25 | AB145: 0.05 | AC145: 0.33 | AD145: 0.07 | AE145: 0.49 | AF145: 0.49 | AG145: 0.57 | AH145: 0.13 | AI145: 0.27 | AJ145: 0.1 | AK145: 0.29 | AL145: 0.43 | AM145: 0.27 | AN145: 0.13 | AO145: 0.57 | AP145: 0.18 | AQ145: 0.69 | AR145: 0.35 | AS145: 0.33 | AT145: 0.66 | AU145: 0.43 | AV145: 0.29 | AW145: 0.31 | AX145: 0.22 | AY145: 0.32 | AZ145: 0.47 | BA145: 0.5425 | BB145: 0.57 | BC145: 0.265 | BD145: 0.4325 | BE145: 0.2925 | BF145: 0.235 | BG145: 0.365 | BH145: 0.2725 | BI145: 0.3925 | BJ145: 0.4425 | BK145: 0.285
A146: ENSCHIG00000000145 | B146: SALL3 | C146: spalt like transcription factor 3 [Source:HGNC Symbol;Acc:HGNC:10527] | D146: 0 | E146: 0 | F146: 0 | G146: 0 | H146: 0 | I146: 0 | J146: 0 | K146: 0 | L146: 0 | M146: 0.02 | N146: 0 | O146: 0.02 | P146: 0 | Q146: 0 | R146: 0.01 | S146: 0 | T146: 0 | U146: 0 | V146: 0.02 | W146: 0 | X146: 0 | Y146: 0 | Z146: 0 | AA146: 0.01 | AB146: 0 | AC146: 0 | AD146: 0.01 | AE146: 0 | AF146: 0 | AG146: 0 | AH146: 0 | AI146: 0 | AJ146: 0 | AK146: 0 | AL146: 0.02 | AM146: 0 | AN146: 0 | AO146: 0 | AP146: 0 | AQ146: 0 | AR146: 0 | AS146: 0 | AT146: 0 | AU146: 0 | AV146: 0 | AW146: 0 | AX146: 0 | AY146: 0 | AZ146: 0 | BA146: 0 | BB146: 0.01 | BC146: 0.0025 | BD146: 0.005 | BE146: 0.0025 | BF146: 0.0025 | BG146: 0 | BH146: 0.005 | BI146: 0 | BJ146: 0 | BK146: 0
A147: ENSCHIG00000000146 | B147: RAB31 | C147: RAB31, member RAS oncogene family [Source:HGNC Symbol;Acc:HGNC:9771] | D147: 7.47 | E147: 5.02 | F147: 10.04 | G147: 8.52 | H147: 14.24 | I147: 11.79 | J147: 8.18 | K147: 9.15 | L147: 14.27 | M147: 9.8 | N147: 14.54 | O147: 11.29 | P147: 6.05 | Q147: 6.75 | R147: 6.57 | S147: 9.63 | T147: 4.34 | U147: 13.55 | V147: 4.2 | W147: 5.33 | X147: 6.56 | Y147: 4.68 | Z147: 3.95 | AA147: 6.03 | AB147: 3.71 | AC147: 3.77 | AD147: 5.24 | AE147: 5.41 | AF147: 5.23 | AG147: 7.28 | AH147: 6.4 | AI147: 6.41 | AJ147: 7.16 | AK147: 5 | AL147: 9.48 | AM147: 13.72 | AN147: 4.76 | AO147: 4.15 | AP147: 3.79 | AQ147: 5.68 | AR147: 3.87 | AS147: 12.13 | AT147: 5.68 | AU147: 7.18 | AV147: 4.44 | AW147: 8.36 | AX147: 4.21 | AY147: 5.31 | AZ147: 7.7625 | BA147: 10.84 | BB147: 12.475 | BC147: 7.25 | BD147: 6.855 | BE147: 5.305 | BF147: 4.5325 | BG147: 6.33 | BH147: 8.84 | BI147: 4.595 | BJ147: 7.215 | BK147: 5.58
A148: ENSCHIG00000000147 | B148: PLAT | C148: plasminogen activator, tissue type [Source:HGNC Symbol;Acc:HGNC:9051] | D148: 5.18 | E148: 2.75 | F148: 3.27 | G148: 9.43 | H148: 7.23 | I148: 10.35 | J148: 4.96 | K148: 4.89 | L148: 6.44 | M148: 9.14 | N148: 5.33 | O148: 7.96 | P148: 4.85 | Q148: 9.26 | R148: 7.37 | S148: 5.68 | T148: 2.8 | U148: 4.92 | V148: 3.17 | W148: 3.9 | X148: 2.22 | Y148: 1.83 | Z148: 1.72 | AA148: 4.11 | AB148: 4.76 | AC148: 1.87 | AD148: 1.45 | AE148: 3.98 | AF148: 3.46 | AG148: 6.63 | AH148: 3.57 | AI148: 4.74 | AJ148: 3.56 | AK148: 3.19 | AL148: 9.89 | AM148: 5.25 | AN148: 5.5 | AO148: 3.37 | AP148: 2.95 | AQ148: 4.85 | AR148: 2.96 | AS148: 5.67 | AT148: 5.37 | AU148: 5.6 | AV148: 3.16 | AW148: 2.6 | AX148: 1.92 | AY148: 3.95 | AZ148: 5.1575 | BA148: 6.8575 | BB148: 7.2175 | BC148: 6.79 | BD148: 3.6975 | BE148: 2.47 | BF148: 3.015 | BG148: 4.6 | BH148: 5.4725 | BI148: 4.1675 | BJ148: 4.9 | BK148: 2.9075
A149: ENSCHIG00000000148 | C149: - | D149: 0 | E149: 0 | F149: 0 | G149: 0 | H149: 0 | I149: 0 | J149: 0 | K149: 0 | L149: 0 | M149: 0 | N149: 0 | O149: 0 | P149: 0 | Q149: 0 | R149: 0 | S149: 0 | T149: 0 | U149: 0 | V149: 0 | W149: 0 | X149: 0 | Y149: 0 | Z149: 0 | AA149: 0 | AB149: 0 | AC149: 0 | AD149: 0 | AE149: 0 | AF149: 0 | AG149: 0 | AH149: 0 | AI149: 0 | AJ149: 0 | AK149: 0 | AL149: 0 | AM149: 0 | AN149: 0 | AO149: 0 | AP149: 0 | AQ149: 0 | AR149: 0 | AS149: 0 | AT149: 0 | AU149: 0 | AV149: 0 | AW149: 0.1 | AX149: 0.19 | AY149: 0 | AZ149: 0 | BA149: 0 | BB149: 0 | BC149: 0 | BD149: 0 | BE149: 0 | BF149: 0 | BG149: 0 | BH149: 0 | BI149: 0 | BJ149: 0 | BK149: 0.0725
A150: ENSCHIG00000000149 | C150: - | D150: 0 | E150: 0 | F150: 0 | G150: 0 | H150: 0 | I150: 0 | J150: 0 | K150: 0 | L150: 0 | M150: 0 | N150: 0 | O150: 0 | P150: 0 | Q150: 0 | R150: 0 | S150: 0 | T150: 0 | U150: 0 | V150: 0 | W150: 0 | X150: 0 | Y150: 0 | Z150: 0 | AA150: 0 | AB150: 0 | AC150: 0 | AD150: 0 | AE150: 0 | AF150: 0 | AG150: 0 | AH150: 0 | AI150: 0.13 | AJ150: 0 | AK150: 0 | AL150: 0 | AM150: 0 | AN150: 0 | AO150: 0 | AP150: 0 | AQ150: 0 | AR150: 0 | AS150: 0 | AT150: 0 | AU150: 0 | AV150: 0 | AW150: 0 | AX150: 0 | AY150: 0 | AZ150: 0 | BA150: 0 | BB150: 0 | BC150: 0 | BD150: 0 | BE150: 0 | BF150: 0 | BG150: 0.0325 | BH150: 0 | BI150: 0 | BJ150: 0 | BK150: 0
A151: ENSCHIG00000000150 | C151: - | D151: 0 | E151: 0 | F151: 0 | G151: 0 | H151: 0 | I151: 0 | J151: 0 | K151: 0 | L151: 0 | M151: 0 | N151: 0 | O151: 0 | P151: 0 | Q151: 0 | R151: 0 | S151: 0 | T151: 0 | U151: 0 | V151: 0 | W151: 0 | X151: 0 | Y151: 0 | Z151: 0 | AA151: 0 | AB151: 0 | AC151: 0 | AD151: 0 | AE151: 0 | AF151: 0 | AG151: 0 | AH151: 0 | AI151: 0 | AJ151: 0 | AK151: 0 | AL151: 0 | AM151: 0 | AN151: 0 | AO151: 0 | AP151: 0 | AQ151: 0 | AR151: 0 | AS151: 0.23 | AT151: 0 | AU151: 0 | AV151: 0 | AW151: 0 | AX151: 0 | AY151: 0 | AZ151: 0 | BA151: 0 | BB151: 0 | BC151: 0 | BD151: 0 | BE151: 0 | BF151: 0 | BG151: 0 | BH151: 0 | BI151: 0 | BJ151: 0.0575 | BK151: 0
A152: ENSCHIG00000000151 | B152: CRELD2 | C152: cysteine rich with EGF like domains 2 [Source:HGNC Symbol;Acc:HGNC:28150] | D152: 3.39 | E152: 1.47 | F152: 4.58 | G152: 3.66 | H152: 5.88 | I152: 3.37 | J152: 4.02 | K152: 3.42 | L152: 5.98 | M152: 5.49 | N152: 5.19 | O152: 4.24 | P152: 3.65 | Q152: 2.46 | R152: 3 | S152: 2.13 | T152: 1.76 | U152: 5.37 | V152: 2.1 | W152: 1.9 | X152: 3.07 | Y152: 1.9 | Z152: 1.35 | AA152: 1.96 | AB152: 1.98 | AC152: 1.81 | AD152: 3.49 | AE152: 7.04 | AF152: 5.1 | AG152: 2.5 | AH152: 2.2 | AI152: 2.11 | AJ152: 3.28 | AK152: 3.18 | AL152: 3.24 | AM152: 4.26 | AN152: 4.7 | AO152: 3.04 | AP152: 6.54 | AQ152: 1.04 | AR152: 3.58 | AS152: 4.84 | AT152: 3.29 | AU152: 2.45 | AV152: 2.73 | AW152: 3.54 | AX152: 5.68 | AY152: 1.53 | AZ152: 3.275 | BA152: 4.1725 | BB152: 5.225 | BC152: 2.81 | BD152: 2.7825 | BE152: 2.07 | BF152: 3.58 | BG152: 2.9775 | BH152: 3.49 | BI152: 3.83 | BJ152: 3.54 | BK152: 3.37
A153: ENSCHIG00000000152 | B153: MAPK1 | C153: mitogen-activated protein kinase 1 [Source:NCBI gene (formerly Entrezgene);Acc:102186040] | D153: 69.23 | E153: 41.99 | F153: 41.35 | G153: 72.63 | H153: 43.72 | I153: 77.39 | J153: 40.65 | K153: 61.05 | L153: 64.12 | M153: 51.51 | N153: 42.86 | O153: 86.85 | P153: 49.73 | Q153: 42.68 | R153: 42.56 | S153: 39.15 | T153: 32.61 | U153: 72.31 | V153: 39.07 | W153: 38.41 | X153: 38.24 | Y153: 53.16 | Z153: 45.86 | AA153: 38.56 | AB153: 51.55 | AC153: 42.22 | AD153: 45.07 | AE153: 44.55 | AF153: 31.94 | AG153: 50.13 | AH153: 41.75 | AI153: 49.71 | AJ153: 42.39 | AK153: 44.07 | AL153: 46.5 | AM153: 54.23 | AN153: 60.24 | AO153: 44.5 | AP153: 44.6 | AQ153: 36.73 | AR153: 43.14 | AS153: 48.15 | AT153: 28.09 | AU153: 41.58 | AV153: 38.74 | AW153: 51.94 | AX153: 48.37 | AY153: 43.97 | AZ153: 56.3 | BA153: 55.7025 | BB153: 61.335 | BC153: 43.53 | BD153: 45.6 | BE153: 43.955 | BF153: 45.8475 | BG153: 43.3825 | BH153: 46.7975 | BI153: 46.5175 | BJ153: 40.24 | BK153: 45.755
A154: ENSCHIG00000000153 | C154: - | D154: 0.34 | E154: 0 | F154: 0 | G154: 0.09 | H154: 0.54 | I154: 0.33 | J154: 0.4 | K154: 0 | L154: 0.15 | M154: 0 | N154: 0.18 | O154: 0 | P154: 0 | Q154: 0 | R154: 0 | S154: 0.27 | T154: 0.15 | U154: 0 | V154: 0.18 | W154: 0 | X154: 0 | Y154: 0 | Z154: 0 | AA154: 0 | AB154: 0 | AC154: 0 | AD154: 0 | AE154: 0 | AF154: 0 | AG154: 0 | AH154: 0 | AI154: 0 | AJ154: 0 | AK154: 0 | AL154: 0.66 | AM154: 0.32 | AN154: 0 | AO154: 0 | AP154: 0.2 | AQ154: 0 | AR154: 0 | AS154: 0 | AT154: 0.24 | AU154: 0 | AV154: 0 | AW154: 0 | AX154: 0 | AY154: 0 | AZ154: 0.1075 | BA154: 0.3175 | BB154: 0.0825 | BC154: 0.0675 | BD154: 0.0825 | BE154: 0 | BF154: 0 | BG154: 0 | BH154: 0.245 | BI154: 0.05 | BJ154: 0.06 | BK154: 0
A155: ENSCHIG00000000154 | C155: - | D155: 0 | E155: 0 | F155: 0 | G155: 0 | H155: 0 | I155: 0 | J155: 0 | K155: 0.15 | L155: 0 | M155: 0 | N155: 0 | O155: 0 | P155: 0 | Q155: 0 | R155: 0 | S155: 0 | T155: 0 | U155: 0 | V155: 0 | W155: 0 | X155: 0 | Y155: 0 | Z155: 0.15 | AA155: 0 | AB155: 0 | AC155: 0 | AD155: 0 | AE155: 0 | AF155: 0 | AG155: 0 | AH155: 0 | AI155: 0 | AJ155: 0 | AK155: 0 | AL155: 0 | AM155: 0 | AN155: 0 | AO155: 0 | AP155: 0 | AQ155: 0 | AR155: 0 | AS155: 0 | AT155: 0 | AU155: 0 | AV155: 0 | AW155: 0 | AX155: 0 | AY155: 0 | AZ155: 0 | BA155: 0.0375 | BB155: 0 | BC155: 0 | BD155: 0 | BE155: 0.0375 | BF155: 0 | BG155: 0 | BH155: 0 | BI155: 0 | BJ155: 0 | BK155: 0
A156: ENSCHIG00000000155 | B156: MAMDC4 | C156: MAM domain containing 4 [Source:HGNC Symbol;Acc:HGNC:24083] | D156: 13.03 | E156: 9.01 | F156: 10.4 | G156: 6.59 | H156: 8.21 | I156: 10.28 | J156: 10.31 | K156: 10.24 | L156: 12.22 | M156: 9.86 | N156: 9.71 | O156: 11.9 | P156: 9.04 | Q156: 13.62 | R156: 7.82 | S156: 9.44 | T156: 10.53 | U156: 12.6 | V156: 10.99 | W156: 11.55 | X156: 8.45 | Y156: 7.89 | Z156: 6.12 | AA156: 7.1 | AB156: 6.41 | AC156: 10.02 | AD156: 11.7 | AE156: 6.72 | AF156: 7.92 | AG156: 9.19 | AH156: 9.61 | AI156: 9.37 | AJ156: 7.74 | AK156: 7.11 | AL156: 7.78 | AM156: 8.02 | AN156: 8.71 | AO156: 6.76 | AP156: 8.11 | AQ156: 10.54 | AR156: 10.92 | AS156: 10.69 | AT156: 8.06 | AU156: 10.42 | AV156: 7.49 | AW156: 7.83 | AX156: 6.66 | AY156: 6.11 | AZ156: 9.7575 | BA156: 9.76 | BB156: 10.9225 | BC156: 9.98 | BD156: 11.4175 | BE156: 7.39 | BF156: 8.7125 | BG156: 9.0225 | BH156: 7.6625 | BI156: 8.53 | BJ156: 10.0225 | BK156: 7.0225
A157: ENSCHIG00000000156 | C157: - | D157: 0 | E157: 0 | F157: 0 | G157: 0 | H157: 0 | I157: 0 | J157: 0 | K157: 0 | L157: 0 | M157: 0 | N157: 0 | O157: 0 | P157: 0 | Q157: 0 | R157: 0 | S157: 0 | T157: 0 | U157: 0 | V157: 0 | W157: 0 | X157: 0 | Y157: 0 | Z157: 0 | AA157: 0 | AB157: 0 | AC157: 0 | AD157: 0 | AE157: 0 | AF157: 0 | AG157: 0 | AH157: 0 | AI157: 0 | AJ157: 0 | AK157: 0 | AL157: 0 | AM157: 0 | AN157: 0 | AO157: 0 | AP157: 0 | AQ157: 0 | AR157: 0 | AS157: 0 | AT157: 0 | AU157: 0 | AV157: 0 | AW157: 0 | AX157: 0 | AY157: 0 | AZ157: 0 | BA157: 0 | BB157: 0 | BC157: 0 | BD157: 0 | BE157: 0 | BF157: 0 | BG157: 0 | BH157: 0 | BI157: 0 | BJ157: 0 | BK157: 0
A158: ENSCHIG00000000157 | C158: - | D158: 0 | E158: 0 | F158: 0 | G158: 0 | H158: 0 | I158: 0 | J158: 0 | K158: 0 | L158: 0 | M158: 0 | N158: 0 | O158: 0 | P158: 0 | Q158: 0 | R158: 0 | S158: 0 | T158: 0 | U158: 0 | V158: 0 | W158: 0 | X158: 0 | Y158: 0 | Z158: 0 | AA158: 0 | AB158: 0 | AC158: 0 | AD158: 0 | AE158: 0 | AF158: 0 | AG158: 0 | AH158: 0 | AI158: 0 | AJ158: 0 | AK158: 0 | AL158: 0 | AM158: 0 | AN158: 0 | AO158: 0 | AP158: 0 | AQ158: 0 | AR158: 0 | AS158: 0 | AT158: 0 | AU158: 0 | AV158: 0 | AW158: 1.08 | AX158: 0 | AY158: 0 | AZ158: 0 | BA158: 0 | BB158: 0 | BC158: 0 | BD158: 0 | BE158: 0 | BF158: 0 | BG158: 0 | BH158: 0 | BI158: 0 | BJ158: 0 | BK158: 0.27
A159: ENSCHIG00000000158 | B159: RAB39B | C159: RAB39B, member RAS oncogene family [Source:HGNC Symbol;Acc:HGNC:16499] | D159: 0 | E159: 0.05 | F159: 0.05 | G159: 0.05 | H159: 0 | I159: 0 | J159: 0 | K159: 0.02 | L159: 0.02 | M159: 0.02 | N159: 0.16 | O159: 0 | P159: 0.02 | Q159: 0.04 | R159: 0.08 | S159: 0 | T159: 0 | U159: 0.03 | V159: 0 | W159: 0 | X159: 0 | Y159: 0.02 | Z159: 0 | AA159: 0.02 | AB159: 0 | AC159: 0.02 | AD159: 0.02 | AE159: 0 | AF159: 0.05 | AG159: 0 | AH159: 0 | AI159: 0 | AJ159: 0 | AK159: 0 | AL159: 0.1 | AM159: 0 | AN159: 0 | AO159: 0 | AP159: 0.04 | AQ159: 0.02 | AR159: 0 | AS159: 0 | AT159: 0 | AU159: 0 | AV159: 0.05 | AW159: 0.02 | AX159: 0 | AY159: 0 | AZ159: 0.0375 | BA159: 0.005 | BB159: 0.05 | BC159: 0.035 | BD159: 0.0075 | BE159: 0.01 | BF159: 0.01 | BG159: 0.0125 | BH159: 0.025 | BI159: 0.015 | BJ159: 0 | BK159: 0.0175
A160: ENSCHIG00000000159 | C160: - | D160: 0.31 | E160: 0 | F160: 0 | G160: 0 | H160: 0.32 | I160: 0.18 | J160: 2.07 | K160: 0 | L160: 0.14 | M160: 0 | N160: 0 | O160: 0.54 | P160: 0 | Q160: 0 | R160: 0.34 | S160: 0.33 | T160: 0 | U160: 0 | V160: 0 | W160: 0.3 | X160: 0 | Y160: 0 | Z160: 0 | AA160: 0.29 | AB160: 0.12 | AC160: 0 | AD160: 0 | AE160: 0 | AF160: 0.16 | AG160: 0.17 | AH160: 0.15 | AI160: 0.15 | AJ160: 0 | AK160: 0 | AL160: 0 | AM160: 0 | AN160: 0 | AO160: 0.27 | AP160: 0 | AQ160: 0 | AR160: 0.27 | AS160: 0.31 | AT160: 0.15 | AU160: 0 | AV160: 0 | AW160: 0.61 | AX160: 0.15 | AY160: 0.14 | AZ160: 0.0775 | BA160: 0.6425 | BB160: 0.17 | BC160: 0.1675 | BD160: 0.075 | BE160: 0.0725 | BF160: 0.03 | BG160: 0.1575 | BH160: 0 | BI160: 0.0675 | BJ160: 0.1825 | BK160: 0.225
A161: ENSCHIG00000000160 | C161: - | D161: 38.47 | E161: 46.34 | F161: 37.25 | G161: 41.8 | H161: 36.86 | I161: 35.5 | J161: 37.2 | K161: 55.29 | L161: 38.89 | M161: 29.17 | N161: 40.59 | O161: 40.07 | P161: 31.86 | Q161: 40.25 | R161: 19.1 | S161: 56.01 | T161: 38.06 | U161: 32.11 | V161: 58.36 | W161: 50.52 | X161: 44.79 | Y161: 59.66 | Z161: 46.26 | AA161: 48.77 | AB161: 41.58 | AC161: 49.78 | AD161: 64.59 | AE161: 47.68 | AF161: 44.92 | AG161: 48.87 | AH161: 41.45 | AI161: 61.81 | AJ161: 42.86 | AK161: 51.13 | AL161: 53.31 | AM161: 56.2 | AN161: 41.91 | AO161: 43.97 | AP161: 35.37 | AQ161: 66.17 | AR161: 56.47 | AS161: 62.81 | AT161: 63.45 | AU161: 63.49 | AV161: 45.41 | AW161: 65.82 | AX161: 61.86 | AY161: 52.46 | AZ161: 40.965 | BA161: 41.2125 | BB161: 37.18 | BC161: 36.805 | BD161: 44.7625 | BE161: 49.87 | BF161: 50.9075 | BG161: 49.2625 | BH161: 50.875 | BI161: 46.855 | BJ161: 61.555 | BK161: 56.3875
A162: ENSCHIG00000000161 | C162: - | D162: 0 | E162: 0 | F162: 0 | G162: 0 | H162: 0 | I162: 0 | J162: 0 | K162: 0 | L162: 0 | M162: 0 | N162: 0 | O162: 0 | P162: 0 | Q162: 0 | R162: 0 | S162: 0 | T162: 0 | U162: 0 | V162: 0 | W162: 0 | X162: 0 | Y162: 0 | Z162: 0 | AA162: 0 | AB162: 0 | AC162: 0 | AD162: 0 | AE162: 0 | AF162: 0 | AG162: 0 | AH162: 0 | AI162: 0 | AJ162: 0 | AK162: 0 | AL162: 0 | AM162: 0 | AN162: 0 | AO162: 0 | AP162: 0 | AQ162: 0 | AR162: 0 | AS162: 0 | AT162: 0 | AU162: 0 | AV162: 0 | AW162: 0 | AX162: 0 | AY162: 0 | AZ162: 0 | BA162: 0 | BB162: 0 | BC162: 0 | BD162: 0 | BE162: 0 | BF162: 0 | BG162: 0 | BH162: 0 | BI162: 0 | BJ162: 0 | BK162: 0
A163: ENSCHIG00000000162 | C163: - | D163: 208.43 | E163: 301.31 | F163: 295.6 | G163: 236.09 | H163: 430.93 | I163: 213.13 | J163: 418.27 | K163: 276.2 | L163: 323.7 | M163: 233.54 | N163: 346.95 | O163: 218.68 | P163: 377.4 | Q163: 161.12 | R163: 418.19 | S163: 374.72 | T163: 375.12 | U163: 277.43 | V163: 515.06 | W163: 540.47 | X163: 370.61 | Y163: 516.74 | Z163: 467.4 | AA163: 440.5 | AB163: 184.19 | AC163: 313.72 | AD163: 209.91 | AE163: 244.9 | AF163: 278.91 | AG163: 201.54 | AH163: 329.05 | AI163: 220.46 | AJ163: 543.83 | AK163: 270.61 | AL163: 304.57 | AM163: 286.31 | AN163: 299.14 | AO163: 273.54 | AP163: 277.58 | AQ163: 241.34 | AR163: 285.18 | AS163: 341.97 | AT163: 475.42 | AU163: 321.26 | AV163: 287.44 | AW163: 428.16 | AX163: 272.4 | AY163: 337.67 | AZ163: 260.3575 | BA163: 334.6325 | BB163: 280.7175 | BC163: 332.8575 | BD163: 427.02 | BE163: 448.8125 | BF163: 238.18 | BG163: 257.49 | BH163: 351.33 | BI163: 272.9 | BJ163: 355.9575 | BK163: 331.4175
A164: ENSCHIG00000000163 | B164: UBE2A | C164: ubiquitin conjugating enzyme E2 A [Source:HGNC Symbol;Acc:HGNC:12472] | D164: 52.98 | E164: 57.35 | F164: 50.73 | G164: 71.63 | H164: 61.82 | I164: 75.36 | J164: 57.79 | K164: 65.36 | L164: 59.3 | M164: 62.69 | N164: 67.75 | O164: 72.9 | P164: 60.89 | Q164: 72.77 | R164: 56.73 | S164: 60.29 | T164: 44.75 | U164: 61.48 | V164: 46.54 | W164: 54.06 | X164: 50.33 | Y164: 61.89 | Z164: 47.09 | AA164: 67.22 | AB164: 49.2 | AC164: 62.59 | AD164: 68.87 | AE164: 55.02 | AF164: 65.24 | AG164: 55.69 | AH164: 57.86 | AI164: 53.87 | AJ164: 48.71 | AK164: 58.8 | AL164: 74.87 | AM164: 68.76 | AN164: 62.97 | AO164: 68.48 | AP164: 63.02 | AQ164: 54.11 | AR164: 53.17 | AS164: 64.66 | AT164: 66.39 | AU164: 71.77 | AV164: 48.19 | AW164: 61.37 | AX164: 60.86 | AY164: 57.84 | AZ164: 58.1725 | BA164: 65.0825 | BB164: 65.66 | BC164: 62.67 | BD164: 51.7075 | BE164: 56.6325 | BF164: 58.92 | BG164: 58.165 | BH164: 62.785 | BI164: 62.145 | BJ164: 63.9975 | BK164: 57.065
A165: ENSCHIG00000000164 | B165: TNMD | C165: tenomodulin [Source:HGNC Symbol;Acc:HGNC:17757] | D165: 0.1 | E165: 5.47 | F165: 1.51 | G165: 17.15 | H165: 1.19 | I165: 0.72 | J165: 6.46 | K165: 0.62 | L165: 0.31 | M165: 20.91 | N165: 0.94 | O165: 0.37 | P165: 0.61 | Q165: 0.07 | R165: 0.3 | S165: 0.49 | T165: 1.55 | U165: 0.64 | V165: 0.17 | W165: 0.11 | X165: 0.11 | Y165: 0.14 | Z165: 0.24 | AA165: 1.27 | AB165: 0.96 | AC165: 1.77 | AD165: 1.62 | AE165: 17.65 | AF165: 12.25 | AG165: 1.27 | AH165: 0 | AI165: 5.19 | AJ165: 0.02 | AK165: 5.95 | AL165: 8.3 | AM165: 0.07 | AN165: 0.96 | AO165: 1.68 | AP165: 4.34 | AQ165: 4.6 | AR165: 1.63 | AS165: 2.66 | AT165: 2.02 | AU165: 0.08 | AV165: 5.35 | AW165: 2.03 | AX165: 0.35 | AY165: 1.49 | AZ165: 6.0575 | BA165: 2.2475 | BB165: 5.6325 | BC165: 0.3675 | BD165: 0.6175 | BE165: 0.44 | BF165: 5.5 | BG165: 4.6775 | BH165: 3.585 | BI165: 2.895 | BJ165: 1.5975 | BK165: 2.305
A166: ENSCHIG00000000165 | B166: PROZ | C166: protein Z, vitamin K dependent plasma glycoprotein [Source:HGNC Symbol;Acc:HGNC:9460] | D166: 0 | E166: 0 | F166: 0.08 | G166: 0.14 | H166: 0.15 | I166: 0 | J166: 0 | K166: 0.07 | L166: 0.06 | M166: 0 | N166: 0.33 | O166: 0.08 | P166: 0.06 | Q166: 0.06 | R166: 0 | S166: 0.15 | T166: 0.13 | U166: 0.62 | V166: 0.08 | W166: 0 | X166: 0 | Y166: 0.06 | Z166: 0 | AA166: 0.34 | AB166: 0 | AC166: 0 | AD166: 0.07 | AE166: 0.44 | AF166: 0 | AG166: 0 | AH166: 0 | AI166: 0.13 | AJ166: 0.14 | AK166: 0.25 | AL166: 0.07 | AM166: 0.36 | AN166: 0.07 | AO166: 0.13 | AP166: 1 | AQ166: 0.35 | AR166: 0.13 | AS166: 0.36 | AT166: 0 | AU166: 0 | AV166: 0.08 | AW166: 0.22 | AX166: 3.33 | AY166: 0 | AZ166: 0.055 | BA166: 0.055 | BB166: 0.1175 | BC166: 0.0675 | BD166: 0.2075 | BE166: 0.1 | BF166: 0.1275 | BG166: 0.0325 | BH166: 0.205 | BI166: 0.3875 | BJ166: 0.1225 | BK166: 0.9075
A167: ENSCHIG00000000166 | C167: - | D167: 0 | E167: 0 | F167: 0 | G167: 0 | H167: 0 | I167: 0 | J167: 0 | K167: 0 | L167: 0 | M167: 0 | N167: 0 | O167: 0 | P167: 0 | Q167: 0 | R167: 0 | S167: 0 | T167: 0 | U167: 0 | V167: 0 | W167: 0 | X167: 0 | Y167: 0 | Z167: 0 | AA167: 0 | AB167: 0 | AC167: 0 | AD167: 0 | AE167: 0 | AF167: 0 | AG167: 0 | AH167: 0 | AI167: 0 | AJ167: 0 | AK167: 0 | AL167: 0 | AM167: 0 | AN167: 0 | AO167: 0 | AP167: 0 | AQ167: 0 | AR167: 0 | AS167: 0 | AT167: 0 | AU167: 0 | AV167: 0 | AW167: 0 | AX167: 0 | AY167: 0 | AZ167: 0 | BA167: 0 | BB167: 0 | BC167: 0 | BD167: 0 | BE167: 0 | BF167: 0 | BG167: 0 | BH167: 0 | BI167: 0 | BJ167: 0 | BK167: 0
A168: ENSCHIG00000000167 | C168: - | D168: 15.86 | E168: 8.44 | F168: 17.54 | G168: 12.07 | H168: 14.75 | I168: 21.21 | J168: 7.53 | K168: 3.03 | L168: 9.69 | M168: 13.16 | N168: 18.92 | O168: 23.86 | P168: 4.79 | Q168: 6.17 | R168: 8.91 | S168: 11.17 | T168: 9.45 | U168: 19.54 | V168: 8.61 | W168: 5.06 | X168: 4.61 | Y168: 6.09 | Z168: 5.07 | AA168: 6.5 | AB168: 4.56 | AC168: 5.07 | AD168: 7.09 | AE168: 9.97 | AF168: 10.31 | AG168: 10 | AH168: 5.76 | AI168: 2.99 | AJ168: 7.35 | AK168: 4.64 | AL168: 6.88 | AM168: 7.11 | AN168: 5.3 | AO168: 5.62 | AP168: 7.31 | AQ168: 5.51 | AR168: 6.37 | AS168: 7.12 | AT168: 6.46 | AU168: 3.75 | AV168: 5.82 | AW168: 5.74 | AX168: 4.21 | AY168: 4.8 | AZ168: 13.4775 | BA168: 11.63 | BB168: 16.4075 | BC168: 7.76 | BD168: 10.665 | BE168: 5.5675 | BF168: 6.6725 | BG168: 7.265 | BH168: 6.495 | BI168: 5.935 | BJ168: 5.925 | BK168: 5.1425
A169: ENSCHIG00000000168 | B169: CD40LG | C169: CD40 ligand [Source:HGNC Symbol;Acc:HGNC:11935] | D169: 0.11 | E169: 0 | F169: 0 | G169: 0 | H169: 0 | I169: 0 | J169: 0.6 | K169: 0.22 | L169: 0.52 | M169: 0 | N169: 0.13 | O169: 0.17 | P169: 0 | Q169: 0.09 | R169: 0 | S169: 0 | T169: 0 | U169: 0 | V169: 0.16 | W169: 0 | X169: 0 | Y169: 0 | Z169: 0 | AA169: 0 | AB169: 0 | AC169: 0 | AD169: 0.15 | AE169: 0 | AF169: 0.17 | AG169: 0 | AH169: 0.16 | AI169: 0.11 | AJ169: 0 | AK169: 0 | AL169: 0 | AM169: 0 | AN169: 0.43 | AO169: 0 | AP169: 0.28 | AQ169: 0 | AR169: 0.4 | AS169: 0 | AT169: 0.33 | AU169: 0 | AV169: 0 | AW169: 0 | AX169: 0 | AY169: 0 | AZ169: 0.0275 | BA169: 0.205 | BB169: 0.205 | BC169: 0.0225 | BD169: 0.04 | BE169: 0 | BF169: 0.0375 | BG169: 0.11 | BH169: 0 | BI169: 0.1775 | BJ169: 0.1825 | BK169: 0
A170: ENSCHIG00000000169 | C170: - | D170: 0.94 | E170: 2.11 | F170: 3.13 | G170: 0.94 | H170: 2.02 | I170: 4.28 | J170: 1.64 | K170: 0.94 | L170: 1.59 | M170: 2.15 | N170: 5.06 | O170: 3.11 | P170: 0.52 | Q170: 1.2 | R170: 2.45 | S170: 1.99 | T170: 2.25 | U170: 2.24 | V170: 2.28 | W170: 1.71 | X170: 0.81 | Y170: 1.34 | Z170: 0.2 | AA170: 1.7 | AB170: 0.66 | AC170: 1.54 | AD170: 1.33 | AE170: 0.66 | AF170: 2.78 | AG170: 2.56 | AH170: 1.06 | AI170: 0.83 | AJ170: 1.5 | AK170: 0.34 | AL170: 1.78 | AM170: 1.43 | AN170: 0.52 | AO170: 1.18 | AP170: 1.32 | AQ170: 0.66 | AR170: 1.13 | AS170: 1.38 | AT170: 1.71 | AU170: 1.15 | AV170: 0.33 | AW170: 1.26 | AX170: 0.41 | AY170: 0.67 | AZ170: 1.78 | BA170: 2.22 | BB170: 2.9775 | BC170: 1.54 | BD170: 2.12 | BE170: 1.0125 | BF170: 1.0475 | BG170: 1.8075 | BH170: 1.2625 | BI170: 0.92 | BJ170: 1.3425 | BK170: 0.6675
A171: ENSCHIG00000000170 | B171: ELF4 | C171: E74 like ETS transcription factor 4 [Source:HGNC Symbol;Acc:HGNC:3319] | D171: 2.75 | E171: 1.51 | F171: 2.95 | G171: 2.57 | H171: 2.94 | I171: 3.35 | J171: 1.54 | K171: 2.24 | L171: 1.89 | M171: 2.91 | N171: 2.31 | O171: 4.33 | P171: 1.71 | Q171: 1.65 | R171: 1.82 | S171: 1.86 | T171: 1.14 | U171: 3.12 | V171: 1.53 | W171: 1.04 | X171: 1.2 | Y171: 1.17 | Z171: 0.99 | AA171: 1.49 | AB171: 1.78 | AC171: 1.7 | AD171: 1.35 | AE171: 1.45 | AF171: 2.4 | AG171: 2.47 | AH171: 1.28 | AI171: 1.39 | AJ171: 1.72 | AK171: 1.59 | AL171: 3.75 | AM171: 2.66 | AN171: 1.94 | AO171: 1.72 | AP171: 1.83 | AQ171: 1.42 | AR171: 1.5 | AS171: 3.17 | AT171: 1.69 | AU171: 1.03 | AV171: 1.63 | AW171: 1.91 | AX171: 1.44 | AY171: 0.79 | AZ171: 2.445 | BA171: 2.5175 | BB171: 2.86 | BC171: 1.76 | BD171: 1.7075 | BE171: 1.2125 | BF171: 1.57 | BG171: 1.885 | BH171: 2.43 | BI171: 1.7275 | BJ171: 1.8475 | BK171: 1.4425
A172: ENSCHIG00000000171 | B172: MACROH2A2 | C172: macroH2A.2 histone [Source:HGNC Symbol;Acc:HGNC:14453] | D172: 0.84 | E172: 1.04 | F172: 0.24 | G172: 1.04 | H172: 1.03 | I172: 0.91 | J172: 0.81 | K172: 0.89 | L172: 2.52 | M172: 0.86 | N172: 1 | O172: 1.51 | P172: 0.2 | Q172: 0.86 | R172: 0.8 | S172: 0.38 | T172: 0.79 | U172: 0.54 | V172: 0.54 | W172: 0.37 | X172: 0.58 | Y172: 0.1 | Z172: 0.18 | AA172: 0.2 | AB172: 0.5 | AC172: 0.45 | AD172: 0.8 | AE172: 1.09 | AF172: 0.71 | AG172: 0.6 | AH172: 0.99 | AI172: 1.18 | AJ172: 0.9 | AK172: 0.6 | AL172: 1.34 | AM172: 1.3 | AN172: 0.56 | AO172: 0.47 | AP172: 0.74 | AQ172: 0.73 | AR172: 0.48 | AS172: 0.53 | AT172: 1.03 | AU172: 0.74 | AV172: 0.8 | AW172: 0.45 | AX172: 0.18 | AY172: 0.24 | AZ172: 0.79 | BA172: 0.91 | BB172: 1.4725 | BC172: 0.56 | BD172: 0.56 | BE172: 0.265 | BF172: 0.71 | BG172: 0.87 | BH172: 1.035 | BI172: 0.625 | BJ172: 0.695 | BK172: 0.4175
A173: ENSCHIG00000000172 | B173: AVPR2 | C173: arginine vasopressin receptor 2 [Source:HGNC Symbol;Acc:HGNC:897] | D173: 0.05 | E173: 0 | F173: 0.05 | G173: 0 | H173: 0.01 | I173: 0.15 | J173: 0.04 | K173: 0 | L173: 0.05 | M173: 0.1 | N173: 0.08 | O173: 0.03 | P173: 0.05 | Q173: 0 | R173: 0 | S173: 0.08 | T173: 0.11 | U173: 0 | V173: 0 | W173: 0.13 | X173: 0.08 | Y173: 0.25 | Z173: 0.39 | AA173: 0 | AB173: 0.2 | AC173: 0.04 | AD173: 0.09 | AE173: 0.14 | AF173: 0 | AG173: 0 | AH173: 0.04 | AI173: 0.22 | AJ173: 0 | AK173: 0 | AL173: 0.05 | AM173: 0 | AN173: 0.1 | AO173: 0.08 | AP173: 0.2 | AQ173: 0.05 | AR173: 0.08 | AS173: 0.23 | AT173: 0 | AU173: 0.05 | AV173: 0 | AW173: 0.12 | AX173: 0 | AY173: 0.18 | AZ173: 0.025 | BA173: 0.05 | BB173: 0.065 | BC173: 0.0325 | BD173: 0.06 | BE173: 0.18 | BF173: 0.1175 | BG173: 0.065 | BH173: 0.0125 | BI173: 0.1075 | BJ173: 0.09 | BK173: 0.075
A174: ENSCHIG00000000173 | B174: TMEM26 | C174: transmembrane protein 26 [Source:HGNC Symbol;Acc:HGNC:28550] | D174: 0.06 | E174: 0.2 | F174: 0.16 | G174: 0.12 | H174: 0.42 | I174: 0.28 | J174: 0.62 | K174: 0.06 | L174: 0.28 | M174: 0.01 | N174: 0.36 | O174: 0.72 | P174: 0.01 | Q174: 0.23 | R174: 0.15 | S174: 0.15 | T174: 0.18 | U174: 0.03 | V174: 0.41 | W174: 0.13 | X174: 0.08 | Y174: 0.07 | Z174: 0.06 | AA174: 0.09 | AB174: 0.01 | AC174: 0.1 | AD174: 0.02 | AE174: 0.14 | AF174: 0.26 | AG174: 0.07 | AH174: 0.57 | AI174: 0.05 | AJ174: 0.2 | AK174: 0.06 | AL174: 0.25 | AM174: 0.11 | AN174: 0.03 | AO174: 0.1 | AP174: 0.15 | AQ174: 0.01 | AR174: 0.15 | AS174: 0.05 | AT174: 0.46 | AU174: 0.14 | AV174: 0.07 | AW174: 0.07 | AX174: 0.03 | AY174: 0.04 | AZ174: 0.135 | BA174: 0.345 | BB174: 0.3425 | BC174: 0.135 | BD174: 0.1875 | BE174: 0.075 | BF174: 0.0675 | BG174: 0.2375 | BH174: 0.155 | BI174: 0.0725 | BJ174: 0.2 | BK174: 0.0525
A175: ENSCHIG00000000174 | C175: - | D175: 6.64 | E175: 9.3 | F175: 12.58 | G175: 9.38 | H175: 7.65 | I175: 14.11 | J175: 6.86 | K175: 4.84 | L175: 9.92 | M175: 13.41 | N175: 11.3 | O175: 11.77 | P175: 6.31 | Q175: 4.81 | R175: 8.21 | S175: 7.73 | T175: 7.04 | U175: 13.06 | V175: 4.56 | W175: 5.22 | X175: 5.97 | Y175: 6.19 | Z175: 5.2 | AA175: 5.11 | AB175: 7.6 | AC175: 9.77 | AD175: 11.03 | AE175: 10.35 | AF175: 9.89 | AG175: 13.53 | AH175: 6.73 | AI175: 5.56 | AJ175: 8.12 | AK175: 7.76 | AL175: 9.95 | AM175: 9.03 | AN175: 5.08 | AO175: 6.06 | AP175: 9.92 | AQ175: 4.95 | AR175: 6.35 | AS175: 11.3 | AT175: 7.08 | AU175: 6.35 | AV175: 7.19 | AW175: 8.26 | AX175: 7.47 | AY175: 4.37 | AZ175: 9.475 | BA175: 8.365 | BB175: 11.6 | BC175: 6.765 | BD175: 7.47 | BE175: 5.6175 | BF175: 9.6875 | BG175: 8.9275 | BH175: 8.715 | BI175: 6.5025 | BJ175: 7.77 | BK175: 6.8225
A176: ENSCHIG00000000175 | C176: - | D176: 0 | E176: 0 | F176: 0 | G176: 0 | H176: 0 | I176: 0 | J176: 0 | K176: 0 | L176: 0 | M176: 0 | N176: 0 | O176: 0 | P176: 0 | Q176: 0 | R176: 0 | S176: 0 | T176: 0 | U176: 0 | V176: 0 | W176: 0 | X176: 0 | Y176: 0 | Z176: 0 | AA176: 0 | AB176: 0 | AC176: 0 | AD176: 0 | AE176: 0 | AF176: 0 | AG176: 0 | AH176: 0 | AI176: 0 | AJ176: 0 | AK176: 0 | AL176: 0 | AM176: 0 | AN176: 0 | AO176: 0 | AP176: 0 | AQ176: 0 | AR176: 0 | AS176: 0 | AT176: 0 | AU176: 0 | AV176: 0 | AW176: 0 | AX176: 0 | AY176: 0 | AZ176: 0 | BA176: 0 | BB176: 0 | BC176: 0 | BD176: 0 | BE176: 0 | BF176: 0 | BG176: 0 | BH176: 0 | BI176: 0 | BJ176: 0 | BK176: 0
A177: ENSCHIG00000000176 | B177: C18orf63 | C177: chromosome 18 open reading frame 63 [Source:HGNC Symbol;Acc:HGNC:40037] | D177: 0.01 | E177: 0 | F177: 0 | G177: 0 | H177: 0 | I177: 0 | J177: 0 | K177: 0 | L177: 0 | M177: 0.06 | N177: 0.06 | O177: 0 | P177: 0 | Q177: 0 | R177: 0 | S177: 0 | T177: 0.07 | U177: 0.09 | V177: 0.02 | W177: 0 | X177: 0 | Y177: 0.03 | Z177: 0 | AA177: 0.02 | AB177: 0 | AC177: 0.01 | AD177: 0 | AE177: 0 | AF177: 0 | AG177: 0.02 | AH177: 0 | AI177: 0 | AJ177: 0 | AK177: 0 | AL177: 0.03 | AM177: 0 | AN177: 0 | AO177: 0 | AP177: 0 | AQ177: 0 | AR177: 0.01 | AS177: 0 | AT177: 0.02 | AU177: 0 | AV177: 0 | AW177: 0.02 | AX177: 0.05 | AY177: 0 | AZ177: 0.0025 | BA177: 0 | BB177: 0.03 | BC177: 0 | BD177: 0.045 | BE177: 0.0125 | BF177: 0.0025 | BG177: 0.005 | BH177: 0.0075 | BI177: 0 | BJ177: 0.0075 | BK177: 0.0175
A178: ENSCHIG00000000177 | C178: - | D178: 0 | E178: 0 | F178: 0 | G178: 0 | H178: 0 | I178: 0 | J178: 0 | K178: 0 | L178: 0 | M178: 0 | N178: 0 | O178: 0 | P178: 0 | Q178: 0 | R178: 0 | S178: 0 | T178: 0 | U178: 0 | V178: 0 | W178: 0 | X178: 0 | Y178: 0 | Z178: 0 | AA178: 0 | AB178: 0 | AC178: 0 | AD178: 0 | AE178: 0 | AF178: 0 | AG178: 0 | AH178: 0 | AI178: 0 | AJ178: 0 | AK178: 0 | AL178: 0 | AM178: 0 | AN178: 0 | AO178: 0 | AP178: 0 | AQ178: 0 | AR178: 0 | AS178: 0 | AT178: 0 | AU178: 0 | AV178: 0 | AW178: 0 | AX178: 0 | AY178: 0 | AZ178: 0 | BA178: 0 | BB178: 0 | BC178: 0 | BD178: 0 | BE178: 0 | BF178: 0 | BG178: 0 | BH178: 0 | BI178: 0 | BJ178: 0 | BK178: 0
A179: ENSCHIG00000000178 | C179: - | D179: 0 | E179: 0 | F179: 0 | G179: 0 | H179: 0 | I179: 0 | J179: 0 | K179: 0 | L179: 0 | M179: 0 | N179: 0 | O179: 0 | P179: 0 | Q179: 0 | R179: 0 | S179: 0 | T179: 0 | U179: 0 | V179: 0 | W179: 0 | X179: 0 | Y179: 0 | Z179: 0 | AA179: 0 | AB179: 0 | AC179: 0 | AD179: 0 | AE179: 0 | AF179: 0 | AG179: 0 | AH179: 0 | AI179: 0 | AJ179: 0 | AK179: 0 | AL179: 0 | AM179: 0 | AN179: 0 | AO179: 0 | AP179: 0 | AQ179: 0 | AR179: 0 | AS179: 0 | AT179: 0 | AU179: 0 | AV179: 0 | AW179: 0 | AX179: 0 | AY179: 0 | AZ179: 0 | BA179: 0 | BB179: 0 | BC179: 0 | BD179: 0 | BE179: 0 | BF179: 0 | BG179: 0 | BH179: 0 | BI179: 0 | BJ179: 0 | BK179: 0
A180: ENSCHIG00000000179 | B180: CFAP70 | C180: cilia and flagella associated protein 70 [Source:HGNC Symbol;Acc:HGNC:30726] | D180: 29.13 | E180: 30.72 | F180: 29.79 | G180: 26.84 | H180: 30.78 | I180: 27.41 | J180: 25.56 | K180: 11.04 | L180: 36.05 | M180: 23.38 | N180: 31.18 | O180: 27.88 | P180: 24.05 | Q180: 29.45 | R180: 23.87 | S180: 20.83 | T180: 30.75 | U180: 39.26 | V180: 22.04 | W180: 25.17 | X180: 30.12 | Y180: 35.99 | Z180: 31.16 | AA180: 54.37 | AB180: 28.59 | AC180: 26.79 | AD180: 36.6 | AE180: 32.16 | AF180: 29.48 | AG180: 21.19 | AH180: 32.36 | AI180: 25.97 | AJ180: 34.51 | AK180: 26.49 | AL180: 25.52 | AM180: 37.63 | AN180: 28.14 | AO180: 35.2 | AP180: 32.62 | AQ180: 34.1 | AR180: 33.25 | AS180: 34.75 | AT180: 26.16 | AU180: 33.28 | AV180: 23.61 | AW180: 37 | AX180: 32.86 | AY180: 34.16 | AZ180: 29.12 | BA180: 23.6975 | BB180: 29.6225 | BC180: 24.55 | BD180: 29.305 | BE180: 37.91 | BF180: 31.035 | BG180: 27.25 | BH180: 31.0375 | BI180: 32.515 | BJ180: 31.86 | BK180: 31.9075
A181: ENSCHIG00000000180 | B181: HGSNAT | C181: heparan-alpha-glucosaminide N-acetyltransferase [Source:HGNC Symbol;Acc:HGNC:26527] | D181: 10.19 | E181: 4.43 | F181: 13.02 | G181: 10.69 | H181: 7.26 | I181: 18.61 | J181: 5.97 | K181: 6.96 | L181: 11.3 | M181: 12.18 | N181: 9.52 | O181: 13.59 | P181: 10.7 | Q181: 6.19 | R181: 9.48 | S181: 6.28 | T181: 4.44 | U181: 13.93 | V181: 6.45 | W181: 5.67 | X181: 6.85 | Y181: 4.6 | Z181: 6.78 | AA181: 4.34 | AB181: 8.31 | AC181: 4.62 | AD181: 9.92 | AE181: 9.22 | AF181: 5.02 | AG181: 15.22 | AH181: 5.74 | AI181: 7.4 | AJ181: 8.26 | AK181: 10.43 | AL181: 9.24 | AM181: 14.31 | AN181: 11.03 | AO181: 8.62 | AP181: 6.82 | AQ181: 5.29 | AR181: 7.17 | AS181: 10.63 | AT181: 5.03 | AU181: 7.31 | AV181: 8.22 | AW181: 7.34 | AX181: 8.4 | AY181: 4.16 | AZ181: 9.5825 | BA181: 9.7 | BB181: 11.6475 | BC181: 8.1625 | BD181: 7.6225 | BE181: 5.6425 | BF181: 8.0175 | BG181: 8.345 | BH181: 10.56 | BI181: 7.94 | BJ181: 7.535 | BK181: 7.03
A182: ENSCHIG00000000181 | B182: STK32C | C182: serine/threonine kinase 32C [Source:HGNC Symbol;Acc:HGNC:21332] | D182: 0.66 | E182: 0.17 | F182: 0.22 | G182: 0.42 | H182: 0.24 | I182: 1.13 | J182: 0.42 | K182: 0.05 | L182: 0.15 | M182: 0.69 | N182: 0.41 | O182: 0.72 | P182: 0.41 | Q182: 0.53 | R182: 0.25 | S182: 0.25 | T182: 0.39 | U182: 0.84 | V182: 0.37 | W182: 0.38 | X182: 0.14 | Y182: 0.44 | Z182: 0.3 | AA182: 0.42 | AB182: 0.43 | AC182: 0.19 | AD182: 0.18 | AE182: 0.54 | AF182: 0.39 | AG182: 0.51 | AH182: 0.17 | AI182: 0.18 | AJ182: 0.28 | AK182: 0.51 | AL182: 0.3 | AM182: 0.33 | AN182: 0.26 | AO182: 0.52 | AP182: 0.11 | AQ182: 0.28 | AR182: 0 | AS182: 0.54 | AT182: 0.59 | AU182: 0.14 | AV182: 0.43 | AW182: 0.55 | AX182: 0.52 | AY182: 0.17 | AZ182: 0.3675 | BA182: 0.46 | BB182: 0.4925 | BC182: 0.36 | BD182: 0.495 | BE182: 0.325 | BF182: 0.335 | BG182: 0.3125 | BH182: 0.355 | BI182: 0.2925 | BJ182: 0.3175 | BK182: 0.4175
A183: ENSCHIG00000000182 | C183: - | D183: 0 | E183: 0 | F183: 0 | G183: 0 | H183: 0 | I183: 0 | J183: 0 | K183: 0 | L183: 0 | M183: 0 | N183: 0 | O183: 0 | P183: 0 | Q183: 0 | R183: 0 | S183: 0 | T183: 0 | U183: 0 | V183: 0 | W183: 0 | X183: 0 | Y183: 0 | Z183: 0 | AA183: 0 | AB183: 0 | AC183: 0 | AD183: 0 | AE183: 0 | AF183: 0 | AG183: 0 | AH183: 0 | AI183: 0 | AJ183: 0 | AK183: 0 | AL183: 0 | AM183: 0 | AN183: 0 | AO183: 0 | AP183: 0 | AQ183: 0 | AR183: 0 | AS183: 0 | AT183: 0 | AU183: 0 | AV183: 0 | AW183: 0 | AX183: 0 | AY183: 0 | AZ183: 0 | BA183: 0 | BB183: 0 | BC183: 0 | BD183: 0 | BE183: 0 | BF183: 0 | BG183: 0 | BH183: 0 | BI183: 0 | BJ183: 0 | BK183: 0
A184: ENSCHIG00000000183 | C184: - | D184: 0 | E184: 0 | F184: 0 | G184: 0 | H184: 0 | I184: 0 | J184: 0 | K184: 0 | L184: 0 | M184: 0 | N184: 0 | O184: 0 | P184: 0 | Q184: 0 | R184: 0 | S184: 0 | T184: 0 | U184: 0 | V184: 0 | W184: 0 | X184: 0 | Y184: 0 | Z184: 0 | AA184: 0 | AB184: 0 | AC184: 0 | AD184: 0 | AE184: 0 | AF184: 0 | AG184: 0 | AH184: 0 | AI184: 0 | AJ184: 0 | AK184: 0 | AL184: 0 | AM184: 0 | AN184: 0 | AO184: 0 | AP184: 0 | AQ184: 0 | AR184: 0 | AS184: 0 | AT184: 0 | AU184: 0 | AV184: 0 | AW184: 0.33 | AX184: 0 | AY184: 0 | AZ184: 0 | BA184: 0 | BB184: 0 | BC184: 0 | BD184: 0 | BE184: 0 | BF184: 0 | BG184: 0 | BH184: 0 | BI184: 0 | BJ184: 0 | BK184: 0.0825
A185: ENSCHIG00000000184 | C185: - | D185: 0 | E185: 0 | F185: 0 | G185: 0 | H185: 0 | I185: 4 | J185: 0 | K185: 0 | L185: 0 | M185: 0 | N185: 4.55 | O185: 0 | P185: 0 | Q185: 0 | R185: 0 | S185: 0 | T185: 10.92 | U185: 0 | V185: 0 | W185: 0 | X185: 0 | Y185: 0 | Z185: 0 | AA185: 0 | AB185: 0 | AC185: 0 | AD185: 0 | AE185: 0 | AF185: 0 | AG185: 0 | AH185: 0 | AI185: 0 | AJ185: 0 | AK185: 0 | AL185: 0 | AM185: 0 | AN185: 0 | AO185: 0 | AP185: 0 | AQ185: 0 | AR185: 0 | AS185: 0 | AT185: 0 | AU185: 0 | AV185: 0 | AW185: 0 | AX185: 0.1 | AY185: 0 | AZ185: 0 | BA185: 1 | BB185: 1.1375 | BC185: 0 | BD185: 2.73 | BE185: 0 | BF185: 0 | BG185: 0 | BH185: 0 | BI185: 0 | BJ185: 0 | BK185: 0.025
A186: ENSCHIG00000000185 | B186: PPP2R3B | C186: protein phosphatase 2 regulatory subunit B''beta [Source:HGNC Symbol;Acc:HGNC:13417] | D186: 65.37 | E186: 29.74 | F186: 34.29 | G186: 42.96 | H186: 32.24 | I186: 66.2 | J186: 28.76 | K186: 53.82 | L186: 43.8 | M186: 22.89 | N186: 56.43 | O186: 104.76 | P186: 18.15 | Q186: 28.91 | R186: 34.99 | S186: 45.28 | T186: 32.02 | U186: 52.41 | V186: 34.13 | W186: 39.08 | X186: 21.63 | Y186: 26.15 | Z186: 19.13 | AA186: 33.78 | AB186: 30.34 | AC186: 30.4 | AD186: 33.22 | AE186: 30.39 | AF186: 34.33 | AG186: 30.02 | AH186: 25.06 | AI186: 38.64 | AJ186: 25.61 | AK186: 18 | AL186: 61.36 | AM186: 39.34 | AN186: 18.73 | AO186: 33.87 | AP186: 27.78 | AQ186: 32.86 | AR186: 42.23 | AS186: 41.31 | AT186: 31.6 | AU186: 49.28 | AV186: 21.76 | AW186: 34.94 | AX186: 22.92 | AY186: 29.24 | AZ186: 43.09 | BA186: 45.255 | BB186: 56.97 | BC186: 31.8325 | BD186: 39.41 | BE186: 25.1725 | BF186: 31.0875 | BG186: 32.0125 | BH186: 36.0775 | BI186: 28.31 | BJ186: 41.105 | BK186: 27.215
A187: ENSCHIG00000000186 | C187: - | D187: 0 | E187: 0 | F187: 0 | G187: 0 | H187: 0 | I187: 0.16 | J187: 0 | K187: 0 | L187: 0 | M187: 0 | N187: 0 | O187: 0 | P187: 0 | Q187: 0 | R187: 0.14 | S187: 0 | T187: 0 | U187: 0 | V187: 0 | W187: 0 | X187: 0 | Y187: 0 | Z187: 0 | AA187: 0 | AB187: 0 | AC187: 0 | AD187: 0 | AE187: 0 | AF187: 0 | AG187: 0 | AH187: 0 | AI187: 0 | AJ187: 0 | AK187: 0 | AL187: 0 | AM187: 0 | AN187: 0 | AO187: 0 | AP187: 0 | AQ187: 0 | AR187: 0 | AS187: 0 | AT187: 0 | AU187: 0 | AV187: 0 | AW187: 0 | AX187: 0 | AY187: 0 | AZ187: 0 | BA187: 0.04 | BB187: 0 | BC187: 0.035 | BD187: 0 | BE187: 0 | BF187: 0 | BG187: 0 | BH187: 0 | BI187: 0 | BJ187: 0 | BK187: 0
A188: ENSCHIG00000000187 | C188: - | D188: 0.22 | E188: 0.09 | F188: 0.39 | G188: 0.19 | H188: 0.16 | I188: 0.37 | J188: 0.12 | K188: 0.11 | L188: 0.05 | M188: 0.36 | N188: 1.12 | O188: 0.53 | P188: 0.03 | Q188: 0.09 | R188: 0 | S188: 0.28 | T188: 0.08 | U188: 0.19 | V188: 0.17 | W188: 0.15 | X188: 0 | Y188: 0.21 | Z188: 0.12 | AA188: 0.43 | AB188: 0.1 | AC188: 0.02 | AD188: 0.36 | AE188: 0.48 | AF188: 0.09 | AG188: 0.3 | AH188: 0.06 | AI188: 0.05 | AJ188: 0.03 | AK188: 0.03 | AL188: 0.23 | AM188: 0.26 | AN188: 0.11 | AO188: 0.15 | AP188: 0.05 | AQ188: 0.2 | AR188: 0 | AS188: 0.21 | AT188: 0.78 | AU188: 0.32 | AV188: 0.19 | AW188: 0.38 | AX188: 0.28 | AY188: 0.06 | AZ188: 0.2225 | BA188: 0.19 | BB188: 0.515 | BC188: 0.1 | BD188: 0.1475 | BE188: 0.19 | BF188: 0.24 | BG188: 0.125 | BH188: 0.1375 | BI188: 0.1275 | BJ188: 0.3275 | BK188: 0.2275
A189: ENSCHIG00000000188 | C189: - | D189: 9.52 | E189: 10.95 | F189: 7.66 | G189: 8.78 | H189: 10.22 | I189: 12.74 | J189: 2.21 | K189: 2.48 | L189: 6.8 | M189: 4.34 | N189: 7.41 | O189: 7.32 | P189: 6.49 | Q189: 6.77 | R189: 3.83 | S189: 11.18 | T189: 3.5 | U189: 6.67 | V189: 3.79 | W189: 5.26 | X189: 4.22 | Y189: 3.81 | Z189: 3.09 | AA189: 5.53 | AB189: 6.71 | AC189: 4.18 | AD189: 4.49 | AE189: 8.62 | AF189: 7.52 | AG189: 5.55 | AH189: 2.97 | AI189: 1.59 | AJ189: 0.69 | AK189: 4.41 | AL189: 10.97 | AM189: 5.87 | AN189: 4.37 | AO189: 5.09 | AP189: 5.13 | AQ189: 3.28 | AR189: 6.88 | AS189: 5.26 | AT189: 1.75 | AU189: 1.64 | AV189: 4.46 | AW189: 9.55 | AX189: 20.74 | AY189: 2.65 | AZ189: 9.2275 | BA189: 6.9125 | BB189: 6.4675 | BC189: 7.0675 | BD189: 4.805 | BE189: 4.1625 | BF189: 6 | BG189: 4.4075 | BH189: 5.485 | BI189: 4.4675 | BJ189: 3.8825 | BK189: 9.35
A190: ENSCHIG00000000189 | B190: FAM83H | C190: family with sequence similarity 83 member H [Source:HGNC Symbol;Acc:HGNC:24797] | D190: 5.86 | E190: 1.05 | F190: 3.71 | G190: 2.47 | H190: 1.11 | I190: 3.35 | J190: 1.15 | K190: 1.66 | L190: 1.95 | M190: 1.29 | N190: 2.66 | O190: 3.59 | P190: 1.42 | Q190: 1.7 | R190: 0.96 | S190: 3.29 | T190: 1.18 | U190: 3.99 | V190: 1.65 | W190: 1.55 | X190: 1.23 | Y190: 0.85 | Z190: 2.57 | AA190: 1.97 | AB190: 0.92 | AC190: 1.27 | AD190: 1.22 | AE190: 0.68 | AF190: 1.19 | AG190: 1.94 | AH190: 0.51 | AI190: 0.82 | AJ190: 0.83 | AK190: 0.99 | AL190: 1.65 | AM190: 1.3 | AN190: 1.06 | AO190: 1.56 | AP190: 0.73 | AQ190: 1.44 | AR190: 0.83 | AS190: 1.62 | AT190: 0.93 | AU190: 2.21 | AV190: 1.07 | AW190: 0.81 | AX190: 2.62 | AY190: 1.59 | AZ190: 3.2725 | BA190: 1.8175 | BB190: 2.3725 | BC190: 1.8425 | BD190: 2.0925 | BE190: 1.655 | BF190: 1.0225 | BG190: 1.115 | BH190: 1.1925 | BI190: 1.1975 | BJ190: 1.3975 | BK190: 1.5225
A191: ENSCHIG00000000190 | C191: - | D191: 0 | E191: 0 | F191: 0 | G191: 0 | H191: 0 | I191: 0 | J191: 0 | K191: 0 | L191: 0 | M191: 0 | N191: 0 | O191: 0 | P191: 0 | Q191: 0 | R191: 0 | S191: 0 | T191: 0 | U191: 0 | V191: 0 | W191: 0 | X191: 0 | Y191: 0 | Z191: 0 | AA191: 0 | AB191: 0 | AC191: 0 | AD191: 0 | AE191: 0 | AF191: 0 | AG191: 0 | AH191: 0 | AI191: 0 | AJ191: 0 | AK191: 0 | AL191: 0 | AM191: 0 | AN191: 0 | AO191: 0 | AP191: 0 | AQ191: 0 | AR191: 0 | AS191: 0 | AT191: 0 | AU191: 0 | AV191: 0 | AW191: 0 | AX191: 0 | AY191: 0 | AZ191: 0 | BA191: 0 | BB191: 0 | BC191: 0 | BD191: 0 | BE191: 0 | BF191: 0 | BG191: 0 | BH191: 0 | BI191: 0 | BJ191: 0 | BK191: 0
A192: ENSCHIG00000000191 | C192: - | D192: 0.04 | E192: 0 | F192: 0 | G192: 0 | H192: 0 | I192: 0.08 | J192: 0 | K192: 0 | L192: 0 | M192: 0 | N192: 0 | O192: 0 | P192: 0 | Q192: 0 | R192: 0 | S192: 0 | T192: 0 | U192: 0 | V192: 0 | W192: 0 | X192: 0 | Y192: 0.06 | Z192: 0 | AA192: 0 | AB192: 0.05 | AC192: 0 | AD192: 0 | AE192: 0 | AF192: 0 | AG192: 0 | AH192: 0 | AI192: 0 | AJ192: 0 | AK192: 0 | AL192: 0 | AM192: 0 | AN192: 0 | AO192: 0.06 | AP192: 0.06 | AQ192: 0 | AR192: 0 | AS192: 0.06 | AT192: 0 | AU192: 0 | AV192: 0 | AW192: 0 | AX192: 0 | AY192: 0 | AZ192: 0.01 | BA192: 0.02 | BB192: 0 | BC192: 0 | BD192: 0 | BE192: 0.015 | BF192: 0.0125 | BG192: 0 | BH192: 0 | BI192: 0.03 | BJ192: 0.015 | BK192: 0
A193: ENSCHIG00000000192 | C193: - | D193: 0 | E193: 0 | F193: 0 | G193: 0 | H193: 0 | I193: 0 | J193: 0 | K193: 0 | L193: 0 | M193: 0 | N193: 0 | O193: 0 | P193: 0 | Q193: 0 | R193: 0 | S193: 0 | T193: 0 | U193: 0 | V193: 0 | W193: 0 | X193: 0 | Y193: 0 | Z193: 0 | AA193: 0 | AB193: 0 | AC193: 0 | AD193: 0 | AE193: 0 | AF193: 0 | AG193: 0 | AH193: 0 | AI193: 0 | AJ193: 0 | AK193: 0 | AL193: 0 | AM193: 0 | AN193: 0 | AO193: 0 | AP193: 0 | AQ193: 0 | AR193: 0 | AS193: 0 | AT193: 0 | AU193: 0 | AV193: 0 | AW193: 0 | AX193: 0 | AY193: 0 | AZ193: 0 | BA193: 0 | BB193: 0 | BC193: 0 | BD193: 0 | BE193: 0 | BF193: 0 | BG193: 0 | BH193: 0 | BI193: 0 | BJ193: 0 | BK193: 0
A194: ENSCHIG00000000193 | C194: - | D194: 0 | E194: 0 | F194: 0 | G194: 0 | H194: 0 | I194: 0 | J194: 0 | K194: 0 | L194: 0 | M194: 0 | N194: 0 | O194: 0 | P194: 0 | Q194: 0 | R194: 0 | S194: 0 | T194: 0 | U194: 0 | V194: 0 | W194: 0 | X194: 0 | Y194: 0 | Z194: 0 | AA194: 0 | AB194: 0 | AC194: 0 | AD194: 0 | AE194: 0 | AF194: 0 | AG194: 0 | AH194: 0 | AI194: 0 | AJ194: 0 | AK194: 0 | AL194: 0 | AM194: 0 | AN194: 0 | AO194: 0 | AP194: 0 | AQ194: 0 | AR194: 0 | AS194: 0 | AT194: 0 | AU194: 0 | AV194: 0 | AW194: 0 | AX194: 0 | AY194: 0 | AZ194: 0 | BA194: 0 | BB194: 0 | BC194: 0 | BD194: 0 | BE194: 0 | BF194: 0 | BG194: 0 | BH194: 0 | BI194: 0 | BJ194: 0 | BK194: 0
A195: ENSCHIG00000000194 | C195: - | D195: 0 | E195: 0 | F195: 0 | G195: 0 | H195: 0 | I195: 0 | J195: 0 | K195: 0 | L195: 0 | M195: 0 | N195: 0 | O195: 0 | P195: 0 | Q195: 0 | R195: 0 | S195: 0 | T195: 0 | U195: 0 | V195: 0 | W195: 0 | X195: 0 | Y195: 0 | Z195: 0 | AA195: 0 | AB195: 0 | AC195: 0 | AD195: 0 | AE195: 0 | AF195: 0 | AG195: 0 | AH195: 0 | AI195: 0 | AJ195: 0 | AK195: 0 | AL195: 0 | AM195: 0 | AN195: 0 | AO195: 0 | AP195: 0 | AQ195: 0 | AR195: 0 | AS195: 0 | AT195: 0 | AU195: 0 | AV195: 0 | AW195: 0 | AX195: 0 | AY195: 0 | AZ195: 0 | BA195: 0 | BB195: 0 | BC195: 0 | BD195: 0 | BE195: 0 | BF195: 0 | BG195: 0 | BH195: 0 | BI195: 0 | BJ195: 0 | BK195: 0
A196: ENSCHIG00000000195 | C196: - | D196: 0.23 | E196: 0 | F196: 0 | G196: 0 | H196: 0 | I196: 0 | J196: 0 | K196: 0 | L196: 0 | M196: 0 | N196: 0 | O196: 0 | P196: 0 | Q196: 0.15 | R196: 0 | S196: 0 | T196: 0 | U196: 0 | V196: 0 | W196: 0 | X196: 0 | Y196: 0.35 | Z196: 0 | AA196: 0 | AB196: 0 | AC196: 0 | AD196: 0 | AE196: 0 | AF196: 0 | AG196: 0 | AH196: 0 | AI196: 0 | AJ196: 0 | AK196: 0 | AL196: 0 | AM196: 0 | AN196: 0 | AO196: 0 | AP196: 0.17 | AQ196: 0 | AR196: 0 | AS196: 0 | AT196: 0 | AU196: 0 | AV196: 0 | AW196: 0.54 | AX196: 3.45 | AY196: 0 | AZ196: 0.0575 | BA196: 0 | BB196: 0 | BC196: 0.0375 | BD196: 0 | BE196: 0.0875 | BF196: 0 | BG196: 0 | BH196: 0 | BI196: 0.0425 | BJ196: 0 | BK196: 0.9975
A197: ENSCHIG00000000196 | C197: - | D197: 531.07 | E197: 1216.9 | F197: 711.07 | G197: 395.33 | H197: 661.15 | I197: 989.87 | J197: 651.92 | K197: 481.94 | L197: 590.57 | M197: 430.51 | N197: 843.06 | O197: 627.85 | P197: 653.29 | Q197: 483.57 | R197: 1313.44 | S197: 385.69 | T197: 849.16 | U197: 397.77 | V197: 831.94 | W197: 803.36 | X197: 683.28 | Y197: 1141.66 | Z197: 1017.3 | AA197: 1225.36 | AB197: 1068.96 | AC197: 1188.43 | AD197: 1057.38 | AE197: 862.92 | AF197: 564.67 | AG197: 795.63 | AH197: 1117.48 | AI197: 1000.11 | AJ197: 633.83 | AK197: 832.36 | AL197: 1195.37 | AM197: 1062.94 | AN197: 815.08 | AO197: 1031.99 | AP197: 1958.31 | AQ197: 654.97 | AR197: 908.62 | AS197: 828.8 | AT197: 960.65 | AU197: 661.99 | AV197: 1186.64 | AW197: 1072.65 | AX197: 1331.94 | AY197: 1003.38 | AZ197: 713.5925 | BA197: 696.22 | BB197: 622.9975 | BC197: 708.9975 | BD197: 720.5575 | BE197: 1016.9 | BF197: 1044.4225 | BG197: 869.4725 | BH197: 931.125 | BI197: 1115.0875 | BJ197: 840.015 | BK197: 1148.6525
A198: ENSCHIG00000000197 | B198: SLC38A5 | C198: solute carrier family 38 member 5 [Source:HGNC Symbol;Acc:HGNC:18070] | D198: 0.06 | E198: 0 | F198: 0 | G198: 0.04 | H198: 0 | I198: 0.07 | J198: 0 | K198: 0.11 | L198: 0 | M198: 0.06 | N198: 0 | O198: 0.06 | P198: 0 | Q198: 0.06 | R198: 0 | S198: 0 | T198: 0 | U198: 0.06 | V198: 0 | W198: 0 | X198: 0 | Y198: 0 | Z198: 0.12 | AA198: 0.06 | AB198: 0.07 | AC198: 0.05 | AD198: 0 | AE198: 0.17 | AF198: 0 | AG198: 0.07 | AH198: 0 | AI198: 0.11 | AJ198: 0.13 | AK198: 0 | AL198: 0 | AM198: 0 | AN198: 0.04 | AO198: 0 | AP198: 0 | AQ198: 0.08 | AR198: 0 | AS198: 0 | AT198: 0 | AU198: 0.05 | AV198: 0.07 | AW198: 0 | AX198: 0.13 | AY198: 0 | AZ198: 0.025 | BA198: 0.045 | BB198: 0.03 | BC198: 0.015 | BD198: 0.015 | BE198: 0.045 | BF198: 0.0725 | BG198: 0.045 | BH198: 0.0325 | BI198: 0.03 | BJ198: 0.0125 | BK198: 0.05
A199: ENSCHIG00000000198 | B199: FMR1 | C199: FMRP translational regulator 1 [Source:HGNC Symbol;Acc:HGNC:3775] | D199: 6.02 | E199: 2.69 | F199: 14.84 | G199: 4.21 | H199: 5.61 | I199: 25.48 | J199: 2.74 | K199: 1.83 | L199: 4.78 | M199: 9.45 | N199: 11.33 | O199: 20.67 | P199: 1.95 | Q199: 2.31 | R199: 3.62 | S199: 5.87 | T199: 3.44 | U199: 14.27 | V199: 7.63 | W199: 3.02 | X199: 1.85 | Y199: 2.74 | Z199: 1.46 | AA199: 2.64 | AB199: 1.83 | AC199: 1.85 | AD199: 3.62 | AE199: 2.29 | AF199: 4.89 | AG199: 5.9 | AH199: 1.63 | AI199: 0.68 | AJ199: 2.28 | AK199: 1.72 | AL199: 4.84 | AM199: 2.55 | AN199: 1.44 | AO199: 1.92 | AP199: 1.41 | AQ199: 1.35 | AR199: 1.42 | AS199: 1.93 | AT199: 2.8 | AU199: 0.9 | AV199: 1.04 | AW199: 2.54 | AX199: 0.86 | AY199: 1.28 | AZ199: 6.94 | BA199: 8.915 | BB199: 11.5575 | BC199: 3.4375 | BD199: 7.09 | BE199: 2.1725 | BF199: 2.3975 | BG199: 3.275 | BH199: 2.8475 | BI199: 1.53 | BJ199: 1.7625 | BK199: 1.43
A200: ENSCHIG00000000199 | C200: - | D200: 0 | E200: 0 | F200: 0 | G200: 0 | H200: 0.08 | I200: 0 | J200: 0 | K200: 0 | L200: 0 | M200: 0.13 | N200: 0 | O200: 0 | P200: 0 | Q200: 0 | R200: 0 | S200: 0 | T200: 0 | U200: 0 | V200: 0 | W200: 0 | X200: 0 | Y200: 0 | Z200: 0 | AA200: 0 | AB200: 0 | AC200: 0 | AD200: 0 | AE200: 0 | AF200: 0 | AG200: 0 | AH200: 0 | AI200: 0 | AJ200: 0 | AK200: 0 | AL200: 0 | AM200: 0 | AN200: 0 | AO200: 0 | AP200: 0 | AQ200: 0 | AR200: 0 | AS200: 0 | AT200: 0 | AU200: 0 | AV200: 0 | AW200: 0 | AX200: 0 | AY200: 0 | AZ200: 0 | BA200: 0.02 | BB200: 0.0325 | BC200: 0 | BD200: 0 | BE200: 0 | BF200: 0 | BG200: 0 | BH200: 0 | BI200: 0 | BJ200: 0 | BK200: 0
... 925 more rows

Sheet DEGs in each group
A1: Gene_id | B1: Gene_name | C1: Gene_description | D1: T_6M_slow_vs_T_6M_fast | E1: T_12M_slow_vs_T_12M_fast | F1: L_3M_slow_vs_L_3M_fast | G1: L_12M_slow_vs_L_12M_fast | H1: T_3M_slow_vs_T_3M_fast | I1: L_6M_slow_vs_L_6M_fast | J1: Sum
A2: 2812 | D2: 530 | E2: 1107 | F2: 353 | G2: 623 | H2: 348 | I2: 718 | J2: 2812
A3: ENSCHIG00000007729 | B3: SENP7 | C3: SUMO specific peptidase 7 [Source:HGNC Symbol;Acc:HGNC:30402] | D3: no|up | E3: no|up | F3: no|down | G3: no|up | H3: no|down | I3: yes|up | J3: 1
A4: ENSCHIG00000007728 | B4: ZMYND12 | C4: zinc finger MYND-type containing 12 [Source:HGNC Symbol;Acc:HGNC:21192] | D4: no|down | E4: yes|down | F4: no|down | G4: no|up | H4: no|up | I4: no|up | J4: 1
A5: ENSCHIG00000006632 | B5: DPP6 | C5: dipeptidyl peptidase like 6 [Source:HGNC Symbol;Acc:HGNC:3010] | D5: no|down | E5: no|up | F5: yes|up | G5: no|up | H5: yes|up | I5: no|up | J5: 2
A6: ENSCHIG00000021739 | B6: TRIM69 | C6: tripartite motif containing 69 [Source:HGNC Symbol;Acc:HGNC:17857] | D6: yes|down | E6: yes|down | F6: no|up | G6: no|down | H6: no|no test | I6: no|up | J6: 2
A7: ENSCHIG00000015744 | B7: C3orf84 | C7: chromosome 3 open reading frame 84 [Source:HGNC Symbol;Acc:HGNC:44666] | D7: yes|down | E7: yes|down | F7: no|up | G7: no|down | H7: no|down | I7: no|up | J7: 2
A8: ENSCHIG00000012987 | B8: MTCP1 | C8: mature T cell proliferation 1 [Source:HGNC Symbol;Acc:HGNC:7423] | D8: no|down | E8: no|down | F8: no|down | G8: no|down | H8: no|down | I8: yes|down | J8: 1
A9: ENSCHIG00000012983 | B9: MMP24 | C9: matrix metallopeptidase 24 [Source:HGNC Symbol;Acc:HGNC:7172] | D9: no|up | E9: no|up | F9: no|up | G9: yes|down | H9: no|up | I9: no|up | J9: 1
A10: ENSCHIG00000007235 | D10: no|up | E10: no|down | F10: no|up | G10: no|up | H10: no|down | I10: yes|up | J10: 1
A11: ENSCHIG00000022516 | D11: no|down | E11: no|up | F11: no|down | G11: no|down | H11: no|down | I11: yes|down | J11: 1
A12: ENSCHIG00000013960 | B12: PIGO | C12: phosphatidylinositol glycan anchor biosynthesis class O [Source:HGNC Symbol;Acc:HGNC:23215] | D12: no|down | E12: no|down | F12: no|down | G12: no|up | H12: yes|up | I12: no|up | J12: 1
A13: ENSCHIG00000025430 | B13: ARMC7 | C13: armadillo repeat containing 7 [Source:HGNC Symbol;Acc:HGNC:26168] | D13: no|down | E13: no|down | F13: no|up | G13: no|down | H13: no|up | I13: yes|up | J13: 1
A14: ENSCHIG00000025343 | B14: TBATA | C14: thymus, brain and testes associated [Source:HGNC Symbol;Acc:HGNC:23511] | D14: no|down | E14: yes|down | F14: no|up | G14: no|down | H14: no|no test | I14: no|up | J14: 1
A15: ENSCHIG00000021734 | B15: NUF2 | C15: NUF2 component of NDC80 kinetochore complex [Source:HGNC Symbol;Acc:HGNC:14621] | D15: no|down | E15: no|up | F15: no|down | G15: no|up | H15: no|up | I15: yes|up | J15: 1
A16: ENSCHIG00000018835 | B16: KIAA0753 | C16: KIAA0753 [Source:HGNC Symbol;Acc:HGNC:29110] | D16: no|down | E16: no|down | F16: no|down | G16: yes|down | H16: no|down | I16: yes|down | J16: 2
A17: ENSCHIG00000025438 | B17: PLP1 | C17: proteolipid protein 1 [Source:HGNC Symbol;Acc:HGNC:9086] | D17: no|up | E17: no|up | F17: no|down | G17: yes|up | H17: no|down | I17: no|up | J17: 1
A18: ENSCHIG00000008960 | D18: no|up | E18: no|up | F18: no|down | G18: yes|down | H18: no|down | I18: no|down | J18: 1
A19: ENSCHIG00000023917 | B19: SPEM1 | C19: spermatid maturation 1 [Source:HGNC Symbol;Acc:HGNC:32429] | D19: no|down | E19: yes|down | F19: no|up | G19: no|down | H19: no|no test | I19: no|up | J19: 1
A20: ENSCHIG00000008964 | D20: no|down | E20: yes|down | F20: no|no test | G20: no|no test | H20: no|no test | I20: no|no test | J20: 1
A21: ENSCHIG00000012506 | B21: LEXM | C21: lymphocyte expansion molecule [Source:HGNC Symbol;Acc:HGNC:26854] | D21: no|down | E21: yes|down | F21: no|down | G21: no|down | H21: no|no test | I21: no|up | J21: 1
A22: ENSCHIG00000012508 | B22: TRERF1 | C22: transcriptional regulating factor 1 [Source:HGNC Symbol;Acc:HGNC:18273] | D22: no|down | E22: no|down | F22: yes|down | G22: no|up | H22: no|down | I22: no|down | J22: 1
A23: ENSCHIG00000014904 | D23: yes|up | E23: no|up | F23: no|up | G23: no|up | H23: no|down | I23: no|up | J23: 1
A24: ENSCHIG00000007657 | D24: yes|down | E24: yes|down | F24: no|no test | G24: yes|down | H24: no|no test | I24: no|up | J24: 3
A25: ENSCHIG00000007658 | B25: FKBP6 | C25: FKBP prolyl isomerase family member 6 (inactive) [Source:HGNC Symbol;Acc:HGNC:3722] | D25: yes|down | E25: yes|down | F25: no|down | G25: yes|down | H25: no|up | I25: no|up | J25: 3
A26: ENSCHIG00000022356 | B26: CAPN7 | C26: calpain 7 [Source:HGNC Symbol;Acc:HGNC:1484] | D26: no|up | E26: no|up | F26: yes|up | G26: no|up | H26: no|up | I26: no|up | J26: 1
A27: ENSCHIG00000008173 | B27: RSPH14 | C27: radial spoke head 14 homolog [Source:HGNC Symbol;Acc:HGNC:13437] | D27: no|down | E27: no|down | F27: no|down | G27: yes|down | H27: no|up | I27: no|down | J27: 1
A28: ENSCHIG00000009568 | B28: SPACA4 | C28: sperm acrosome associated 4 [Source:HGNC Symbol;Acc:HGNC:16441] | D28: no|down | E28: yes|down | F28: no|no test | G28: no|no test | H28: no|no test | I28: no|up | J28: 1
A29: ENSCHIG00000023776 | B29: VEGFD | C29: vascular endothelial growth factor D [Source:HGNC Symbol;Acc:HGNC:3708] | D29: no|up | E29: no|down | F29: no|no change | G29: yes|down | H29: no|down | I29: no|up | J29: 1
A30: ENSCHIG00000009561 | B30: B3GNT2 | C30: UDP-GlcNAc:betaGal beta-1,3-N-acetylglucosaminyltransferase 2 [Source:HGNC Symbol;Acc:HGNC:15629] | D30: no|down | E30: yes|up | F30: no|up | G30: no|up | H30: no|down | I30: no|up | J30: 1
A31: ENSCHIG00000022100 | B31: NHLRC1 | C31: NHL repeat containing E3 ubiquitin protein ligase 1 [Source:HGNC Symbol;Acc:HGNC:21576] | D31: no|down | E31: no|down | F31: no|up | G31: no|down | H31: no|up | I31: yes|down | J31: 1
A32: ENSCHIG00000023352 | B32: ZIC4 | C32: Zic family member 4 [Source:HGNC Symbol;Acc:HGNC:20393] | D32: yes|up | E32: no|up | F32: no|up | G32: no|down | H32: no|down | I32: no|down | J32: 1
A33: ENSCHIG00000012166 | B33: FBN3 | C33: fibrillin 3 [Source:HGNC Symbol;Acc:HGNC:18794] | D33: yes|down | E33: no|down | F33: no|down | G33: no|up | H33: no|down | I33: no|down | J33: 1
A34: ENSCHIG00000012168 | B34: COLQ | C34: collagen like tail subunit of asymmetric acetylcholinesterase [Source:HGNC Symbol;Acc:HGNC:2226] | D34: yes|down | E34: no|down | F34: no|up | G34: no|down | H34: no|up | I34: no|up | J34: 1
A35: ENSCHIG00000015692 | B35: BTBD8 | C35: BTB domain containing 8 [Source:HGNC Symbol;Acc:HGNC:21019] | D35: no|down | E35: no|down | F35: yes|down | G35: no|up | H35: no|down | I35: yes|up | J35: 2
A36: ENSCHIG00000015693 | D36: yes|down | E36: yes|down | F36: no|up | G36: no|down | H36: no|down | I36: no|down | J36: 2
A37: ENSCHIG00000015691 | B37: FANK1 | C37: fibronectin type III and ankyrin repeat domains 1 [Source:HGNC Symbol;Acc:HGNC:23527] | D37: no|down | E37: yes|down | F37: no|up | G37: no|down | H37: no|up | I37: no|up | J37: 1
A38: ENSCHIG00000012767 | B38: DHRS7B | C38: dehydrogenase/reductase 7B [Source:HGNC Symbol;Acc:HGNC:24547] | D38: no|up | E38: no|up | F38: yes|down | G38: no|up | H38: no|down | I38: yes|down | J38: 2
A39: ENSCHIG00000012766 | B39: TDRD1 | C39: tudor domain containing 1 [Source:HGNC Symbol;Acc:HGNC:11712] | D39: no|down | E39: yes|down | F39: no|up | G39: no|down | H39: no|no test | I39: no|down | J39: 1
A40: ENSCHIG00000022104 | B40: CFAP69 | C40: cilia and flagella associated protein 69 [Source:HGNC Symbol;Acc:HGNC:26107] | D40: no|up | E40: yes|down | F40: no|down | G40: no|up | H40: no|down | I40: no|up | J40: 1
A41: ENSCHIG00000012768 | D41: no|up | E41: no|up | F41: no|up | G41: no|up | H41: no|up | I41: yes|up | J41: 1
A42: ENSCHIG00000018533 | B42: SAYSD1 | C42: SAYSVFN motif domain containing 1 [Source:HGNC Symbol;Acc:HGNC:21025] | D42: no|up | E42: no|up | F42: no|up | G42: no|up | H42: no|up | I42: yes|up | J42: 1
A43: ENSCHIG00000023179 | D43: no|down | E43: yes|down | F43: no|down | G43: no|up | H43: no|down | I43: no|up | J43: 1
A44: ENSCHIG00000008149 | B44: APOLD1 | C44: apolipoprotein L domain containing 1 [Source:HGNC Symbol;Acc:HGNC:25268] | D44: no|up | E44: no|up | F44: no|down | G44: no|up | H44: yes|down | I44: no|up | J44: 1
A45: ENSCHIG00000010829 | B45: PTCRA | C45: pre T cell antigen receptor alpha [Source:HGNC Symbol;Acc:HGNC:21290] | D45: yes|down | E45: no|down | F45: no|up | G45: no|down | H45: no|down | I45: no|down | J45: 1
A46: ENSCHIG00000001486 | D46: no|down | E46: no|up | F46: yes|down | G46: yes|up | H46: no|up | I46: no|down | J46: 2
A47: ENSCHIG00000012865 | B47: SPATC1 | C47: spermatogenesis and centriole associated 1 [Source:HGNC Symbol;Acc:HGNC:30510] | D47: no|down | E47: yes|down | F47: no|no test | G47: no|up | H47: no|down | I47: no|up | J47: 1
A48: ENSCHIG00000011069 | D48: yes|down | E48: yes|down | F48: no|up | G48: no|down | H48: no|down | I48: no|down | J48: 2
A49: ENSCHIG00000008817 | B49: TAGAP | C49: T cell activation RhoGTPase activating protein [Source:HGNC Symbol;Acc:HGNC:15669] | D49: no|down | E49: no|down | F49: yes|down | G49: no|down | H49: yes|down | I49: no|down | J49: 2
A50: ENSCHIG00000009367 | B50: OSMR | C50: oncostatin M receptor [Source:HGNC Symbol;Acc:HGNC:8507] | D50: yes|up | E50: no|up | F50: no|up | G50: no|up | H50: no|down | I50: no|up | J50: 1
A51: ENSCHIG00000011063 | D51: no|up | E51: no|up | F51: yes|up | G51: no|up | H51: yes|up | I51: no|up | J51: 2
A52: ENSCHIG00000024394 | B52: ATP6V0A4 | C52: ATPase H+ transporting V0 subunit a4 [Source:HGNC Symbol;Acc:HGNC:866] | D52: no|down | E52: no|down | F52: yes|down | G52: no|down | H52: no|down | I52: no|up | J52: 1
A53: ENSCHIG00000009363 | B53: ENKUR | C53: enkurin, TRPC channel interacting protein [Source:HGNC Symbol;Acc:HGNC:28388] | D53: no|up | E53: no|down | F53: no|up | G53: no|up | H53: no|down | I53: yes|up | J53: 1
A54: ENSCHIG00000015522 | B54: MPHOSPH6 | C54: M-phase phosphoprotein 6 [Source:HGNC Symbol;Acc:HGNC:7214] | D54: no|up | E54: no|down | F54: no|down | G54: no|down | H54: no|up | I54: yes|up | J54: 1
A55: ENSCHIG00000026520 | B55: ZFP37 | C55: ZFP37 zinc finger protein [Source:HGNC Symbol;Acc:HGNC:12863] | D55: no|up | E55: no|up | F55: no|up | G55: no|up | H55: no|down | I55: yes|up | J55: 1
A56: ENSCHIG00000026521 | D56: yes|up | E56: no|down | F56: no|no test | G56: no|down | H56: no|no test | I56: no|down | J56: 1
A57: ENSCHIG00000011664 | B57: NFASC | C57: neurofascin [Source:HGNC Symbol;Acc:HGNC:29866] | D57: no|up | E57: no|up | F57: yes|down | G57: no|up | H57: no|down | I57: no|up | J57: 1
A58: ENSCHIG00000011660 | B58: PRPF40A | C58: pre-mRNA processing factor 40 homolog A [Source:HGNC Symbol;Acc:HGNC:16463] | D58: no|up | E58: no|down | F58: no|up | G58: no|up | H58: no|down | I58: yes|up | J58: 1
A59: ENSCHIG00000027212 | B59: GCHFR | C59: GTP cyclohydrolase I feedback regulator [Source:HGNC Symbol;Acc:HGNC:4194] | D59: no|down | E59: no|up | F59: yes|down | G59: no|up | H59: no|down | I59: no|up | J59: 1
A60: ENSCHIG00000019057 | B60: GALNTL5 | C60: polypeptide N-acetylgalactosaminyltransferase like 5 [Source:HGNC Symbol;Acc:HGNC:21725] | D60: no|down | E60: yes|down | F60: no|down | G60: no|down | H60: no|down | I60: no|up | J60: 1
A61: ENSCHIG00000018588 | B61: UHRF1 | C61: ubiquitin like with PHD and ring finger domains 1 [Source:HGNC Symbol;Acc:HGNC:12556] | D61: yes|down | E61: no|down | F61: no|down | G61: no|down | H61: no|down | I61: no|down | J61: 1
A62: ENSCHIG00000023004 | B62: NR6A1 | C62: nuclear receptor subfamily 6 group A member 1 [Source:HGNC Symbol;Acc:HGNC:7985] | D62: no|down | E62: no|up | F62: yes|up | G62: no|up | H62: no|up | I62: no|up | J62: 1
A63: ENSCHIG00000023005 | B63: CSRP3 | C63: cysteine and glycine rich protein 3 [Source:HGNC Symbol;Acc:HGNC:2472] | D63: no|down | E63: yes|down | F63: no|up | G63: yes|down | H63: no|down | I63: yes|down | J63: 3
A64: ENSCHIG00000027219 | B64: TAF6 | C64: TATA-box binding protein associated factor 6 [Source:HGNC Symbol;Acc:HGNC:11540] | D64: no|up | E64: no|down | F64: no|up | G64: no|down | H64: no|up | I64: yes|down | J64: 1
A65: ENSCHIG00000010722 | B65: SDHAF1 | C65: succinate dehydrogenase complex assembly factor 1 [Source:HGNC Symbol;Acc:HGNC:33867] | D65: no|down | E65: yes|down | F65: no|up | G65: no|up | H65: no|up | I65: no|down | J65: 1
A66: ENSCHIG00000018580 | B66: CDCA2 | C66: cell division cycle associated 2 [Source:HGNC Symbol;Acc:HGNC:14623] | D66: yes|down | E66: yes|down | F66: no|down | G66: no|down | H66: no|down | I66: no|down | J66: 2
A67: ENSCHIG00000019504 | B67: ENO3 | C67: enolase 3 [Source:HGNC Symbol;Acc:HGNC:3354] | D67: no|down | E67: no|up | F67: no|down | G67: no|down | H67: no|down | I67: yes|down | J67: 1
A68: ENSCHIG00000002858 | B68: ELOVL2 | C68: ELOVL fatty acid elongase 2 [Source:HGNC Symbol;Acc:HGNC:14416] | D68: yes|down | E68: yes|down | F68: no|down | G68: no|up | H68: no|up | I68: no|up | J68: 2
A69: ENSCHIG00000018051 | D69: no|up | E69: no|up | F69: yes|down | G69: no|up | H69: no|down | I69: no|up | J69: 1
A70: ENSCHIG00000018050 | B70: KCTD19 | C70: potassium channel tetramerization domain containing 19 [Source:HGNC Symbol;Acc:HGNC:24753] | D70: no|down | E70: yes|down | F70: no|up | G70: no|down | H70: no|up | I70: no|down | J70: 1
A71: ENSCHIG00000009143 | B71: ACTG2 | C71: actin gamma 2, smooth muscle [Source:HGNC Symbol;Acc:HGNC:145] | D71: no|down | E71: no|down | F71: no|down | G71: yes|down | H71: no|down | I71: no|down | J71: 1
A72: ENSCHIG00000009141 | B72: RRS1 | C72: ribosome biogenesis regulator 1 homolog [Source:HGNC Symbol;Acc:HGNC:17083] | D72: no|down | E72: no|up | F72: yes|up | G72: no|up | H72: no|up | I72: no|down | J72: 1
A73: ENSCHIG00000011686 | B73: MCTP1 | C73: multiple C2 and transmembrane domain containing 1 [Source:HGNC Symbol;Acc:HGNC:26183] | D73: no|up | E73: no|up | F73: no|up | G73: no|up | H73: no|down | I73: yes|up | J73: 1
A74: ENSCHIG00000011689 | B74: ADAM23 | C74: ADAM metallopeptidase domain 23 [Source:HGNC Symbol;Acc:HGNC:202] | D74: no|down | E74: yes|up | F74: no|down | G74: no|up | H74: no|up | I74: no|down | J74: 1
A75: ENSCHIG00000025435 | D75: no|up | E75: no|up | F75: no|up | G75: yes|up | H75: no|down | I75: no|up | J75: 1
A76: ENSCHIG00000002853 | D76: no|up | E76: no|down | F76: no|down | G76: no|down | H76: no|up | I76: yes|down | J76: 1
A77: ENSCHIG00000019696 | B77: VWA5A | C77: von Willebrand factor A domain containing 5A [Source:HGNC Symbol;Acc:HGNC:6658] | D77: no|up | E77: no|up | F77: no|up | G77: yes|up | H77: no|up | I77: no|up | J77: 1
A78: ENSCHIG00000019697 | B78: GRID2IP | C78: Grid2 interacting protein [Source:HGNC Symbol;Acc:HGNC:18464] | D78: no|down | E78: no|down | F78: no|up | G78: yes|up | H78: no|down | I78: no|up | J78: 1
A79: ENSCHIG00000026184 | D79: yes|down | E79: no|up | F79: no|down | G79: no|down | H79: no|down | I79: no|down | J79: 1
A80: ENSCHIG00000026185 | D80: no|down | E80: yes|down | F80: no|up | G80: no|down | H80: no|down | I80: no|up | J80: 1
A81: ENSCHIG00000026639 | B81: FAM71B | C81: family with sequence similarity 71 member B [Source:HGNC Symbol;Acc:HGNC:28397] | D81: yes|down | E81: yes|down | F81: no|no test | G81: no|down | H81: no|no test | I81: no|down | J81: 2
A82: ENSCHIG00000026630 | B82: C15orf61 | C82: chromosome 15 open reading frame 61 [Source:HGNC Symbol;Acc:HGNC:34453] | D82: no|down | E82: yes|up | F82: no|down | G82: no|up | H82: no|down | I82: no|down | J82: 1
A83: ENSCHIG00000026636 | B83: CENPT | C83: centromere protein T [Source:HGNC Symbol;Acc:HGNC:25787] | D83: yes|down | E83: yes|down | F83: no|up | G83: no|down | H83: no|down | I83: no|down | J83: 2
A84: ENSCHIG00000026189 | D84: no|down | E84: yes|down | F84: no|down | G84: yes|down | H84: no|up | I84: no|up | J84: 2
A85: ENSCHIG00000003729 | B85: DNAJB5 | C85: DnaJ heat shock protein family (Hsp40) member B5 [Source:HGNC Symbol;Acc:HGNC:14887] | D85: no|down | E85: no|down | F85: no|down | G85: yes|down | H85: yes|down | I85: no|down | J85: 2
A86: ENSCHIG00000003728 | B86: KERA | C86: keratocan [Source:HGNC Symbol;Acc:HGNC:6309] | D86: no|up | E86: no|down | F86: no|down | G86: no|down | H86: no|down | I86: yes|up | J86: 1
A87: ENSCHIG00000001557 | B87: CCDC80 | C87: coiled-coil domain containing 80 [Source:HGNC Symbol;Acc:HGNC:30649] | D87: no|down | E87: no|down | F87: yes|down | G87: no|down | H87: no|down | I87: no|down | J87: 1
A88: ENSCHIG00000010620 | B88: KCNC1 | C88: potassium voltage-gated channel subfamily C member 1 [Source:HGNC Symbol;Acc:HGNC:6233] | D88: no|up | E88: no|up | F88: no|down | G88: no|down | H88: no|down | I88: yes|down | J88: 1
A89: ENSCHIG00000024904 | B89: DNAI2 | C89: dynein axonemal intermediate chain 2 [Source:HGNC Symbol;Acc:HGNC:18744] | D89: no|down | E89: yes|down | F89: no|down | G89: no|down | H89: no|no test | I89: no|up | J89: 1
A90: ENSCHIG00000016684 | B90: UCP2 | C90: uncoupling protein 2 [Source:NCBI gene (formerly Entrezgene);Acc:102184455] | D90: no|up | E90: no|up | F90: no|up | G90: no|up | H90: yes|up | I90: no|down | J90: 1
A91: ENSCHIG00000017907 | D91: no|up | E91: no|up | F91: no|down | G91: yes|up | H91: no|down | I91: no|up | J91: 1
A92: ENSCHIG00000009039 | B92: GPR75 | C92: G protein-coupled receptor 75 [Source:HGNC Symbol;Acc:HGNC:4526] | D92: no|down | E92: no|down | F92: no|up | G92: no|up | H92: yes|up | I92: no|up | J92: 1
A93: ENSCHIG00000015831 | D93: no|up | E93: yes|down | F93: no|down | G93: no|down | H93: no|up | I93: no|up | J93: 1
A94: ENSCHIG00000025981 | B94: ADAMTSL1 | C94: ADAMTS like 1 [Source:HGNC Symbol;Acc:HGNC:14632] | D94: no|down | E94: yes|up | F94: no|down | G94: no|up | H94: no|down | I94: no|up | J94: 1
A95: ENSCHIG00000025980 | B95: ZBBX | C95: zinc finger B-box domain containing [Source:HGNC Symbol;Acc:HGNC:26245] | D95: no|down | E95: yes|down | F95: no|no test | G95: no|no test | H95: no|no test | I95: no|up | J95: 1
A96: ENSCHIG00000007882 | B96: YRDC | C96: yrdC N6-threonylcarbamoyltransferase domain containing [Source:HGNC Symbol;Acc:HGNC:28905] | D96: no|down | E96: yes|up | F96: no|up | G96: yes|up | H96: no|down | I96: no|down | J96: 2
A97: ENSCHIG00000025982 | B97: ZC2HC1C | C97: zinc finger C2HC-type containing 1C [Source:HGNC Symbol;Acc:HGNC:20354] | D97: no|down | E97: no|down | F97: yes|down | G97: no|down | H97: no|down | I97: no|down | J97: 1
A98: ENSCHIG00000007884 | B98: KCNT1 | C98: potassium sodium-activated channel subfamily T member 1 [Source:HGNC Symbol;Acc:HGNC:18865] | D98: no|down | E98: no|down | F98: no|up | G98: no|down | H98: no|down | I98: yes|down | J98: 1
A99: ENSCHIG00000002921 | B99: H1-0 | C99: H1.0 linker histone [Source:HGNC Symbol;Acc:HGNC:4714] | D99: no|up | E99: no|down | F99: no|up | G99: no|down | H99: yes|up | I99: no|up | J99: 1
A100: ENSCHIG00000025987 | B100: CFAP418 | C100: cilia and flagella associated protein 418 [Source:HGNC Symbol;Acc:HGNC:27232] | D100: no|up | E100: no|up | F100: no|up | G100: yes|up | H100: no|up | I100: no|up | J100: 1
A101: ENSCHIG00000009034 | B101: IQCH | C101: IQ motif containing H [Source:HGNC Symbol;Acc:HGNC:25721] | D101: no|down | E101: yes|down | F101: no|up | G101: no|down | H101: no|down | I101: no|up | J101: 1
A102: ENSCHIG00000026852 | B102: SUN3 | C102: Sad1 and UNC84 domain containing 3 [Source:HGNC Symbol;Acc:HGNC:22429] | D102: no|down | E102: yes|down | F102: no|up | G102: no|down | H102: no|no test | I102: no|up | J102: 1
A103: ENSCHIG00000017692 | B103: CFAP221 | C103: cilia and flagella associated protein 221 [Source:HGNC Symbol;Acc:HGNC:33720] | D103: no|down | E103: yes|down | F103: no|up | G103: no|down | H103: no|no test | I103: no|no test | J103: 1
A104: ENSCHIG00000026851 | B104: FBXO17 | C104: F-box protein 17 [Source:HGNC Symbol;Acc:HGNC:18754] | D104: no|up | E104: no|down | F104: yes|up | G104: no|down | H104: no|up | I104: no|up | J104: 1
A105: ENSCHIG00000017694 | B105: KIF21B | C105: kinesin family member 21B [Source:HGNC Symbol;Acc:HGNC:29442] | D105: no|down | E105: yes|down | F105: no|up | G105: no|up | H105: no|down | I105: no|up | J105: 1
A106: ENSCHIG00000017696 | B106: CREB5 | C106: cAMP responsive element binding protein 5 [Source:HGNC Symbol;Acc:HGNC:16844] | D106: no|up | E106: yes|down | F106: no|down | G106: no|down | H106: no|down | I106: no|up | J106: 1
A107: ENSCHIG00000012917 | D107: no|up | E107: no|up | F107: no|up | G107: yes|up | H107: no|up | I107: no|up | J107: 1
A108: ENSCHIG00000000260 | D108: no|down | E108: yes|down | F108: no|up | G108: no|up | H108: no|no test | I108: no|up | J108: 1
A109: ENSCHIG00000014127 | B109: IER3 | C109: immediate early response 3 [Source:HGNC Symbol;Acc:HGNC:5392] | D109: no|up | E109: no|up | F109: no|up | G109: yes|up | H109: no|up | I109: no|up | J109: 1
A110: ENSCHIG00000013993 | B110: TTC14 | C110: tetratricopeptide repeat domain 14 [Source:HGNC Symbol;Acc:HGNC:24697] | D110: no|up | E110: no|up | F110: no|up | G110: no|up | H110: no|down | I110: yes|up | J110: 1
A111: ENSCHIG00000014123 | B111: RAD51AP1 | C111: RAD51 associated protein 1 [Source:HGNC Symbol;Acc:HGNC:16956] | D111: no|down | E111: no|up | F111: no|down | G111: no|up | H111: yes|down | I111: no|up | J111: 1
A112: ENSCHIG00000011337 | D112: no|up | E112: no|down | F112: no|down | G112: yes|down | H112: no|down | I112: no|down | J112: 1
A113: ENSCHIG00000010136 | D113: yes|up | E113: no|down | F113: no|down | G113: no|up | H113: yes|down | I113: yes|up | J113: 3
A114: ENSCHIG00000020758 | B114: SPAG4 | C114: sperm associated antigen 4 [Source:HGNC Symbol;Acc:HGNC:11214] | D114: no|down | E114: yes|down | F114: no|up | G114: no|down | H114: no|down | I114: no|up | J114: 1
A115: ENSCHIG00000016663 | B115: E2F4 | C115: E2F transcription factor 4 [Source:HGNC Symbol;Acc:HGNC:3118] | D115: no|down | E115: yes|down | F115: no|up | G115: no|down | H115: no|up | I115: no|down | J115: 1
A116: ENSCHIG00000018088 | D116: no|down | E116: no|up | F116: no|down | G116: yes|down | H116: no|down | I116: no|up | J116: 1
A117: ENSCHIG00000009238 | D117: no|down | E117: yes|down | F117: no|up | G117: no|up | H117: no|down | I117: no|up | J117: 1
A118: ENSCHIG00000020671 | B118: SH2D5 | C118: SH2 domain containing 5 [Source:HGNC Symbol;Acc:HGNC:28819] | D118: yes|down | E118: no|down | F118: no|up | G118: no|down | H118: no|down | I118: no|down | J118: 1
A119: ENSCHIG00000020672 | B119: SPATA4 | C119: spermatogenesis associated 4 [Source:HGNC Symbol;Acc:HGNC:17333] | D119: no|down | E119: yes|down | F119: no|down | G119: no|up | H119: no|down | I119: no|up | J119: 1
A120: ENSCHIG00000020673 | D120: yes|down | E120: no|down | F120: yes|down | G120: no|down | H120: no|down | I120: yes|down | J120: 3
A121: ENSCHIG00000020585 | B121: RNF145 | C121: ring finger protein 145 [Source:HGNC Symbol;Acc:HGNC:20853] | D121: no|up | E121: no|down | F121: no|up | G121: yes|down | H121: no|up | I121: no|down | J121: 1
A122: ENSCHIG00000020582 | D122: no|down | E122: yes|down | F122: no|no test | G122: no|no test | H122: no|no test | I122: no|no test | J122: 1
A123: ENSCHIG00000020580 | B123: DCLK3 | C123: doublecortin like kinase 3 [Source:HGNC Symbol;Acc:HGNC:19005] | D123: no|down | E123: yes|up | F123: no|down | G123: no|down | H123: no|down | I123: no|down | J123: 1
A124: ENSCHIG00000004449 | D124: yes|up | E124: no|up | F124: yes|down | G124: no|down | H124: no|down | I124: yes|up | J124: 3
A125: ENSCHIG00000018126 | B125: C10orf90 | C125: chromosome 10 open reading frame 90 [Source:HGNC Symbol;Acc:HGNC:26563] | D125: no|down | E125: yes|down | F125: no|up | G125: no|down | H125: no|no test | I125: no|up | J125: 1
A126: ENSCHIG00000018324 | B126: MME | C126: membrane metalloendopeptidase [Source:HGNC Symbol;Acc:HGNC:7154] | D126: no|down | E126: no|up | F126: no|down | G126: yes|up | H126: no|down | I126: no|up | J126: 1
A127: ENSCHIG00000020567 | B127: ELOVL3 | C127: ELOVL fatty acid elongase 3 [Source:HGNC Symbol;Acc:HGNC:18047] | D127: no|down | E127: no|down | F127: no|up | G127: yes|down | H127: no|up | I127: no|down | J127: 1
A128: ENSCHIG00000010311 | B128: AXDND1 | C128: axonemal dynein light chain domain containing 1 [Source:HGNC Symbol;Acc:HGNC:26564] | D128: no|down | E128: yes|down | F128: no|no test | G128: no|no test | H128: no|down | I128: no|no test | J128: 1
A129: ENSCHIG00000017472 | B129: FBP2 | C129: fructose-bisphosphatase 2 [Source:HGNC Symbol;Acc:HGNC:3607] | D129: no|down | E129: no|down | F129: no|down | G129: no|down | H129: no|up | I129: yes|down | J129: 1
A130: ENSCHIG00000017478 | B130: RSPH1 | C130: radial spoke head component 1 [Source:HGNC Symbol;Acc:HGNC:12371] | D130: no|down | E130: yes|down | F130: no|down | G130: no|down | H130: no|up | I130: no|up | J130: 1
A131: ENSCHIG00000017479 | B131: FNIP2 | C131: folliculin interacting protein 2 [Source:HGNC Symbol;Acc:HGNC:29280] | D131: no|down | E131: no|down | F131: no|up | G131: no|down | H131: no|up | I131: yes|down | J131: 1
A132: ENSCHIG00000014174 | B132: ACOX2 | C132: acyl-CoA oxidase 2 [Source:HGNC Symbol;Acc:HGNC:120] | D132: no|up | E132: yes|down | F132: no|up | G132: yes|down | H132: no|up | I132: no|down | J132: 2
A133: ENSCHIG00000003943 | D133: no|up | E133: no|down | F133: no|up | G133: no|up | H133: yes|down | I133: no|up | J133: 1
A134: ENSCHIG00000003947 | D134: yes|down | E134: yes|down | F134: no|down | G134: no|down | H134: no|up | I134: no|up | J134: 2
A135: ENSCHIG00000014175 | B135: EFCAB8 | C135: EF-hand calcium binding domain 8 [Source:HGNC Symbol;Acc:HGNC:34532] | D135: no|down | E135: yes|down | F135: no|no test | G135: no|no test | H135: no|down | I135: no|up | J135: 1
A136: ENSCHIG00000016502 | D136: no|up | E136: no|up | F136: yes|down | G136: no|up | H136: yes|down | I136: no|down | J136: 2
A137: ENSCHIG00000016500 | B137: LRRC15 | C137: leucine rich repeat containing 15 [Source:HGNC Symbol;Acc:HGNC:20818] | D137: no|down | E137: no|up | F137: no|down | G137: no|down | H137: no|down | I137: yes|down | J137: 1
A138: ENSCHIG00000004286 | D138: no|down | E138: no|down | F138: no|up | G138: yes|down | H138: no|up | I138: yes|down | J138: 2
A139: ENSCHIG00000020070 | B139: ARHGAP44 | C139: Rho GTPase activating protein 44 [Source:HGNC Symbol;Acc:HGNC:29096] | D139: yes|down | E139: no|down | F139: no|up | G139: no|down | H139: no|up | I139: no|down | J139: 1
A140: ENSCHIG00000017877 | B140: DAZL | C140: deleted in azoospermia like [Source:NCBI gene (formerly Entrezgene);Acc:102183274] | D140: no|down | E140: yes|down | F140: no|up | G140: no|down | H140: no|down | I140: no|up | J140: 1
A141: ENSCHIG00000016873 | B141: PDE7A | C141: phosphodiesterase 7A [Source:HGNC Symbol;Acc:HGNC:8791] | D141: no|up | E141: no|down | F141: yes|up | G141: no|up | H141: no|up | I141: no|up | J141: 1
A142: ENSCHIG00000020247 | B142: ALAD | C142: aminolevulinate dehydratase [Source:HGNC Symbol;Acc:HGNC:395] | D142: no|down | E142: no|down | F142: yes|up | G142: no|down | H142: no|up | I142: no|down | J142: 1
A143: ENSCHIG00000024001 | B143: PCDHGA6 | C143: protocadherin gamma subfamily A, 6 [Source:HGNC Symbol;Acc:HGNC:8704] | D143: yes|up | E143: no|down | F143: no|up | G143: no|down | H143: no|down | I143: no|up | J143: 1
A144: ENSCHIG00000016870 | B144: REEP2 | C144: receptor accessory protein 2 [Source:HGNC Symbol;Acc:HGNC:17975] | D144: no|down | E144: no|down | F144: yes|down | G144: no|down | H144: no|down | I144: no|down | J144: 1
A145: ENSCHIG00000016971 | B145: CFAP45 | C145: cilia and flagella associated protein 45 [Source:HGNC Symbol;Acc:HGNC:17229] | D145: no|down | E145: yes|down | F145: no|up | G145: yes|down | H145: no|up | I145: no|down | J145: 2
A146: ENSCHIG00000016899 | B146: C3orf18 | C146: chromosome 3 open reading frame 18 [Source:HGNC Symbol;Acc:HGNC:24837] | D146: no|up | E146: no|up | F146: no|down | G146: no|up | H146: no|down | I146: yes|down | J146: 1
A147: ENSCHIG00000020456 | B147: MYO15A | C147: myosin XVA [Source:HGNC Symbol;Acc:HGNC:7594] | D147: no|up | E147: no|down | F147: no|up | G147: no|up | H147: no|up | I147: yes|up | J147: 1
A148: ENSCHIG00000026003 | B148: PALMD | C148: palmdelphin [Source:HGNC Symbol;Acc:HGNC:15846] | D148: no|down | E148: yes|down | F148: no|up | G148: no|down | H148: no|up | I148: no|down | J148: 1
A149: ENSCHIG00000021985 | D149: no|down | E149: no|up | F149: no|down | G149: no|down | H149: no|down | I149: yes|down | J149: 1
A150: ENSCHIG00000020103 | B150: CLMN | C150: calmin [Source:HGNC Symbol;Acc:HGNC:19972] | D150: no|down | E150: yes|down | F150: no|up | G150: no|up | H150: no|up | I150: no|down | J150: 1
A151: ENSCHIG00000020105 | B151: ESPNL | C151: espin like [Source:HGNC Symbol;Acc:HGNC:27937] | D151: yes|down | E151: no|down | F151: no|down | G151: yes|down | H151: no|down | I151: no|up | J151: 2
A152: ENSCHIG00000019868 | B152: UFSP1 | C152: UFM1 specific peptidase 1 (inactive) [Source:HGNC Symbol;Acc:HGNC:33821] | D152: yes|down | E152: no|down | F152: no|down | G152: no|down | H152: no|up | I152: no|up | J152: 1
A153: ENSCHIG00000020298 | B153: METRNL | C153: meteorin like, glial cell differentiation regulator [Source:HGNC Symbol;Acc:HGNC:27584] | D153: no|down | E153: no|up | F153: no|down | G153: no|down | H153: no|down | I153: yes|down | J153: 1
A154: ENSCHIG00000024175 | B154: MELTF | C154: melanotransferrin [Source:HGNC Symbol;Acc:HGNC:7037] | D154: no|down | E154: no|down | F154: no|up | G154: yes|down | H154: no|up | I154: no|down | J154: 1
A155: ENSCHIG00000020292 | B155: NR4A3 | C155: nuclear receptor subfamily 4 group A member 3 [Source:HGNC Symbol;Acc:HGNC:7982] | D155: no|up | E155: no|up | F155: no|down | G155: no|down | H155: yes|down | I155: yes|down | J155: 2
A156: ENSCHIG00000024627 | B156: KIF2B | C156: kinesin family member 2B [Source:HGNC Symbol;Acc:HGNC:29443] | D156: no|down | E156: yes|down | F156: no|up | G156: no|down | H156: no|no test | I156: no|down | J156: 1
A157: ENSCHIG00000024179 | D157: no|up | E157: no|up | F157: yes|down | G157: no|up | H157: yes|down | I157: no|up | J157: 2
A158: ENSCHIG00000020297 | B158: SFR1 | C158: SWI5 dependent homologous recombination repair protein 1 [Source:HGNC Symbol;Acc:HGNC:29574] | D158: no|down | E158: no|up | F158: no|up | G158: yes|up | H158: no|down | I158: no|up | J158: 1
A159: ENSCHIG00000020295 | D159: no|down | E159: yes|down | F159: no|down | G159: no|up | H159: no|down | I159: no|up | J159: 1
A160: ENSCHIG00000013117 | D160: yes|down | E160: yes|down | F160: no|up | G160: no|down | H160: no|up | I160: no|up | J160: 2
A161: ENSCHIG00000013114 | B161: FCN1 | C161: ficolin 1 [Source:HGNC Symbol;Acc:HGNC:3623] | D161: no|up | E161: no|up | F161: no|up | G161: no|up | H161: yes|up | I161: no|up | J161: 1
A162: ENSCHIG00000006752 | D162: no|down | E162: no|up | F162: yes|up | G162: no|up | H162: no|up | I162: no|up | J162: 1
A163: ENSCHIG00000020852 | D163: no|down | E163: no|up | F163: no|down | G163: no|down | H163: no|down | I163: yes|down | J163: 1
A164: ENSCHIG00000026271 | B164: TNFRSF21 | C164: TNF receptor superfamily member 21 [Source:HGNC Symbol;Acc:HGNC:13469] | D164: no|down | E164: no|down | F164: no|up | G164: yes|down | H164: no|up | I164: no|down | J164: 1
A165: ENSCHIG00000006756 | B165: GDAP1 | C165: ganglioside induced differentiation associated protein 1 [Source:HGNC Symbol;Acc:HGNC:15968] | D165: no|down | E165: no|up | F165: no|down | G165: no|up | H165: yes|down | I165: no|up | J165: 1
A166: ENSCHIG00000006755 | D166: yes|down | E166: no|down | F166: no|up | G166: no|no test | H166: no|down | I166: no|up | J166: 1
A167: ENSCHIG00000005050 | B167: PITX3 | C167: paired like homeodomain 3 [Source:HGNC Symbol;Acc:HGNC:9006] | D167: no|down | E167: yes|down | F167: no|up | G167: yes|down | H167: no|up | I167: no|down | J167: 2
A168: ENSCHIG00000020858 | B168: SERPINE1 | C168: serpin family E member 1 [Source:HGNC Symbol;Acc:HGNC:8583] | D168: no|up | E168: yes|up | F168: no|down | G168: no|up | H168: yes|down | I168: no|down | J168: 2
A169: ENSCHIG00000021502 | B169: SPC24 | C169: SPC24 component of NDC80 kinetochore complex [Source:HGNC Symbol;Acc:HGNC:26913] | D169: no|up | E169: yes|down | F169: no|down | G169: no|up | H169: yes|down | I169: no|up | J169: 2
A170: ENSCHIG00000016095 | B170: HES6 | C170: hes family bHLH transcription factor 6 [Source:HGNC Symbol;Acc:HGNC:18254] | D170: yes|down | E170: no|up | F170: no|up | G170: no|up | H170: no|down | I170: no|up | J170: 1
A171: ENSCHIG00000021214 | B171: MYH7 | C171: myosin heavy chain 7 [Source:HGNC Symbol;Acc:HGNC:7577] | D171: no|down | E171: yes|down | F171: no|up | G171: yes|down | H171: no|up | I171: no|down | J171: 2
A172: ENSCHIG00000021217 | B172: KATNAL2 | C172: katanin catalytic subunit A1 like 2 [Source:HGNC Symbol;Acc:HGNC:25387] | D172: no|down | E172: yes|down | F172: no|down | G172: no|no test | H172: no|no test | I172: no|down | J172: 1
A173: ENSCHIG00000025713 | B173: BCLAF3 | C173: BCLAF1 and THRAP3 family member 3 [Source:HGNC Symbol;Acc:HGNC:27413] | D173: no|up | E173: no|up | F173: no|up | G173: no|up | H173: no|down | I173: yes|up | J173: 1
A174: ENSCHIG00000021210 | B174: C6 | C174: complement C6 [Source:HGNC Symbol;Acc:HGNC:1339] | D174: no|no test | E174: no|no test | F174: no|up | G174: no|up | H174: no|up | I174: yes|up | J174: 1
A175: ENSCHIG00000021212 | B175: CPXM1 | C175: carboxypeptidase X, M14 family member 1 [Source:HGNC Symbol;Acc:HGNC:15771] | D175: no|down | E175: no|down | F175: yes|down | G175: no|down | H175: no|down | I175: no|down | J175: 1
A176: ENSCHIG00000016658 | B176: CCNT2 | C176: cyclin T2 [Source:HGNC Symbol;Acc:HGNC:1600] | D176: no|up | E176: no|up | F176: no|up | G176: no|up | H176: no|down | I176: yes|up | J176: 1
A177: ENSCHIG00000024355 | B177: LINGO1 | C177: leucine rich repeat and Ig domain containing 1 [Source:HGNC Symbol;Acc:HGNC:21205] | D177: no|up | E177: no|up | F177: no|down | G177: no|down | H177: no|down | I177: yes|down | J177: 1
A178: ENSCHIG00000021186 | B178: HIPK2 | C178: homeodomain interacting protein kinase 2 [Source:HGNC Symbol;Acc:HGNC:14402] | D178: no|up | E178: no|down | F178: no|up | G178: yes|down | H178: no|up | I178: no|down | J178: 1
A179: ENSCHIG00000024353 | D179: no|down | E179: yes|down | F179: no|up | G179: no|down | H179: no|up | I179: no|down | J179: 1
A180: ENSCHIG00000016262 | B180: BCL3 | C180: BCL3 transcription coactivator [Source:HGNC Symbol;Acc:HGNC:998] | D180: yes|up | E180: no|down | F180: no|up | G180: no|up | H180: no|up | I180: no|down | J180: 1
A181: ENSCHIG00000020923 | B181: ANXA1 | C181: annexin A1 [Source:HGNC Symbol;Acc:HGNC:533] | D181: no|up | E181: no|up | F181: no|down | G181: yes|up | H181: no|down | I181: no|up | J181: 1
A182: ENSCHIG00000001839 | D182: yes|up | E182: no|up | F182: no|up | G182: no|up | H182: no|down | I182: no|no test | J182: 1
A183: ENSCHIG00000013682 | B183: RSPO3 | C183: R-spondin 3 [Source:HGNC Symbol;Acc:HGNC:20866] | D183: yes|down | E183: yes|down | F183: no|down | G183: no|down | H183: no|down | I183: yes|up | J183: 3
A184: ENSCHIG00000010656 | B184: RTL1 | C184: retrotransposon Gag like 1 [Source:HGNC Symbol;Acc:HGNC:14665] | D184: no|down | E184: no|up | F184: no|down | G184: yes|up | H184: no|down | I184: no|up | J184: 1
A185: ENSCHIG00000022636 | B185: MMRN1 | C185: multimerin 1 [Source:HGNC Symbol;Acc:HGNC:7178] | D185: yes|up | E185: no|up | F185: no|up | G185: no|up | H185: no|down | I185: yes|up | J185: 2
A186: ENSCHIG00000024598 | B186: C11orf42 | C186: chromosome 11 open reading frame 42 [Source:HGNC Symbol;Acc:HGNC:28541] | D186: no|no test | E186: yes|down | F186: no|no test | G186: no|no test | H186: no|no test | I186: no|no test | J186: 1
A187: ENSCHIG00000022982 | B187: SHCBP1L | C187: SHC binding and spindle associated 1 like [Source:HGNC Symbol;Acc:HGNC:16788] | D187: no|down | E187: yes|down | F187: no|up | G187: no|down | H187: no|up | I187: no|up | J187: 1
A188: ENSCHIG00000022985 | B188: YTHDF2 | C188: YTH N6-methyladenosine RNA binding protein 2 [Source:HGNC Symbol;Acc:HGNC:31675] | D188: no|up | E188: no|up | F188: yes|up | G188: no|up | H188: no|up | I188: no|down | J188: 1
A189: ENSCHIG00000024595 | B189: ADAMTSL4 | C189: ADAMTS like 4 [Source:HGNC Symbol;Acc:HGNC:19706] | D189: no|down | E189: no|down | F189: no|up | G189: yes|down | H189: no|up | I189: no|down | J189: 1
A190: ENSCHIG00000024596 | B190: DDAH1 | C190: dimethylarginine dimethylaminohydrolase 1 [Source:HGNC Symbol;Acc:HGNC:2715] | D190: no|up | E190: no|up | F190: no|up | G190: no|down | H190: no|up | I190: yes|up | J190: 1
A191: ENSCHIG00000025531 | B191: KANSL1L | C191: KAT8 regulatory NSL complex subunit 1 like [Source:HGNC Symbol;Acc:HGNC:26310] | D191: no|up | E191: no|down | F191: no|down | G191: no|up | H191: no|down | I191: yes|up | J191: 1
A192: ENSCHIG00000013757 | D192: no|down | E192: yes|down | F192: no|up | G192: no|down | H192: no|down | I192: no|up | J192: 1
A193: ENSCHIG00000018939 | B193: HIF3A | C193: hypoxia inducible factor 3 subunit alpha [Source:HGNC Symbol;Acc:HGNC:15825] | D193: yes|up | E193: no|down | F193: no|up | G193: no|down | H193: yes|up | I193: yes|up | J193: 3
A194: ENSCHIG00000025537 | B194: GADD45A | C194: growth arrest and DNA damage inducible alpha [Source:HGNC Symbol;Acc:HGNC:4095] | D194: no|down | E194: no|up | F194: no|up | G194: yes|up | H194: no|up | I194: no|down | J194: 1
A195: ENSCHIG00000012376 | B195: AGBL5 | C195: AGBL carboxypeptidase 5 [Source:HGNC Symbol;Acc:HGNC:26147] | D195: no|down | E195: yes|down | F195: no|up | G195: no|down | H195: no|up | I195: no|up | J195: 1
A196: ENSCHIG00000013759 | B196: LCA5L | C196: lebercilin LCA5 like [Source:HGNC Symbol;Acc:HGNC:1255] | D196: no|down | E196: yes|down | F196: no|up | G196: no|down | H196: no|down | I196: no|up | J196: 1
A197: ENSCHIG00000007080 | D197: no|down | E197: yes|down | F197: no|no test | G197: no|down | H197: no|no test | I197: no|up | J197: 1
A198: ENSCHIG00000012084 | B198: ZNF581 | C198: zinc finger protein 581 [Source:HGNC Symbol;Acc:HGNC:25017] | D198: no|down | E198: no|down | F198: no|down | G198: no|down | H198: yes|up | I198: no|down | J198: 1
A199: ENSCHIG00000021725 | B199: SELL | C199: selectin L [Source:HGNC Symbol;Acc:HGNC:10720] | D199: no|up | E199: no|up | F199: no|up | G199: yes|down | H199: no|up | I199: yes|up | J199: 2
A200: ENSCHIG00000006622 | B200: ADAMTS1 | C200: ADAM metallopeptidase with thrombospondin type 1 motif 1 [Source:HGNC Symbol;Acc:HGNC:217] | D200: no|up | E200: no|up | F200: no|down | G200: no|up | H200: yes|down | I200: no|down | J200: 1
... 2614 more rows

Sheet 145 genes in Figure 3
A1: Sucluster_4 contained 145 genes, and their expression in L muscle showed an increase trend with the number of months of age of the goats.
A2: gene id | B2: gene name | C2: gene description
A3: ENSCHIG00000000130 | C3: -
A4: ENSCHIG00000000440 | B4: ATP2B3 | C4: ATPase plasma membrane Ca2+ transporting 3 [Source:HGNC Symbol;Acc:HGNC:816]
A5: ENSCHIG00000000579 | B5: SEMA4D | C5: semaphorin 4D [Source:HGNC Symbol;Acc:HGNC:10732]
A6: ENSCHIG00000001208 | B6: CCDC136 | C6: coiled-coil domain containing 136 [Source:HGNC Symbol;Acc:HGNC:22225]
A7: ENSCHIG00000001269 | B7: TMEM59L | C7: transmembrane protein 59 like [Source:HGNC Symbol;Acc:HGNC:13237]
A8: ENSCHIG00000002535 | C8: -
A9: ENSCHIG00000003048 | B9: ACTL7B | C9: actin like 7B [Source:HGNC Symbol;Acc:HGNC:162]
A10: ENSCHIG00000003164 | C10: -
A11: ENSCHIG00000004186 | B11: AHSP | C11: alpha hemoglobin stabilizing protein [Source:HGNC Symbol;Acc:HGNC:18075]
A12: ENSCHIG00000004591 | B12: 5S_rRNA | C12: 5S ribosomal RNA [Source:RFAM;Acc:RF00001]
A13: ENSCHIG00000005050 | B13: PITX3 | C13: paired like homeodomain 3 [Source:HGNC Symbol;Acc:HGNC:9006]
A14: ENSCHIG00000005780 | B14: TPMT | C14: thiopurine S-methyltransferase [Source:HGNC Symbol;Acc:HGNC:12014]
A15: ENSCHIG00000006460 | C15: -
A16: ENSCHIG00000006481 | B16: CASQ1 | C16: calsequestrin 1 [Source:HGNC Symbol;Acc:HGNC:1512]
A17: ENSCHIG00000006822 | B17: CETN1 | C17: centrin 1 [Source:HGNC Symbol;Acc:HGNC:1866]
A18: ENSCHIG00000007303 | C18: -
A19: ENSCHIG00000007368 | C19: -
A20: ENSCHIG00000007657 | C20: -
A21: ENSCHIG00000007673 | B21: H2BC18 | C21: H2B clustered histone 18 [Source:HGNC Symbol;Acc:HGNC:24700]
A22: ENSCHIG00000007884 | B22: KCNT1 | C22: potassium sodium-activated channel subfamily T member 1 [Source:HGNC Symbol;Acc:HGNC:18865]
A23: ENSCHIG00000008000 | B23: MB | C23: myoglobin [Source:HGNC Symbol;Acc:HGNC:6915]
A24: ENSCHIG00000008110 | B24: GPR182 | C24: G protein-coupled receptor 182 [Source:HGNC Symbol;Acc:HGNC:13708]
A25: ENSCHIG00000008372 | C25: -
A26: ENSCHIG00000008817 | B26: TAGAP | C26: T cell activation RhoGTPase activating protein [Source:HGNC Symbol;Acc:HGNC:15669]
A27: ENSCHIG00000009180 | B27: LRFN4 | C27: leucine rich repeat and fibronectin type III domain containing 4 [Source:HGNC Symbol;Acc:HGNC:28456]
A28: ENSCHIG00000009328 | B28: CRISP2 | C28: cysteine rich secretory protein 2 [Source:NCBI gene (formerly Entrezgene);Acc:100860897]
A29: ENSCHIG00000009718 | B29: HMGB4 | C29: high mobility group box 4 [Source:HGNC Symbol;Acc:HGNC:24954]
A30: ENSCHIG00000009912 | B30: MYBPC2 | C30: myosin binding protein C2 [Source:HGNC Symbol;Acc:HGNC:7550]
A31: ENSCHIG00000009919 | B31: GSG1 | C31: germ cell associated 1 [Source:HGNC Symbol;Acc:HGNC:19716]
A32: ENSCHIG00000010123 | B32: NMB | C32: neuromedin B [Source:HGNC Symbol;Acc:HGNC:7842]
A33: ENSCHIG00000010153 | B33: GDF10 | C33: growth differentiation factor 10 [Source:HGNC Symbol;Acc:HGNC:4215]
A34: ENSCHIG00000010182 | B34: ADORA1 | C34: adenosine A1 receptor [Source:HGNC Symbol;Acc:HGNC:262]
A35: ENSCHIG00000010683 | B35: ARSG | C35: arylsulfatase G [Source:HGNC Symbol;Acc:HGNC:24102]
A36: ENSCHIG00000010980 | C36: -
A37: ENSCHIG00000011447 | B37: ABCB4 | C37: ATP binding cassette subfamily B member 4 [Source:HGNC Symbol;Acc:HGNC:45]
A38: ENSCHIG00000011698 | B38: ANKRD2 | C38: ankyrin repeat domain 2 [Source:HGNC Symbol;Acc:HGNC:495]
A39: ENSCHIG00000011966 | B39: FSCN3 | C39: fascin actin-bundling protein 3 [Source:HGNC Symbol;Acc:HGNC:3961]
A40: ENSCHIG00000012659 | C40: -
A41: ENSCHIG00000012706 | B41: LMCD1 | C41: LIM and cysteine rich domains 1 [Source:HGNC Symbol;Acc:HGNC:6633]
A42: ENSCHIG00000012991 | C42: -
A43: ENSCHIG00000013141 | C43: -
A44: ENSCHIG00000013270 | B44: SEPTIN12 | C44: septin 12 [Source:HGNC Symbol;Acc:HGNC:26348]
A45: ENSCHIG00000013375 | B45: GLYAT | C45: glycine-N-acyltransferase [Source:HGNC Symbol;Acc:HGNC:13734]
A46: ENSCHIG00000013388 | B46: ARHGAP9 | C46: Rho GTPase activating protein 9 [Source:HGNC Symbol;Acc:HGNC:14130]
A47: ENSCHIG00000013396 | B47: MAPK4 | C47: mitogen-activated protein kinase 4 [Source:HGNC Symbol;Acc:HGNC:6878]
A48: ENSCHIG00000013439 | B48: AOX1 | C48: aldehyde oxidase 1 [Source:HGNC Symbol;Acc:HGNC:553]
A49: ENSCHIG00000013869 | B49: SUCO | C49: SUN domain containing ossification factor [Source:HGNC Symbol;Acc:HGNC:1240]
A50: ENSCHIG00000013907 | B50: TNP2 | C50: transition protein 2 [Source:HGNC Symbol;Acc:HGNC:11952]
A51: ENSCHIG00000014014 | B51: NEK6 | C51: NIMA related kinase 6 [Source:HGNC Symbol;Acc:HGNC:7749]
A52: ENSCHIG00000014033 | B52: TSNAXIP1 | C52: translin associated factor X interacting protein 1 [Source:HGNC Symbol;Acc:HGNC:18586]
A53: ENSCHIG00000014166 | B53: ODF3L1 | C53: outer dense fiber of sperm tails 3 like 1 [Source:HGNC Symbol;Acc:HGNC:28735]
A54: ENSCHIG00000014279 | B54: ASB5 | C54: ankyrin repeat and SOCS box containing 5 [Source:HGNC Symbol;Acc:HGNC:17180]
A55: ENSCHIG00000014377 | B55: KCNN1 | C55: potassium calcium-activated channel subfamily N member 1 [Source:HGNC Symbol;Acc:HGNC:6290]
A56: ENSCHIG00000014557 | B56: BHLHE40 | C56: basic helix-loop-helix family member e40 [Source:HGNC Symbol;Acc:HGNC:1046]
A57: ENSCHIG00000014575 | B57: CDH12 | C57: cadherin 12 [Source:HGNC Symbol;Acc:HGNC:1751]
A58: ENSCHIG00000014596 | B58: SRSF12 | C58: serine and arginine rich splicing factor 12 [Source:HGNC Symbol;Acc:HGNC:21220]
A59: ENSCHIG00000014960 | B59: ILDR2 | C59: immunoglobulin like domain containing receptor 2 [Source:HGNC Symbol;Acc:HGNC:18131]
A60: ENSCHIG00000016276 | B60: ACSBG2 | C60: acyl-CoA synthetase bubblegum family member 2 [Source:HGNC Symbol;Acc:HGNC:24174]
A61: ENSCHIG00000016517 | B61: TNNI1 | C61: troponin I1, slow skeletal type [Source:HGNC Symbol;Acc:HGNC:11945]
A62: ENSCHIG00000016601 | C62: -
A63: ENSCHIG00000016682 | B63: DHRSX | C63: dehydrogenase/reductase X-linked [Source:HGNC Symbol;Acc:HGNC:18399]
A64: ENSCHIG00000016697 | B64: SPEM2 | C64: SPEM family member 2 [Source:HGNC Symbol;Acc:HGNC:27315]
A65: ENSCHIG00000017031 | C65: -
A66: ENSCHIG00000017242 | C66: -
A67: ENSCHIG00000017316 | B67: LPAR3 | C67: lysophosphatidic acid receptor 3 [Source:HGNC Symbol;Acc:HGNC:14298]
A68: ENSCHIG00000017467 | B68: TPM3 | C68: tropomyosin 3 [Source:HGNC Symbol;Acc:HGNC:12012]
A69: ENSCHIG00000017598 | B69: HPCAL4 | C69: hippocalcin like 4 [Source:HGNC Symbol;Acc:HGNC:18212]
A70: ENSCHIG00000017705 | C70: -
A71: ENSCHIG00000018088 | C71: -
A72: ENSCHIG00000018100 | B72: PLCB1 | C72: phospholipase C beta 1 [Source:HGNC Symbol;Acc:HGNC:15917]
A73: ENSCHIG00000018138 | B73: ZYG11A | C73: zyg-11 family member A, cell cycle regulator [Source:HGNC Symbol;Acc:HGNC:32058]
A74: ENSCHIG00000018741 | C74: -
A75: ENSCHIG00000018835 | B75: KIAA0753 | C75: KIAA0753 [Source:HGNC Symbol;Acc:HGNC:29110]
A76: ENSCHIG00000019065 | B76: COX6A2 | C76: cytochrome c oxidase subunit 6A2 [Source:HGNC Symbol;Acc:HGNC:2279]
A77: ENSCHIG00000019173 | B77: RAP1GAP2 | C77: RAP1 GTPase activating protein 2 [Source:HGNC Symbol;Acc:HGNC:29176]
A78: ENSCHIG00000019356 | B78: TNNC1 | C78: troponin C1, slow skeletal and cardiac type [Source:NCBI gene (formerly Entrezgene);Acc:100860954]
A79: ENSCHIG00000019534 | C79: -
A80: ENSCHIG00000019593 | B80: TRAF3IP2 | C80: TRAF3 interacting protein 2 [Source:HGNC Symbol;Acc:HGNC:1343]
A81: ENSCHIG00000019643 | B81: PAFAH1B3 | C81: platelet activating factor acetylhydrolase 1b catalytic subunit 3 [Source:HGNC Symbol;Acc:HGNC:8576]
A82: ENSCHIG00000019743 | B82: KLHL34 | C82: kelch like family member 34 [Source:HGNC Symbol;Acc:HGNC:26634]
A83: ENSCHIG00000019882 | B83: CCDC70 | C83: coiled-coil domain containing 70 [Source:HGNC Symbol;Acc:HGNC:25303]
A84: ENSCHIG00000019928 | B84: TMEM151A | C84: transmembrane protein 151A [Source:HGNC Symbol;Acc:HGNC:28497]
A85: ENSCHIG00000019952 | B85: CDK18 | C85: cyclin dependent kinase 18 [Source:HGNC Symbol;Acc:HGNC:8751]
A86: ENSCHIG00000019978 | B86: SMPD3 | C86: sphingomyelin phosphodiesterase 3 [Source:HGNC Symbol;Acc:HGNC:14240]
A87: ENSCHIG00000019988 | B87: MYL2 | C87: myosin light chain 2 [Source:HGNC Symbol;Acc:HGNC:7583]
A88: ENSCHIG00000020190 | B88: EDIL3 | C88: EGF like repeats and discoidin domains 3 [Source:HGNC Symbol;Acc:HGNC:3173]
A89: ENSCHIG00000020363 | B89: SLCO4A1 | C89: solute carrier organic anion transporter family member 4A1 [Source:HGNC Symbol;Acc:HGNC:10953]
A90: ENSCHIG00000020399 | B90: FGD6 | C90: FYVE, RhoGEF and PH domain containing 6 [Source:HGNC Symbol;Acc:HGNC:21740]
A91: ENSCHIG00000020464 | B91: MRPS6 | C91: mitochondrial ribosomal protein S6 [Source:HGNC Symbol;Acc:HGNC:14051]
A92: ENSCHIG00000020567 | B92: ELOVL3 | C92: ELOVL fatty acid elongase 3 [Source:HGNC Symbol;Acc:HGNC:18047]
A93: ENSCHIG00000020570 | C93: -
A94: ENSCHIG00000020813 | B94: SEL1L3 | C94: SEL1L family member 3 [Source:HGNC Symbol;Acc:HGNC:29108]
A95: ENSCHIG00000021214 | B95: MYH7 | C95: myosin heavy chain 7 [Source:HGNC Symbol;Acc:HGNC:7577]
A96: ENSCHIG00000021226 | B96: TNNT1 | C96: troponin T1, slow skeletal type [Source:HGNC Symbol;Acc:HGNC:11948]
A97: ENSCHIG00000021254 | B97: SCD | C97: stearoyl-CoA desaturase [Source:NCBI gene (formerly Entrezgene);Acc:100860763]
A98: ENSCHIG00000021467 | B98: RUSC2 | C98: RUN and SH3 domain containing 2 [Source:HGNC Symbol;Acc:HGNC:23625]
A99: ENSCHIG00000021639 | C99: -
A100: ENSCHIG00000021694 | B100: CENPQ | C100: centromere protein Q [Source:HGNC Symbol;Acc:HGNC:21347]
A101: ENSCHIG00000021756 | B101: ZIC3 | C101: Zic family member 3 [Source:HGNC Symbol;Acc:HGNC:12874]
A102: ENSCHIG00000021884 | C102: -
A103: ENSCHIG00000021945 | C103: -
A104: ENSCHIG00000021985 | C104: -
A105: ENSCHIG00000022266 | B105: SYNPO2 | C105: synaptopodin 2 [Source:HGNC Symbol;Acc:HGNC:17732]
A106: ENSCHIG00000022466 | B106: GALNT13 | C106: polypeptide N-acetylgalactosaminyltransferase 13 [Source:HGNC Symbol;Acc:HGNC:23242]
A107: ENSCHIG00000022524 | B107: TMEM80 | C107: transmembrane protein 80 [Source:HGNC Symbol;Acc:HGNC:27453]
A108: ENSCHIG00000022676 | B108: FRMD3 | C108: FERM domain containing 3 [Source:HGNC Symbol;Acc:HGNC:24125]
A109: ENSCHIG00000022860 | C109: -
A110: ENSCHIG00000023005 | B110: CSRP3 | C110: cysteine and glycine rich protein 3 [Source:HGNC Symbol;Acc:HGNC:2472]
A111: ENSCHIG00000023109 | B111: KLHL30 | C111: kelch like family member 30 [Source:HGNC Symbol;Acc:HGNC:24770]
A112: ENSCHIG00000023325 | B112: SLC6A11 | C112: solute carrier family 6 member 11 [Source:HGNC Symbol;Acc:HGNC:11044]
A113: ENSCHIG00000023346 | B113: CPNE9 | C113: copine family member 9 [Source:HGNC Symbol;Acc:HGNC:24336]
A114: ENSCHIG00000023465 | C114: -
A115: ENSCHIG00000023790 | B115: CYP4F50 | C115: cytochrome P450 family 4 subfamily F member 50 [Source:VGNC Symbol;Acc:VGNC:103456]
A116: ENSCHIG00000023862 | B116: ABCC2 | C116: ATP binding cassette subfamily C member 2 [Source:HGNC Symbol;Acc:HGNC:53]
A117: ENSCHIG00000023960 | B117: ACSM1 | C117: acyl-CoA synthetase medium chain family member 1 [Source:HGNC Symbol;Acc:HGNC:18049]
A118: ENSCHIG00000024060 | B118: PLIN1 | C118: perilipin 1 [Source:HGNC Symbol;Acc:HGNC:9076]
A119: ENSCHIG00000024152 | B119: ATP2A1 | C119: ATPase sarcoplasmic/endoplasmic reticulum Ca2+ transporting 1 [Source:HGNC Symbol;Acc:HGNC:811]
A120: ENSCHIG00000024264 | C120: -
A121: ENSCHIG00000024371 | B121: DRD1 | C121: dopamine receptor D1 [Source:HGNC Symbol;Acc:HGNC:3020]
A122: ENSCHIG00000024389 | C122: -
A123: ENSCHIG00000024499 | B123: OAZ3 | C123: ornithine decarboxylase antizyme 3 [Source:HGNC Symbol;Acc:HGNC:8097]
A124: ENSCHIG00000024519 | B124: ACSM3 | C124: acyl-CoA synthetase medium chain family member 3 [Source:HGNC Symbol;Acc:HGNC:10522]
A125: ENSCHIG00000024633 | B125: ROPN1L | C125: rhophilin associated tail protein 1 like [Source:HGNC Symbol;Acc:HGNC:24060]
A126: ENSCHIG00000024668 | B126: ACOT7 | C126: acyl-CoA thioesterase 7 [Source:HGNC Symbol;Acc:HGNC:24157]
A127: ENSCHIG00000024679 | B127: TLX2 | C127: T cell leukemia homeobox 2 [Source:HGNC Symbol;Acc:HGNC:5057]
A128: ENSCHIG00000024723 | B128: ODF1 | C128: outer dense fiber of sperm tails 1 [Source:NCBI gene (formerly Entrezgene);Acc:102172645]
A129: ENSCHIG00000024789 | B129: ASB18 | C129: ankyrin repeat and SOCS box containing 18 [Source:HGNC Symbol;Acc:HGNC:19770]
A130: ENSCHIG00000024973 | B130: ADGRB2 | C130: adhesion G protein-coupled receptor B2 [Source:HGNC Symbol;Acc:HGNC:944]
A131: ENSCHIG00000025066 | B131: SLC19A1 | C131: solute carrier family 19 member 1 [Source:HGNC Symbol;Acc:HGNC:10937]
A132: ENSCHIG00000025189 | B132: FAM110B | C132: family with sequence similarity 110 member B [Source:HGNC Symbol;Acc:HGNC:28587]
A133: ENSCHIG00000025225 | B133: CMTM2 | C133: CKLF like MARVEL transmembrane domain containing 2 [Source:HGNC Symbol;Acc:HGNC:19173]
A134: ENSCHIG00000025262 | B134: DIAPH1 | C134: diaphanous related formin 1 [Source:HGNC Symbol;Acc:HGNC:2876]
A135: ENSCHIG00000025288 | B135: RAB15 | C135: RAB15, member RAS oncogene family [Source:HGNC Symbol;Acc:HGNC:20150]
A136: ENSCHIG00000025399 | B136: TP53INP2 | C136: tumor protein p53 inducible nuclear protein 2 [Source:HGNC Symbol;Acc:HGNC:16104]
A137: ENSCHIG00000025577 | B137: DHCR24 | C137: 24-dehydrocholesterol reductase [Source:HGNC Symbol;Acc:HGNC:2859]
A138: ENSCHIG00000025583 | B138: C10orf62 | C138: chromosome 10 open reading frame 62 [Source:HGNC Symbol;Acc:HGNC:23294]
A139: ENSCHIG00000025813 | B139: IBA57 | C139: iron-sulfur cluster assembly factor IBA57 [Source:HGNC Symbol;Acc:HGNC:27302]
A140: ENSCHIG00000025950 | C140: -
A141: ENSCHIG00000026174 | B141: HSPB7 | C141: heat shock protein family B (small) member 7 [Source:HGNC Symbol;Acc:HGNC:5249]
A142: ENSCHIG00000026271 | B142: TNFRSF21 | C142: TNF receptor superfamily member 21 [Source:HGNC Symbol;Acc:HGNC:13469]
A143: ENSCHIG00000026732 | B143: TEKT2 | C143: tektin 2 [Source:HGNC Symbol;Acc:HGNC:11725]
A144: ENSCHIG00000026745 | B144: C12orf54 | C144: chromosome 12 open reading frame 54 [Source:HGNC Symbol;Acc:HGNC:28553]
A145: ENSCHIG00000026913 | B145: IL17B | C145: interleukin 17B [Source:HGNC Symbol;Acc:HGNC:5982]
A146: ENSCHIG00000026965 | B146: HEY2 | C146: hes related family bHLH transcription factor with YRPW motif 2 [Source:HGNC Symbol;Acc:HGNC:4881]
A147: ENSCHIG00000027140 | B147: ROR1 | C147: receptor tyrosine kinase like orphan receptor 1 [Source:HGNC Symbol;Acc:HGNC:10256]

Sheet 321 genes in Figure 3
A1: Sucluster_7 contained 321 genes, and their expression in L muscle showed a decrease trend with the number of months of age of the goats.
A2: gene id | B2: gene name | C2: gene description
A3: ENSCHIG00000000198 | B3: FMR1 | C3: FMRP translational regulator 1 [Source:HGNC Symbol;Acc:HGNC:3775]
A4: ENSCHIG00000000237 | C4: -
A5: ENSCHIG00000000274 | C5: -
A6: ENSCHIG00000000345 | C6: -
A7: ENSCHIG00000000350 | B7: MAPRE2 | C7: microtubule associated protein RP/EB family member 2 [Source:HGNC Symbol;Acc:HGNC:6891]
A8: ENSCHIG00000000487 | B8: PUS1 | C8: pseudouridine synthase 1 [Source:HGNC Symbol;Acc:HGNC:15508]
A9: ENSCHIG00000000565 | B9: SNORD65 | C9: small nucleolar RNA, C/D box 65 [Source:HGNC Symbol;Acc:HGNC:32726]
A10: ENSCHIG00000000721 | B10: LY86 | C10: lymphocyte antigen 86 [Source:HGNC Symbol;Acc:HGNC:16837]
A11: ENSCHIG00000000990 | C11: -
A12: ENSCHIG00000001073 | C12: -
A13: ENSCHIG00000001241 | C13: -
A14: ENSCHIG00000001635 | B14: ZBTB7C | C14: zinc finger and BTB domain containing 7C [Source:HGNC Symbol;Acc:HGNC:31700]
A15: ENSCHIG00000001637 | C15: -
A16: ENSCHIG00000001679 | C16: -
A17: ENSCHIG00000001869 | B17: SNORA24 | C17: small nucleolar RNA, H/ACA box 24 [Source:HGNC Symbol;Acc:HGNC:32614]
A18: ENSCHIG00000001992 | B18: AP1AR | C18: adaptor related protein complex 1 associated regulatory protein [Source:HGNC Symbol;Acc:HGNC:28808]
A19: ENSCHIG00000002119 | C19: -
A20: ENSCHIG00000002276 | B20: UTP3 | C20: UTP3 small subunit processome component [Source:HGNC Symbol;Acc:HGNC:24477]
A21: ENSCHIG00000002285 | B21: DAPK2 | C21: death associated protein kinase 2 [Source:HGNC Symbol;Acc:HGNC:2675]
A22: ENSCHIG00000002299 | B22: FOXD1 | C22: forkhead box D1 [Source:HGNC Symbol;Acc:HGNC:3802]
A23: ENSCHIG00000002489 | C23: -
A24: ENSCHIG00000002993 | C24: -
A25: ENSCHIG00000003425 | B25: RNaseP_nuc | C25: Nuclear RNase P [Source:RFAM;Acc:RF00009]
A26: ENSCHIG00000003508 | B26: SEC14L3 | C26: SEC14 like lipid binding 3 [Source:HGNC Symbol;Acc:HGNC:18655]
A27: ENSCHIG00000003512 | C27: -
A28: ENSCHIG00000003518 | B28: HSPH1 | C28: heat shock protein family H (Hsp110) member 1 [Source:HGNC Symbol;Acc:HGNC:16969]
A29: ENSCHIG00000003547 | B29: FGF14 | C29: fibroblast growth factor 14 [Source:HGNC Symbol;Acc:HGNC:3671]
A30: ENSCHIG00000003641 | B30: BAIAP2L1 | C30: BAR/IMD domain containing adaptor protein 2 like 1 [Source:HGNC Symbol;Acc:HGNC:21649]
A31: ENSCHIG00000003747 | C31: -
A32: ENSCHIG00000004059 | C32: -
A33: ENSCHIG00000004224 | B33: SNORD24 | C33: Small nucleolar RNA SNORD24 [Source:RFAM;Acc:RF00069]
A34: ENSCHIG00000004584 | B34: PGBD2 | C34: piggyBac transposable element derived 2 [Source:HGNC Symbol;Acc:HGNC:19399]
A35: ENSCHIG00000004586 | B35: TMEM200C | C35: transmembrane protein 200C [Source:HGNC Symbol;Acc:HGNC:37208]
A36: ENSCHIG00000004603 | B36: DEPP1 | C36: DEPP1 autophagy regulator [Source:HGNC Symbol;Acc:HGNC:23355]
A37: ENSCHIG00000004693 | B37: SNORD1B | C37: small nucleolar RNA, C/D box 1B [Source:HGNC Symbol;Acc:HGNC:32676]
A38: ENSCHIG00000004772 | C38: -
A39: ENSCHIG00000004977 | C39: -
A40: ENSCHIG00000005379 | B40: RELL1 | C40: RELT like 1 [Source:HGNC Symbol;Acc:HGNC:27379]
A41: ENSCHIG00000005699 | B41: METTL21C | C41: methyltransferase 21C, AARS1 lysine [Source:HGNC Symbol;Acc:HGNC:33717]
A42: ENSCHIG00000005844 | C42: -
A43: ENSCHIG00000005885 | B43: LRRC4C | C43: leucine rich repeat containing 4C [Source:HGNC Symbol;Acc:HGNC:29317]
A44: ENSCHIG00000005917 | B44: ODAD2 | C44: outer dynein arm docking complex subunit 2 [Source:HGNC Symbol;Acc:HGNC:25583]
A45: ENSCHIG00000006001 | B45: WDR43 | C45: WD repeat domain 43 [Source:HGNC Symbol;Acc:HGNC:28945]
A46: ENSCHIG00000006450 | C46: -
A47: ENSCHIG00000006614 | B47: PPP1R3B | C47: protein phosphatase 1 regulatory subunit 3B [Source:HGNC Symbol;Acc:HGNC:14942]
A48: ENSCHIG00000006615 | C48: -
A49: ENSCHIG00000006632 | B49: DPP6 | C49: dipeptidyl peptidase like 6 [Source:HGNC Symbol;Acc:HGNC:3010]
A50: ENSCHIG00000006752 | C50: -
A51: ENSCHIG00000006770 | B51: PDGFD | C51: platelet derived growth factor D [Source:HGNC Symbol;Acc:HGNC:30620]
A52: ENSCHIG00000006867 | B52: SDAD1 | C52: SDA1 domain containing 1 [Source:HGNC Symbol;Acc:HGNC:25537]
A53: ENSCHIG00000006900 | B53: RRP9 | C53: ribosomal RNA processing 9, U3 small nucleolar RNA binding protein [Source:HGNC Symbol;Acc:HGNC:16829]
A54: ENSCHIG00000007254 | B54: ABCG1 | C54: ATP binding cassette subfamily G member 1 [Source:HGNC Symbol;Acc:HGNC:73]
A55: ENSCHIG00000007459 | B55: TFPI | C55: tissue factor pathway inhibitor [Source:HGNC Symbol;Acc:HGNC:11760]
A56: ENSCHIG00000007485 | B56: PLCB2 | C56: phospholipase C beta 2 [Source:HGNC Symbol;Acc:HGNC:9055]
A57: ENSCHIG00000007592 | B57: GAS1 | C57: growth arrest specific 1 [Source:HGNC Symbol;Acc:HGNC:4165]
A58: ENSCHIG00000007906 | C58: -
A59: ENSCHIG00000008041 | C59: -
A60: ENSCHIG00000008080 | B60: NIBAN2 | C60: niban apoptosis regulator 2 [Source:HGNC Symbol;Acc:HGNC:25282]
A61: ENSCHIG00000008163 | B61: ACKR4 | C61: atypical chemokine receptor 4 [Source:HGNC Symbol;Acc:HGNC:1611]
A62: ENSCHIG00000008213 | B62: ALK | C62: ALK receptor tyrosine kinase [Source:HGNC Symbol;Acc:HGNC:427]
A63: ENSCHIG00000008577 | B63: SFRP4 | C63: secreted frizzled related protein 4 [Source:HGNC Symbol;Acc:HGNC:10778]
A64: ENSCHIG00000008594 | B64: FYCO1 | C64: FYVE and coiled-coil domain autophagy adaptor 1 [Source:HGNC Symbol;Acc:HGNC:14673]
A65: ENSCHIG00000008939 | B65: PEMT | C65: phosphatidylethanolamine N-methyltransferase [Source:HGNC Symbol;Acc:HGNC:8830]
A66: ENSCHIG00000009141 | B66: RRS1 | C66: ribosome biogenesis regulator 1 homolog [Source:HGNC Symbol;Acc:HGNC:17083]
A67: ENSCHIG00000009189 | C67: -
A68: ENSCHIG00000009248 | C68: -
A69: ENSCHIG00000009316 | B69: HSD3B7 | C69: hydroxy-delta-5-steroid dehydrogenase, 3 beta- and steroid delta-isomerase 7 [Source:HGNC Symbol;Acc:HGNC:18324]
A70: ENSCHIG00000009402 | B70: ZFP90 | C70: ZFP90 zinc finger protein [Source:HGNC Symbol;Acc:HGNC:23329]
A71: ENSCHIG00000009440 | B71: PGK1 | C71: phosphoglycerate kinase 1 [Source:HGNC Symbol;Acc:HGNC:8896]
A72: ENSCHIG00000009779 | C72: -
A73: ENSCHIG00000009795 | B73: ZSCAN2 | C73: zinc finger and SCAN domain containing 2 [Source:HGNC Symbol;Acc:HGNC:20994]
A74: ENSCHIG00000009800 | C74: -
A75: ENSCHIG00000009839 | C75: -
A76: ENSCHIG00000010101 | C76: -
A77: ENSCHIG00000010221 | B77: FAM83G | C77: family with sequence similarity 83 member G [Source:HGNC Symbol;Acc:HGNC:32554]
A78: ENSCHIG00000010227 | C78: -
A79: ENSCHIG00000010257 | B79: PARM1 | C79: prostate androgen-regulated mucin-like protein 1 [Source:HGNC Symbol;Acc:HGNC:24536]
A80: ENSCHIG00000010263 | B80: MXD1 | C80: MAX dimerization protein 1 [Source:HGNC Symbol;Acc:HGNC:6761]
A81: ENSCHIG00000010320 | B81: DGAT2 | C81: diacylglycerol O-acyltransferase 2 [Source:NCBI gene (formerly Entrezgene);Acc:102174409]
A82: ENSCHIG00000010325 | B82: ASB2 | C82: ankyrin repeat and SOCS box containing 2 [Source:HGNC Symbol;Acc:HGNC:16012]
A83: ENSCHIG00000010417 | B83: HDAC11 | C83: histone deacetylase 11 [Source:HGNC Symbol;Acc:HGNC:19086]
A84: ENSCHIG00000010451 | B84: UNC5CL | C84: unc-5 family C-terminal like [Source:HGNC Symbol;Acc:HGNC:21203]
A85: ENSCHIG00000010465 | B85: HASPIN | C85: histone H3 associated protein kinase [Source:HGNC Symbol;Acc:HGNC:19682]
A86: ENSCHIG00000010568 | C86: -
A87: ENSCHIG00000010675 | B87: JMY | C87: junction mediating and regulatory protein, p53 cofactor [Source:HGNC Symbol;Acc:HGNC:28916]
A88: ENSCHIG00000010679 | C88: -
A89: ENSCHIG00000010728 | B89: BEND3 | C89: BEN domain containing 3 [Source:HGNC Symbol;Acc:HGNC:23040]
A90: ENSCHIG00000010860 | B90: PRG4 | C90: proteoglycan 4 [Source:HGNC Symbol;Acc:HGNC:9364]
A91: ENSCHIG00000010900 | B91: SIM1 | C91: SIM bHLH transcription factor 1 [Source:HGNC Symbol;Acc:HGNC:10882]
A92: ENSCHIG00000011063 | C92: -
A93: ENSCHIG00000011164 | B93: TGIF1 | C93: TGFB induced factor homeobox 1 [Source:HGNC Symbol;Acc:HGNC:11776]
A94: ENSCHIG00000011295 | C94: -
A95: ENSCHIG00000011335 | B95: GCGR | C95: glucagon receptor [Source:HGNC Symbol;Acc:HGNC:4192]
A96: ENSCHIG00000011396 | B96: PCGF6 | C96: polycomb group ring finger 6 [Source:HGNC Symbol;Acc:HGNC:21156]
A97: ENSCHIG00000011430 | B97: CENPW | C97: centromere protein W [Source:HGNC Symbol;Acc:HGNC:21488]
A98: ENSCHIG00000011455 | B98: FGF18 | C98: fibroblast growth factor 18 [Source:HGNC Symbol;Acc:HGNC:3674]
A99: ENSCHIG00000011471 | B99: PPRC1 | C99: PPARG related coactivator 1 [Source:HGNC Symbol;Acc:HGNC:30025]
A100: ENSCHIG00000011480 | B100: BUD13 | C100: BUD13 homolog [Source:HGNC Symbol;Acc:HGNC:28199]
A101: ENSCHIG00000011664 | B101: NFASC | C101: neurofascin [Source:HGNC Symbol;Acc:HGNC:29866]
A102: ENSCHIG00000011810 | B102: MTRF1 | C102: mitochondrial translation release factor 1 [Source:HGNC Symbol;Acc:HGNC:7469]
A103: ENSCHIG00000012177 | C103: -
A104: ENSCHIG00000012210 | B104: AIG1 | C104: androgen induced 1 [Source:HGNC Symbol;Acc:HGNC:21607]
A105: ENSCHIG00000012276 | C105: -
A106: ENSCHIG00000012282 | B106: CLCN2 | C106: chloride voltage-gated channel 2 [Source:HGNC Symbol;Acc:HGNC:2020]
A107: ENSCHIG00000012343 | B107: NCAPG | C107: non-SMC condensin I complex subunit G [Source:HGNC Symbol;Acc:HGNC:24304]
A108: ENSCHIG00000012346 | C108: -
A109: ENSCHIG00000012470 | B109: C11orf71 | C109: chromosome 11 open reading frame 71 [Source:HGNC Symbol;Acc:HGNC:25937]
A110: ENSCHIG00000012484 | B110: RPP38 | C110: ribonuclease P/MRP subunit p38 [Source:HGNC Symbol;Acc:HGNC:30329]
A111: ENSCHIG00000012488 | B111: CHRM1 | C111: cholinergic receptor muscarinic 1 [Source:HGNC Symbol;Acc:HGNC:1950]
A112: ENSCHIG00000012498 | B112: TOP2A | C112: DNA topoisomerase II alpha [Source:HGNC Symbol;Acc:HGNC:11989]
A113: ENSCHIG00000012583 | B113: TMF1 | C113: TATA element modulatory factor 1 [Source:HGNC Symbol;Acc:HGNC:11870]
A114: ENSCHIG00000012593 | C114: -
A115: ENSCHIG00000012686 | B115: RANBP2 | C115: RAN binding protein 2 [Source:HGNC Symbol;Acc:HGNC:9848]
A116: ENSCHIG00000012736 | B116: ITGBL1 | C116: integrin subunit beta like 1 [Source:HGNC Symbol;Acc:HGNC:6164]
A117: ENSCHIG00000012744 | B117: TMEM119 | C117: transmembrane protein 119 [Source:HGNC Symbol;Acc:HGNC:27884]
A118: ENSCHIG00000012885 | B118: SHISAL1 | C118: shisa like 1 [Source:HGNC Symbol;Acc:HGNC:29335]
A119: ENSCHIG00000012917 | C119: -
A120: ENSCHIG00000012926 | C120: -
A121: ENSCHIG00000012966 | B121: ANTXR2 | C121: ANTXR cell adhesion molecule 2 [Source:HGNC Symbol;Acc:HGNC:21732]
A122: ENSCHIG00000012983 | B122: MMP24 | C122: matrix metallopeptidase 24 [Source:HGNC Symbol;Acc:HGNC:7172]
A123: ENSCHIG00000013015 | C123: -
A124: ENSCHIG00000013035 | B124: SLC22A23 | C124: solute carrier family 22 member 23 [Source:HGNC Symbol;Acc:HGNC:21106]
A125: ENSCHIG00000013158 | B125: SLX4IP | C125: SLX4 interacting protein [Source:HGNC Symbol;Acc:HGNC:16225]
A126: ENSCHIG00000013169 | B126: P4HTM | C126: prolyl 4-hydroxylase, transmembrane [Source:HGNC Symbol;Acc:HGNC:28858]
A127: ENSCHIG00000013182 | B127: CWF19L2 | C127: CWF19 like cell cycle control factor 2 [Source:HGNC Symbol;Acc:HGNC:26508]
A128: ENSCHIG00000013290 | B128: MMP16 | C128: matrix metallopeptidase 16 [Source:HGNC Symbol;Acc:HGNC:7162]
A129: ENSCHIG00000013297 | B129: VSIG4 | C129: V-set and immunoglobulin domain containing 4 [Source:HGNC Symbol;Acc:HGNC:17032]
A130: ENSCHIG00000013417 | B130: SFMBT2 | C130: Scm like with four mbt domains 2 [Source:HGNC Symbol;Acc:HGNC:20256]
A131: ENSCHIG00000013430 | C131: -
A132: ENSCHIG00000013473 | B132: SMG1 | C132: SMG1 nonsense mediated mRNA decay associated PI3K related kinase [Source:HGNC Symbol;Acc:HGNC:30045]
A133: ENSCHIG00000013574 | B133: NAMPT | C133: nicotinamide phosphoribosyltransferase [Source:HGNC Symbol;Acc:HGNC:30092]
A134: ENSCHIG00000013578 | B134: SLC25A33 | C134: solute carrier family 25 member 33 [Source:HGNC Symbol;Acc:HGNC:29681]
A135: ENSCHIG00000013583 | C135: -
A136: ENSCHIG00000013748 | B136: CCDC69 | C136: coiled-coil domain containing 69 [Source:HGNC Symbol;Acc:HGNC:24487]
A137: ENSCHIG00000013843 | B137: STARD10 | C137: StAR related lipid transfer domain containing 10 [Source:HGNC Symbol;Acc:HGNC:10666]
A138: ENSCHIG00000013889 | B138: MYL3 | C138: myosin light chain 3 [Source:HGNC Symbol;Acc:HGNC:7584]
A139: ENSCHIG00000013991 | B139: C16orf89 | C139: chromosome 16 open reading frame 89 [Source:HGNC Symbol;Acc:HGNC:28687]
A140: ENSCHIG00000014057 | B140: MEI1 | C140: meiotic double-stranded break formation protein 1 [Source:HGNC Symbol;Acc:HGNC:28613]
A141: ENSCHIG00000014095 | B141: FRMPD1 | C141: FERM and PDZ domain containing 1 [Source:HGNC Symbol;Acc:HGNC:29159]
A142: ENSCHIG00000014127 | B142: IER3 | C142: immediate early response 3 [Source:HGNC Symbol;Acc:HGNC:5392]
A143: ENSCHIG00000014421 | B143: SERPINE3 | C143: serpin family E member 3 [Source:HGNC Symbol;Acc:HGNC:24774]
A144: ENSCHIG00000014465 | B144: CCDC86 | C144: coiled-coil domain containing 86 [Source:HGNC Symbol;Acc:HGNC:28359]
A145: ENSCHIG00000014571 | B145: FAM131C | C145: family with sequence similarity 131 member C [Source:HGNC Symbol;Acc:HGNC:26717]
A146: ENSCHIG00000014609 | B146: POLR3E | C146: RNA polymerase III subunit E [Source:HGNC Symbol;Acc:HGNC:30347]
A147: ENSCHIG00000014727 | B147: CCR9 | C147: C-C motif chemokine receptor 9 [Source:HGNC Symbol;Acc:HGNC:1610]
A148: ENSCHIG00000014748 | C148: -
A149: ENSCHIG00000014983 | C149: -
A150: ENSCHIG00000015012 | C150: -
A151: ENSCHIG00000015024 | B151: BRIX1 | C151: biogenesis of ribosomes BRX1 [Source:HGNC Symbol;Acc:HGNC:24170]
A152: ENSCHIG00000015047 | B152: PERP | C152: p53 apoptosis effector related to PMP22 [Source:HGNC Symbol;Acc:HGNC:17637]
A153: ENSCHIG00000015067 | C153: -
A154: ENSCHIG00000015161 | B154: SGTB | C154: small glutamine rich tetratricopeptide repeat co-chaperone beta [Source:HGNC Symbol;Acc:HGNC:23567]
A155: ENSCHIG00000015261 | B155: CEP57L1 | C155: centrosomal protein 57 like 1 [Source:HGNC Symbol;Acc:HGNC:21561]
A156: ENSCHIG00000015267 | B156: PHKB | C156: phosphorylase kinase regulatory subunit beta [Source:HGNC Symbol;Acc:HGNC:8927]
A157: ENSCHIG00000015365 | C157: -
A158: ENSCHIG00000015381 | B158: FBXO32 | C158: F-box protein 32 [Source:HGNC Symbol;Acc:HGNC:16731]
A159: ENSCHIG00000015395 | B159: TRMT13 | C159: tRNA methyltransferase 13 homolog [Source:HGNC Symbol;Acc:HGNC:25502]
A160: ENSCHIG00000015539 | B160: GAS2L3 | C160: growth arrest specific 2 like 3 [Source:HGNC Symbol;Acc:HGNC:27475]
A161: ENSCHIG00000015574 | B161: FGF7 | C161: fibroblast growth factor 7 [Source:HGNC Symbol;Acc:HGNC:3685]
A162: ENSCHIG00000015674 | C162: -
A163: ENSCHIG00000015677 | B163: SLC4A7 | C163: solute carrier family 4 member 7 [Source:HGNC Symbol;Acc:HGNC:11033]
A164: ENSCHIG00000015686 | B164: PPM1K | C164: protein phosphatase, Mg2+/Mn2+ dependent 1K [Source:HGNC Symbol;Acc:HGNC:25415]
A165: ENSCHIG00000015731 | B165: GNL2 | C165: G protein nucleolar 2 [Source:HGNC Symbol;Acc:HGNC:29925]
A166: ENSCHIG00000015772 | B166: C1QTNF6 | C166: C1q and TNF related 6 [Source:HGNC Symbol;Acc:HGNC:14343]
A167: ENSCHIG00000015849 | C167: -
A168: ENSCHIG00000015898 | B168: ALPK3 | C168: alpha kinase 3 [Source:HGNC Symbol;Acc:HGNC:17574]
A169: ENSCHIG00000015906 | B169: SLC2A8 | C169: solute carrier family 2 member 8 [Source:HGNC Symbol;Acc:HGNC:13812]
A170: ENSCHIG00000015958 | B170: BRIP1 | C170: BRCA1 interacting helicase 1 [Source:HGNC Symbol;Acc:HGNC:20473]
A171: ENSCHIG00000015980 | B171: AMPD1 | C171: adenosine monophosphate deaminase 1 [Source:HGNC Symbol;Acc:HGNC:468]
A172: ENSCHIG00000015997 | B172: USP1 | C172: ubiquitin specific peptidase 1 [Source:HGNC Symbol;Acc:HGNC:12607]
A173: ENSCHIG00000016280 | B173: CRYBG3 | C173: crystallin beta-gamma domain containing 3 [Source:HGNC Symbol;Acc:HGNC:34427]
A174: ENSCHIG00000016374 | B174: GFRA2 | C174: GDNF family receptor alpha 2 [Source:HGNC Symbol;Acc:HGNC:4244]
A175: ENSCHIG00000016418 | B175: CSTF3 | C175: cleavage stimulation factor subunit 3 [Source:HGNC Symbol;Acc:HGNC:2485]
A176: ENSCHIG00000016465 | B176: PRMT3 | C176: protein arginine methyltransferase 3 [Source:HGNC Symbol;Acc:HGNC:30163]
A177: ENSCHIG00000016500 | B177: LRRC15 | C177: leucine rich repeat containing 15 [Source:HGNC Symbol;Acc:HGNC:20818]
A178: ENSCHIG00000016555 | B178: DCLRE1A | C178: DNA cross-link repair 1A [Source:HGNC Symbol;Acc:HGNC:17660]
A179: ENSCHIG00000016603 | B179: WDR75 | C179: WD repeat domain 75 [Source:HGNC Symbol;Acc:HGNC:25725]
A180: ENSCHIG00000016736 | B180: BAG2 | C180: BAG cochaperone 2 [Source:HGNC Symbol;Acc:HGNC:938]
A181: ENSCHIG00000016831 | B181: ZNF570 | C181: zinc finger protein 570 [Source:HGNC Symbol;Acc:HGNC:26416]
A182: ENSCHIG00000016870 | B182: REEP2 | C182: receptor accessory protein 2 [Source:HGNC Symbol;Acc:HGNC:17975]
A183: ENSCHIG00000017030 | B183: LOX | C183: lysyl oxidase [Source:HGNC Symbol;Acc:HGNC:6664]
A184: ENSCHIG00000017223 | B184: INTS6 | C184: integrator complex subunit 6 [Source:HGNC Symbol;Acc:HGNC:14879]
A185: ENSCHIG00000017366 | B185: GPX2 | C185: glutathione peroxidase 2 [Source:HGNC Symbol;Acc:HGNC:4554]
A186: ENSCHIG00000017377 | B186: EML4 | C186: EMAP like 4 [Source:HGNC Symbol;Acc:HGNC:1316]
A187: ENSCHIG00000017444 | B187: ZNF268 | C187: zinc finger protein 268 [Source:HGNC Symbol;Acc:HGNC:13061]
A188: ENSCHIG00000017462 | C188: -
A189: ENSCHIG00000017768 | B189: CFTR | C189: CF transmembrane conductance regulator [Source:HGNC Symbol;Acc:HGNC:1884]
A190: ENSCHIG00000017782 | B190: SDCCAG8 | C190: SHH signaling and ciliogenesis regulator SDCCAG8 [Source:HGNC Symbol;Acc:HGNC:10671]
A191: ENSCHIG00000017800 | B191: TRIM63 | C191: tripartite motif containing 63 [Source:HGNC Symbol;Acc:HGNC:16007]
A192: ENSCHIG00000017801 | B192: ASS1 | C192: argininosuccinate synthase 1 [Source:HGNC Symbol;Acc:HGNC:758]
A193: ENSCHIG00000017859 | B193: OSTM1 | C193: osteoclastogenesis associated transmembrane protein 1 [Source:HGNC Symbol;Acc:HGNC:21652]
A194: ENSCHIG00000017907 | C194: -
A195: ENSCHIG00000017921 | B195: ASB9 | C195: ankyrin repeat and SOCS box containing 9 [Source:HGNC Symbol;Acc:HGNC:17184]
A196: ENSCHIG00000017925 | B196: SNX16 | C196: sorting nexin 16 [Source:HGNC Symbol;Acc:HGNC:14980]
A197: ENSCHIG00000018097 | B197: KRT12 | C197: keratin 12 [Source:HGNC Symbol;Acc:HGNC:6414]
A198: ENSCHIG00000018110 | B198: FBXO48 | C198: F-box protein 48 [Source:HGNC Symbol;Acc:HGNC:33857]
A199: ENSCHIG00000018158 | B199: SLC16A6 | C199: solute carrier family 16 member 6 [Source:HGNC Symbol;Acc:HGNC:10927]
A200: ENSCHIG00000018179 | B200: CCNJ | C200: cyclin J [Source:HGNC Symbol;Acc:HGNC:23434]
... 123 more rows

Sheet 149 genes in Figue 4
A1: The normalized expression of the 149 DEGs in L muscle are higher in the fast-growing group.
A2: gene id | B2: gene name | C2: gene description
A3: ENSCHIG00000000053 | C3: -
A4: ENSCHIG00000000093 | B4: GUCD1 | C4: guanylyl cyclase domain containing 1 [Source:HGNC Symbol;Acc:HGNC:14237]
A5: ENSCHIG00000000130 | C5: -
A6: ENSCHIG00000000241 | B6: PPIF | C6: peptidylprolyl isomerase F [Source:HGNC Symbol;Acc:HGNC:9259]
A7: ENSCHIG00000000455 | B7: MYOZ1 | C7: myozenin 1 [Source:HGNC Symbol;Acc:HGNC:13752]
A8: ENSCHIG00000001027 | B8: FZD9 | C8: frizzled class receptor 9 [Source:HGNC Symbol;Acc:HGNC:4047]
A9: ENSCHIG00000001269 | B9: TMEM59L | C9: transmembrane protein 59 like [Source:HGNC Symbol;Acc:HGNC:13237]
A10: ENSCHIG00000002274 | B10: VWA2 | C10: von Willebrand factor A domain containing 2 [Source:HGNC Symbol;Acc:HGNC:24709]
A11: ENSCHIG00000002384 | C11: -
A12: ENSCHIG00000002853 | C12: -
A13: ENSCHIG00000002914 | B13: ASB12 | C13: ankyrin repeat and SOCS box containing 12 [Source:HGNC Symbol;Acc:HGNC:19763]
A14: ENSCHIG00000002972 | B14: ATP6V1E2 | C14: ATPase H+ transporting V1 subunit E2 [Source:HGNC Symbol;Acc:HGNC:18125]
A15: ENSCHIG00000003808 | B15: IDH2 | C15: isocitrate dehydrogenase (NADP(+)) 2 [Source:HGNC Symbol;Acc:HGNC:5383]
A16: ENSCHIG00000004186 | B16: AHSP | C16: alpha hemoglobin stabilizing protein [Source:HGNC Symbol;Acc:HGNC:18075]
A17: ENSCHIG00000004189 | B17: MTMR7 | C17: myotubularin related protein 7 [Source:HGNC Symbol;Acc:HGNC:7454]
A18: ENSCHIG00000005396 | B18: ROGDI | C18: rogdi atypical leucine zipper [Source:HGNC Symbol;Acc:HGNC:29478]
A19: ENSCHIG00000006455 | B19: RILPL2 | C19: Rab interacting lysosomal protein like 2 [Source:HGNC Symbol;Acc:HGNC:28787]
A20: ENSCHIG00000006481 | B20: CASQ1 | C20: calsequestrin 1 [Source:HGNC Symbol;Acc:HGNC:1512]
A21: ENSCHIG00000006964 | B21: LRRC14B | C21: leucine rich repeat containing 14B [Source:HGNC Symbol;Acc:HGNC:37268]
A22: ENSCHIG00000007327 | B22: RAB3A | C22: RAB3A, member RAS oncogene family [Source:HGNC Symbol;Acc:HGNC:9777]
A23: ENSCHIG00000007673 | B23: H2BC18 | C23: H2B clustered histone 18 [Source:HGNC Symbol;Acc:HGNC:24700]
A24: ENSCHIG00000007704 | C24: -
A25: ENSCHIG00000007884 | B25: KCNT1 | C25: potassium sodium-activated channel subfamily T member 1 [Source:HGNC Symbol;Acc:HGNC:18865]
A26: ENSCHIG00000008000 | B26: MB | C26: myoglobin [Source:HGNC Symbol;Acc:HGNC:6915]
A27: ENSCHIG00000008007 | B27: SERINC2 | C27: serine incorporator 2 [Source:HGNC Symbol;Acc:HGNC:23231]
A28: ENSCHIG00000008372 | C28: -
A29: ENSCHIG00000008471 | C29: -
A30: ENSCHIG00000008697 | B30: DUSP7 | C30: dual specificity phosphatase 7 [Source:HGNC Symbol;Acc:HGNC:3073]
A31: ENSCHIG00000008720 | C31: -
A32: ENSCHIG00000008956 | B32: TM7SF2 | C32: transmembrane 7 superfamily member 2 [Source:HGNC Symbol;Acc:HGNC:11863]
A33: ENSCHIG00000009133 | B33: MLYCD | C33: malonyl-CoA decarboxylase [Source:HGNC Symbol;Acc:HGNC:7150]
A34: ENSCHIG00000009180 | B34: LRFN4 | C34: leucine rich repeat and fibronectin type III domain containing 4 [Source:HGNC Symbol;Acc:HGNC:28456]
A35: ENSCHIG00000009326 | B35: ZNF358 | C35: zinc finger protein 358 [Source:HGNC Symbol;Acc:HGNC:16838]
A36: ENSCHIG00000009440 | B36: PGK1 | C36: phosphoglycerate kinase 1 [Source:HGNC Symbol;Acc:HGNC:8896]
A37: ENSCHIG00000009889 | B37: LRRC20 | C37: leucine rich repeat containing 20 [Source:HGNC Symbol;Acc:HGNC:23421]
A38: ENSCHIG00000009912 | B38: MYBPC2 | C38: myosin binding protein C2 [Source:HGNC Symbol;Acc:HGNC:7550]
A39: ENSCHIG00000010153 | B39: GDF10 | C39: growth differentiation factor 10 [Source:HGNC Symbol;Acc:HGNC:4215]
A40: ENSCHIG00000010300 | C40: -
A41: ENSCHIG00000010391 | B41: THRSP | C41: thyroid hormone responsive [Source:HGNC Symbol;Acc:HGNC:11800]
A42: ENSCHIG00000010613 | B42: CST6 | C42: cystatin E/M [Source:HGNC Symbol;Acc:HGNC:2478]
A43: ENSCHIG00000011170 | C43: -
A44: ENSCHIG00000011255 | B44: PYGM | C44: glycogen phosphorylase, muscle associated [Source:HGNC Symbol;Acc:HGNC:9726]
A45: ENSCHIG00000011525 | B45: FAM217B | C45: family with sequence similarity 217 member B [Source:HGNC Symbol;Acc:HGNC:16170]
A46: ENSCHIG00000011879 | B46: MYADML2 | C46: myeloid associated differentiation marker like 2 [Source:HGNC Symbol;Acc:HGNC:34548]
A47: ENSCHIG00000011888 | B47: PDLIM7 | C47: PDZ and LIM domain 7 [Source:HGNC Symbol;Acc:HGNC:22958]
A48: ENSCHIG00000012327 | B48: SLC48A1 | C48: solute carrier family 48 member 1 [Source:HGNC Symbol;Acc:HGNC:26035]
A49: ENSCHIG00000012356 | B49: USP5 | C49: ubiquitin specific peptidase 5 [Source:HGNC Symbol;Acc:HGNC:12628]
A50: ENSCHIG00000012435 | B50: CA3 | C50: carbonic anhydrase 3 [Source:HGNC Symbol;Acc:HGNC:1374]
A51: ENSCHIG00000012481 | B51: LRP3 | C51: LDL receptor related protein 3 [Source:HGNC Symbol;Acc:HGNC:6695]
A52: ENSCHIG00000012603 | B52: FAM78A | C52: family with sequence similarity 78 member A [Source:HGNC Symbol;Acc:HGNC:25465]
A53: ENSCHIG00000012621 | B53: SLC16A3 | C53: solute carrier family 16 member 3 [Source:HGNC Symbol;Acc:HGNC:10924]
A54: ENSCHIG00000012818 | C54: -
A55: ENSCHIG00000012987 | B55: MTCP1 | C55: mature T cell proliferation 1 [Source:HGNC Symbol;Acc:HGNC:7423]
A56: ENSCHIG00000013043 | B56: EXTL1 | C56: exostosin like glycosyltransferase 1 [Source:HGNC Symbol;Acc:HGNC:3515]
A57: ENSCHIG00000013143 | C57: -
A58: ENSCHIG00000013282 | C58: -
A59: ENSCHIG00000013500 | B59: FEM1A | C59: fem-1 homolog A [Source:HGNC Symbol;Acc:HGNC:16934]
A60: ENSCHIG00000013508 | B60: ASB16 | C60: ankyrin repeat and SOCS box containing 16 [Source:HGNC Symbol;Acc:HGNC:19768]
A61: ENSCHIG00000013515 | B61: ALDOA | C61: aldolase, fructose-bisphosphate A [Source:HGNC Symbol;Acc:HGNC:414]
A62: ENSCHIG00000013663 | C62: -
A63: ENSCHIG00000013692 | B63: ASB10 | C63: ankyrin repeat and SOCS box containing 10 [Source:HGNC Symbol;Acc:HGNC:17185]
A64: ENSCHIG00000014005 | B64: LCAT | C64: lecithin-cholesterol acyltransferase [Source:HGNC Symbol;Acc:HGNC:6522]
A65: ENSCHIG00000014068 | B65: FABP3 | C65: fatty acid binding protein 3 [Source:NCBI gene (formerly Entrezgene);Acc:100860846]
A66: ENSCHIG00000014557 | B66: BHLHE40 | C66: basic helix-loop-helix family member e40 [Source:HGNC Symbol;Acc:HGNC:1046]
A67: ENSCHIG00000014612 | B67: COQ10A | C67: coenzyme Q10A [Source:HGNC Symbol;Acc:HGNC:26515]
A68: ENSCHIG00000014925 | B68: COX7A1 | C68: cytochrome c oxidase subunit 7A1 [Source:HGNC Symbol;Acc:HGNC:2287]
A69: ENSCHIG00000015102 | B69: CHRDL2 | C69: chordin like 2 [Source:HGNC Symbol;Acc:HGNC:24168]
A70: ENSCHIG00000015626 | B70: NCAPD2 | C70: non-SMC condensin I complex subunit D2 [Source:HGNC Symbol;Acc:HGNC:24305]
A71: ENSCHIG00000015673 | B71: STRADB | C71: STE20 related adaptor beta [Source:HGNC Symbol;Acc:HGNC:13205]
A72: ENSCHIG00000015734 | B72: GNAZ | C72: G protein subunit alpha z [Source:HGNC Symbol;Acc:HGNC:4395]
A73: ENSCHIG00000015845 | B73: PFKFB4 | C73: 6-phosphofructo-2-kinase/fructose-2,6-biphosphatase 4 [Source:HGNC Symbol;Acc:HGNC:8875]
A74: ENSCHIG00000016031 | C74: -
A75: ENSCHIG00000016056 | B75: PKM | C75: pyruvate kinase M1/2 [Source:HGNC Symbol;Acc:HGNC:9021]
A76: ENSCHIG00000016178 | B76: PERM1 | C76: PPARGC1 and ESRR induced regulator, muscle 1 [Source:HGNC Symbol;Acc:HGNC:28208]
A77: ENSCHIG00000016188 | B77: CA2 | C77: carbonic anhydrase 2 [Source:HGNC Symbol;Acc:HGNC:1373]
A78: ENSCHIG00000016350 | B78: SMTNL2 | C78: smoothelin like 2 [Source:HGNC Symbol;Acc:HGNC:24764]
A79: ENSCHIG00000016523 | B79: CRIP3 | C79: cysteine rich protein 3 [Source:HGNC Symbol;Acc:HGNC:17751]
A80: ENSCHIG00000016589 | B80: EEF1A2 | C80: eukaryotic translation elongation factor 1 alpha 2 [Source:HGNC Symbol;Acc:HGNC:3192]
A81: ENSCHIG00000016682 | B81: DHRSX | C81: dehydrogenase/reductase X-linked [Source:HGNC Symbol;Acc:HGNC:18399]
A82: ENSCHIG00000016899 | B82: C3orf18 | C82: chromosome 3 open reading frame 18 [Source:HGNC Symbol;Acc:HGNC:24837]
A83: ENSCHIG00000016957 | B83: CCDC88C | C83: coiled-coil domain containing 88C [Source:HGNC Symbol;Acc:HGNC:19967]
A84: ENSCHIG00000017096 | C84: -
A85: ENSCHIG00000017124 | B85: DHRS7C | C85: dehydrogenase/reductase 7C [Source:HGNC Symbol;Acc:HGNC:32423]
A86: ENSCHIG00000017472 | B86: FBP2 | C86: fructose-bisphosphatase 2 [Source:HGNC Symbol;Acc:HGNC:3607]
A87: ENSCHIG00000017642 | B87: FHL3 | C87: four and a half LIM domains 3 [Source:HGNC Symbol;Acc:HGNC:3704]
A88: ENSCHIG00000017811 | B88: PLPP7 | C88: phospholipid phosphatase 7 (inactive) [Source:HGNC Symbol;Acc:HGNC:28174]
A89: ENSCHIG00000017944 | B89: NRG4 | C89: neuregulin 4 [Source:HGNC Symbol;Acc:HGNC:29862]
A90: ENSCHIG00000018087 | B90: SNAI3 | C90: snail family transcriptional repressor 3 [Source:HGNC Symbol;Acc:HGNC:18411]
A91: ENSCHIG00000018372 | B91: LDH-A | C91: lactate dehydrogenase [Source:NCBI gene (formerly Entrezgene);Acc:100860870]
A92: ENSCHIG00000018578 | B92: CKMT2 | C92: creatine kinase, mitochondrial 2 [Source:HGNC Symbol;Acc:HGNC:1996]
A93: ENSCHIG00000018654 | B93: PGM1 | C93: phosphoglucomutase 1 [Source:HGNC Symbol;Acc:HGNC:8905]
A94: ENSCHIG00000018762 | C94: -
A95: ENSCHIG00000018894 | C95: -
A96: ENSCHIG00000019065 | B96: COX6A2 | C96: cytochrome c oxidase subunit 6A2 [Source:HGNC Symbol;Acc:HGNC:2279]
A97: ENSCHIG00000019083 | B97: FNDC5 | C97: fibronectin type III domain containing 5 [Source:HGNC Symbol;Acc:HGNC:20240]
A98: ENSCHIG00000019303 | B98: CES2 | C98: carboxylesterase 2 [Source:HGNC Symbol;Acc:HGNC:1864]
A99: ENSCHIG00000019468 | C99: -
A100: ENSCHIG00000019497 | C100: -
A101: ENSCHIG00000019504 | B101: ENO3 | C101: enolase 3 [Source:HGNC Symbol;Acc:HGNC:3354]
A102: ENSCHIG00000019743 | B102: KLHL34 | C102: kelch like family member 34 [Source:HGNC Symbol;Acc:HGNC:26634]
A103: ENSCHIG00000019912 | B103: SLC25A34 | C103: solute carrier family 25 member 34 [Source:HGNC Symbol;Acc:HGNC:27653]
A104: ENSCHIG00000019953 | B104: MACROD1 | C104: mono-ADP ribosylhydrolase 1 [Source:HGNC Symbol;Acc:HGNC:29598]
A105: ENSCHIG00000019962 | B105: GPRC5C | C105: G protein-coupled receptor class C group 5 member C [Source:HGNC Symbol;Acc:HGNC:13309]
A106: ENSCHIG00000020247 | B106: ALAD | C106: aminolevulinate dehydratase [Source:HGNC Symbol;Acc:HGNC:395]
A107: ENSCHIG00000020673 | C107: -
A108: ENSCHIG00000020852 | C108: -
A109: ENSCHIG00000020906 | B109: VSTM2L | C109: V-set and transmembrane domain containing 2 like [Source:HGNC Symbol;Acc:HGNC:16096]
A110: ENSCHIG00000020951 | B110: NFATC1 | C110: nuclear factor of activated T cells 1 [Source:HGNC Symbol;Acc:HGNC:7775]
A111: ENSCHIG00000021110 | B111: PCBD1 | C111: pterin-4 alpha-carbinolamine dehydratase 1 [Source:HGNC Symbol;Acc:HGNC:8646]
A112: ENSCHIG00000021150 | B112: TSPAN33 | C112: tetraspanin 33 [Source:HGNC Symbol;Acc:HGNC:28743]
A113: ENSCHIG00000021186 | B113: HIPK2 | C113: homeodomain interacting protein kinase 2 [Source:HGNC Symbol;Acc:HGNC:14402]
A114: ENSCHIG00000021378 | B114: CHCHD10 | C114: coiled-coil-helix-coiled-coil-helix domain containing 10 [Source:HGNC Symbol;Acc:HGNC:15559]
A115: ENSCHIG00000021467 | B115: RUSC2 | C115: RUN and SH3 domain containing 2 [Source:HGNC Symbol;Acc:HGNC:23625]
A116: ENSCHIG00000021475 | C116: -
A117: ENSCHIG00000021899 | C117: -
A118: ENSCHIG00000021985 | C118: -
A119: ENSCHIG00000022017 | B119: ZMAT4 | C119: zinc finger matrin-type 4 [Source:HGNC Symbol;Acc:HGNC:25844]
A120: ENSCHIG00000022100 | B120: NHLRC1 | C120: NHL repeat containing E3 ubiquitin protein ligase 1 [Source:HGNC Symbol;Acc:HGNC:21576]
A121: ENSCHIG00000022458 | B121: INSYN1 | C121: inhibitory synaptic factor 1 [Source:HGNC Symbol;Acc:HGNC:33753]
A122: ENSCHIG00000022516 | C122: -
A123: ENSCHIG00000022522 | B123: CORO6 | C123: coronin 6 [Source:HGNC Symbol;Acc:HGNC:21356]
A124: ENSCHIG00000022860 | C124: -
A125: ENSCHIG00000023037 | B125: ETV4 | C125: ETS variant transcription factor 4 [Source:HGNC Symbol;Acc:HGNC:3493]
A126: ENSCHIG00000023166 | B126: TMOD4 | C126: tropomodulin 4 [Source:HGNC Symbol;Acc:HGNC:11874]
A127: ENSCHIG00000023238 | B127: DNTTIP1 | C127: deoxynucleotidyltransferase terminal interacting protein 1 [Source:HGNC Symbol;Acc:HGNC:16160]
A128: ENSCHIG00000023240 | B128: HHATL | C128: hedgehog acyltransferase like [Source:HGNC Symbol;Acc:HGNC:13242]
A129: ENSCHIG00000023260 | B129: FBXL22 | C129: F-box and leucine rich repeat protein 22 [Source:HGNC Symbol;Acc:HGNC:27537]
A130: ENSCHIG00000023384 | B130: NEURL2 | C130: neuralized E3 ubiquitin protein ligase 2 [Source:HGNC Symbol;Acc:HGNC:16156]
A131: ENSCHIG00000023643 | B131: ANGPTL4 | C131: angiopoietin like 4 [Source:HGNC Symbol;Acc:HGNC:16039]
A132: ENSCHIG00000023673 | B132: NME4 | C132: NME/NM23 nucleoside diphosphate kinase 4 [Source:HGNC Symbol;Acc:HGNC:7852]
A133: ENSCHIG00000023740 | B133: LBX1 | C133: ladybird homeobox 1 [Source:HGNC Symbol;Acc:HGNC:16960]
A134: ENSCHIG00000023960 | B134: ACSM1 | C134: acyl-CoA synthetase medium chain family member 1 [Source:HGNC Symbol;Acc:HGNC:18049]
A135: ENSCHIG00000024060 | B135: PLIN1 | C135: perilipin 1 [Source:HGNC Symbol;Acc:HGNC:9076]
A136: ENSCHIG00000024152 | B136: ATP2A1 | C136: ATPase sarcoplasmic/endoplasmic reticulum Ca2+ transporting 1 [Source:HGNC Symbol;Acc:HGNC:811]
A137: ENSCHIG00000024355 | B137: LINGO1 | C137: leucine rich repeat and Ig domain containing 1 [Source:HGNC Symbol;Acc:HGNC:21205]
A138: ENSCHIG00000024400 | B138: SLC35F2 | C138: solute carrier family 35 member F2 [Source:HGNC Symbol;Acc:HGNC:23615]
A139: ENSCHIG00000024478 | B139: ARHGAP35 | C139: Rho GTPase activating protein 35 [Source:HGNC Symbol;Acc:HGNC:4591]
A140: ENSCHIG00000024701 | B140: CKM | C140: creatine kinase, M-type [Source:HGNC Symbol;Acc:HGNC:1994]
A141: ENSCHIG00000025189 | B141: FAM110B | C141: family with sequence similarity 110 member B [Source:HGNC Symbol;Acc:HGNC:28587]
A142: ENSCHIG00000025267 | B142: GALNT17 | C142: polypeptide N-acetylgalactosaminyltransferase 17 [Source:HGNC Symbol;Acc:HGNC:16347]
A143: ENSCHIG00000025299 | B143: ADCK2 | C143: aarF domain containing kinase 2 [Source:HGNC Symbol;Acc:HGNC:19039]
A144: ENSCHIG00000025821 | B144: ANKRD13B | C144: ankyrin repeat domain 13B [Source:HGNC Symbol;Acc:HGNC:26363]
A145: ENSCHIG00000026310 | B145: FZD7 | C145: frizzled class receptor 7 [Source:HGNC Symbol;Acc:HGNC:4045]
A146: ENSCHIG00000026415 | B146: AKT1S1 | C146: AKT1 substrate 1 [Source:HGNC Symbol;Acc:HGNC:28426]
A147: ENSCHIG00000026515 | B147: NKAIN1 | C147: sodium/potassium transporting ATPase interacting 1 [Source:HGNC Symbol;Acc:HGNC:25743]
A148: ENSCHIG00000026809 | B148: PYCR1 | C148: pyrroline-5-carboxylate reductase 1 [Source:HGNC Symbol;Acc:HGNC:9721]
A149: ENSCHIG00000026840 | B149: NT5C1A | C149: 5'-nucleotidase, cytosolic IA [Source:HGNC Symbol;Acc:HGNC:17819]
A150: ENSCHIG00000027179 | B150: MYOZ3 | C150: myozenin 3 [Source:NCBI gene (formerly Entrezgene);Acc:102187317]
A151: ENSCHIG00000027219 | B151: TAF6 | C151: TATA-box binding protein associated factor 6 [Source:HGNC Symbol;Acc:HGNC:11540]

Sheet 125 genes in Figure 4
A1: The normalized expression of the 125 DEGs in T muscle are higher in the fast-growing group.
A2: gene id | B2: gene name | C2: gene description
A3: ENSCHIG00000000123 | B3: IQANK1 | C3: IQ motif and ankyrin repeat containing 1 [Source:HGNC Symbol;Acc:HGNC:49576]
A4: ENSCHIG00000000920 | B4: NAV2 | C4: neuron navigator 2 [Source:HGNC Symbol;Acc:HGNC:15997]
A5: ENSCHIG00000002377 | C5: -
A6: ENSCHIG00000002384 | C6: -
A7: ENSCHIG00000002861 | B7: UBE2QL1 | C7: ubiquitin conjugating enzyme E2 Q family like 1 [Source:HGNC Symbol;Acc:HGNC:37269]
A8: ENSCHIG00000004709 | B8: CA12 | C8: carbonic anhydrase 12 [Source:HGNC Symbol;Acc:HGNC:1371]
A9: ENSCHIG00000004792 | B9: H2AC6 | C9: H2A clustered histone 6 [Source:HGNC Symbol;Acc:HGNC:4733]
A10: ENSCHIG00000005128 | B10: HS3ST2 | C10: heparan sulfate-glucosamine 3-sulfotransferase 2 [Source:HGNC Symbol;Acc:HGNC:5195]
A11: ENSCHIG00000005326 | B11: PITX1 | C11: paired like homeodomain 1 [Source:HGNC Symbol;Acc:HGNC:9004]
A12: ENSCHIG00000005339 | B12: RPRM | C12: reprimo, TP53 dependent G2 arrest mediator homolog [Source:HGNC Symbol;Acc:HGNC:24201]
A13: ENSCHIG00000005488 | B13: LY6E | C13: lymphocyte antigen 6 family member E [Source:HGNC Symbol;Acc:HGNC:6727]
A14: ENSCHIG00000005699 | B14: METTL21C | C14: methyltransferase 21C, AARS1 lysine [Source:HGNC Symbol;Acc:HGNC:33717]
A15: ENSCHIG00000006072 | B15: JHY | C15: junctional cadherin complex regulator [Source:HGNC Symbol;Acc:HGNC:26288]
A16: ENSCHIG00000006155 | C16: -
A17: ENSCHIG00000006245 | B17: Metazoa_SRP | C17: Metazoan signal recognition particle RNA [Source:RFAM;Acc:RF00017]
A18: ENSCHIG00000007111 | B18: EPHX2 | C18: epoxide hydrolase 2 [Source:HGNC Symbol;Acc:HGNC:3402]
A19: ENSCHIG00000007715 | B19: ARC | C19: activity regulated cytoskeleton associated protein [Source:NCBI gene (formerly Entrezgene);Acc:102189883]
A20: ENSCHIG00000008471 | C20: -
A21: ENSCHIG00000008645 | B21: NGEF | C21: neuronal guanine nucleotide exchange factor [Source:HGNC Symbol;Acc:HGNC:7807]
A22: ENSCHIG00000009039 | B22: GPR75 | C22: G protein-coupled receptor 75 [Source:HGNC Symbol;Acc:HGNC:4526]
A23: ENSCHIG00000009245 | B23: DDN | C23: dendrin [Source:HGNC Symbol;Acc:HGNC:24458]
A24: ENSCHIG00000009284 | B24: H2BU1 | C24: H2B.U histone 1 [Source:HGNC Symbol;Acc:HGNC:20514]
A25: ENSCHIG00000009479 | B25: H2BC5 | C25: H2B clustered histone 5 [Source:HGNC Symbol;Acc:HGNC:4747]
A26: ENSCHIG00000010102 | C26: -
A27: ENSCHIG00000010829 | B27: PTCRA | C27: pre T cell antigen receptor alpha [Source:HGNC Symbol;Acc:HGNC:21290]
A28: ENSCHIG00000010967 | B28: H2BC4 | C28: H2B clustered histone 4 [Source:HGNC Symbol;Acc:HGNC:4757]
A29: ENSCHIG00000011069 | C29: -
A30: ENSCHIG00000011226 | B30: CDC42EP5 | C30: CDC42 effector protein 5 [Source:HGNC Symbol;Acc:HGNC:17408]
A31: ENSCHIG00000011298 | B31: P3H2 | C31: prolyl 3-hydroxylase 2 [Source:HGNC Symbol;Acc:HGNC:19317]
A32: ENSCHIG00000011698 | B32: ANKRD2 | C32: ankyrin repeat domain 2 [Source:HGNC Symbol;Acc:HGNC:495]
A33: ENSCHIG00000011982 | B33: BUB1 | C33: BUB1 mitotic checkpoint serine/threonine kinase [Source:HGNC Symbol;Acc:HGNC:1148]
A34: ENSCHIG00000012168 | B34: COLQ | C34: collagen like tail subunit of asymmetric acetylcholinesterase [Source:HGNC Symbol;Acc:HGNC:2226]
A35: ENSCHIG00000012180 | B35: XIRP1 | C35: xin actin binding repeat containing 1 [Source:HGNC Symbol;Acc:HGNC:14301]
A36: ENSCHIG00000012315 | B36: CCN4 | C36: cellular communication network factor 4 [Source:HGNC Symbol;Acc:HGNC:12769]
A37: ENSCHIG00000012346 | C37: -
A38: ENSCHIG00000012435 | B38: CA3 | C38: carbonic anhydrase 3 [Source:HGNC Symbol;Acc:HGNC:1374]
A39: ENSCHIG00000012498 | B39: TOP2A | C39: DNA topoisomerase II alpha [Source:HGNC Symbol;Acc:HGNC:11989]
A40: ENSCHIG00000012706 | B40: LMCD1 | C40: LIM and cysteine rich domains 1 [Source:HGNC Symbol;Acc:HGNC:6633]
A41: ENSCHIG00000012722 | B41: STAC2 | C41: SH3 and cysteine rich domain 2 [Source:HGNC Symbol;Acc:HGNC:23990]
A42: ENSCHIG00000013275 | B42: HOXC6 | C42: homeobox C6 [Source:HGNC Symbol;Acc:HGNC:5128]
A43: ENSCHIG00000013396 | B43: MAPK4 | C43: mitogen-activated protein kinase 4 [Source:HGNC Symbol;Acc:HGNC:6878]
A44: ENSCHIG00000013682 | B44: RSPO3 | C44: R-spondin 3 [Source:HGNC Symbol;Acc:HGNC:20866]
A45: ENSCHIG00000013889 | B45: MYL3 | C45: myosin light chain 3 [Source:HGNC Symbol;Acc:HGNC:7584]
A46: ENSCHIG00000014068 | B46: FABP3 | C46: fatty acid binding protein 3 [Source:NCBI gene (formerly Entrezgene);Acc:100860846]
A47: ENSCHIG00000014088 | B47: CRYAB | C47: crystallin alpha B [Source:HGNC Symbol;Acc:HGNC:2389]
A48: ENSCHIG00000014090 | C48: -
A49: ENSCHIG00000014106 | B49: IL17D | C49: interleukin 17D [Source:HGNC Symbol;Acc:HGNC:5984]
A50: ENSCHIG00000014376 | B50: CASQ2 | C50: calsequestrin 2 [Source:HGNC Symbol;Acc:HGNC:1513]
A51: ENSCHIG00000014379 | B51: KLHL40 | C51: kelch like family member 40 [Source:HGNC Symbol;Acc:HGNC:30372]
A52: ENSCHIG00000014445 | B52: VGLL2 | C52: vestigial like family member 2 [Source:HGNC Symbol;Acc:HGNC:20232]
A53: ENSCHIG00000014464 | B53: RRAD | C53: RRAD, Ras related glycolysis inhibitor and calcium channel regulator [Source:HGNC Symbol;Acc:HGNC:10446]
A54: ENSCHIG00000014613 | B54: KCNQ4 | C54: potassium voltage-gated channel subfamily Q member 4 [Source:HGNC Symbol;Acc:HGNC:6298]
A55: ENSCHIG00000014678 | B55: TC2N | C55: tandem C2 domains, nuclear [Source:HGNC Symbol;Acc:HGNC:19859]
A56: ENSCHIG00000015122 | C56: -
A57: ENSCHIG00000015316 | B57: MIEN1 | C57: migration and invasion enhancer 1 [Source:HGNC Symbol;Acc:HGNC:28230]
A58: ENSCHIG00000015407 | C58: -
A59: ENSCHIG00000015437 | B59: DOT1L | C59: DOT1 like histone lysine methyltransferase [Source:HGNC Symbol;Acc:HGNC:24948]
A60: ENSCHIG00000015502 | B60: SYT17 | C60: synaptotagmin 17 [Source:HGNC Symbol;Acc:HGNC:24119]
A61: ENSCHIG00000015503 | B61: KRT80 | C61: keratin 80 [Source:HGNC Symbol;Acc:HGNC:27056]
A62: ENSCHIG00000015638 | B62: HSPB8 | C62: heat shock protein family B (small) member 8 [Source:HGNC Symbol;Acc:HGNC:30171]
A63: ENSCHIG00000016268 | B63: DNAI7 | C63: dynein axonemal intermediate chain 7 [Source:HGNC Symbol;Acc:HGNC:29599]
A64: ENSCHIG00000016384 | B64: WNT16 | C64: Wnt family member 16 [Source:HGNC Symbol;Acc:HGNC:16267]
A65: ENSCHIG00000016523 | B65: CRIP3 | C65: cysteine rich protein 3 [Source:HGNC Symbol;Acc:HGNC:17751]
A66: ENSCHIG00000017233 | B66: ARG2 | C66: arginase 2 [Source:HGNC Symbol;Acc:HGNC:664]
A67: ENSCHIG00000017286 | B67: CRYZ | C67: crystallin zeta [Source:HGNC Symbol;Acc:HGNC:2419]
A68: ENSCHIG00000017388 | B68: SLC4A3 | C68: solute carrier family 4 member 3 [Source:HGNC Symbol;Acc:HGNC:11029]
A69: ENSCHIG00000017467 | B69: TPM3 | C69: tropomyosin 3 [Source:HGNC Symbol;Acc:HGNC:12012]
A70: ENSCHIG00000017515 | B70: HOXD1 | C70: homeobox D1 [Source:HGNC Symbol;Acc:HGNC:5132]
A71: ENSCHIG00000017546 | B71: TOMM34 | C71: translocase of outer mitochondrial membrane 34 [Source:HGNC Symbol;Acc:HGNC:15746]
A72: ENSCHIG00000017554 | B72: RNF207 | C72: ring finger protein 207 [Source:HGNC Symbol;Acc:HGNC:32947]
A73: ENSCHIG00000017730 | B73: HOOK2 | C73: hook microtubule tethering protein 2 [Source:HGNC Symbol;Acc:HGNC:19885]
A74: ENSCHIG00000018193 | B74: MYH7B | C74: myosin heavy chain 7B [Source:HGNC Symbol;Acc:HGNC:15906]
A75: ENSCHIG00000018215 | C75: -
A76: ENSCHIG00000018268 | B76: KIF11 | C76: kinesin family member 11 [Source:HGNC Symbol;Acc:HGNC:6388]
A77: ENSCHIG00000018287 | B77: TNFRSF12A | C77: TNF receptor superfamily member 12A [Source:HGNC Symbol;Acc:HGNC:18152]
A78: ENSCHIG00000018410 | B78: HOGA1 | C78: 4-hydroxy-2-oxoglutarate aldolase 1 [Source:HGNC Symbol;Acc:HGNC:25155]
A79: ENSCHIG00000018540 | C79: -
A80: ENSCHIG00000018588 | B80: UHRF1 | C80: ubiquitin like with PHD and ring finger domains 1 [Source:HGNC Symbol;Acc:HGNC:12556]
A81: ENSCHIG00000018894 | C81: -
A82: ENSCHIG00000019494 | C82: -
A83: ENSCHIG00000019600 | B83: OLFM2 | C83: olfactomedin 2 [Source:HGNC Symbol;Acc:HGNC:17189]
A84: ENSCHIG00000019899 | C84: -
A85: ENSCHIG00000019986 | B85: BCR | C85: BCR activator of RhoGEF and GTPase [Source:HGNC Symbol;Acc:HGNC:1014]
A86: ENSCHIG00000019988 | B86: MYL2 | C86: myosin light chain 2 [Source:HGNC Symbol;Acc:HGNC:7583]
A87: ENSCHIG00000020070 | B87: ARHGAP44 | C87: Rho GTPase activating protein 44 [Source:HGNC Symbol;Acc:HGNC:29096]
A88: ENSCHIG00000020464 | B88: MRPS6 | C88: mitochondrial ribosomal protein S6 [Source:HGNC Symbol;Acc:HGNC:14051]
A89: ENSCHIG00000020498 | B89: TNNI3 | C89: troponin I3, cardiac type [Source:NCBI gene (formerly Entrezgene);Acc:100860775]
A90: ENSCHIG00000020521 | B90: CUX2 | C90: cut like homeobox 2 [Source:HGNC Symbol;Acc:HGNC:19347]
A91: ENSCHIG00000020522 | C91: -
A92: ENSCHIG00000020562 | C92: -
A93: ENSCHIG00000020671 | B93: SH2D5 | C93: SH2 domain containing 5 [Source:HGNC Symbol;Acc:HGNC:28819]
A94: ENSCHIG00000020704 | B94: TNNT2 | C94: troponin T2, cardiac type [Source:HGNC Symbol;Acc:HGNC:11949]
A95: ENSCHIG00000021021 | C95: -
A96: ENSCHIG00000021036 | B96: KIF18B | C96: kinesin family member 18B [Source:HGNC Symbol;Acc:HGNC:27102]
A97: ENSCHIG00000021206 | B97: MYOCD | C97: myocardin [Source:HGNC Symbol;Acc:HGNC:16067]
A98: ENSCHIG00000021226 | B98: TNNT1 | C98: troponin T1, slow skeletal type [Source:HGNC Symbol;Acc:HGNC:11948]
A99: ENSCHIG00000021588 | B99: SPECC1 | C99: sperm antigen with calponin homology and coiled-coil domains 1 [Source:HGNC Symbol;Acc:HGNC:30615]
A100: ENSCHIG00000021718 | B100: CNTNAP1 | C100: contactin associated protein 1 [Source:HGNC Symbol;Acc:HGNC:8011]
A101: ENSCHIG00000021744 | B101: ACSS1 | C101: acyl-CoA synthetase short chain family member 1 [Source:HGNC Symbol;Acc:HGNC:16091]
A102: ENSCHIG00000021899 | C102: -
A103: ENSCHIG00000021956 | B103: BARX2 | C103: BARX homeobox 2 [Source:HGNC Symbol;Acc:HGNC:956]
A104: ENSCHIG00000022157 | B104: LRRC52 | C104: leucine rich repeat containing 52 [Source:HGNC Symbol;Acc:HGNC:32156]
A105: ENSCHIG00000022362 | B105: LZTS1 | C105: leucine zipper tumor suppressor 1 [Source:HGNC Symbol;Acc:HGNC:13861]
A106: ENSCHIG00000022715 | B106: HTR4 | C106: 5-hydroxytryptamine receptor 4 [Source:HGNC Symbol;Acc:HGNC:5299]
A107: ENSCHIG00000022728 | B107: ESRRB | C107: estrogen related receptor beta [Source:HGNC Symbol;Acc:HGNC:3473]
A108: ENSCHIG00000023501 | C108: -
A109: ENSCHIG00000023649 | C109: -
A110: ENSCHIG00000023737 | B110: SLC9A1 | C110: solute carrier family 9 member A1 [Source:HGNC Symbol;Acc:HGNC:11071]
A111: ENSCHIG00000023789 | B111: RYR3 | C111: ryanodine receptor 3 [Source:HGNC Symbol;Acc:HGNC:10485]
A112: ENSCHIG00000023816 | C112: -
A113: ENSCHIG00000024212 | B113: DMRT1 | C113: doublesex and mab-3 related transcription factor 1 [Source:HGNC Symbol;Acc:HGNC:2934]
A114: ENSCHIG00000024271 | B114: DNAJA4 | C114: DnaJ heat shock protein family (Hsp40) member A4 [Source:HGNC Symbol;Acc:HGNC:14885]
A115: ENSCHIG00000024392 | B115: SIM2 | C115: SIM bHLH transcription factor 2 [Source:HGNC Symbol;Acc:HGNC:10883]
A116: ENSCHIG00000024400 | B116: SLC35F2 | C116: solute carrier family 35 member F2 [Source:HGNC Symbol;Acc:HGNC:23615]
A117: ENSCHIG00000024434 | B117: ALPK2 | C117: alpha kinase 2 [Source:HGNC Symbol;Acc:HGNC:20565]
A118: ENSCHIG00000024973 | B118: ADGRB2 | C118: adhesion G protein-coupled receptor B2 [Source:HGNC Symbol;Acc:HGNC:944]
A119: ENSCHIG00000025085 | B119: LRRC34 | C119: leucine rich repeat containing 34 [Source:HGNC Symbol;Acc:HGNC:28408]
A120: ENSCHIG00000025140 | B120: FHL2 | C120: four and a half LIM domains 2 [Source:HGNC Symbol;Acc:HGNC:3703]
A121: ENSCHIG00000025619 | C121: -
A122: ENSCHIG00000025700 | B122: MYMK | C122: myomaker, myoblast fusion factor [Source:HGNC Symbol;Acc:HGNC:33778]
A123: ENSCHIG00000025951 | B123: AGRP | C123: agouti related neuropeptide [Source:HGNC Symbol;Acc:HGNC:330]
A124: ENSCHIG00000025973 | B124: CERKL | C124: ceramide kinase like [Source:HGNC Symbol;Acc:HGNC:21699]
A125: ENSCHIG00000026003 | B125: PALMD | C125: palmdelphin [Source:HGNC Symbol;Acc:HGNC:15846]
A126: ENSCHIG00000026036 | B126: DKK2 | C126: dickkopf WNT signaling pathway inhibitor 2 [Source:HGNC Symbol;Acc:HGNC:2892]
A127: ENSCHIG00000026184 | C127: -
